Workbook

Sheet Residential
C2: Home Loan Serviceability Calculator
C3: Version 6.12.2 - 28th July 2026
C4: Net Service Ratio (NSR) Requirements (using Assessment Rate) All applicantions: NSR must be ≥ 1.00 (1.25x when final LVR > 90%) Applicants with majority income as Government Allowances (eg. Pensions, Family Tax Benefits): NSR must be ≥ 1.25 1% Interest Rate Buffer Eligibility Rules Allowed for the following transactions: The following rules apply: - Purchase of an established investment property OR - Maximum LVR is 80%, AND - Interest rate is FIXED across the whole loan (cash out ≤ $20,000) OR - Prime & Near Prime Clear home loan applications only - Refinance and established home or an established investment property loan & debt consolidation (cash out ≤ $20,000)
C6: Applicant Name
C8: Loan Details | G8: Interest Rate Buffer | H8: =IF(ISBLANK(I8)," <Select>","") -> <Select>
C9: (including capitalised fees) | G9: WAVG Assessment Rate | I9: =IF(TRIM(H8)="<Select>","<Select Int Rate Buffer>",MAX(BaselineAssessmentRate,ResiWAVGInterestRate+I8)) -> <Select Int Rate Buffer>
C10: New Loan Amount | G10: Interest Rate | H10: 5 | K10: Loan Term | O10: IO Term
C11: New Loan Amount
C12: Total Loan Amount | E12: =SUM(E10:E11) -> 0 | G12: WAVG Interest Rate | I12: =IF(ResiNewLoanTotalAmount=0,0,((ResiNewLoanAmount1*ResiInterestRate1)+(ResiNewLoanAmount2*ResiInterestRate2))/ResiNewLoanTotalAmount) -> 0 | K12: WAVG Loan Term | M12: =IF(ResiNewLoanTotalAmount=0,0,((ResiNewLoanAmount1*ResiLoanTerm1)+(ResiNewLoanAmount2*ResiLoanTerm2))/ResiNewLoanTotalAmount) -> 0 | O12: WAVG IO Term | P12: =IF(ResiNewLoanTotalAmount=0,0,((ResiNewLoanAmount1*ResiLoanIOTerm1)+(ResiNewLoanAmount2*ResiLoanIOTerm2))/ResiNewLoanTotalAmount) -> 0
K13: =IF(AND(ResiWAVGLoanTerm>30,ResiLoanIOTerm1>0), "Loan Terms > 30 years cannot be Interest Only", " ") -> 
C14: Applicant Details: | E14: Applicant 1 | G14: Applicant 2 | I14: Applicant 3 | K14: Applicant 4 | M14: Applicant 5 | O14: Applicant 6 | R14: Total
C15: Status
C16: Individual (Couple) With | D16: Applicant 1
C17: Dependants
E18: =IF(AND(SUM(E19:E23,E26:E27)<>0,E15=""),"Enter a Status","") ->  | G18: =IF(AND(SUM(G19:G23,G26:G27)<>0,G15=""),"Enter a Status","") ->  | I18: =IF(AND(SUM(I19:I23,I26:I27)<>0,I15=""),"Enter a Status","") ->  | K18: =IF(AND(SUM(K19:K23,K26:K27)<>0,K15=""),"Enter a Status","") ->  | M18: =IF(AND(SUM(M19:M23,M26:M27)<>0,M15=""),"Enter a Status","") ->  | O18: =IF(AND(SUM(O19:O23,O26:O27)<>0,O15=""),"Enter a Status","") -> 
C19: Gross Annual Income
C20: Untaxed Allowable Income | R20: =(E20+G20+I20+K20+M20+O20) -> 0
C21: Self Employed Income
C22: Addbacks
C23: Business NPBT
C25: Investments (eligible for negative gearing)
C26: Gross Rental Income | R26: =(E26+G26+I26+K26+M26+O26) -> 0
C27: Investment Loan Balance
C28: Investments (NOT eligible for negative gearing) | U28: =IF($G$57>0,$G$57*12*(E29/SUM($E$29,$G$29,$I$29,$K$29,$M$29,$O$29)),0) -> 0
C29: Gross Rental Income | R29: =(E29+G29+I29+K29+M29+O29) -> 0
C30: Investment Loan Balance
C31: Total Income | E31: =(E26+E29)*RentalIncomeShading+E19+E20+E21+E22+E23 -> 0 | G31: =(G26+G29)*RentalIncomeShading+G19+G20+G21+G22+G23 -> 0 | I31: =(I26+I29)*RentalIncomeShading+I19+I20+I21+I22+I23 -> 0 | K31: =(K26+K29)*RentalIncomeShading+K19+K20+K21+K22+K23 -> 0 | M31: =(M26+M29)*RentalIncomeShading+M19+M20+M21+M22+M23 -> 0 | O31: =(O26+O29)*RentalIncomeShading+O19+O20+O21+O22+O23 -> 0 | R31: =(E31+G31+I31+K31+M31+O31) -> 0
C32: Is an Applicant | E32: =AND(E15<>"") -> FALSE | G32: =AND(G15<>"") -> FALSE | I32: =AND(I15<>"") -> FALSE | K32: =AND(K15<>"") -> FALSE | M32: =AND(M15<>"") -> FALSE | O32: =AND(O15<>"") -> FALSE
C33: Spouse Dependants | E33: =IFERROR(HLOOKUP(E16,ResiApplicantDetailsTable,4,FALSE),0) -> 0 | G33: =IFERROR(HLOOKUP(G16,ResiApplicantDetailsTable,4,FALSE),0) -> 0 | I33: =IFERROR(HLOOKUP(I16,ResiApplicantDetailsTable,4,FALSE),0) -> 0 | K33: =IFERROR(HLOOKUP(K16,ResiApplicantDetailsTable,4,FALSE),0) -> 0 | M33: =IFERROR(HLOOKUP(M16,ResiApplicantDetailsTable,4,FALSE),0) -> 0 | O33: =IFERROR(HLOOKUP(O16,ResiApplicantDetailsTable,4,FALSE),0) -> 0
C34: Pepper Status Code | D34: Applicant 1 | E34: =IF(E$15="Individual (Couple)","P-C",IF(E$15="Individual (Single)","P-S","")) ->  | G34: =IF(G$15="Individual (Couple)","P-C",IF(G$15="Individual (Single)","P-S","")) ->  | I34: =IF(I$15="Individual (Couple)","P-C",IF(I$15="Individual (Single)","P-S","")) ->  | K34: =IF(K$15="Individual (Couple)","P-C",IF(K$15="Individual (Single)","P-S","")) ->  | M34: =IF(M$15="Individual (Couple)","P-C",IF(M$15="Individual (Single)","P-S","")) ->  | O34: =IF(O$15="Individual (Couple)","P-C",IF(O$15="Individual (Single)","P-S","")) -> 
C35: Pepper Dependents Code | E35: =IF(E$15="Individual (Couple)","P-CD"&INDEX(Validation!$B$21:$B$26,MATCH((E$17+E$33),Validation!$A$21:$A$26,1)),IF(E$15="Individual (Single)","P-SD"&INDEX(Validation!$B$21:$B$26,MATCH((E$17+E$33),Validation!$A$21:$A$26,1)),"")) ->  | G35: =IF(G$15="Individual (Couple)","P-CD"&INDEX(Validation!$B$21:$B$26,MATCH((G$17+G$33),Validation!$A$21:$A$26,1)),IF(G$15="Individual (Single)","P-SD"&INDEX(Validation!$B$21:$B$26,MATCH((G$17+G$33),Validation!$A$21:$A$26,1)),"")) ->  | I35: =IF(I$15="Individual (Couple)","P-CD"&INDEX(Validation!$B$21:$B$26,MATCH((I$17+I$33),Validation!$A$21:$A$26,1)),IF(I$15="Individual (Single)","P-SD"&INDEX(Validation!$B$21:$B$26,MATCH((I$17+I$33),Validation!$A$21:$A$26,1)),"")) ->  | K35: =IF(K$15="Individual (Couple)","P-CD"&INDEX(Validation!$B$21:$B$26,MATCH((K$17+K$33),Validation!$A$21:$A$26,1)),IF(K$15="Individual (Single)","P-SD"&INDEX(Validation!$B$21:$B$26,MATCH((K$17+K$33),Validation!$A$21:$A$26,1)),"")) ->  | M35: =IF(M$15="Individual (Couple)","P-CD"&INDEX(Validation!$B$21:$B$26,MATCH((M$17+M$33),Validation!$A$21:$A$26,1)),IF(M$15="Individual (Single)","P-SD"&INDEX(Validation!$B$21:$B$26,MATCH((M$17+M$33),Validation!$A$21:$A$26,1)),"")) ->  | O35: =IF(O$15="Individual (Couple)","P-CD"&INDEX(Validation!$B$21:$B$26,MATCH((O$17+O$33),Validation!$A$21:$A$26,1)),IF(O$15="Individual (Single)","P-SD"&INDEX(Validation!$B$21:$B$26,MATCH((O$17+O$33),Validation!$A$21:$A$26,1)),"")) -> 
C36: Exclude for LE calc | E36: =IFERROR(IF(MATCH(E16,$E$14:$O$14,0)<(COLUMN()-COLUMN($E$14:$O$14)+1),TRUE,FALSE),FALSE) -> FALSE | G36: =IFERROR(IF(MATCH(G16,$E$14:$O$14,0)<(COLUMN()-COLUMN($E$14:$O$14)+1),TRUE,FALSE),FALSE) -> FALSE | I36: =IFERROR(IF(MATCH(I16,$E$14:$O$14,0)<(COLUMN()-COLUMN($E$14:$O$14)+1),TRUE,FALSE),FALSE) -> FALSE | K36: =IFERROR(IF(MATCH(K16,$E$14:$O$14,0)<(COLUMN()-COLUMN($E$14:$O$14)+1),TRUE,FALSE),FALSE) -> FALSE | M36: =IFERROR(IF(MATCH(M16,$E$14:$O$14,0)<(COLUMN()-COLUMN($E$14:$O$14)+1),TRUE,FALSE),FALSE) -> FALSE | O36: =IFERROR(IF(MATCH(O16,$E$14:$O$14,0)<(COLUMN()-COLUMN($E$14:$O$14)+1),TRUE,FALSE),FALSE) -> FALSE
C37: Workings for Negative Gearing | E37: =IF(E27>0,E27*WorkingsForNegativeGearing+(IF(E27>0,$G$56*12*(E27/SUM($E$27,$G$27,$I$27,$K$27,$M$27,$O$27)),0)),0) -> 0 | G37: =IF(G27>0,G27*WorkingsForNegativeGearing+(IF(G27>0,$G$56*12*(G27/SUM($E$27,$G$27,$I$27,$K$27,$M$27,$O$27)),0)),0) -> 0 | I37: =IF(I27>0,I27*WorkingsForNegativeGearing+(IF(I27>0,$G$56*12*(I27/SUM($E$27,$G$27,$I$27,$K$27,$M$27,$O$27)),0)),0) -> 0 | K37: =IF(K27>0,K27*WorkingsForNegativeGearing+(IF(K27>0,$G$56*12*(K27/SUM($E$27,$G$27,$I$27,$K$27,$M$27,$O$27)),0)),0) -> 0 | M37: =IF(M27>0,M27*WorkingsForNegativeGearing+(IF(M27>0,$G$56*12*(M27/SUM($E$27,$G$27,$I$27,$K$27,$M$27,$O$27)),0)),0) -> 0 | O37: =IF(O27>0,O27*WorkingsForNegativeGearing+(IF(O27>0,$G$56*12*(O27/SUM($E$27,$G$27,$I$27,$K$27,$M$27,$O$27)),0)),0) -> 0
C38: Total Taxable Income Exc Business NPBT | E38: =MAX(0,(E19+E21-E37+(E26*RentalIncomeShading)+(IF(E29>0,MAX(0,(E29*RentalIncomeShading-(E30*WorkingsForNegativeGearing)-($G$57*12*(E29/SUM($E$29,$G$29,$I$29,$K$29,$M$29,$O$29))))),0)))) -> 0 | G38: =MAX(0,(G19+G21-G37+(G26*RentalIncomeShading)+(IF(G29>0,MAX(0,(G29*RentalIncomeShading-(G30*WorkingsForNegativeGearing)-($G$57*12*(G29/SUM($E$29,$G$29,$I$29,$K$29,$M$29,$O$29))))),0)))) -> 0 | I38: =MAX(0,(I19+I21-I37+(I26*RentalIncomeShading)+(IF(I29>0,MAX(0,(I29*RentalIncomeShading-(I30*WorkingsForNegativeGearing)-($G$57*12*(I29/SUM($E$29,$G$29,$I$29,$K$29,$M$29,$O$29))))),0)))) -> 0 | K38: =MAX(0,(K19+K21-K37+(K26*RentalIncomeShading)+(IF(K29>0,MAX(0,(K29*RentalIncomeShading-(K30*WorkingsForNegativeGearing)-($G$57*12*(K29/SUM($E$29,$G$29,$I$29,$K$29,$M$29,$O$29))))),0)))) -> 0 | M38: =MAX(0,(M19+M21-M37+(M26*RentalIncomeShading)+(IF(M29>0,MAX(0,(M29*RentalIncomeShading-(M30*WorkingsForNegativeGearing)-($G$57*12*(M29/SUM($E$29,$G$29,$I$29,$K$29,$M$29,$O$29))))),0)))) -> 0 | O38: =MAX(0,(O19+O21-O37+(O26*RentalIncomeShading)+(IF(O29>0,MAX(0,(O29*RentalIncomeShading-(O30*WorkingsForNegativeGearing)-($G$57*12*(O29/SUM($E$29,$G$29,$I$29,$K$29,$M$29,$O$29))))),0)))) -> 0 | R38: =(E38+G38+I38+K38+M38+O38) -> 0
C39: Spouse Income | E39: =IFERROR(HLOOKUP(E16,$E$14:$O$31,ROWS($E$14:$O$31),FALSE),0)-IFERROR(HLOOKUP(E16,$E$14:$O$37,ROWS($E$14:$O$37),FALSE),0) -> 0 | G39: =IFERROR(HLOOKUP(G16,$E$14:$O$31,ROWS($E$14:$O$31),FALSE),0)-IFERROR(HLOOKUP(G16,$E$14:$O$37,ROWS($E$14:$O$37),FALSE),0) -> 0 | I39: =IFERROR(HLOOKUP(I16,$E$14:$O$31,ROWS($E$14:$O$31),FALSE),0)-IFERROR(HLOOKUP(I16,$E$14:$O$37,ROWS($E$14:$O$37),FALSE),0) -> 0 | K39: =IFERROR(HLOOKUP(K16,$E$14:$O$31,ROWS($E$14:$O$31),FALSE),0)-IFERROR(HLOOKUP(K16,$E$14:$O$37,ROWS($E$14:$O$37),FALSE),0) -> 0 | M39: =IFERROR(HLOOKUP(M16,$E$14:$O$31,ROWS($E$14:$O$31),FALSE),0)-IFERROR(HLOOKUP(M16,$E$14:$O$37,ROWS($E$14:$O$37),FALSE),0) -> 0 | O39: =IFERROR(HLOOKUP(O16,$E$14:$O$31,ROWS($E$14:$O$31),FALSE),0)-IFERROR(HLOOKUP(O16,$E$14:$O$37,ROWS($E$14:$O$37),FALSE),0) -> 0
C40: Income Bracket | E40: =IFERROR(HLOOKUP(E31+E39-E37-(E30*WorkingsForNegativeGearing)-(IF($G$57>0,$G$57*12*(E29/SUM($E$29,$G$29,$I$29,$K$29,$M$29,$O$29)),0)),HemCombinedIncomeRange,3,TRUE),1) -> 1 | G40: =IFERROR(HLOOKUP(G31+G39-G37-(G30*WorkingsForNegativeGearing)-(IF($G$57>0,$G$57*12*(G29/SUM($E$29,$G$29,$I$29,$K$29,$M$29,$O$29)),0)),HemCombinedIncomeRange,3,TRUE),1) -> 1 | I40: =IFERROR(HLOOKUP(I31+I39-I37-(I30*WorkingsForNegativeGearing)-(IF($G$57>0,$G$57*12*(I29/SUM($E$29,$G$29,$I$29,$K$29,$M$29,$O$29)),0)),HemCombinedIncomeRange,3,TRUE),1) -> 1 | K40: =IFERROR(HLOOKUP(K31+K39-K37-(K30*WorkingsForNegativeGearing)-(IF($G$57>0,$G$57*12*(K29/SUM($E$29,$G$29,$I$29,$K$29,$M$29,$O$29)),0)),HemCombinedIncomeRange,3,TRUE),1) -> 1 | M40: =IFERROR(HLOOKUP(M31+M39-M37-(M30*WorkingsForNegativeGearing)-(IF($G$57>0,$G$57*12*(M29/SUM($E$29,$G$29,$I$29,$K$29,$M$29,$O$29)),0)),HemCombinedIncomeRange,3,TRUE),1) -> 1 | O40: =IFERROR(HLOOKUP(O31+O39-O37-(O30*WorkingsForNegativeGearing)-(IF($G$57>0,$G$57*12*(O29/SUM($E$29,$G$29,$I$29,$K$29,$M$29,$O$29)),0)),HemCombinedIncomeRange,3,TRUE),1) -> 1
C41: Tax | E41: =IF(E15="Company",E38*CompanyTax,INDEX(TaxForBracket,MATCH(E38,TaxBracketMin,1))+INDEX(TaxRate,MATCH(E38,TaxBracketMin,1))*(E38-INDEX(TaxBracketMin,MATCH(E38,TaxBracketMin,1)))+IF(E38<='Tax Table'!$B$6,0,IF(E38<='Tax Table'!$B$7,(E38-'Tax Table'!$B$6)*'Tax Table'!$C$6,E38*'Tax Table'!$C$7)))+(E23*CompanyTax) -> 0 | G41: =IF(G15="Company",G38*CompanyTax,INDEX(TaxForBracket,MATCH(G38,TaxBracketMin,1))+INDEX(TaxRate,MATCH(G38,TaxBracketMin,1))*(G38-INDEX(TaxBracketMin,MATCH(G38,TaxBracketMin,1)))+IF(G38<='Tax Table'!$B$6,0,IF(G38<='Tax Table'!$B$7,(G38-'Tax Table'!$B$6)*'Tax Table'!$C$6,G38*'Tax Table'!$C$7)))+(G23*CompanyTax) -> 0 | I41: =IF(I15="Company",I38*CompanyTax,INDEX(TaxForBracket,MATCH(I38,TaxBracketMin,1))+INDEX(TaxRate,MATCH(I38,TaxBracketMin,1))*(I38-INDEX(TaxBracketMin,MATCH(I38,TaxBracketMin,1)))+IF(I38<='Tax Table'!$B$6,0,IF(I38<='Tax Table'!$B$7,(I38-'Tax Table'!$B$6)*'Tax Table'!$C$6,I38*'Tax Table'!$C$7)))+(I23*CompanyTax) -> 0 | K41: =IF(K15="Company",K38*CompanyTax,INDEX(TaxForBracket,MATCH(K38,TaxBracketMin,1))+INDEX(TaxRate,MATCH(K38,TaxBracketMin,1))*(K38-INDEX(TaxBracketMin,MATCH(K38,TaxBracketMin,1)))+IF(K38<='Tax Table'!$B$6,0,IF(K38<='Tax Table'!$B$7,(K38-'Tax Table'!$B$6)*'Tax Table'!$C$6,K38*'Tax Table'!$C$7)))+(K23*CompanyTax) -> 0 | M41: =IF(M15="Company",M38*CompanyTax,INDEX(TaxForBracket,MATCH(M38,TaxBracketMin,1))+INDEX(TaxRate,MATCH(M38,TaxBracketMin,1))*(M38-INDEX(TaxBracketMin,MATCH(M38,TaxBracketMin,1)))+IF(M38<='Tax Table'!$B$6,0,IF(M38<='Tax Table'!$B$7,(M38-'Tax Table'!$B$6)*'Tax Table'!$C$6,M38*'Tax Table'!$C$7)))+(M23*CompanyTax) -> 0 | O41: =IF(O15="Company",O38*CompanyTax,INDEX(TaxForBracket,MATCH(O38,TaxBracketMin,1))+INDEX(TaxRate,MATCH(O38,TaxBracketMin,1))*(O38-INDEX(TaxBracketMin,MATCH(O38,TaxBracketMin,1)))+IF(O38<='Tax Table'!$B$6,0,IF(O38<='Tax Table'!$B$7,(O38-'Tax Table'!$B$6)*'Tax Table'!$C$6,O38*'Tax Table'!$C$7)))+(O23*CompanyTax) -> 0
C42: Tax offset for Low Income Earners | E42: =0-(IF(OR(E15="Company",E38="",E38=0),0,IF(VLOOKUP(E38,TaxOffsetForLowIncomeTable,2,TRUE)+(E38-VLOOKUP(E38,TaxOffsetForLowIncomeTable,1,TRUE))*VLOOKUP(E38,TaxOffsetForLowIncomeTable,3,TRUE)<0,0,VLOOKUP(E38,TaxOffsetForLowIncomeTable,2,TRUE)+(E38-VLOOKUP(E38,TaxOffsetForLowIncomeTable,1,TRUE))*VLOOKUP(E38,TaxOffsetForLowIncomeTable,3,TRUE)))) -> 0 | G42: =0-(IF(OR(G15="Company",G38="",G38=0),0,IF(VLOOKUP(G38,TaxOffsetForLowIncomeTable,2,TRUE)+(G38-VLOOKUP(G38,TaxOffsetForLowIncomeTable,1,TRUE))*VLOOKUP(G38,TaxOffsetForLowIncomeTable,3,TRUE)<0,0,VLOOKUP(G38,TaxOffsetForLowIncomeTable,2,TRUE)+(G38-VLOOKUP(G38,TaxOffsetForLowIncomeTable,1,TRUE))*VLOOKUP(G38,TaxOffsetForLowIncomeTable,3,TRUE)))) -> 0 | I42: =0-(IF(OR(I15="Company",I38="",I38=0),0,IF(VLOOKUP(I38,TaxOffsetForLowIncomeTable,2,TRUE)+(I38-VLOOKUP(I38,TaxOffsetForLowIncomeTable,1,TRUE))*VLOOKUP(I38,TaxOffsetForLowIncomeTable,3,TRUE)<0,0,VLOOKUP(I38,TaxOffsetForLowIncomeTable,2,TRUE)+(I38-VLOOKUP(I38,TaxOffsetForLowIncomeTable,1,TRUE))*VLOOKUP(I38,TaxOffsetForLowIncomeTable,3,TRUE)))) -> 0 | K42: =0-(IF(OR(K15="Company",K38="",K38=0),0,IF(VLOOKUP(K38,TaxOffsetForLowIncomeTable,2,TRUE)+(K38-VLOOKUP(K38,TaxOffsetForLowIncomeTable,1,TRUE))*VLOOKUP(K38,TaxOffsetForLowIncomeTable,3,TRUE)<0,0,VLOOKUP(K38,TaxOffsetForLowIncomeTable,2,TRUE)+(K38-VLOOKUP(K38,TaxOffsetForLowIncomeTable,1,TRUE))*VLOOKUP(K38,TaxOffsetForLowIncomeTable,3,TRUE)))) -> 0 | M42: =0-(IF(OR(M15="Company",M38="",M38=0),0,IF(VLOOKUP(M38,TaxOffsetForLowIncomeTable,2,TRUE)+(M38-VLOOKUP(M38,TaxOffsetForLowIncomeTable,1,TRUE))*VLOOKUP(M38,TaxOffsetForLowIncomeTable,3,TRUE)<0,0,VLOOKUP(M38,TaxOffsetForLowIncomeTable,2,TRUE)+(M38-VLOOKUP(M38,TaxOffsetForLowIncomeTable,1,TRUE))*VLOOKUP(M38,TaxOffsetForLowIncomeTable,3,TRUE)))) -> 0 | O42: =0-(IF(OR(O15="Company",O38="",O38=0),0,IF(VLOOKUP(O38,TaxOffsetForLowIncomeTable,2,TRUE)+(O38-VLOOKUP(O38,TaxOffsetForLowIncomeTable,1,TRUE))*VLOOKUP(O38,TaxOffsetForLowIncomeTable,3,TRUE)<0,0,VLOOKUP(O38,TaxOffsetForLowIncomeTable,2,TRUE)+(O38-VLOOKUP(O38,TaxOffsetForLowIncomeTable,1,TRUE))*VLOOKUP(O38,TaxOffsetForLowIncomeTable,3,TRUE)))) -> 0
C43: Net | E43: =E31-(IF(E41+E42>0,E41+E42,0)) -> 0 | G43: =G31-(IF(G41+G42>0,G41+G42,0)) -> 0 | I43: =I31-(IF(I41+I42>0,I41+I42,0)) -> 0 | K43: =K31-(IF(K41+K42>0,K41+K42,0)) -> 0 | M43: =M31-(IF(M41+M42>0,M41+M42,0)) -> 0 | O43: =O31-(IF(O41+O42>0,O41+O42,0)) -> 0 | R43: =(E43+G43+I43+K43+M43+O43) -> 0
C44: HEM Living Expense | E44: =IFERROR(IF(AND(E32,NOT(E36)),(VLOOKUP(E34,HemTableForExpenses,E40+1,FALSE) +(VLOOKUP(E35,HemTableForExpenses,E40+1,FALSE))*(E17+E33))*NumberOfWeeksInAYear,0),0) -> 0 | G44: =IFERROR(IF(AND(G32,NOT(G36)),(VLOOKUP(G34,HemTableForExpenses,G40+1,FALSE) +(VLOOKUP(G35,HemTableForExpenses,G40+1,FALSE))*(G17+G33))*NumberOfWeeksInAYear,0),0) -> 0 | I44: =IFERROR(IF(AND(I32,NOT(I36)),(VLOOKUP(I34,HemTableForExpenses,I40+1,FALSE) +(VLOOKUP(I35,HemTableForExpenses,I40+1,FALSE))*(I17+I33))*NumberOfWeeksInAYear,0),0) -> 0 | K44: =IFERROR(IF(AND(K32,NOT(K36)),(VLOOKUP(K34,HemTableForExpenses,K40+1,FALSE) +(VLOOKUP(K35,HemTableForExpenses,K40+1,FALSE))*(K17+K33))*NumberOfWeeksInAYear,0),0) -> 0 | M44: =IFERROR(IF(AND(M32,NOT(M36)),(VLOOKUP(M34,HemTableForExpenses,M40+1,FALSE) +(VLOOKUP(M35,HemTableForExpenses,M40+1,FALSE))*(M17+M33))*NumberOfWeeksInAYear,0),0) -> 0 | O44: =IFERROR(IF(AND(O32,NOT(O36)),(VLOOKUP(O34,HemTableForExpenses,O40+1,FALSE) +(VLOOKUP(O35,HemTableForExpenses,O40+1,FALSE))*(O17+O33))*NumberOfWeeksInAYear,0),0) -> 0 | R44: 0
C45: Expenses compared to HEM Annual | E45: =SUMIF($F$54:$F$70,"Yes",$G$54:$G$70)*12 -> 0 | G45: Expenses not compared to HEM Exc Inv Property Annual | K45: =SUMIF($F$54:$F$70,"No",$G$54:$G$70)*12-((G56+G57)*12) -> 0 | M45: Customer Nominated Living Expenses | R45: =E45+K45+K46 -> 0
C46: Compared to HEM Percentage on Benchmark | E46: =IF(R44=0,0,E45/R44) -> 0 | I46: Investment Property Costs >15% of rent Annual | K46: =MAX(0,(G56*12)-(R26*15%)+(G57*12)-(R29*15%)) -> 0 | M46: Living Expenses Used | R46: =MAX(R44,E45)+K45+K46 -> 0
M47: Net Available Income | R47: =R43-R46 -> 0
C51: Commitments
C53: Living Expenses: | F53: Compared To Hem | G53: Per Month | I53: Other Commitments: | M53: Per Month
C54: Primary residence utilities, rates, strata fees & expenses | F54: Yes | I54: Rent/Board
C55: Primary residence land tax & FHB property tax | F55: No | I55: Total Credit Card Limit | O55: =TEXT(CreditCardCommitments,"0.00%")&": "&M55*CreditCardCommitments -> 3.82%: 0 | R55: =M55*CreditCardCommitments -> 0
C56: Investment property expenses (negative gearing eligible pool) | F56: No | I56: Other Mortgage Repayments
C57: Investment property expenses (negative gearing ineligible pool) | F57: No | I57: Other Liabilities (eg BNPL, PL, HECs)
C58: Telephone, internet, Pay TV & media streaming | F58: Yes
C59: Groceries | F59: Yes
C60: Recreation & Entertainment | F60: Yes
C61: Clothing & Personal Care | F61: Yes
C62: Medical & Health | F62: Yes | K62: The living expenses declared by the customer are at risk of being understated when compared to a living expense benchmark. A Level 5 Pepper DCA holder will be required to approve this application
C63: Transport | F63: Yes
C64: Education – non Private schooling | F64: Yes
C65: Education - Private schooling | F65: No
C66: Childcare | F66: Yes
C67: Insurance - General Basic | F67: Yes
C68: Insurance - Health, Sickness, Personal Accident & Life | F68: No
C69: Other Living Expenses | F69: No
C70: Child & Spousal Maintenance | F70: No
C73: Result
C75: Actual Rate: | E75: Monthly | G75: Annual | I75: Assessment Rate: | M75: Monthly | O75: Annual
C76: Total Income | E76: =G76/NumberOfMonthsInAYear -> 0 | G76: =$R$31 -> 0 | K76: Total Income | M76: =O76/NumberOfMonthsInAYear -> 0 | O76: =$R$31 -> 0
C77: Net Income | E77: =G77/NumberOfMonthsInAYear -> 0 | G77: =$R$43 -> 0 | K77: Net Income | M77: =R43/NumberOfMonthsInAYear -> 0 | O77: =$R$43 -> 0
C78: Living Costs | E78: =G78/NumberOfMonthsInAYear -> 0 | G78: =$R$46 -> 0 | K78: Living Costs | M78: =O78/NumberOfMonthsInAYear -> 0 | O78: =$R$46 -> 0
C79: Net Available Income | E79: =IFERROR(G79/NumberOfMonthsInAYear,0) -> 0 | G79: =$G$77-$G$78 -> 0 | K79: Net Available Income | M79: =IFERROR(O79/NumberOfMonthsInAYear,0) -> 0 | O79: =$O$77-$O$78 -> 0
C80: Proposed Repayments | E80: =IFERROR(-PMT(ResiInterestRate1/NumberOfMonthsInAYear,(ResiLoanTerm1-ResiLoanIOTerm1)*NumberOfMonthsInAYear,ResiNewLoanAmount1),0)+IFERROR(-PMT(ResiInterestRate2/NumberOfMonthsInAYear,(ResiLoanTerm2-ResiLoanIOTerm2)*NumberOfMonthsInAYear,ResiNewLoanAmount2),0) -> 0 | G80: =E80*NumberOfMonthsInAYear -> 0 | K80: Proposed Repayments | M80: =IFERROR(-PMT(ResiAssessmentRate1/NumberOfMonthsInAYear,(ResiLoanTerm1-ResiLoanIOTerm1)*NumberOfMonthsInAYear,ResiNewLoanAmount1),0)+IFERROR(-PMT(ResiAssessmentRate2/NumberOfMonthsInAYear,(ResiLoanTerm2-ResiLoanIOTerm2)*NumberOfMonthsInAYear,ResiNewLoanAmount2),0) -> 0 | O80: =M80*NumberOfMonthsInAYear -> 0
C81: Other Commitments | E81: =IFERROR(G81/NumberOfMonthsInAYear,0) -> 0 | G81: =O81 -> 0 | K81: Other Commitments | M81: =IFERROR(O81/NumberOfMonthsInAYear,0) -> 0 | O81: =($M$56*OtherMortgageRepaymentBuffer+$M$57+$R$55+$M$54)*NumberOfMonthsInAYear -> 0
C83: NSR: | E83: =IF(K88="INCOMPLETE",0,IFERROR(ROUNDDOWN(G79/(G80+G81),2),0)) -> 0 | G83: =IF(OR(ResiCheckForCompleteness="INCOMPLETE",ResiTotalIncome=0,K13="Loan Terms > 30 years cannot be Interest Only"),"INCOMPLETE",IF(AND(IF(AND(ResiTotalUntaxedAvailableIncome<>0,ResiTotalUntaxedAvailableIncome/ResiTotalIncome>AllowableGovernmentAllowanceOverTotalIncomeLimitation),ResiActualNSR>=AcceptableNSRForGovernmentIncome,TRUE),(ResiActualNSR>=AcceptableNSRForAllOtherApplicants)),"PASS","FAIL")) -> INCOMPLETE | K83: NSR: | M83: =IF(K88="INCOMPLETE",0,IFERROR(ROUNDDOWN(O79/(O80+O81),2),0)) -> 0 | O83: =IF( OR( ResiCheckForCompleteness="INCOMPLETE", ResiTotalIncome=0, K13="Loan Terms > 30 years cannot be Interest Only", AND(E11<>"", OR(I11="", M11=""))),"INCOMPLETE", IF( AND( IF( AND( ResiTotalUntaxedAvailableIncome<>0, ResiTotalUntaxedAvailableIncome/ResiTotalIncome>AllowableGovernmentAllowanceOverTotalIncomeLimitation ), ResiAssessmentNSR>=AcceptableNSRForGovernmentIncome, TRUE ), ResiAssessmentNSR>=AcceptableNSRForAllOtherApplicants ), "PASS", "FAIL" ) ) -> INCOMPLETE
C84: DSR: | E84: =IF(K88="INCOMPLETE","-",IFERROR((G80+G81-(M54*12))/R31,"-")) -> - | K84: DSR: | M84: =IF(K88="INCOMPLETE","-",IFERROR((O80 +O81-(M54*12))/R31,"-")) -> -
K87: Application Status
K88: =IF(OR(ResiNewLoanTotalAmount="",ResiWAVGInterestRate="",ResiWAVGLoanTerm="",E15="",R31=0,E18<>"",G18<>"",I18<>"",K18<>"",M18<>"",O18<>"",G54="",G55="",G56="",G57="",G58="",G59="",G60="",G61="",G62="",G63="",G64="",G65="",G66="",G67="",G68="",G69="",G70=""),"INCOMPLETE","COMPLETE") -> INCOMPLETE
G90: Eligible Loan Amount | M90: =IF(O83="INCOMPLETE",O83,MAX(0,IF(O83="PASS",ResiNewLoanTotalAmount,IFERROR(-PV(ResiWAVGAssessmentRate/12,(ResiWAVGLoanTerm-ResiWAVGLoanIOTerm)*12,ROUNDDOWN(((O79-(O81*(IF(AND(ResiTotalUntaxedAvailableIncome<>0,ResiTotalUntaxedAvailableIncome/ResiTotalIncome>AllowableGovernmentAllowanceOverTotalIncomeLimitation),AcceptableNSRForGovernmentIncome,AcceptableNSRForAllOtherApplicants))))/(NumberOfMonthsInAYear*(IF(AND(ResiTotalUntaxedAvailableIncome<>0,ResiTotalUntaxedAvailableIncome/ResiTotalIncome>AllowableGovernmentAllowanceOverTotalIncomeLimitation),AcceptableNSRForGovernmentIncome,AcceptableNSRForAllOtherApplicants)))),0),0),0)))) -> INCOMPLETE
G92: Maximum Serviceable Loan Amount | M92: =IF(O83="INCOMPLETE",O83,MAX(0,IFERROR(-PV(ResiWAVGAssessmentRate/12,(ResiWAVGLoanTerm-ResiWAVGLoanIOTerm)*12,ROUNDDOWN(((O79-(O81*(IF(AND(ResiTotalUntaxedAvailableIncome<>0,ResiTotalUntaxedAvailableIncome/ResiTotalIncome>AllowableGovernmentAllowanceOverTotalIncomeLimitation),AcceptableNSRForGovernmentIncome,AcceptableNSRForAllOtherApplicants))))/(NumberOfMonthsInAYear*(IF(AND(ResiTotalUntaxedAvailableIncome<>0,ResiTotalUntaxedAvailableIncome/ResiTotalIncome>AllowableGovernmentAllowanceOverTotalIncomeLimitation),AcceptableNSRForGovernmentIncome,AcceptableNSRForAllOtherApplicants)))),0),0),0))) -> INCOMPLETE
C93: Net Service Ratio (NSR) Requirements (using Assessment Rate)
C94: All applicantions: NSR must be ≥ 1.00
C95: Where loan amount or borrower exposure is > $1.5m AND aggregate LVR > 70%: NSR must be ≥ 1.25 Applicants with majority income as Government Allowances (eg. Pensions, Family Tax Benefits): NSR must be ≥ 1.25
C96: 1% Interest Rate Buffer Eligiblity Rules Allowed for the following transactions: - Purchase of an investment property - Interest rate is FIXED across the whole loan (cash out ≤ $20,000) - Refinance home loan & debt consolidation (cash out ≤ $20,000) | I96: The following rules apply: - Maximum LVR is 80%, AND - Minimum Equifax Credit Bureau score is 700, AND - No RHI > 0 on all debts or default listings in the last 12 months & no unpaid default listings
C97: Important Information: This calculator is to be used as a guide only as to borrowing power based on the basic information provided. It is not an offer of credit or a quote. Lending criteria, terms and conditions, fees and charges will apply should a borrower apply for credit. Pepper Money Limited ABN 55 094 317 665 Australian credit licence 286655

Sheet Commercial
B1: Commercial Servicability Calculator
C2: =Residential!C3 -> Version 6.12.2 - 28th July 2026
C4: Applicant Name
C6: Proposed Loan Details
C8: New Loan Amount | G8: Interest Rate | K8: Assessment Rate | M8: =MAX(BaselineAssessmentRate,I8+2%) -> 0.055
C9: Documentation Type | G9: Loan Term (Years)
G10: I/O Term (Years)
G11: P&I Repayment | I11: =IF(I9>I10,-PMT(M8/12,12*(I9-I10),E8),0) -> 0
G12: IO Repayment | I12: =IF(I10>0,E8*M8/12,0) -> 0
C15: Business Loan Details | N15: excluding proposed Pepper loan
E17: Loan Amount | G17: Rate | I17: Actual Loan Repayment (Monthly)
C18: Loan 1
C19: Loan 2
C20: Loan 3
C21: Loan 4
C24: Business Income / Expenses
C26: Business Income | I26: Add Backs
C27: Net Profit Before Tax | I27: Depreciation
C28: Proposed Net Commercial Rental Income | I28: Ammortisation
C29: Proposed Gross Residential Rental Income | I29: Interest Paid
I30: Directors Salaries/Fees/Super
I31: Other
C32: Earning Before Interest, Tax, Depreciation & Ammortisation (EBITDA)
E33: =K33+E27+E28+(E29*RentalIncomeShading) -> 0 | I33: Total Add Backs | K33: =SUM(K27:K31) -> 0
C36: Personal Income / Expenses
C38: Applicant Details | E38: Applicant 1 | G38: Applicant 2 | I38: Applicant 3 | K38: Applicant 4
C39: Status
C40: Couple With
C41: Dependants
E42: Enter a Status | G42: Enter a Status | I42: Enter a Status | K42: Enter a Status
C44: Gross Annual Income
C45: Untaxed Allowable Income
C46: Gross Residential Rental Income (Negative Gearing Eligible)
C47: Gross Residential Rental Income (not eligible for Negative Gearing)
C48: Total Income | E48: =E44+E45+(E46+E47)*RentalIncomeShading -> 0 | G48: =G44+G45+(G46+G47)*RentalIncomeShading -> 0 | H48: =H44+H45+(H46+H47)*RentalIncomeShading -> 0 | I48: =I44+I45+(I46+I47)*RentalIncomeShading -> 0 | J48: =J44+J45+(J46+J47)*RentalIncomeShading -> 0 | K48: =K44+K45+(K46+K47)*RentalIncomeShading -> 0 | P48: =(E48+G48+I48+K48) -> 0 | Q48: Total Gross Annual Income
C50: Negative Gearing eligible Loan Balance (personal name)
C51: Negative Gearing NOT eligible Loan Balance (personal name)
C52: Tax | E52: =VLOOKUP(E68,IncomeTaxTable,2,TRUE)+MAX(((E68-VLOOKUP(E68,IncomeTaxTable,1,TRUE))*VLOOKUP(E68,IncomeTaxTable,3,TRUE)),0) +IF(E68<=MinimumForPartialLevy,0,IF(E68>MinimumForFullLevy,E68*MedicareFullLevyPerc,(E68-MinimumForPartialLevy)*MedicarePartialLevyPerc)) -> 0 | G52: =VLOOKUP(G68,IncomeTaxTable,2,TRUE)+MAX(((G68-VLOOKUP(G68,IncomeTaxTable,1,TRUE))*VLOOKUP(G68,IncomeTaxTable,3,TRUE)),0) +IF(G68<=MinimumForPartialLevy,0,IF(G68>MinimumForFullLevy,G68*MedicareFullLevyPerc,(G68-MinimumForPartialLevy)*MedicarePartialLevyPerc)) -> 0 | I52: =VLOOKUP(I68,IncomeTaxTable,2,TRUE)+MAX(((I68-VLOOKUP(I68,IncomeTaxTable,1,TRUE))*VLOOKUP(I68,IncomeTaxTable,3,TRUE)),0) +IF(I68<=MinimumForPartialLevy,0,IF(I68>MinimumForFullLevy,I68*MedicareFullLevyPerc,(I68-MinimumForPartialLevy)*MedicarePartialLevyPerc)) -> 0 | K52: =VLOOKUP(K68,IncomeTaxTable,2,TRUE)+MAX(((K68-VLOOKUP(K68,IncomeTaxTable,1,TRUE))*VLOOKUP(K68,IncomeTaxTable,3,TRUE)),0) +IF(K68<=MinimumForPartialLevy,0,IF(K68>MinimumForFullLevy,K68*MedicareFullLevyPerc,(K68-MinimumForPartialLevy)*MedicarePartialLevyPerc)) -> 0
C53: Tax offset for Low Income Earners | E53: =0-(IF(OR(E39="Company",E68="",E68=0),0,IF(VLOOKUP(E68,TaxOffsetForLowIncomeTable,2,TRUE)+(E68-VLOOKUP(E68,TaxOffsetForLowIncomeTable,1,TRUE))*VLOOKUP(E68,TaxOffsetForLowIncomeTable,3,TRUE)<0,0,VLOOKUP(E68,TaxOffsetForLowIncomeTable,2,TRUE)+(E68-VLOOKUP(E68,TaxOffsetForLowIncomeTable,1,TRUE))*VLOOKUP(E68,TaxOffsetForLowIncomeTable,3,TRUE)))) -> 0 | G53: =0-(IF(OR(G39="Company",G68="",G68=0),0,IF(VLOOKUP(G68,TaxOffsetForLowIncomeTable,2,TRUE)+(G68-VLOOKUP(G68,TaxOffsetForLowIncomeTable,1,TRUE))*VLOOKUP(G68,TaxOffsetForLowIncomeTable,3,TRUE)<0,0,VLOOKUP(G68,TaxOffsetForLowIncomeTable,2,TRUE)+(G68-VLOOKUP(G68,TaxOffsetForLowIncomeTable,1,TRUE))*VLOOKUP(G68,TaxOffsetForLowIncomeTable,3,TRUE)))) -> 0 | I53: =0-(IF(OR(I39="Company",I68="",I68=0),0,IF(VLOOKUP(I68,TaxOffsetForLowIncomeTable,2,TRUE)+(I68-VLOOKUP(I68,TaxOffsetForLowIncomeTable,1,TRUE))*VLOOKUP(I68,TaxOffsetForLowIncomeTable,3,TRUE)<0,0,VLOOKUP(I68,TaxOffsetForLowIncomeTable,2,TRUE)+(I68-VLOOKUP(I68,TaxOffsetForLowIncomeTable,1,TRUE))*VLOOKUP(I68,TaxOffsetForLowIncomeTable,3,TRUE)))) -> 0 | K53: =0-(IF(OR(K39="Company",K68="",K68=0),0,IF(VLOOKUP(K68,TaxOffsetForLowIncomeTable,2,TRUE)+(K68-VLOOKUP(K68,TaxOffsetForLowIncomeTable,1,TRUE))*VLOOKUP(K68,TaxOffsetForLowIncomeTable,3,TRUE)<0,0,VLOOKUP(K68,TaxOffsetForLowIncomeTable,2,TRUE)+(K68-VLOOKUP(K68,TaxOffsetForLowIncomeTable,1,TRUE))*VLOOKUP(K68,TaxOffsetForLowIncomeTable,3,TRUE)))) -> 0
C54: Net Income | E54: =E48-(IF(E52+E53>0,E52+E53,0)) -> 0 | G54: =G48-(IF(G52+G53>0,G52+G53,0)) -> 0 | I54: =I48-(IF(I52+I53>0,I52+I53,0)) -> 0 | K54: =K48-(IF(K52+K53>0,K52+K53,0)) -> 0 | P54: =(E54+G54+I54+K54) -> 0 | Q54: Total Net Annual Income
C56: Living Expenses (monthly) | G56: Other Commitments | K56: Per Month
C57: Declared Living Expenses | G57: Rent/Board
G58: Total Credit Card Limit | M58: 3%: | N58: =K58*CreditCardCommitments -> 0
G59: Personal Mortgage Repayments
G60: Other Consumer Debt
C62: Is an Applicant | E62: =OR(E39<>"") -> FALSE | G62: =OR(G39<>"") -> FALSE | I62: =OR(I39<>"") -> FALSE | K62: =OR(K39<>"") -> FALSE
C63: Spouse Dependants | E63: =IFERROR(HLOOKUP(E40,CREApplicantDetailsTable,4,FALSE),0) -> 0 | G63: =IFERROR(HLOOKUP(G40,CREApplicantDetailsTable,4,FALSE),0) -> 0 | I63: =IFERROR(HLOOKUP(I40,CREApplicantDetailsTable,4,FALSE),0) -> 0 | K63: =IFERROR(HLOOKUP(K40,CREApplicantDetailsTable,4,FALSE),0) -> 0
C64: Pepper Status Code | E64: =IF(E$39="Individual (Couple)","P-C",IF(E$39="Individual (Single)","P-S","")) ->  | G64: =IF(G$39="Individual (Couple)","P-C",IF(G$39="Individual (Single)","P-S","")) ->  | I64: =IF(I$39="Individual (Couple)","P-C",IF(I$39="Individual (Single)","P-S","")) ->  | K64: =IF(K$39="Individual (Couple)","P-C",IF(K$39="Individual (Single)","P-S","")) -> 
C65: Pepper Dependents Code | E65: =IF(E$39="Individual (Couple)","P-CD"&INDEX(Validation!$B$21:$B$26,MATCH((E$41+E$63),Validation!$A$21:$A$26,1)),IF(E$39="Individual (Single)","P-SD"&INDEX(Validation!$B$21:$B$26,MATCH((E$41+E$63),Validation!$A$21:$A$26,1)),"")) ->  | G65: =IF(G$39="Individual (Couple)","P-CD"&INDEX(Validation!$B$21:$B$26,MATCH((G$41+G$63),Validation!$A$21:$A$26,1)),IF(G$39="Individual (Single)","P-SD"&INDEX(Validation!$B$21:$B$26,MATCH((G$41+G$63),Validation!$A$21:$A$26,1)),"")) ->  | I65: =IF(I$39="Individual (Couple)","P-CD"&INDEX(Validation!$B$21:$B$26,MATCH((I$41+I$63),Validation!$A$21:$A$26,1)),IF(I$39="Individual (Single)","P-SD"&INDEX(Validation!$B$21:$B$26,MATCH((I$41+I$63),Validation!$A$21:$A$26,1)),"")) ->  | K65: =IF(K$39="Individual (Couple)","P-CD"&INDEX(Validation!$B$21:$B$26,MATCH((K$41+K$63),Validation!$A$21:$A$26,1)),IF(K$39="Individual (Single)","P-SD"&INDEX(Validation!$B$21:$B$26,MATCH((K$41+K$63),Validation!$A$21:$A$26,1)),"")) -> 
C66: Exclude for LE calc | E66: =IFERROR(IF(MATCH(E40,$E$38:$K$38,0)<(COLUMN()-COLUMN($E$38:$K$38)+1),TRUE,FALSE),FALSE) -> FALSE | G66: =IFERROR(IF(MATCH(G40,$E$38:$K$38,0)<(COLUMN()-COLUMN($E$38:$K$38)+1),TRUE,FALSE),FALSE) -> FALSE | I66: =IFERROR(IF(MATCH(I40,$E$38:$K$38,0)<(COLUMN()-COLUMN($E$38:$K$38)+1),TRUE,FALSE),FALSE) -> FALSE | K66: =IFERROR(IF(MATCH(K40,$E$38:$K$38,0)<(COLUMN()-COLUMN($E$38:$K$38)+1),TRUE,FALSE),FALSE) -> FALSE
C68: Total Taxable Income | E68: =MAX(E44+(E46*RentalIncomeShading-E50*WorkingsForNegativeGearing)+MAX(E47*RentalIncomeShading-E51*WorkingsForNegativeGearing,0),0) -> 0 | G68: =MAX(G44+(G46*RentalIncomeShading-G50*WorkingsForNegativeGearing)+MAX(G47*RentalIncomeShading-G51*WorkingsForNegativeGearing,0),0) -> 0 | I68: =MAX(I44+(I46*RentalIncomeShading-I50*WorkingsForNegativeGearing)+MAX(I47*RentalIncomeShading-I51*WorkingsForNegativeGearing,0),0) -> 0 | K68: =MAX(K44+(K46*RentalIncomeShading-K50*WorkingsForNegativeGearing)+MAX(K47*RentalIncomeShading-K51*WorkingsForNegativeGearing,0),0) -> 0 | P68: =(E68+G68+I68+K68) -> 0 | Q68: Total Taxable Income
C69: Spouse Income | E69: =IFERROR(HLOOKUP(E40,CREApplicantDetailsTable,7,FALSE),0) -> 0 | G69: =IFERROR(HLOOKUP(G40,CREApplicantDetailsTable,7,FALSE),0) -> 0 | I69: =IFERROR(HLOOKUP(I40,CREApplicantDetailsTable,7,FALSE),0) -> 0 | K69: =IFERROR(HLOOKUP(K40,CREApplicantDetailsTable,7,FALSE),0) -> 0
C70: Income Bracket | E70: =IFERROR(HLOOKUP(E44+E69,HemCombinedIncomeRange,3,TRUE),1) -> 1 | G70: =IFERROR(HLOOKUP(G44+G69,HemCombinedIncomeRange,3,TRUE),1) -> 1 | I70: =IFERROR(HLOOKUP(I44+I69,HemCombinedIncomeRange,3,TRUE),1) -> 1 | K70: =IFERROR(HLOOKUP(K44+K69,HemCombinedIncomeRange,3,TRUE),1) -> 1
C71: HEM Living Expense | E71: =IFERROR(IF(AND(E62,NOT(E66)),(VLOOKUP(E64,HemTableForExpenses,E70+1,FALSE) +(VLOOKUP(E65,HemTableForExpenses,E70+1,FALSE))*(E41+E63))*NumberOfWeeksInAYear,0),0) -> 0 | G71: =IFERROR(IF(AND(G62,NOT(G66)),(VLOOKUP(G64,HemTableForExpenses,G70+1,FALSE) +(VLOOKUP(G65,HemTableForExpenses,G70+1,FALSE))*(G41+G63))*NumberOfWeeksInAYear,0),0) -> 0 | I71: =IFERROR(IF(AND(I62,NOT(I66)),(VLOOKUP(I64,HemTableForExpenses,I70+1,FALSE) +(VLOOKUP(I65,HemTableForExpenses,I70+1,FALSE))*(I41+I63))*NumberOfWeeksInAYear,0),0) -> 0 | K71: =IFERROR(IF(AND(K62,NOT(K66)),(VLOOKUP(K64,HemTableForExpenses,K70+1,FALSE) +(VLOOKUP(K65,HemTableForExpenses,K70+1,FALSE))*(K41+K63))*NumberOfWeeksInAYear,0),0) -> 0 | P71: =(E71+G71+I71+K71) -> 0 | Q71: HEM Living Expense
P72: =E57*NumberOfMonthsInAYear -> 0 | Q72: Customer Nominated Living Expenses
P73: =MAX(P71,P72) -> 0 | Q73: Used Living Expenses
P74: =K57*NumberOfMonthsInAYear -> 0 | Q74: Personal rent
P75: =(K59*OtherMortgageRepaymentBuffer+K60+N58)*NumberOfMonthsInAYear -> 0 | Q75: Personal Debt
C80: Results
C83: Business income (EBITDA + net personal contribution) | E83: =E33+P54-P73-P74-P75 -> 0 | G83: Interest Expenses | I83: =(E8*I8)+(E18*G18)+(E19*G19)+(E20*G20)+(E21*G21) -> 0
G84: Debt Repayments | I84: =((SUM(I18:I21)+MAX(I11:I12))*12) -> 0
G87: Interest Coverage Ratio (ICR): | I87: =IFERROR(E83/I83,0) -> 0
G88: Debt Service Coverage Ratio (DSCR): | I88: =IFERROR(E83/I84,0) -> 0 | K88: =IF(I91="INCOMPLETE","INCOMPLETE",IF(E9=FullDoc,IF(I88>=MinimumDSCRFullDoc,"PASS","FAIL"),IF(E9=AltDoc,IF(I88>=MinimumDSCRAltDoc,"PASS","FAIL"),IF(E9=LeaseDoc,IF(I88>=MinimumDSCRLeaseDoc,"PASS","FAIL"))))) -> INCOMPLETE
I90: Application Status
I91: =IF(OR(E8="",I8="",E9="",I9="",I9<I10),"INCOMPLETE","COMPLETE") -> INCOMPLETE

Sheet SMSF
B1: SMSF Servicability Calculator
C2: =Residential!C3 -> Version 6.12.2 - 28th July 2026
C4: SMSF Name
C6: Proposed Loan Details
C8: New Loan Amount | K8: Interest Rate | S8: Interest expense annually
K9: Loan Term (Years)
K10: I/O Term (Years)
K11: P&I Repayment | M11: =IF(SMSFLoanTermInYears>SMSFIOTermInYears,-PMT((MAX(BaselineAssessmentRate,SMSFInterestRate+2%))/NumberOfMonthsInAYear,NumberOfMonthsInAYear*(SMSFLoanTermInYears-SMSFIOTermInYears),SMSFNewLoanAmount),0) -> 0 | S11: =E8*((MAX(BaselineAssessmentRate,SMSFInterestRate+AssessmentLoading))) -> 0
K12: IO Repayment | M12: =IF(SMSFIOTermInYears>0,SMSFNewLoanAmount*(((MAX(BaselineAssessmentRate,SMSFInterestRate+2%)))/NumberOfMonthsInAYear),0) -> 0
C15: Members Contributions
C17: Member Details | E17: Member 1 | G17: Member 2 | I17: Member 3 | K17: Member 4 | M17: Member 5 | O17: Member 6 | S17: Total
C19: Superannuation guarantee | S19: =(E19+G19+I19+K19+M19+O19) -> 0
C20: =IF(OR(AND(SMSFPAYGIncomeM1=0,(SMSFSuperGuaranteeContributionM1+SMSFProposedConcessionalContributionsM1+E22)>SMSFConcessionalContributionsCappedAmount),AND((SMSFSuperGuaranteeContributionM2+SMSFProposedConcessionalContributionsM2+G22)>SMSFConcessionalContributionsCappedAmount),AND((SMSFSuperGuaranteeContributionM3+SMSFProposedConcessionalContributionsM3+I22)>SMSFConcessionalContributionsCappedAmount),AND((SMSFSuperGuaranteeContributionM4+SMSFProposedConcessionalContributionsM4+K22)>SMSFConcessionalContributionsCappedAmount),AND((SMSFSuperGuaranteeContributionM5+SMSFProposedConcessionalContributionsM5+M22)>SMSFConcessionalContributionsCappedAmount),AND((SMSFSuperGuaranteeContributionM6+SMSFProposedConcessionalContributionsM6+O22)>SMSFConcessionalContributionsCappedAmount)),"Concessional cap of " & TEXT(SMSFConcessionalContributionsCappedAmount,"$00,000") & " has been exceeded","") -> 
C21: PROPOSED CONCESSIONAL contributions | S21: =(E21+G21+I21+K21+M21+O21) -> 0
C22: EXISTING CONCESSIONAL contributions | S22: =(E22+G22+I22+K22+M22+O22) -> 0
C23: =IF(OR(AND(SMSFProposedConcessionalContributionsM1>0,(SMSFSuperGuaranteeContributionM1+SMSFProposedConcessionalContributionsM1+E22)>SMSFConcessionalContributionsCappedAmount),AND(SMSFProposedConcessionalContributionsM2>0,(SMSFSuperGuaranteeContributionM2+SMSFProposedConcessionalContributionsM2+G22)>SMSFConcessionalContributionsCappedAmount),AND(SMSFProposedConcessionalContributionsM3>0,(SMSFSuperGuaranteeContributionM3+SMSFProposedConcessionalContributionsM3+I22)>SMSFConcessionalContributionsCappedAmount),AND(SMSFProposedConcessionalContributionsM4>0,(SMSFSuperGuaranteeContributionM4+SMSFProposedConcessionalContributionsM4+K22)>SMSFConcessionalContributionsCappedAmount),AND(SMSFProposedConcessionalContributionsM5>0,(SMSFSuperGuaranteeContributionM5+SMSFProposedConcessionalContributionsM5+M22)>SMSFConcessionalContributionsCappedAmount),AND(SMSFProposedConcessionalContributionsM6>0,(SMSFSuperGuaranteeContributionM6+SMSFProposedConcessionalContributionsM6+O22)>SMSFConcessionalContributionsCappedAmount)),"Concessional cap of " & TEXT(SMSFConcessionalContributionsCappedAmount,"$00,000") & " has been exceeded","") ->  | E23: =IF(OR(E21>E93,G21>G93,I21>I93,K21>K93,M21>M93,O21>O93),"Proposed concessional contributions cannot exceed the available surplus in Row 91",IF(OR(AND(E22>0, E56<>0),AND(G22>0, G56<>0),AND(I22>0, I56<>0),AND(K22>0, K56<>0),AND(M22>0, M56<>0),AND(O22>0, O56<>0)),"Existing contributions cannot be assessed with Proposed contributions. Re-enter under Proposed contributions","")) -> 
C24: Additional NON-CONCESSIONAL contributions | S24: =(E24+G24+I24+K24+M24+O24) -> 0
C25: =IF(OR(SMSFAdditionalNonConcessionalContributionsM1>SMSFNonConcessionalContributionsCappedAmount,SMSFAdditionalNonConcessionalContributionsM2>SMSFNonConcessionalContributionsCappedAmount,SMSFAdditionalNonConcessionalContributionsM3>SMSFNonConcessionalContributionsCappedAmount,SMSFAdditionalNonConcessionalContributionsM4>SMSFNonConcessionalContributionsCappedAmount,SMSFAdditionalNonConcessionalContributionsM5>SMSFNonConcessionalContributionsCappedAmount,SMSFAdditionalNonConcessionalContributionsM6>SMSFNonConcessionalContributionsCappedAmount),"Non-Concessional cap of " & TEXT(SMSFNonConcessionalContributionsCappedAmount,"$000,000") & " has been exceeded","") ->  | E25: =IF(AND(SUM(Validation!W17:AB17)<=0,OR(S24>S95,IF(E24>0,SMSFAdditionalNonConcessionalContributionsM1>SMSFAvailableSurplusForAdditionalVoluntaryNonConcessionContributionsM1,IF(G24>0,SMSFAdditionalNonConcessionalContributionsM2>SMSFAvailableSurplusForAdditionalVoluntaryNonConcessionContributionsM2,IF(I24>0,SMSFAdditionalNonConcessionalContributionsM3>SMSFAvailableSurplusForAdditionalVoluntaryNonConcessionContributionsM3,IF(K24>0,SMSFAdditionalNonConcessionalContributionsM4>SMSFAvailableSurplusForAdditionalVoluntaryNonConcessionContributionsM4,IF(M24>0,SMSFAdditionalNonConcessionalContributionsM5>SMSFAvailableSurplusForAdditionalVoluntaryNonConcessionContributionsM5,IF(O24>0,SMSFAdditionalNonConcessionalContributionsM6>SMSFAvailableSurplusForAdditionalVoluntaryNonConcessionContributionsM6)))))))),"Member income & expense (below) incomplete or additional contribution unaffordable","") -> 
C27: SMSF Income / Expenses | S27: Annual Interest Expenses of Other SMSF Mortgages plus Loading
C29: SMSF Income | E29: Annual | I29: SMSF Expenses | M29: Other SMSF Mortgages
C30: Member Contibutions - Concessional | E30: =SUM(SMSFSuperGuaranteeContributionM1,SMSFSuperGuaranteeContributionM2,SMSFSuperGuaranteeContributionM3,SMSFSuperGuaranteeContributionM4,SMSFSuperGuaranteeContributionM5,SMSFSuperGuaranteeContributionM6,SMSFProposedConcessionalContributionsM1,SMSFProposedConcessionalContributionsM2,SMSFProposedConcessionalContributionsM3,SMSFProposedConcessionalContributionsM4,SMSFProposedConcessionalContributionsM5,SMSFProposedConcessionalContributionsM6,E22:O22) -> 0 | I30: Administration | M30: Total Loan Amount
C31: Member Contibutions - Non Concessional | E31: =MAX(0,SUM(SMSFAdditionalNonConcessionalContributionsM1,SMSFAdditionalNonConcessionalContributionsM2,SMSFAdditionalNonConcessionalContributionsM3,SMSFAdditionalNonConcessionalContributionsM4,SMSFAdditionalNonConcessionalContributionsM5,SMSFAdditionalNonConcessionalContributionsM6)) -> 0 | I31: Other Mortgage Repayment (stressed) | K31: =SMSFTotalSMSFOtherMortgagesAnnualRepayment*12*OtherMortgageRepaymentBuffer -> 0 | M31: Monthly Repayment
C32: Income on other SMSF investments | I32: Other P&L expenses | M32: Interest Rate | S32: =SMSFTotalSMSFOtherMortgagesLoanAmount*(SMSFTotalSMSFOtherMortgagesAnnualInterestRate*OtherMortgageRepaymentBuffer) -> 0
C33: Existing & Proposed Net Commercial Rental Income | I33: Total Expenses | K33: =MAX(SMSFTotalSMSFAdministrationCost,IF(OR(SMSFTotalGrossIncome,SMSFTotalTaxableIncome)>0,SMSFMinimumAdministrationCost,0))+SMSFTotalSMSFOtherMortgagesAnnualRepaymentWithBuffer+SMSFTotalSMSFOtherPandLExpenses -> 1500
C34: Existing & Proposed Gross Residential Rental Income
C36: Gross Income | E36: =SMSFTotalSMSFMemberContributionsConcessional+SMSFTotalSMSFMemberContributionsNonConcessional+SMSFTotalSMSFIncomeOnOtherInvestments+SMSFProposedNetCRERentalIncome+(SMSFProposedGrossResidentialRentalIncome*RentalIncomeShading) -> 0 | I36: SMSF Tax | K36: =MAX((0),(SMSFTotalGrossIncome-SMSFTotalSMSFMemberContributionsNonConcessional-MAX(SMSFTotalSMSFAdministrationCost,SMSFMinimumAdministrationCost)-SMSFTotalSMSFOtherPandLExpenses-(SMSFNewLoanIAnnualnterestExpense+SMSFTotalSMSFOtherMortgagesAnnualInterestWithLoading)))*SMSFSuperannuationTax -> 0
C39: Results
C42: SMSF Income after expenses & tax before debt | E42: =SMSFTotalGrossIncome-SMSFTotalSMSFTax-MAX(SMSFTotalSMSFAdministrationCost,IF(SMSFTotalGrossIncome>0,SMSFMinimumAdministrationCost,0)-SMSFTotalSMSFOtherPandLExpenses) -> 0 | K42: Interest Expenses | M42: =SMSFNewLoanIAnnualnterestExpense+SMSFTotalSMSFOtherMortgagesAnnualInterestWithLoading -> 0
K43: Debt Repayments | M43: =(SMSFPandIRepaymentAmount*NumberOfMonthsInAYear)+SMSFTotalSMSFOtherMortgagesAnnualRepaymentWithBuffer -> 0
C44: =IF(O47="FAIL",_xlfn._LONGTEXT("Serviceability has failed. Consider the following: - additional member contributions - an allowance for investment return on the residual post-purchase superannuation investments, up to RBA cash rate + 0.5% ROI - if members income / expenses entered below",", ensure that services or review the need for inclusion in the calculator"),"") -> 
K46: Interest Coverage Ratio (ICR): | M46: =IF(AND(S93+S95>=0,SMSFCheckForCompleteness="COMPLETE"),IFERROR(E42/M42,0),"") -> 
K47: Debt Service Coverage Ratio (DSCR): | M47: =IF(AND(S93+S95>=0,SMSFCheckForCompleteness="COMPLETE"),IFERROR(E42/M43,0),"") ->  | O47: =IF(M50="INCOMPLETE","INCOMPLETE",IF(AND(M47>=SMSFMinimumSMSFDSCR,S93>=0),"PASS","FAIL")) -> INCOMPLETE
M49: Application Status
M50: =IF(OR(SMSFNewLoanAmount="",SMSFInterestRate="",SMSFLoanTermInYears="",SMSFLoanTermInYears<SMSFIOTermInYears,C20<>"",E20<>"",C23<>"",E23<>"",C25<>"",E25<>""),"INCOMPLETE",IF(AND(E56="",OR(E66<>0,E72<>0,SUM(E75:E79)<>0)),"INCOMPLETE",IF(AND(G56="",OR(G66<>0,G72<>0,SUM(G75:G79)<>0)),"INCOMPLETE",IF(AND(I56="",OR(I66<>0,I72<>0,SUM(I75:I79)<>0)),"INCOMPLETE",IF(AND(K56="",OR(K66<>0,K72<>0,SUM(K75:K79)<>0)),"INCOMPLETE",IF(AND(M56="",OR(M66<>0,M72<>0,SUM(M75:M79)<>0)),"INCOMPLETE",IF(AND(O56="",OR(O66<>0,O72<>0,SUM(O75:O79)<>0)),"INCOMPLETE","COMPLETE"))))))) -> INCOMPLETE
C54: Member Income & Expenses - COMPLETE ONLY IF A MEMBER(S) ADDITIONAL CONTRIBUTIONS ARE REQUIRED (ROWS 21 & 24)
C55: Member Details | E55: Member 1 | G55: Member 2 | I55: Member 3 | K55: Member 4 | M55: Member 5 | O55: Member 6
C56: Status
C57: Couple With
C58: Dependants
E59: Enter a Status | G59: Enter a Status | I59: Enter a Status | K59: Enter a Status | M59: Enter a Status | O59: Enter a Status
C61: PAYG Income
C62: Self employed & Other taxable income
C63: Untaxed Allowable Income
C64: Gross Residential Rental Income (Negative Gearing Eligible)
C65: Gross Residential Rental Income (not eligible for Negative Gearing)
C66: Total Income | E66: =E61++E62+E63+E64*RentalIncomeShading+E65*RentalIncomeShading -> 0 | G66: =G61++G62+G63+G64*RentalIncomeShading+G65*RentalIncomeShading -> 0 | I66: =I61++I62+I63+I64*RentalIncomeShading+I65*RentalIncomeShading -> 0 | K66: =K61++K62+K63+K64*RentalIncomeShading+K65*RentalIncomeShading -> 0 | M66: =M61++M62+M63+M64*RentalIncomeShading+M65*RentalIncomeShading -> 0 | O66: =O61++O62+O63+O64*RentalIncomeShading+O65*RentalIncomeShading -> 0 | S66: =(E66+G66+I66+K66+M66+O66) -> 0 | T66: Total Gross Annual Income
C68: Negative Gearing eligible Loan Balance (personal name)
C69: Negative Gearing NOT eligible Loan Balance (personal name)
C70: Tax | E70: =VLOOKUP(E86,IncomeTaxTable,2,TRUE)+MAX(((E86-VLOOKUP(E86,IncomeTaxTable,1,TRUE))*VLOOKUP(E86,IncomeTaxTable,3,TRUE)),0) +IF(E86<=MinimumForPartialLevy,0,IF(E86>MinimumForFullLevy,E86*MedicareFullLevyPerc,(E86-MinimumForPartialLevy)*MedicarePartialLevyPerc)) -> 0 | G70: =VLOOKUP(G86,IncomeTaxTable,2,TRUE)+MAX(((G86-VLOOKUP(G86,IncomeTaxTable,1,TRUE))*VLOOKUP(G86,IncomeTaxTable,3,TRUE)),0) +IF(G86<=MinimumForPartialLevy,0,IF(G86>MinimumForFullLevy,G86*MedicareFullLevyPerc,(G86-MinimumForPartialLevy)*MedicarePartialLevyPerc)) -> 0 | I70: =VLOOKUP(I86,IncomeTaxTable,2,TRUE)+MAX(((I86-VLOOKUP(I86,IncomeTaxTable,1,TRUE))*VLOOKUP(I86,IncomeTaxTable,3,TRUE)),0) +IF(I86<=MinimumForPartialLevy,0,IF(I86>MinimumForFullLevy,I86*MedicareFullLevyPerc,(I86-MinimumForPartialLevy)*MedicarePartialLevyPerc)) -> 0 | K70: =VLOOKUP(K86,IncomeTaxTable,2,TRUE)+MAX(((K86-VLOOKUP(K86,IncomeTaxTable,1,TRUE))*VLOOKUP(K86,IncomeTaxTable,3,TRUE)),0) +IF(K86<=MinimumForPartialLevy,0,IF(K86>MinimumForFullLevy,K86*MedicareFullLevyPerc,(K86-MinimumForPartialLevy)*MedicarePartialLevyPerc)) -> 0 | M70: =VLOOKUP(M86,IncomeTaxTable,2,TRUE)+MAX(((M86-VLOOKUP(M86,IncomeTaxTable,1,TRUE))*VLOOKUP(M86,IncomeTaxTable,3,TRUE)),0) +IF(M86<=MinimumForPartialLevy,0,IF(M86>MinimumForFullLevy,M86*MedicareFullLevyPerc,(M86-MinimumForPartialLevy)*MedicarePartialLevyPerc)) -> 0 | O70: =VLOOKUP(O86,IncomeTaxTable,2,TRUE)+MAX(((O86-VLOOKUP(O86,IncomeTaxTable,1,TRUE))*VLOOKUP(O86,IncomeTaxTable,3,TRUE)),0) +IF(O86<=MinimumForPartialLevy,0,IF(O86>MinimumForFullLevy,O86*MedicareFullLevyPerc,(O86-MinimumForPartialLevy)*MedicarePartialLevyPerc)) -> 0
C71: Tax offset for Low Income Earners | E71: =0-(IF(E56="Company",0,MIN(E70,IF(OR(E86<=0,E86>=TaxOffsetMaximumEntitlement),0,TaxOffsetForLowIncomeEarners-IF(E86>TaxOffsetIncomeThreshholds,((E86-TaxOffsetIncomeThreshholds)*TaxOffSetReducedByPerc),0))))+IF(OR(E56="Company",E86="",E86=0),0,IF(VLOOKUP(E86,TaxOffsetForLowIncomeTable,2,TRUE)+(E86-VLOOKUP(E86,TaxOffsetForLowIncomeTable,1,TRUE))*VLOOKUP(E86,TaxOffsetForLowIncomeTable,3,TRUE)<0,0,VLOOKUP(E86,TaxOffsetForLowIncomeTable,2,TRUE)+(E86-VLOOKUP(E86,TaxOffsetForLowIncomeTable,1,TRUE))*VLOOKUP(E86,TaxOffsetForLowIncomeTable,3,TRUE)))) -> 0 | G71: =0-(IF(G56="Company",0,MIN(G70,IF(OR(G86<=0,G86>=TaxOffsetMaximumEntitlement),0,TaxOffsetForLowIncomeEarners-IF(G86>TaxOffsetIncomeThreshholds,((G86-TaxOffsetIncomeThreshholds)*TaxOffSetReducedByPerc),0))))+IF(OR(G56="Company",G86="",G86=0),0,IF(VLOOKUP(G86,TaxOffsetForLowIncomeTable,2,TRUE)+(G86-VLOOKUP(G86,TaxOffsetForLowIncomeTable,1,TRUE))*VLOOKUP(G86,TaxOffsetForLowIncomeTable,3,TRUE)<0,0,VLOOKUP(G86,TaxOffsetForLowIncomeTable,2,TRUE)+(G86-VLOOKUP(G86,TaxOffsetForLowIncomeTable,1,TRUE))*VLOOKUP(G86,TaxOffsetForLowIncomeTable,3,TRUE)))) -> 0 | I71: =0-(IF(I56="Company",0,MIN(I70,IF(OR(I86<=0,I86>=TaxOffsetMaximumEntitlement),0,TaxOffsetForLowIncomeEarners-IF(I86>TaxOffsetIncomeThreshholds,((I86-TaxOffsetIncomeThreshholds)*TaxOffSetReducedByPerc),0))))+IF(OR(I56="Company",I86="",I86=0),0,IF(VLOOKUP(I86,TaxOffsetForLowIncomeTable,2,TRUE)+(I86-VLOOKUP(I86,TaxOffsetForLowIncomeTable,1,TRUE))*VLOOKUP(I86,TaxOffsetForLowIncomeTable,3,TRUE)<0,0,VLOOKUP(I86,TaxOffsetForLowIncomeTable,2,TRUE)+(I86-VLOOKUP(I86,TaxOffsetForLowIncomeTable,1,TRUE))*VLOOKUP(I86,TaxOffsetForLowIncomeTable,3,TRUE)))) -> 0 | K71: =0-(IF(K56="Company",0,MIN(K70,IF(OR(K86<=0,K86>=TaxOffsetMaximumEntitlement),0,TaxOffsetForLowIncomeEarners-IF(K86>TaxOffsetIncomeThreshholds,((K86-TaxOffsetIncomeThreshholds)*TaxOffSetReducedByPerc),0))))+IF(OR(K56="Company",K86="",K86=0),0,IF(VLOOKUP(K86,TaxOffsetForLowIncomeTable,2,TRUE)+(K86-VLOOKUP(K86,TaxOffsetForLowIncomeTable,1,TRUE))*VLOOKUP(K86,TaxOffsetForLowIncomeTable,3,TRUE)<0,0,VLOOKUP(K86,TaxOffsetForLowIncomeTable,2,TRUE)+(K86-VLOOKUP(K86,TaxOffsetForLowIncomeTable,1,TRUE))*VLOOKUP(K86,TaxOffsetForLowIncomeTable,3,TRUE)))) -> 0 | M71: =0-(IF(M56="Company",0,MIN(M70,IF(OR(M86<=0,M86>=TaxOffsetMaximumEntitlement),0,TaxOffsetForLowIncomeEarners-IF(M86>TaxOffsetIncomeThreshholds,((M86-TaxOffsetIncomeThreshholds)*TaxOffSetReducedByPerc),0))))+IF(OR(M56="Company",M86="",M86=0),0,IF(VLOOKUP(M86,TaxOffsetForLowIncomeTable,2,TRUE)+(M86-VLOOKUP(M86,TaxOffsetForLowIncomeTable,1,TRUE))*VLOOKUP(M86,TaxOffsetForLowIncomeTable,3,TRUE)<0,0,VLOOKUP(M86,TaxOffsetForLowIncomeTable,2,TRUE)+(M86-VLOOKUP(M86,TaxOffsetForLowIncomeTable,1,TRUE))*VLOOKUP(M86,TaxOffsetForLowIncomeTable,3,TRUE)))) -> 0 | O71: =0-(IF(O56="Company",0,MIN(O70,IF(OR(O86<=0,O86>=TaxOffsetMaximumEntitlement),0,TaxOffsetForLowIncomeEarners-IF(O86>TaxOffsetIncomeThreshholds,((O86-TaxOffsetIncomeThreshholds)*TaxOffSetReducedByPerc),0))))+IF(OR(O56="Company",O86="",O86=0),0,IF(VLOOKUP(O86,TaxOffsetForLowIncomeTable,2,TRUE)+(O86-VLOOKUP(O86,TaxOffsetForLowIncomeTable,1,TRUE))*VLOOKUP(O86,TaxOffsetForLowIncomeTable,3,TRUE)<0,0,VLOOKUP(O86,TaxOffsetForLowIncomeTable,2,TRUE)+(O86-VLOOKUP(O86,TaxOffsetForLowIncomeTable,1,TRUE))*VLOOKUP(O86,TaxOffsetForLowIncomeTable,3,TRUE)))) -> 0
C72: Net Income After Tax | E72: =E66-(IF(E70+E71>0,E70+E71,0)) -> 0 | G72: =G66-(IF(G70+G71>0,G70+G71,0)) -> 0 | I72: =I66-(IF(I70+I71>0,I70+I71,0)) -> 0 | K72: =K66-(IF(K70+K71>0,K70+K71,0)) -> 0 | M72: =M66-(IF(M70+M71>0,M70+M71,0)) -> 0 | O72: =O66-(IF(O70+O71>0,O70+O71,0)) -> 0 | S72: =(E72+G72+I72+K72+M72+O72) -> 0 | T72: Total Net Annual Income
C74: Commitments (per month)
C75: Declared Living Expenses
C76: Rent/Board
C77: Total Credit Card Limit
C78: Personal Mortgage Repayments
C79: Other Consumer Debt
C80: Is an Applicant | E80: =OR(E56<>"") -> FALSE | G80: =OR(G56<>"") -> FALSE | I80: =OR(I56<>"") -> FALSE | K80: =OR(K56<>"") -> FALSE | M80: =OR(M56<>"") -> FALSE | O80: =OR(O56<>"") -> FALSE
C81: Spouse Dependants | E81: =IFERROR(HLOOKUP(E57,SMSFApplicantDetailsTable,4,FALSE),0) -> 0 | G81: =IFERROR(HLOOKUP(G57,SMSFApplicantDetailsTable,4,FALSE),0) -> 0 | I81: =IFERROR(HLOOKUP(I57,SMSFApplicantDetailsTable,4,FALSE),0) -> 0 | K81: =IFERROR(HLOOKUP(K57,SMSFApplicantDetailsTable,4,FALSE),0) -> 0 | M81: =IFERROR(HLOOKUP(M57,SMSFApplicantDetailsTable,4,FALSE),0) -> 0 | O81: =IFERROR(HLOOKUP(O57,SMSFApplicantDetailsTable,4,FALSE),0) -> 0
C82: Pepper Status Code | E82: =IF(E$56="Individual (Couple)","P-C",IF(E$56="Individual (Single)","P-S","")) ->  | G82: =IF(G$56="Individual (Couple)","P-C",IF(G$56="Individual (Single)","P-S","")) ->  | I82: =IF(I$56="Individual (Couple)","P-C",IF(I$56="Individual (Single)","P-S","")) ->  | K82: =IF(K$56="Individual (Couple)","P-C",IF(K$56="Individual (Single)","P-S","")) ->  | M82: =IF(M$56="Individual (Couple)","P-C",IF(M$56="Individual (Single)","P-S","")) ->  | O82: =IF(O$56="Individual (Couple)","P-C",IF(O$56="Individual (Single)","P-S","")) -> 
C83: Pepper Dependents Code | E83: =IF(E$56="Individual (Couple)","P-CD"&INDEX([2]Validation!$B$21:$B$26,MATCH((E$58+E$81),[2]Validation!$A$21:$A$26,1)),IF(E$56="Individual (Single)","P-SD"&INDEX([2]Validation!$B$21:$B$26,MATCH((E$58+E$81),[2]Validation!$A$21:$A$26,1)),"")) ->  | G83: =IF(G$56="Individual (Couple)","P-CD"&INDEX([2]Validation!$B$21:$B$26,MATCH((G$58+G$81),[2]Validation!$A$21:$A$26,1)),IF(G$56="Individual (Single)","P-SD"&INDEX([2]Validation!$B$21:$B$26,MATCH((G$58+G$81),[2]Validation!$A$21:$A$26,1)),"")) ->  | I83: =IF(I$56="Individual (Couple)","P-CD"&INDEX([2]Validation!$B$21:$B$26,MATCH((I$58+I$81),[2]Validation!$A$21:$A$26,1)),IF(I$56="Individual (Single)","P-SD"&INDEX([2]Validation!$B$21:$B$26,MATCH((I$58+I$81),[2]Validation!$A$21:$A$26,1)),"")) ->  | K83: =IF(K$56="Individual (Couple)","P-CD"&INDEX([2]Validation!$B$21:$B$26,MATCH((K$58+K$81),[2]Validation!$A$21:$A$26,1)),IF(K$56="Individual (Single)","P-SD"&INDEX([2]Validation!$B$21:$B$26,MATCH((K$58+K$81),[2]Validation!$A$21:$A$26,1)),"")) ->  | M83: =IF(M$56="Individual (Couple)","P-CD"&INDEX([2]Validation!$B$21:$B$26,MATCH((M$58+M$81),[2]Validation!$A$21:$A$26,1)),IF(M$56="Individual (Single)","P-SD"&INDEX([2]Validation!$B$21:$B$26,MATCH((M$58+M$81),[2]Validation!$A$21:$A$26,1)),"")) ->  | O83: =IF(O$56="Individual (Couple)","P-CD"&INDEX([2]Validation!$B$21:$B$26,MATCH((O$58+O$81),[2]Validation!$A$21:$A$26,1)),IF(O$56="Individual (Single)","P-SD"&INDEX([2]Validation!$B$21:$B$26,MATCH((O$58+O$81),[2]Validation!$A$21:$A$26,1)),"")) -> 
C84: Exclude for LE calc | E84: =IFERROR(IF(MATCH(E57,$E$55:$O$55,0)<(COLUMN()-COLUMN($E$55:$O$55)+1),TRUE,FALSE),FALSE) -> FALSE | G84: =IFERROR(IF(MATCH(G57,$E$55:$O$55,0)<(COLUMN()-COLUMN($E$55:$O$55)+1),TRUE,FALSE),FALSE) -> FALSE | I84: =IFERROR(IF(MATCH(I57,$E$55:$O$55,0)<(COLUMN()-COLUMN($E$55:$O$55)+1),TRUE,FALSE),FALSE) -> FALSE | K84: =IFERROR(IF(MATCH(K57,$E$55:$O$55,0)<(COLUMN()-COLUMN($E$55:$O$55)+1),TRUE,FALSE),FALSE) -> FALSE | M84: =IFERROR(IF(MATCH(M57,$E$55:$O$55,0)<(COLUMN()-COLUMN($E$55:$O$55)+1),TRUE,FALSE),FALSE) -> FALSE | O84: =IFERROR(IF(MATCH(O57,$E$55:$O$55,0)<(COLUMN()-COLUMN($E$55:$O$55)+1),TRUE,FALSE),FALSE) -> FALSE
C86: Total Taxable Income | E86: =MAX(E61+E62+E64*RentalIncomeShading-E68*WorkingsForNegativeGearing+MAX(E65*RentalIncomeShading-E69*WorkingsForNegativeGearing,0),0)-SMSFAvailableSurplusForAdditionalVoluntaryConcessionContributionsM1 -> 0 | G86: =MAX(G61+G62+G64*RentalIncomeShading-G68*WorkingsForNegativeGearing+MAX(G65*RentalIncomeShading-G69*WorkingsForNegativeGearing,0)-SMSFAvailableSurplusForAdditionalVoluntaryConcessionContributionsM2) -> 0 | I86: =MAX(I61+I62+I64*RentalIncomeShading-I68*WorkingsForNegativeGearing+MAX(I65*RentalIncomeShading-I69*WorkingsForNegativeGearing,0)-SMSFAvailableSurplusForAdditionalVoluntaryConcessionContributionsM3) -> 0 | K86: =MAX(K61+K62+K64*RentalIncomeShading-K68*WorkingsForNegativeGearing+MAX(K65*RentalIncomeShading-K69*WorkingsForNegativeGearing,0)-SMSFAvailableSurplusForAdditionalVoluntaryConcessionContributionsM4) -> 0 | M86: =MAX(M61+M62+M64*RentalIncomeShading-M68*WorkingsForNegativeGearing+MAX(M65*RentalIncomeShading-M69*WorkingsForNegativeGearing,0)-SMSFAvailableSurplusForAdditionalVoluntaryConcessionContributionsM5) -> 0 | O86: =MAX(O61+O62+O64*RentalIncomeShading-O68*WorkingsForNegativeGearing+MAX(O65*RentalIncomeShading-O69*WorkingsForNegativeGearing,0)-SMSFAvailableSurplusForAdditionalVoluntaryConcessionContributionsM6) -> 0 | S86: =(E86+G86+I86+K86+M86+O86) -> 0 | T86: Total Taxable Income
C87: Tax calculation on commitments (to calculate net uncommitted income) | E87: =VLOOKUP((E92),IncomeTaxTable,2,TRUE)+MAX((((E92)-VLOOKUP((E92),IncomeTaxTable,1,TRUE))*VLOOKUP((E92),IncomeTaxTable,3,TRUE)),0) +IF((E92)<=MinimumForPartialLevy,0,IF((E92-E63)>MinimumForFullLevy,(E92)*MedicareFullLevyPerc,((E92)-MinimumForPartialLevy)*MedicarePartialLevyPerc)) -> 0 | G87: =VLOOKUP((G92),IncomeTaxTable,2,TRUE)+MAX((((G92)-VLOOKUP((G92),IncomeTaxTable,1,TRUE))*VLOOKUP((G92),IncomeTaxTable,3,TRUE)),0) +IF((G92)<=MinimumForPartialLevy,0,IF((G92-G63)>MinimumForFullLevy,(G92)*MedicareFullLevyPerc,((G92)-MinimumForPartialLevy)*MedicarePartialLevyPerc)) -> 0 | I87: =VLOOKUP((I92),IncomeTaxTable,2,TRUE)+MAX((((I92)-VLOOKUP((I92),IncomeTaxTable,1,TRUE))*VLOOKUP((I92),IncomeTaxTable,3,TRUE)),0) +IF((I92)<=MinimumForPartialLevy,0,IF((I92-I63)>MinimumForFullLevy,(I92)*MedicareFullLevyPerc,((I92)-MinimumForPartialLevy)*MedicarePartialLevyPerc)) -> 0 | K87: =VLOOKUP((K92),IncomeTaxTable,2,TRUE)+MAX((((K92)-VLOOKUP((K92),IncomeTaxTable,1,TRUE))*VLOOKUP((K92),IncomeTaxTable,3,TRUE)),0) +IF((K92)<=MinimumForPartialLevy,0,IF((K92-K63)>MinimumForFullLevy,(K92)*MedicareFullLevyPerc,((K92)-MinimumForPartialLevy)*MedicarePartialLevyPerc)) -> 0 | M87: =VLOOKUP((M92),IncomeTaxTable,2,TRUE)+MAX((((M92)-VLOOKUP((M92),IncomeTaxTable,1,TRUE))*VLOOKUP((M92),IncomeTaxTable,3,TRUE)),0) +IF((M92)<=MinimumForPartialLevy,0,IF((M92-M63)>MinimumForFullLevy,(M92)*MedicareFullLevyPerc,((M92)-MinimumForPartialLevy)*MedicarePartialLevyPerc)) -> 0 | O87: =VLOOKUP((O92),IncomeTaxTable,2,TRUE)+MAX((((O92)-VLOOKUP((O92),IncomeTaxTable,1,TRUE))*VLOOKUP((O92),IncomeTaxTable,3,TRUE)),0) +IF((O92)<=MinimumForPartialLevy,0,IF((O92-O63)>MinimumForFullLevy,(O92)*MedicareFullLevyPerc,((O92)-MinimumForPartialLevy)*MedicarePartialLevyPerc)) -> 0
C88: Spouse Income | E88: =IFERROR(HLOOKUP(E57,SMSFApplicantDetailsTable,7,FALSE),0) -> 0 | G88: =IFERROR(HLOOKUP(G57,SMSFApplicantDetailsTable,7,FALSE),0) -> 0 | I88: =IFERROR(HLOOKUP(I57,SMSFApplicantDetailsTable,7,FALSE),0) -> 0 | K88: =IFERROR(HLOOKUP(K57,SMSFApplicantDetailsTable,7,FALSE),0) -> 0 | M88: =IFERROR(HLOOKUP(M57,SMSFApplicantDetailsTable,7,FALSE),0) -> 0 | O88: =IFERROR(HLOOKUP(O57,SMSFApplicantDetailsTable,7,FALSE),0) -> 0
C89: Income Bracket | E89: =IFERROR(HLOOKUP(E63+MAX(E61+E62+E64*RentalIncomeShading-E68*WorkingsForNegativeGearing,0)+E88,HemCombinedIncomeRange,3,TRUE),1) -> 1 | G89: =IFERROR(HLOOKUP(G63+MAX(G61+G62+G64*RentalIncomeShading-G68*WorkingsForNegativeGearing,0)+G88,HemCombinedIncomeRange,3,TRUE),1) -> 1 | I89: =IFERROR(HLOOKUP(I63+MAX(I61+I62+I64*RentalIncomeShading-I68*WorkingsForNegativeGearing,0)+I88,HemCombinedIncomeRange,3,TRUE),1) -> 1 | K89: =IFERROR(HLOOKUP(K63+MAX(K61+K62+K64*RentalIncomeShading-K68*WorkingsForNegativeGearing,0)+K88,HemCombinedIncomeRange,3,TRUE),1) -> 1 | M89: =IFERROR(HLOOKUP(M63+MAX(M61+M62+M64*RentalIncomeShading-M68*WorkingsForNegativeGearing,0)+M88,HemCombinedIncomeRange,3,TRUE),1) -> 1 | O89: =IFERROR(HLOOKUP(O63+MAX(O61+O62+O64*RentalIncomeShading-O68*WorkingsForNegativeGearing,0)+O88,HemCombinedIncomeRange,3,TRUE),1) -> 1
C90: HEM Living Expense (monthly) | E90: =IFERROR(IF(AND(E80,NOT(E84)),(VLOOKUP(E82,HemTableForExpenses,E89+1,FALSE) +(VLOOKUP(E83,HemTableForExpenses,E89+1,FALSE))*(E58+E81))*NumberOfWeeksInAYear,0),0)/NumberOfMonthsInAYear -> 0 | G90: =IFERROR(IF(AND(G80,NOT(G84)),(VLOOKUP(G82,HemTableForExpenses,G89+1,FALSE) +(VLOOKUP(G83,HemTableForExpenses,G89+1,FALSE))*(G58+G81))*NumberOfWeeksInAYear,0),0)/NumberOfMonthsInAYear -> 0 | I90: =IFERROR(IF(AND(I80,NOT(I84)),(VLOOKUP(I82,HemTableForExpenses,I89+1,FALSE) +(VLOOKUP(I83,HemTableForExpenses,I89+1,FALSE))*(I58+I81))*NumberOfWeeksInAYear,0),0)/NumberOfMonthsInAYear -> 0 | K90: =IFERROR(IF(AND(K80,NOT(K84)),(VLOOKUP(K82,HemTableForExpenses,K89+1,FALSE) +(VLOOKUP(K83,HemTableForExpenses,K89+1,FALSE))*(K58+K81))*NumberOfWeeksInAYear,0),0)/NumberOfMonthsInAYear -> 0 | M90: =IFERROR(IF(AND(M80,NOT(M84)),(VLOOKUP(M82,HemTableForExpenses,M89+1,FALSE) +(VLOOKUP(M83,HemTableForExpenses,M89+1,FALSE))*(M58+M81))*NumberOfWeeksInAYear,0),0)/NumberOfMonthsInAYear -> 0 | O90: =IFERROR(IF(AND(O80,NOT(O84)),(VLOOKUP(O82,HemTableForExpenses,O89+1,FALSE) +(VLOOKUP(O83,HemTableForExpenses,O89+1,FALSE))*(O58+O81))*NumberOfWeeksInAYear,0),0)/NumberOfMonthsInAYear -> 0
C92: Total Commitments (annualised) | E92: =ROUNDDOWN((MAX(E90,E75)+(E76+(E77*CreditCardCommitments)+(E78*OtherMortgageRepaymentBuffer)+E79))*NumberOfMonthsInAYear,0) -> 0 | G92: =ROUNDDOWN((MAX(G90,G75)+(G76+(G77*CreditCardCommitments)+(G78*OtherMortgageRepaymentBuffer)+G79))*NumberOfMonthsInAYear,0) -> 0 | I92: =ROUNDDOWN((MAX(I90,I75)+(I76+(I77*CreditCardCommitments)+(I78*OtherMortgageRepaymentBuffer)+I79))*NumberOfMonthsInAYear,0) -> 0 | K92: =ROUNDDOWN((MAX(K90,K75)+(K76+(K77*CreditCardCommitments)+(K78*OtherMortgageRepaymentBuffer)+K79))*NumberOfMonthsInAYear,0) -> 0 | M92: =ROUNDDOWN((MAX(M90,M75)+(M76+(M77*CreditCardCommitments)+(M78*OtherMortgageRepaymentBuffer)+M79))*NumberOfMonthsInAYear,0) -> 0 | O92: =ROUNDDOWN((MAX(O90,O75)+(O76+(O77*CreditCardCommitments)+(O78*OtherMortgageRepaymentBuffer)+O79))*NumberOfMonthsInAYear,0) -> 0
C93: Available surplus for additional voluntary pre tax concessional contributions ($32,500 cap) | E93: =ROUNDDOWN(MIN((SMSFConcessionalContributionsCappedAmount-SMSFSuperGuaranteeContributionM1),IF((E66-E92-E87)<0,0,(E66-E92-E87))),0) -> 0 | G93: =ROUNDDOWN(MIN((SMSFConcessionalContributionsCappedAmount-SMSFSuperGuaranteeContributionM2),IF((G66-G92-G87)<0,0,(G66-G92-G87))),0) -> 0 | I93: =ROUNDDOWN(MIN((SMSFConcessionalContributionsCappedAmount-SMSFSuperGuaranteeContributionM3),IF((I66-I92-I87)<0,0,(I66-I92-I87))),0) -> 0 | K93: =ROUNDDOWN(MIN((SMSFConcessionalContributionsCappedAmount-SMSFSuperGuaranteeContributionM4),IF((K66-K92-K87)<0,0,(K66-K92-K87))),0) -> 0 | M93: =ROUNDDOWN(MIN((SMSFConcessionalContributionsCappedAmount-SMSFSuperGuaranteeContributionM5),IF((M66-M92-M87)<0,0,(M66-M92-M87))),0) -> 0 | O93: =ROUNDDOWN(MIN((SMSFConcessionalContributionsCappedAmount-SMSFSuperGuaranteeContributionM6),IF((O66-O92-O87)<0,0,(O66-O92-O87))),0) -> 0 | S93: =(E93+G93+I93+K93+M93+O93) -> 0
C95: Available surplus for additional voluntary post tax non-concessional contributions ($130,000 cap) | E95: =ROUNDDOWN(MIN(SMSFNonConcessionalContributionsCappedAmount,(IF(OR(E72>0,E92>0),(E72-E92-E93),0))),0) -> 0 | G95: =ROUNDDOWN(MIN(SMSFNonConcessionalContributionsCappedAmount,(IF(OR(G72>0,G92>0),(G72-G92-G93),0))),0) -> 0 | I95: =ROUNDDOWN(MIN(SMSFNonConcessionalContributionsCappedAmount,(IF(OR(I72>0,I92>0),(I72-I92-I93),0))),0) -> 0 | K95: =ROUNDDOWN(MIN(SMSFNonConcessionalContributionsCappedAmount,(IF(OR(K72>0,K92>0),(K72-K92-K93),0))),0) -> 0 | M95: =ROUNDDOWN(MIN(SMSFNonConcessionalContributionsCappedAmount,(IF(OR(M72>0,M92>0),(M72-M92-M93),0))),0) -> 0 | O95: =ROUNDDOWN(MIN(SMSFNonConcessionalContributionsCappedAmount,(IF(OR(O72>0,O92>0),(O72-O92-O93),0))),0) -> 0 | S95: =ROUNDDOWN((E95+G95+I95+K95+M95+O95),0) -> 0
A97: Important information Commercial in confidence - this document has been produced for the intended recipients only. It must not, under any circumstance, be copied or distributed in any way to a party other than the intended recipients. SMSF serviceability calculator is correct as at 28 August 2026 and subject to change. All applications are subject to credit assessment, eligibility criteria and lending limits. Terms, conditions, fees and charges apply. Information provided in the SMSF serviceability calculator is factual information only and is not intended to implement any recommendation or advice about any financial product(s) or constitute tax advice. Consult a licensed financial or tax advice for financial and/or tax advice. The results of the SMSF serviceability calculator are based on information provided and is to be used as a guide only. Serviceability may be different when a full assessment is completed It does not constitute a quote, pre-qualification or approval or offer for credit and commitments should not be entered based on it. Pepper Money Limited ABN 51 094 317 647

Sheet SEIC
B1: Self-Employed Income Calculator
C3: Business 1 | N3: Business 2
C5: Business Name | N5: Business Name
D7: Most Recent Year | F7: Previous Year | O7: Most Recent Year | Q7: Previous Year
C8: Financial year end date (DD/MM/YYYY) | N8: Financial year end date (DD/MM/YYYY) | P8: 42551
C10: Gross Business Income | N10: Gross Business Income
C11: less expenses | N11: less expenses
C12: plus superannuation over 12% | N12: plus superannuation over 12%
C14: plus depreciation | N14: plus depreciation
C15: plus interest / leasing charges | N15: plus interest / leasing charges
C17: less Ongoing Business Loan REPAYMENTS | N17: less Ongoing Business Loan REPAYMENTS
H18: Total Business Income | S18: Total Business Income
C19: Director Wages: | H19: Most Recent Year | I19: Previous Year | N19: Director Wages: | S19: Most Recent Year | T19: Previous Year
C20: Applicant 1 | H20: =(D$10-D$11+D$12-D$17)*D28+D20 -> 0 | I20: =(F$10-F$11+F$12-D$17)*F28+F20 -> 0 | N20: Applicant 1 | S20: =(O$10-O$11+O$12-O$17)*O28+O20 -> 0 | T20: =(Q$10-Q$11+Q$12-O$17)*Q28+Q20 -> 0
C21: Applicant 2 | H21: =(D$10-D$11+D$12-D$17)*D29+D21 -> 0 | I21: =(F$10-F$11+F$12-D$17)*F29+F21 -> 0 | N21: Applicant 2 | S21: =(O$10-O$11+O$12-O$17)*O29+O21 -> 0 | T21: =(Q$10-Q$11+Q$12-O$17)*Q29+Q21 -> 0
C22: Applicant 3 | H22: 0 | I22: 0 | N22: Applicant 3 | S22: 0 | T22: 0
C23: Applicant 4 | H23: 0 | I23: 0 | N23: Applicant 4 | S23: 0 | T23: 0
C24: Applicant 5 | H24: 0 | I24: 0 | N24: Applicant 5 | S24: 0 | T24: 0
C25: Applicant 6 | H25: 0 | I25: 0 | N25: Applicant 6 | S25: 0 | T25: 0
H26: Untaxed Addbacks | S26: Untaxed Addbacks
C27: Applicant's Entitlement: | H27: Most Recent Year | I27: Previous Year | N27: Applicant's Entitlement: | S27: Most Recent Year | T27: Previous Year
C28: Applicant 1 | H28: =(D$15+D$14)*$D28 -> 0 | I28: =(F$15+F$14)*$F28 -> 0 | N28: Applicant 1 | S28: =(O$15+O$14)*$O28 -> 0 | T28: =(Q$15+Q$14)*$Q28 -> 0
C29: Applicant 2 | H29: 0 | I29: 0 | N29: Applicant 2 | S29: 0 | T29: 0
C30: Applicant 3 | H30: 0 | I30: 0 | N30: Applicant 3 | S30: 0 | T30: 0
C31: Applicant 4 | H31: 0 | I31: 0 | N31: Applicant 4 | S31: 0 | T31: 0
C32: Applicant 5 | H32: 0 | I32: 0 | N32: Applicant 5 | S32: 0 | T32: 0
C33: Applicant 6 | H33: 0 | I33: 0 | N33: Applicant 6 | S33: 0 | T33: 0
D34: =IF(SUM(D28:D33)>100%,"Check: >100%","") ->  | F34: =IF(SUM(F28:F33)>100%,"Check","") ->  | O34: =IF(SUM(O28:O33)>100%,"Check: >100%","") ->  | Q34: =IF(SUM(Q28:Q33)>100%,"Check","") -> 
C35: Calculations: Business 1 | N35: Calculations: Business 2
D37: Self-Employed Income | O37: Self-Employed Income
C38: Applicant 1 | D38: =IF(H20>I20,AVERAGE(H20,I20),H20) -> 0 | N38: Applicant 1 | O38: =IF(S20>T20,AVERAGE(S20,T20),S20) -> 0
C39: Applicant 2 | D39: 0 | N39: Applicant 2 | O39: 0
C40: Applicant 3 | D40: 0 | N40: Applicant 3 | O40: 0
C41: Applicant 4 | D41: 0 | N41: Applicant 4 | O41: 0
C42: Applicant 5 | D42: 0 | N42: Applicant 5 | O42: 0
C43: Applicant 6 | D43: 0 | N43: Applicant 6 | O43: 0
D45: Addbacks | O45: Addbacks
C46: Applicant 1 | D46: =IF(H28>I28,AVERAGE(H28,I28),H28) -> 0 | N46: Applicant 1 | O46: =IF(S28>T28,AVERAGE(S28,T28),S28) -> 0
C47: Applicant 2 | D47: 0 | N47: Applicant 2 | O47: 0
C48: Applicant 3 | D48: 0 | N48: Applicant 3 | O48: 0
C49: Applicant 4 | D49: 0 | N49: Applicant 4 | O49: 0
C50: Applicant 5 | D50: 0 | N50: Applicant 5 | O50: 0
C51: Applicant 6 | D51: 0 | N51: Applicant 6 | O51: 0
C56: Outputs
D58: Self-Employed Income
C59: Applicant 1 | D59: =D38+O38 -> 0
C60: Applicant 2 | D60: 0
C61: Applicant 3 | D61: 0
C62: Applicant 4 | D62: 0
C63: Applicant 5 | D63: 0
C64: Applicant 6 | D64: 0
D66: Addbacks
C67: Applicant 1 | D67: =D46+O46 -> 0
C68: Applicant 2 | D68: 0
C69: Applicant 3 | D69: 0
C70: Applicant 4 | D70: 0
C71: Applicant 5 | D71: 0
C72: Applicant 6 | D72: 0

Sheet BBS & BAS
A1: Step 1 | B1: What income is your client declaring?
A3: Step 2 | B3: Enter data in the white cells only | H3: Number of Quarters used
H4: =COUNT(B7:B10) -> 0 | K4: Business Bank Statements Analysis
A5: enter data in white cells only | B5: G1 | C5: 1A | D5: 1B | E5: Net GST | F5: W1 | G5: Expenses | H5: Surplus | I5: Expense Ratio | L5: Actuals
A6: Must use min of 2 quarters | B6: Sales | C6: Owed to ATO | D6: Owed by ATO | F6: Salaries | K6: Select Period Covered
A7: Quarter 1 | E7: =C7-D7 -> 0 | G7: =D7*11 -> 0 | H7: =B7-E7-F7-G7 -> 0
A8: Quarter 2 | E8: =C8-D8 -> 0 | G8: =D8*11 -> 0 | H8: =B8-E8-F8-G8 -> 0 | K8: Enter Sum of Credits | N8: Annualised Credits x ATO Average Expense figure
A9: Quarter 3 | E9: =C9-D9 -> 0 | G9: =D9*11 -> 0 | H9: =B9-E9-F9-G9 -> 0 | K9: Annualised | L9: =IF(L6="Month",L8*12,IF(L6="Quarter",L8*4,IF(L6="6 months",L8*2,L8))) -> 0
A10: Quarter 4 | E10: 0 | G10: 0 | H10: 0
A11: TOTAL | B11: =SUM(B7:B10) -> 0 | C11: =SUM(C7:C10) -> 0 | D11: 0 | E11: 0 | F11: 0 | G11: 0 | H11: 0 | I11: =(E11+F11+G11)/B11 -> 
A12: Annualised | B12: =IF(SUM(B7:B10)>0,(SUM(B7:B10)/COUNTA(B7:B10)*4),0) -> 0 | C12: =IF(SUM(C7:C10)>0,(SUM(C7:C10)/COUNTA(C7:C10)*4),0) -> 0 | D12: 0 | E12: 0 | F12: 0 | G12: 0 | H12: =IF(H4=2,H11*2,IF(H4=3,H11/3*4,H11)) -> 0 | K12: Enter Sum of Business debits from BBS | L12: 0 | M12: OR | N12: =L9*H18 -> 0
A13: Result | H13: =IF(E1>H12, "Refer","Pass") -> Pass | K13: Annualised | L13: =IF(L6="Month",L12*12,IF(L6="Quarter",L12*4,IF(L6="6 months",L12*2,L12))) -> 0
K14: Or Annualised via ATO Average | L14: =N12 -> 0
A15: BAS Guidelines: | F15: Expense Benchmark | H15: ATO | K15: Assessed Surplus | L15: =L9-L13-L14 -> 0 | N15: =L9-N12 -> 0
A16: 1. If the annualised surplus exceeds the self employed declared income, proceed with application. Use the declared income in the DSC. | F16: Which Industry? | L16: =IF(E1>L15, "Refer","Pass") -> Pass
A17: 2. If the annualised surplus is less than the declared income, use BBS to verify income. If that is also insufficient, discuss with broker and consider full doc approach. | F17: Total Exp/Turnover % Range | K17: Actual Expense Ratio | L17: =L13/L9 -> 
A18: 3. If you are using the ATO guidance for industry normal surplus, please compare the surplus shown above to the range shown in the ATO table. | F18: Avge Total Expenses %
A19: 4. When Salaries are shown above, check the Self Employed Declaration form to see if applicants' disclose PAYG income. If not, it is to be taken the fuigure shown above is paid to employees, not the applicants. If so, it would be expected to be part or whole of what is declared at W1 on the BAS | F19: https://www.ato.gov.au/Business/Small-business-benchmarks/Benchmarks-A-Z/ | K19: BBS Guidelines:
A20: 5. If any quarter's 1B - Owed by ATO is significantly larger than other quarters, ask broker to check if any one-off capital purchases were made that quarter as these may inflate the GST owed and therefore the proxy expenses we compute. If that is the case, please ask for documentary support of that purchase to confirm eg invoice, bank statement. | F20: ATO Small Business Benchmarks | K20: 1. Select the period the bank statements cover
F21: Which one do I use? | H21: tax returns | K21: 2. Identify the business related deposits and expenses, add them up and enter that figure where shown.
H22: BAS expense ratio to fit within ATO Range | K22: 3. If the annualised surplus exceeds the self employed declared income, proceed with application. Use the declared income in the DSC.
H23: ATO Average if no BBS expense figure used. | K23: 4. If the annualised surplus is less than the declared income, you may need to use BAS to verify income. If that is also insufficient, discuss with broker and consider full doc approach.
K24: 5. If you are using the ATO guidance for industry normal surplus, please use the average shown in the ATO table.
B91: Month
B92: Quarter
B93: 6 months
B94: 12 months

Sheet SPV - Non-Borrower
B1: SPV (Non-Borrower) Income Calculator
D3: SPV 1 | F3: SPV 2 | L3: SPV 3 | N3: SPV 4 | P3: SPV 5 | V3: SPV 6
C4: SPV Name
C6: Gross Rental Income (ANNUAL)
C7: Other Allowable SPV Income (ANNUAL)
C9: Assessed Income (ANNUAL) | D9: =(D6*80%)+D7 -> 0 | F9: =(F6*80%)+F7 -> 0 | L9: =(L6*80%)+L7 -> 0 | N9: =(N6*80%)+N7 -> 0 | P9: =(P6*80%)+P7 -> 0 | V9: =(V6*80%)+V7 -> 0
C11: Mortgage Repayments (MONTHLY)
C12: Investment Property Expenses (MONTHLY)
C13: Other SPV expenses (MONTHLY)
C15: Profit before tax or Loss (ANNUAL) | D15: =D9-((D11*125%)*12)-(MAX(0,(D12*12)-(D6*15%)))-(D13*12) -> 0 | F15: =F9-((F11*125%)*12)-(MAX(0,(F12*12)-(F6*15%)))-(F13*12) -> 0 | L15: =L9-((L11*125%)*12)-(MAX(0,(L12*12)-(L6*15%)))-(L13*12) -> 0 | N15: =N9-((N11*125%)*12)-(MAX(0,(N12*12)-(N6*15%)))-(N13*12) -> 0 | P15: =P9-((P11*125%)*12)-(MAX(0,(P12*12)-(P6*15%)))-(P13*12) -> 0 | V15: =V9-((V11*125%)*12)-(MAX(0,(V12*12)-(V6*15%)))-(V13*12) -> 0
C17: Aggregate Profit before or Loss (ANNUAL) | D17: =SUM(D15,F15,L15,N15,P15,V15) -> 0
C19: For the purpose of using this calculator, an Special Purpose Vehicle (SPV) is a passive investment holding Company or Trust. Entities operating trading business enterprises will be assessed through Pepper Self Employed policies. This calculator is to be used, with the net result included in the primary serviceability calculator, when an individual person, attached to the proposed loan, has another SPV (which is not a borrower with Pepper), and that SPV operates: (a) a loss and is not self sufficient, OR (b) a profit, which is to contribute to the individuals serviceability power Where (a) does not apply, a letter from the customers accountant is required, confirming that SPV is self-sufficient (refer to Pepper SPV lending guideline for the required wording). All income and expenses used in this calculator need to be verified using Peppers standard verification requirements. SPV's that are borrowing entities with Pepper, tested via Peppers global exposure serviceability test. Instructions: 1) Enter the name of each SPV. 2) Enter 100% of the rental income and any other allowable income (other passive investment income such as share dividends) generated by the SPV. These are annual figures and the calculator will haircut rental income by 20%. 3) Enter actual loan repayments for any mortgage loans held by the SPV. This is to be a monthly figure and the calculator will buffer by 25%. 4) Enter expenses associated with any real estate owned by the SPV. This includes insurance, utilities, rates, strata fees & land tax. This is to be a monhtly figure and the calculator will account for a portion of these expenses within the rental income haircut. 5) Enter any other expenses that may be applicable with the SPV, for example accountancy costs. This is to be a monthly figure. 6) Take the resulting aggregate profit before tax or loss (the blue cell) and enter into the applicable serviceability calculator: - Residential, under the next available applicant type in Business NPBT (Row 23) with the applicant type Non-Borrower SPV - Commercial, under Business Income, Net Profit Before Tax (cell E27) - SMSF, in Row 63. When a loss, enter with no adjustment. When a profit, adjust and enter 70% of the profit result

Sheet Capacity test
A1: CAPACITY TEST - Debt Consolidation | I1: Capacity Test Assessment Procedure
I2: Objective of the Capacity Test
A3: Debt | B3: Provider | C3: Balance | D3: Monthly Payment | E3: Month 1 | F3: Month 2 | G3: Month 3 | I3: The capacity test is designed to ascertain whether a client has the financial ability to meet the proposed new minimum monthly repayment on when they have not demonstrated meeting minimum repayments on existing loans. This could be indicative of a lack of affordability is not caused by an acute 'life event' that has passed and should not effect the customer ongoing. Its purpose is to ensure that any refinancing or consolidation places the client in an improved and affordable financial position, rather than creating or worsening hardship. By analyzing recent repayment behavior and comparing it to the new repayment amount, the test confirms if the client can sustainably manage the new obligation
I7: Capacity Test Assessment Procedure
I8: Step 1: Determine if a Capacity Test is Required Check the client’s loan arrears history: Any arrears within the last 6 months; AND There was their no apparent 'life event' that temporarily affected the customers affordability; AND The arrears value indicates that the customer may not be able to afford the proposed loan, despite a Serviceability Test passing. If these conditions apply, proceed with a capacity test. Step 2: Gather Client Liability Information List all current liabilities (e.g., home loans, personal loans, credit cards). Identify the minimum monthly repayment required for each liability. Calculate the total minimum monthly repayment across all facilities. Step 3: Review Client’s Recent Repayment History Examine the last 3 months of repayment activity. Record actual amounts paid each month. Examine the last 3 months of repayment activity. Note any shortfalls compared to the required minimum repayment. Step 4: Calculate Average Monthly Repayment Add the actual repayments for the last 3 months. Divide by 3 to get the average monthly repayment. Step 5: Compare to New Minimum Monthly Repayment Identify the proposed new loan amount and its minimum monthly repayment. Check if the client’s average repayment is greater than the new minimum repayment. Step 6: Assess Capacity If the client meets or exceeds the new minimum repayment threshold: Capacity confirmed → Client is eligible for assistance. If not, Capacity not confirmed → Refer to your BDM. Step 7: Document Findings Where capacity is established and this mitigates the arrears history, please add this commentary to your loan submission. Step 8: Next Steps If capacity is confirmed: Proceed with consolidation or refinancing. If capacity is not confirmed: Refer to you BDM..
C18: =SUM(C4:C17) -> 0 | D18: =SUM(D4:D17) -> 0 | E18: 0 | F18: 0 | G18: 0
E19: =IF($E$18=0," ",IF($E$18<$B$24,"FAIL","PASS")) ->  | F19: =IF($F$18=0," ",IF($F$18<$B$24,"FAIL","PASS")) ->  | G19: =IF($G$18=0," ",IF($G$18<$B$24,"FAIL","PASS")) -> 
A21: Loan Amount
A22: Interest Rate
A23: Loan Term
A24: Payment | B24: =-PMT((B22)/NumberOfMonthsInAYear,NumberOfMonthsInAYear*B23,B21) -> 

Sheet YTD
A1: YEAR-TO-DATE INCOME CALCULATOR
A4: Employment 1
A5: Borrower Name
A6: Loan Id
A7: Start Date | B7: Finish Date | C7: No. of Days | D7: Weeks | E7: YTD Pay | F7: Ave Per Week | G7: Annualised | H7: IF Casual @ 48w
A8: 2026-07-01 | C8: =B8-A8 -> -46204 | D8: =C8/7 -> -6600.571429 | F8: =E8/D8 -> 0 | G8: =F8*52 -> 0 | H8: =G8/52*48 -> 0
A10: Employment 2
A11: Borrower Name
A12: Loan Id
A13: Start Date | B13: Finish Date | C13: No. of Days | D13: Weeks | E13: YTD Pay | F13: Ave Per Week | G13: Annualised | H13: IF Casual @ 48w
A14: =A8 -> 2026-07-01 | C14: =B14-A14 -> -46204 | D14: =C14/7 -> -6600.571429 | F14: =E14/D14 -> 0 | G14: =F14*52 -> 0 | H14: =G14/52*48 -> 0
A16: Employment 3
A17: Borrower Name
A18: Loan Id
A19: Start Date | B19: Finish Date | C19: No. of Days | D19: Weeks | E19: YTD Pay | F19: Ave Per Week | G19: Annualised | H19: IF Casual @ 48w
A20: =A8 -> 2026-07-01 | C20: =B20-A20 -> -46204 | D20: =C20/7 -> -6600.571429 | F20: =E20/D20 -> 0 | G20: =F20*52 -> 0 | H20: =G20/52*48 -> 0
A22: Important Information: This calculator is to be used as a guide only as to borrowing power based on the basic information provided. It is not an offer of credit or a quote. Lending criteria, terms and coniditons, fees and charges will apply should a borrower apply for credit. Pepper Money Limited ABN 55 094 317 665 Australian credit licence 286655

Sheet Arrears Calculator
B2: Arrears Calculator | AC2: 2025-06-30 | AM2: Product | AN2: Rank | AQ2: Non Mortgage Arrears | AT2: Mortgage Arrears RHI | AU2: Credit
AA3: Mortgage | AC3: =EOMONTH(AC2,1) -> 2025-07-31 | AE3: ='Arrears Calculator'!F9 -> Mortgage | AF3: =MAX('Arrears Calculator'!H13:H18) -> 0 | AH3: Non-Mortgage | AI3: =SUMIF($AE$3:$AE$6,AH3,$AF$3:$AF$6) -> 0 | AJ3: =IF(AI3=0,AR3,INDEX(AR3:AR10,MATCH(AI3,AQ3:AQ10,1)+1)) -> Prime | AK3: =INDEX(AN$2:AN$19,MATCH(AJ3,AM$2:AM$19,0)) -> 1 | AM3: Specialist+ | AN3: 6 | AQ3: 0 | AR3: Prime | AT3: 0 | AU3: Prime / Near Prime Clear
B4: Only used to determine Non-Conforming product eligibility. Enter data in the cells coloured red. | AA4: Non-Mortgage | AC4: 2025-08-31 | AH4: Mortgage | AI4: =SUMIF($AE$3:$AE$6,AH4,$AF$3:$AF$6) -> 0 | AJ4: =IF(AI4=0,AU3,INDEX(AU3:AU10,MATCH(AI4,AT3:AT10,1)+1)) -> Prime / Near Prime Clear | AK4: =INDEX(AN$2:AN$19,MATCH(AJ4,AM$2:AM$19,0)) -> 2 | AM4: Specialist | AN4: 5 | AQ4: 0.251 | AR4: Near Prime Clear | AT4: 0.251 | AU4: Near Prime
AC5: 2025-09-30 | AM5: Near Prime | AN5: 4 | AQ5: 1 | AR5: Near Prime Clear | AT5: 1 | AU5: Specialist
C6: Borrower | G6: <Enter borrower name> | AC6: 2025-10-31 | AM6: Near Prime Clear | AN6: 3 | AQ6: 2 | AR6: Near Prime | AT6: 2 | AU6: Specialist+
AC7: 2025-11-30 | AM7: Prime / Near Prime Clear | AN7: 2 | AQ7: 3 | AR7: Near Prime | AT7: 3 | AU7: Specialist+
C8: Lender | G8: <Enter the lender / creditor for Account #1> | AC8: 2025-12-31 | AM8: Prime | AN8: 1 | AQ8: 4 | AR8: Specialist | AT8: 4 | AU8: Specialist+
E9: Debt Type | F9: Mortgage | G9: <Select the debt type for Account #1> | AC9: 2026-01-31 | AQ9: 5 | AR9: Specialist | AT9: 5 | AU9: Specialist+
C10: Current Balance | G10: <Enter the current loan balance owing or debt outstanding of Account #1> | AC10: 2026-02-28 | AQ10: 6 | AR10: Specialist | AT10: 6 | AU10: Specialist+
C12: Month | D12: Amount Paid | E12: Scheduled Monthly Payment | F12: Monthly Arrears/Advance | G12: Cumulative Arrears/Advance | H12: Full Payments Arrears/Advance
C13: 2025-11-30 | D13: 0 | E13: 0 | F13: =(E13-D13) -> 0 | G13: =F13 -> 0 | H13: =IFERROR(G13/E13,"") -> 
C14: =EOMONTH(C13,1) -> 2025-12-31 | E14: =E13 -> 0 | F14: 0 | G14: =G13+F14 -> 0
C15: 2026-01-31 | E15: =E14 -> 0 | F15: 0 | G15: 0
C16: 2026-02-28 | E16: =E15 -> 0 | F16: 0 | G16: 0
C17: 2026-03-31 | E17: =E16 -> 0 | F17: 0 | G17: 0
C18: 2026-04-30 | E18: =E17 -> 0 | F18: 0 | G18: 0
C22: Total Arrears in Last 6 Months
C23: Total Non-Mortgage Arrears | E23: =SUMIF(#REF!,"Non-Mortgage",#REF!) -> 
C24: Total Mortgage Arrears | E24: =SUMIF(#REF!,"Mortgage",#REF!) -> 
C26: Product | E26: =INDEX('Arrears Calculator'!AM3:AM7,MATCH(MAX('Arrears Calculator'!AK3:AK4),'Arrears Calculator'!AN3:AN7,0)) -> Prime / Near Prime Clear | G26: Product displayed is a guide only, and subject to full credit assessment.
C32: Pepper Product Impairment Matrix
C34: Non Mortgage Arrears # | F34: Mortgage Arrears # | G34: Credit
C35: 0 | D35: Prime | F35: 0 | G35: Prime / Near Prime Clear
C36: 0.01 - 1 | D36: Near Prime Clear | F36: 0.01 - 0.25 | G36: Near Prime
C37: 1.01 - 3 | D37: Near Prime | F37: 0.26 - 1 | G37: Specialist
C38: More than 3 | D38: Specialist | F38: More than 1 | G38: Specialist+

Sheet User Guide - Residential
A1: User Guide - Residential Serviceability Calculator
A3: Field Name | B3: Instruction
A4: Clear Form (BUTTON) | B4: Allows the user to clear all input fields in the calculator
A5: Applicant Name | B5: Applicants name
A6: Interest Rate Buffer | B6: This field will default to Pepper interest rate buffer of 2%. Where the customer is eligible for a 1% interest rate buffer (refer to criteria), 1% should be selected in this field.
A7: New Loan Amount | B7: Mandatory field - Total loan amount including any capitalised fees. Two fields are available for where the customer has multiple loans or splits with varying interest rates or terms.
A8: Interest Rate | B8: Mandatory field - Actual interest rate of the proposed loan or split
A9: Loan Term | B9: Mandatory field - The total loan term of the proposed loan (cannot exceed 30 years on Prime or 40 years on Near Prime or Specialist products)
A10: I/O Term | B10: The interest only term of the proposed loan. Leave blank if not applicable (will not allow IO term to exceed 5 years)
A11: Status | B11: Mandatory field - For each applicant of the loan, what is their marital status. Drop down selection of Single, Couple, Company. Note, if Company status all income will be calculated based on Company tax rates.
A12: Couple with | B12: Mandatory field - Links applicants who are a couple for household income band selection for living expense benchmark. This field must be correctly completed for both individuals of a couple, where one member of a couple is not correctly linked the living expense will be calculated as an additional couple living expense. Drop down selection N/A, Non-Loan Party or Applicant “X” when another Applicant is applied with a Couple status
A13: Dependents | B13: Number of child dependents, aged < 18, the Applicant has. Each dependent child must only be entered once per couple. If a dependent is entered for both individuals of a couple, that dependent will be counted twice.
A14: Gross Annual Income | B14: The applicants income from acceptable taxable income sources
A15: Untaxed Allowable Income | B15: Income from acceptable untaxed income sources such as Centrelink allowances. Tax is not calculated on this income
A16: Self Employed Income | B16: Income from self-employed activities, this income is taxed at personal tax rates and should not be duplicated if this income has already been entered in Gross Annual Income. Optional Macro: Where the SEIC has been used and “Apply Values to Servicing Calculator” macro executed, this field will populate with the results from the SEIC
A17: Addbacks | B17: Allowable addbacks to be entered such as depreciation or non-recurring expenses. Optional Macro: Where the SEIC has been used and “Apply Values to Servicing Calculator” macro executed, this field will populate with the results from the SEIC
A18: Business NPBT | B18: Self employed income that is to be taxed at company tax rates.
A19: Self-Employed Worksheet (BUTTON) | B19: Takes user to the SEIC tab
A20: Gross Rental Income | B20: Rental income entered at 100%. For the purposes of allowable income for serviceability, 80% of this income is used for servicing. There are two sections for to be entered depending on eligbility or not for negative gearing of the associated investment property (refer to calculator notes for eligiblity criteria).
A21: Investment Loan Balance | B21: This is the total balance of investment loans held by applicant. There are two sections for investment loans to be entered depending on its eligbility or not for negative gearing (refer to calculator notes for eligiblity criteria).
A22: Primary residence utilities, rates & expenses | B22: Mandatory field - Include council rates, strata fees, water, gas & electricity utility bills and regular maintenance where applicable for the applicants primary resdience. Assessment should account for these expenses giving account to the type of property (location, house or unit and size).
A23: Primary residence land tax & FHB property tax | B23: Mandatory field - Include any applicable Land Tax for the applicants primary place of residence. This also includes annual property tax payments due under the First Home Buyer Choice stamp duty scheme - the rate of this tax is $400 plus 0.3% of the property value (https://www.nsw.gov.au/initiative/first-home-buyer-choice)
A24: Investment property utilities, rates, strata fees & land tax | B24: Mandatory field - Include council rates, water, gas & electricity utility bills, Body Corpoate or Strata Fees, Land Tax and regular maintenance where applicable for any investment properties or secondary residences owned or to be owned by the applicant. Assessment should account for these expenses giving account to the type of property (location, house or unit and size).
A25: Telephone, internet, Pay TV & media streaming | B25: Mandatory field - Unless an applicant has a mobile phone supplied by their employer, it is expected that each applicant would have a mobile phone expense. If they have a home phone number, they may have a ‘bundle’ with a telco which includes internet.
A26: Groceries | B26: Mandatory field - It is expected that all applicants will have a grocery expense that is reasonable for their family unit size.
A27: Recreation & Entertainment | B27: Mandatory field - It is expected that all applicants will have some form of recreation & entertainment cost. This includes alcohol, tobacco, gambling, restaurants and membership fees.
A28: Clothing & Personal Care | B28: Mandatory field - It is expected that all applicants will have clothing and personal care expenses that is reasonable for their family unit size.
A29: Medical & Health | B29: Mandatory field - As an applicant’s age increase it is expected that medical and health costs will increase. In some case this cost may be $0 however given the customers circumstance it should be understood why through additional inquiry.
A30: Transport | B30: Mandatory field - It is expected that all applicants will have a transport cost that is reasonable for their assets and employment position. What are the running costs of each car owned including petrol and servicing or what are the costs of public transport where they commute for work. One exception may be where an applicant has one car only which is provided by their employer or running costs are already include in novated lease payments.
A31: Education - non Private schooling | B31: Mandatory field - Where the applicant(s) has school aged children is the declared amount reasonable to cover public schools fees, uniform costs and books (if high school).
A32: Education - Private schooling | B32: Mandatory field - Where the applicant(s) has school aged children that attend private schooles, is the declared amount reasonable to cover schools fees, uniform costs and books.
A33: Childcare | B33: Mandatory field - Where the applicant(s) has pre-school aged children and all applicants work, has a child care cost been included that is reasonable for the location accounting for any rebate that may be due. Where this is applicable and declared expense is $0 additional inquiry needs to be made.
A34: Insurance - General basic | B34: Mandatory field - Do the below insurances apply to the applicant(s) and have they been accounted for: - House owners with home insurance - Car owners (accounted for each car)
A35: Insurance - Health, Sickness, Personal Accident & Life | B35: Mandatory field - Do the below insurances apply to the applicant(s) and have they been accounted for: - Private Health - particularly where income is > $90,000 and applicant is single or > $180,000 for families - Income and life insurance
A36: Other Living Expenses | B36: Mandatory field - This is to capture unique items not covered for in the above categories that may be applicable to the applicant(s).
A37: Child & Spousal Maintenance | B37: Regular payments made by the applicant(s) for child or spousal maintenance.
A38: Rent/Board | B38: Rental or board expense paid by the customer.
A39: Total Credit Card Limit | B39: Total credit card limit of all continuing credit cards.
A40: Other Mortgage Repayments | B40: Mortgage repayments of any other continuing mortgage repayments.
A41: Other Liabilities | B41: Any other commitments the borrower has such as personal loans, HEC’s & BNPL. For BNPL which have a Pay-in-X repayment the full repayment must be included. Where this causes serviceability to fail, the customer may want to consider paying out and closing the facility prior to settlement. Where limit is >$2,000, or limit <=$2,000, include as a credit card expense.
A42: Eligible Loan Amount | B42: Where the NSR = FAIL an offer as to the maximum loan amount the customer can qualify for to pass the minimum NSR of 1x or 1.25x if > 50% of income is from untaxed sources. Otherwise the applied loan amount is shown.
A43: Maximum Serviceable Loan Amount | B43: This is an indication of the maximum loan amount that the borrower can service.

Sheet User Guide - Commercial
A1: CRE Servicing Calculator
A3: Field Name | B3: Instruction
A4: Clear Form (BUTTON) | B4: Allows the user to clear all fields in the calculator
A5: Applicant name | B5: Applicants name
A6: New Loan Amount | B6: Mandatory field - total loan amount including any capitalised fees
A7: Interest Rate | B7: Mandatory field - actual interest rate of the proposed loan
A8: Documentation Type | B8: Mandatory field - identify whether FullDoc or AltDoc income documentation
A9: Loan Term (Years) | B9: Mandatory field - the total loan term of the proposed loan (maximum term 30 years)
A10: I/O Term (Years) | B10: The interest only term of the proposed loan. Left blank if not applicable (maximum term 5 years allowed)
A11: Loan 1-4 Loan Amount | B11: Outstanding loan amount of external business loan
A12: Loan 1-4 Rate | B12: Current interest rate of external business loan
A13: Loan 1-4 Actual Loan Repayment (Monthly) | B13: Current monthly loan repayments under contract for external business loan
A14: Net Profit before Tax | B14: Net Profit Before Tax per annum from business activities of applicant
A15: Depreciation | B15: Depreciation expense per annum from the business activities of applicant (obtained from Profit & Loss statements)
A16: Proposed Net CRE Rental Income | B16: 100% of CRE rental income after outgoings paid for by landlord
A17: Amortisation | B17: Amortisation expense per annum from business activities of the applicant (obtained from Profit & Loss statements)
A18: Proposed Gross Residential Rental Income | B18: 100% of gross residential rental income if to be received by the business
A19: Interest Paid | B19: Actual interest paid per annum from the business (obtained from Profit & Loss statements)
A20: Directors Salaries/Fees/Super | B20: Actual Directors Salaries/Fees/Superannuation payments per annum paid by the business activities of the applicant (obtained from Profit & Loss statements/personal tax returns). CARE: do not duplicate in personal income
A21: Other | B21: Actual expenses per annum which are non-recurring and are paid by the business activities of the applicant (obtained from Profit & Loss statements)
A22: Earnings before Interest, Tax, Depreciation & Amortisation (EBITDA) | B22: Formula: Summation of all business income and addbacks subject to 80% (Proposed Gross residential Rental Income)
A23: Total Add Backs | B23: Formula: Summation of all add backs
A24: Status | B24: For each applicant of the loan, what is their marital status.
A25: Couple With | B25: Links applicants who are a couple for household income band selection for living expense benchmark. This field must be correctly completed for both individuals of a couple, where one member of a couple is not correctly linked the living expense will be calculated as an additional couple living expense. Drop down selection N/A, Non-Loan Party or Applicant “X” when another Applicant is applied with a Couple status
A26: Dependents | B26: Number of child dependents, aged < 18, the Applicant has. Each dependent child must only be entered once per couple. If a dependent is entered for both individuals of a couple, that dependent will be counted twice.
A27: Gross Annual Income | B27: Gross annual income of applicant from acceptable taxable income sources external to business income. Do NOT include Directors Fees/Salary/Super if included in addbacks.
A28: Untaxed Allowable Income | B28: Income from acceptable untaxed income sources. Tax is not calculated on this income.
A29: Gross Residential Rental Income (Negative Gearing Eligible) AND Gross Residential Rental Income (not eligible for Negative Gearing) | B29: This is the total balance of investment loans held by applicant. There are two sections for investment loans to be entered depending on its eligbility or not for negative gearing (refer to calculator notes for eligiblity criteria. Care: do NOT enter if income has been included under Business Income.
A30: Negative Gearing eligible Loan Balance (personal name) AND Negative Gearing eligible Loan Balance (personal name) | B30: This is the total balance of investment loans held by applicant. There are two sections for investment loans to be entered depending on its eligbility or not for negative gearing (refer to calculator notes for eligiblity criteria).
A31: Declared Living Expenses | B31: Total personal living expenses per month declared by the customer (sum of all applicants declared living expenses)
A32: Rent/Board | B32: Rental or board expense paid by the customer.
A33: Total Credit Card Limit | B33: Total credit card limit of all continuing credit cards.
A34: Personal Mortgage Repayments | B34: Mortgage repayments of any Personal continuing mortgage repayments.
A35: Other Consumer Debt | B35: Any other commitments the borrower has such as personal loans, child support, HEC’s.
A36: Business Income (EBITDA + net personal contribution) | B36: Formula: EBITDA plus Net Personal Contribution
A37: Interest Expenses | B37: Formula: Total Interest Expenses per annum for all business debt (Pepper and external), including existing and proposed business loans
A38: Debt Repayments | B38: Formula: Total contracted business debt repayments per annum including Proposed loan (if applicable, would include P&I repayments over residual term after any interest only period)
A39: Debt Service Coverage Ratio (DSCR) | B39: Formula: Business Income divided by debt repayments
A40: DSCR Outcome | B40: Formula: All mandatory fields to be completed otherwise shows incomplete, where ICR < 1.00 then result is FAIL otherwise result is PASS

Sheet User Guide - SEIC
A1: User Guide - Self Employed Income Calculator (SEIC)
A3: Field Name | B3: Explanation
A4: Clear Form (BUTTON) | B4: Allows the user to clear all fields in the calculator
A5: Apply Values | B5: Applies outputs from Self- employed income Calc into the Servicing Calculator
A6: Return to Calculator (BUTTON) | B6: Returns to Servicing Calculator.
A7: Financials for year ended Most Recent Year | B7: Year financial year ends of financial statement period
A8: Financials for year ended Previous Year | B8: Year financial year ends of financial statement period
A9: Gross Business Income | B9: Gross business income off Profit and Loss statement
A10: Less Expenses | B10: Total expenses including COGS from Profit and Loss statement
A11: Plus Superannuation over 9.5% | B11: Discretionary superannuation paid >9.5% of wages from Profit and Loss statement
A12: Plus Depreciation | B12: As advised in Profit and Loss statement
A13: Interest /Leasing Charges | B13: As advised in Profit and Loss statement
A14: Ongoing Loan Repayments | B14: Business loan repayments that will continue after the settlement of subject Pepper loan
A15: Director Wages Applicant 1 | B15: Wages paid to director
A16: Director Wages Applicant 2 | B16: Wages paid to director
A17: Director Wages Applicant 3 | B17: Wages paid to director
A18: Director Wages Applicant 4 | B18: Wages paid to director
A19: Director Wages Applicant 5 | B19: Wages paid to director
A20: Director Wages Applicant 6 | B20: Wages paid to director
A21: Applicants Entitlement/Applicant 1 | B21: % ownership of this applicant of Business/Company or Trust
A22: Applicants Entitlement/Applicant 2 | B22: % ownership of this applicant of Business/Company or Trust
A23: Applicants Entitlement/Applicant 3 | B23: % ownership of this applicant of Business/Company or Trust
A24: Applicants Entitlement/Applicant 4 | B24: % ownership of this applicant of Business/Company or Trust
A25: Applicants Entitlement/Applicant 5 | B25: % ownership of this applicant of Business/Company or Trust
A26: Applicants Entitlement/Applicant 6 | B26: % ownership of this applicant of Business/Company or Trust
A27: Apply Values (BUTTON) | B27: Applies outputs from SELF employed income calc into residential Servicing calculator
A28: Return To Calculator (BUTTON) | B28: Returns to Servicing Calculator Tab

Sheet User Guide - SMSF
A1: SMSF Serviceability Calculator
A3: Field Name | B3: Instruction | C3: Field type
A4: Clear Form (BUTTON) | B4: Allows the user to clear all fields in the calculator | C4: User entry
A5: SMSF Name | B5: Name of the SMSF the application relates | C5: User entry
A6: New Loan Amount | B6: Mandatory field - total loan amount including any capitalised fees | C6: User entry
A7: Interest Rate | B7: Mandatory field - actual interest rate of the proposed loan | C7: User entry
A8: Loan Term (Years) | B8: Mandatory field - the total loan term of the proposed loan (maximum term 30 years) | C8: User entry
A9: I/O Term (Years) | B9: The interest only term of the proposed loan. Left blank if not applicable (maximum term 5 years allowed) | C9: User entry
A10: P&I Repayment | B10: Principal and interest repayment of the proposed loans ammortisation period | C10: Calculated
A11: IO Repayment | B11: Interest Only repayment of the proposed loan, if applicable | C11: Calculated
A12: Superannuation guarantee | B12: Amount Member receives from PAYG employment under the employer superannuation guarantee scheme. Verified through SMSF financials or PAYG income verification. | C12: User entry
A13: PROPOSED CONCESSIONAL contributions | B13: Amount Member intends to pay in addition to the Superannuation guarantee. This amount added with the Superannuation guarantee and PROPOSED CONCESSIONAL contributions values cannot exceed $30,000 for each member. For this amount to be considered, the Members personal financial information needs to be collected and verified and the Members Income & Expense section of the calculator completed. | C13: User entry
A14: EXISTING CONCESSIONAL contributions | B14: Amount Member currently pays in addition to the Superannuation guarantee. This amount added with the Superannuation guarantee and PROPOSED CONCESSIONAL contributions values cannot exceed $30,000 for each member. For this amount to be considered, the Members personal financial information needs to be collected and verified and the Members Income & Expense section of the calculator completed. | C14: User entry
A15: Additional NON-CONCESSIONAL contributions | B15: Amount Member does or intends to pay in addition to the Superannuation guarantee and any other conncessional contributions, where that total concessional amount will exceed $30,000. This amount cannot exceed $120,000. This amount added with the Superannuation guarantee value cannot exceed $30,000. For this amount to be considered, the Members personal financial information needs to be collected and verified and the Members Income & Expense section of the calculator completed. The amount to be entered is post-tax which is calculated in the Members Income & Expense section. | C15: User entry
A16: Member Contibutions - Concessional | B16: The combined value the Superannuation guarantee and Additional Concessional Contributions entered above. | C16: Calculated
A17: Member Contibutions - Non Concessional | B17: The value Additional Non-Concessional Contributions entered above. | C17: Calculated
A18: Income on other SMSF investments | B18: This is the return on investments currently owned by the SMSF and evidenced through the SMSF financials. This excludes any capitals gains and where the current investments will be liquidated to complete a property purchase, the returns will be adjusted to represent a return of the residual investment value being retained. An automatic allowance for investment return on the residual post-purchase superannuation investments, is allowed for up to RBA cash rate + 0.5% ROI | C18: User entry
A19: Existing & Proposed Net Commercial Rental Income | B19: 100% of CRE rental income after outgoins paid for by landlord | C19: User entry
A20: Existing & Proposed Gross Residential Rental Income | B20: Enter 100% of gross residential rental income if to be received by the business. The calculator will shade this income by 20% | C20: User entry
A21: Gross Income | B21: A total of all SMSF income once haircuts are applied | C21: Calculated
A22: Administration | B22: Annual costs of administrating the SMSF. Pepper will apply a floor of $1500 | C22: User entry
A23: Other Mortgage Repayment (stressed) | B23: Annual repayment of any existing SMSF mortgages buffer by 25% | C23: Calculated
A24: Other P&L expenses | B24: Any other ongoing expenses of the SMSF | C24: User entry
A25: Total Expenses | B25: A total of all SMSF expenses | C25: Calculated
A26: SMSF Tax | B26: 15% Tax applying to the SMSF being Gross income minus Member Contributions - Non Concessional (which have already been tax) minus Interest on the proposed loan (inclusive of interest rate loading) minus Interest on existing SMSF Mortgage (inclusive of other mortgage loading) | C26: Calculated
A27: Total Loan Amount | B27: Total balances of any other mortgages held by the SMSF | C27: User entry
A28: Monthly Repayment | B28: Total of actual repayment of any other mortgages held by the SMSF | C28: User entry
A29: Interest Rate | B29: Actual interest rate on any other mortgages held by the SMSF. Where multiple mortgage are held by the SMSF, interest rate to be weighted by loan balance of each loan. Formula = ((loan 1 balance x loan 1 interest rate)+(loan 2 balance x loan 2 interest rate) etc) / total of all loan balances | C29: User entry
A30: SMSF Income after expenses & tax before interest | B30: Gross Income less non-debt expenses less tax | C30: Calculated
A31: Interest Expenses | B31: Total SMSF Interest Expense per annum for all SMSF mortgages (Pepper and external) | C31: Calculated
A32: Debt Repayments | B32: Total SMSF debt repayments per annum including Proposed loan (if applicable, would include P&I repayments over residual term after any interest only period) | C32: Calculated
A33: Interest Cover Ratio (ICR) | B33: SMSF Income divided by Interest Expenses | C33: Calculated
A34: Debt Service Coverage Ratio (DSCR) | B34: SMSF Income divided by debt repayments | C34: Calculated
A35: DSCR Outcome | B35: Formula: All mandatory fields to be completed otherwise shows incomplete, where DSCR < 1.00 then result is FAIL otherwise result is PASS | C35: Calculated
A36: Status | B36: For each Member, what is their marital status. | C36: User entry
A37: Couple With | B37: Links members who are a couple for household income band selection for living expense benchmark. This field must be correctly completed for both individuals of a couple, where one member of a couple is not correctly linked the living expense will be calculated as an additional couple living expense. Drop down selection N/A, Non-Loan Party or Applicant “X” when another Applicant is applied with a Couple status | C37: User entry
A38: Dependents | B38: Number of child dependents, aged < 18, the Member has. Each dependent child must only be entered once per couple. If a dependent is entered for both individuals of a couple, that dependent will be counted twice. | C38: User entry
A39: Gross Annual Income | B39: Gross annual income of member from acceptable taxable income sources external to business income. Do NOT include Directors Fees/Salary/Super if included in addbacks. | C39: User entry
A40: Untaxed Allowable Income | B40: Income from acceptable untaxed income sources. Tax is not calculated on this income. | C40: User entry
A41: Gross Residential Rental Income (Negative Gearing Eligible) AND Gross Residential Rental Income (not eligible for Negative Gearing) | B41: This is the total balance of investment loans held by applicant. There are two sections for investment loans to be entered depending on its eligbility or not for negative gearing (refer to calculator notes for eligiblity criteria. Care: do NOT enter if income has been included under Business Income. | C41: User entry
A42: Negative Gearing eligible Loan Balance (personal name) AND Negative Gearing eligible Loan Balance (personal name) | B42: This is the total balance of investment loans held by applicant. There are two sections for investment loans to be entered depending on its eligbility or not for negative gearing (refer to calculator notes for eligiblity criteria. | C42: User entry
A43: Declared Living Expenses | B43: Total personal living expenses per month declared by the customer (sum of all members declared living expenses) | C43: User entry
A44: Rent/Board | B44: Rental or board expense paid by the customer. | C44: User entry
A45: Total Credit Card Limit | B45: Total credit card limit of all continuing credit cards. | C45: User entry
A46: Personal Mortgage Repayments | B46: Mortgage repayments of any Personal continuing mortgage repayments. | C46: User entry
A47: Other Consumer Debt | B47: Any other commitments the member has such as personal loans, child support, HEC’s. | C47: User entry
A48: Business Income (EBITDA + net personal contribution) | B48: Formula: EBITDA plus Net Personal Contribution | C48: User entry
A49: Total Commitments (annualised) | B49: The member total commitment | C49: Calculated
A50: Available surplus for additional voluntary concessional contributions (capped at $30,000) | B50: Surplus pre-tax member income after members expenses available to make additional contributions. Capped at $30,000 | C50: Calculated
A51: Available surplus for additional voluntary non-concessional contributions (capped at $120,000) | B51: Surplus post-tax member income after members expenses and tax available to make additional contributions. Capped at $120,000 | C51: Calculated

Sheet Assessment Notes - Residential (hidden)
A1: UNDERWRITER NOTES | D1: INSTRUCTIONS
A2: Loan Amount - Requested: | D2: Loan amount requested by customer at application.
A3: Loan Amount - Approved: | D3: Loan amount approved as a result of this assessment.
A4: LPF / MRF: | D4: LPF or MRF applicable to the approved loan amount.
A5: Loan Amount - Final: | C5: =C3+C4 -> 0 | D5: Loan amount including any capitalised fees. This amount is to be entered into the Servicing Calculator for credit assessment purposes.
A6: Security Estimate: | D6: Security value amount used for LVR calculation.
A7: LVR - Initial: | C7: =C3/C6 ->  | D7: LVR based on loan amount before capitalised fees.
A8: LVR - Final: | C8: =C5/C6 ->  | D8: Total LVR based on loan amount plus capitalised fees.
A9: Global Exposure if other loans held | D9: Total Loan Amount and Total LVR of all Pepper exposure held. If this is the only loan "No other exposure held"
A10: NSR **Min. 1.35x when end LVR >90%**: | D10: =ResiAssessmentNSR -> 0 | E10: NSR based on total loan amount (plus capitalised fees if applicable). Cannot be < 1x or where LVR > 90% cannot be < 1.35x or where income from government support is > 50% of total income cannot be <1.25x.
A11: Customers Requirements & Objectives: | D11: Comment on what the customers objective with the loan purpose is and whether the proposed loan meets the product requirements captured on the CRO form.
A12: Customer Benefit: | D12: What advantage is the customer receiving from the loan purpose and does this match with the Customers Requirements and Objectives.
A13: Product: | D13: Product that is recommended for approval. If this is different to what the customer has applied for then comment as to why it still meets the Customers Requirements and Objectives.
A14: Interest Only? (If O/O then document reason): | D14: Why the applicant is seeking interest only and whether the reasons are reasonable based on customers requirements and objectives, the purpose of the loan and the customers circumstances.
A15: Security Category: | D15: What is the security property location Category? If Prime and requires Metro category note here.
A16: High Density Area? | D16: Is the security property a unit in a high density postcode with more than 35 units?
A17: Fraud check: | D17: What is the outcome of the Equifax Fraud check in NextGen? If a match, to be referred to Senior or Team Leader to investigate the match.
A18: PEP & Sanctions check: | D18: Is the applicant confirmed as being on the PEP or Sanctions register (not a potential match). If a match refer to dedicated team member for enhanced search.
A19: ID document is clear and valid? | D19: Have the correct, clear identification documents and Customer Identification form been completed correctly, signed?
A20: Company & Trust Loans (>25% Owned): | D20: Non-individual entities: Has the correct information and documentation been collected to verify the customer to ensure we meet our AML obligations including the verification of identity of beneficial owners.
A21: Adverse Credit History (incl loan arrears) assessment: | D21: Comment on the credit bureau file. Where there is an adverse listing what is the reason and why is it accepted. If there are numerous inquiries and the customer has stated no liabilities - what investigations were done and what was the outcome. If there are items that don't match the profile of the customer e.g. customer aged 50 and new credit file, document investigations completed. Is the information on the credit file consistent with the information provided in the customer's application form e.g. in relation to liabilities.
A22: Applicant 1 Income: | D22: Summary about the applicant, job, how long employed, income and what documents were used to verify that income and employment. Is income reasonable for the borrower's employment and age. If self employed what does the applicants business do.
A23: Applicant 2 Income: | D23: Summary about the applicant, job, how long employed, income and what documents were used to verify that income and employment. Is income reasonable for the borrower's employment and age. If self employed what does the applicants business do.
A24: COVID Impact (Greater Sydney customers) | D24: Has the customer(s) income been affected by COVID lockdowns. If not ascertainable from the application informaton, additional inquiry needs to be made of the customer. If income has been affected, how does the customer intend on navigating that income deterioation until the lockdown is lifted and income recommences.
A25: Exit Strategy | D25: If the applicants are older than 50 years of age and the loan term exceeds the standard retirement age (67) of the oldest income reliant borrower an exit strategy of how the borower(s) will continue to meet their repayment obligations must be obtained. The borrower(s) exit strategy must be documented and the credit notes included as to why the exit strategy has been deemed reasonable and consistent with Customer's requirements and objectives.
A26: Rental Income: | D26: Comment on what rental income is received and used in assessment and how was it verified.
A27: Conduct assessed (Refinance): | D27: Refinance: Comment on conduct of any loans that are being refinanced and where adverse conduct exists why and mitigation. Confirm that 6 months statements held.
A28: Funds to complete (Purchase): | D28: Purchase: Comment on where the funds to complete are coming from and have been verified. Have 5% genuine savings been verified on Prime > 90%
A29: Declared Living Expense | B29: =Residential!R45 -> 0 | D29: Comment on whether DLE or benchmark has been relied upon and assessment to be made as to whether or not the declared living expenses are realistic and if so why. Where a declared living expense appears unrealisitc, is zero, or the declared living expense are less than 80% of benchmark, additional inquiry must be made with the broker / borrower and subsequently assessed. If the ratio is substantially over 100%, check if applicant has not doubled up anywhere eg included finance cost on property categories. If bank statements are provided comment on how the transactions on those statement support the DLE.
A30: Living Expense Benchmark | B30: =Residential!R44 -> 0
A31: Declared Living Expense % of Benchmark | B31: =B29/B30 -> 
A32: Living expense assessment: | B32: Property costs | D32: =Residential!G54 -> 0 | E32: =Residential!C54 -> Primary residence utilities, rates, strata fees & expenses | F32: Include council rates, water, gas & electricity utility bills and body corporate fees where applicable for property owned by the applicant. Assessment should account for these expenses giving account to the type of property (location, house or unit and size). This also includes annual property tax payments due under the First Home Buyer Choice stamp duty scheme - the rate of this tax is $400 plus 0.3% of the property value (https://www.nsw.gov.au/initiative/first-home-buyer-choice)
D33: =Residential!G55 -> 0 | E33: =Residential!C55 -> Primary residence land tax & FHB property tax
D34: =Residential!G56 -> 0 | E34: =Residential!C56 -> Investment property expenses (negative gearing eligible pool) | F34: Include water, gas & electricity bills if the applicant is renting. Assessment should account for these expenses giving account to the type of property (location and size).
B35: Living Expenses | D35: =Residential!G58 -> 0 | E35: =Residential!C57 -> Investment property expenses (negative gearing ineligible pool) | F35: Unless an applicant has a mobile phone supplied by their employer, it is expected that each applicant would have a mobile phone expense. If they have a home phone number, they may have a ‘bundle’ with a telco which includes internet.
D36: =Residential!G59 -> 0 | E36: =Residential!C58 -> Telephone, internet, Pay TV & media streaming | F36: It is expected that all applicants will have a grocery expense that is reasonable for their family unit size.
D37: =Residential!G60 -> 0 | E37: =Residential!C59 -> Groceries | F37: It is expected that all applicants will have some form of recreation & entertainment cost. This includes alcohol, tobacco, gambling, restaurants and membership fees.
D38: =Residential!G61 -> 0 | E38: =Residential!C60 -> Recreation & Entertainment | F38: It is expected that all applicants will have clothing and personal care expenses that is reasonable for their family unit size.
D39: =Residential!G62 -> 0 | E39: =Residential!C61 -> Clothing & Personal Care | F39: As an applicant’s age increase it is expected that medical and health costs will increase. In some case this cost may be $0 however given the customers circumstance it should be understood why through additional inquiry.
D40: =Residential!G63 -> 0 | E40: =Residential!C62 -> Medical & Health | F40: It is expected that all applicants will have a transport cost that is reasonable for their assets and employment position. What are the running costs of each car owned including petrol and servicing or what are the costs of public transport where they commute for work. One exception may be where an applicant has one car only which is provided by their employer or running costs are already include in novated lease payments.
D41: =Residential!G67 -> 0 | E41: =Residential!C66 -> Childcare | F41: Do the below insurances apply to the applicant(s) and have they been accounted for: - House owners with home insurance - Car owners (accounted for each car)
D42: =Residential!G68 -> 0 | E42: =Residential!C67 -> Insurance - General Basic | F42: Do the below insurances apply to the applicant(s) and have they been accounted for: - Private Health - particularly where income is > $90,000 and applicant is single or > $180,000 for families - Income and life insurance - Pet insurance
D43: =Residential!G69 -> 0 | E43: =Residential!C68 -> Insurance - Health, Sickness, Personal Accident & Life | F43: This is to capture unique items not covered for in the above categories that may be applicable to the applicant(s).
B44: Children | D44: =Residential!G64 -> 0 | E44: =Residential!C63 -> Transport | F44: Where the applicant(s) has school aged children is the declared amount reasonable to cover schools fees, uniform costs and books (if high school). Does the affluency of the applicant indicate that their children may attend a private school, if so, has this been declared by the customer.
D45: =Residential!G65 -> 0 | E45: =Residential!C64 -> Education – non Private schooling
D46: =Residential!G70 -> 0 | E46: =Residential!C69 -> Other Living Expenses
D47: =Residential!G66 -> 0 | E47: =Residential!C65 -> Education - Private schooling | F47: Where the applicant(s) has pre-school aged children and all applicants work, has a child care cost been included that is reasonable for the location accounting for any rebate that may be due. Where this is applicable and declared expense is $0 additional inquiry needs to be made.
A48: Valuation: | D48: COS/Estimate $Amount Date VAL $Amount Date CAT Residential Zoning? Essential Repairs? Risk ratings XXXX Comp Sales XXXX Selling period within six months? Addressed to Pepper in Lender Specific Info? Comments Acceptable Security: Yes/No
A49: Other:
A50: Exceptions: | D50: conclusion and
A51: Recommendation (if assessor is not the DCA approver): | D51: If approval recommendation: Recommend for Approval. I have made reasonable enquiries to verify that the product will not be unsuitable to the customers’ requirements and objectives and the loan will not cause the customer substantial hardship.
A52: Approval note: | D52: If assessor is the approver: Approval granted under my DCA. I have made the assessment and confirm that reasonable enquiries to verify that the loan meets the customer's requirements and objectives, is not unsuitable and will not cause the customer substantial hardship. This approval is valid for 90 days. If approver was not the assessor: Approval granted under my DCA. I have reviewed the assessment and confirm that reasonable enquiries to verify that the loan meets the customer's requirements and objectives, is not unsuitable and will not cause the customer substantial hardship. This approval is valid for 90 days. Final assessment made at the time of final approval: Approval granted under my DCA. I have confirm that reasonable enquiries to verify the customers financial situation and that the loan meets the customer's requirements and objectives, is not unsuitable and will not cause the customer substantial hardship. This approval is valid for 90 days.
A53: ABN search(s) | D53: Space for ABN search if not copied directly into NextGen.

Sheet Assessment Notes - Commercial (hidden)
A1: UNDERWRITER NOTES- Commercial | C1: INSTRUCTIONS
A2: Background | C2: Summary of applicants background and business operation.Borrowing History, Lender,Industry Type, Industry Outlook, Management Experience
A3: Purpose | C3: To state whether the asset will be owner occupied or Investment. What is the reason for the money being borrowed. ( ie refinance from XXXBank)
A4: Loan Amount: | C4: Loan amount approved as a result of this assessment
A5: Global Exposure | C5: Total Loan Amount of all Pepper exposure held. If this is the only loan state "No other exposure held"
A6: Loan term. Interest Only Term | C6: Loan structure . Ie Total loan term and term of interest only
A7: Security Estimate: | C7: Security value amount used for LVR calculation.
A8: NCCP- Yes or No- | C8: If answered YES use Residential underwriting template
A9: Asset Class | C9: Description of asset class of security. Office, Medical, Retail, Industrial, Industrial Land, Mixed Residential/Commercial, Child Care, Boarding Houses.
A10: Address | C10: Address of property being offered as security
A11: Location- Cat 1 or 2 | C11: What is the security Property location category?
A12: LVR: | C12: LVR based on loan amount
A13: ICR | C13: Interest cover ratio as per output of Servicing Calculator. Min 1.50 times for Full doc loan and 1.75 times for Alt doc loan
A14: DSCR | C14: Debt Service ratio as per outcome of Servicing Calculator. **Min 1.25 times for both Full Doc and Alt doc loans.
A15: Product: | C15: Product that is recommended for approval. If this is different to what the customer has applied for then comment as to why
A16: Rental Terms: | C16: Has a tenancy schedule been completed and attached. Does lease term align with expiry of loan if rental forms >50% of total available income to service.
A17: Valuation Reviewed. | C17: Valuation reviewed and acceptable. Refer separate valuation review checklist. Please comment on industry that the tenant is involved in.
A18: Fraud Check on Directors | C18: What is the outcome of the Equifax Fraud check in NextGen? If a match, to be referred to Senior Manager to investigate the match
A19: PEP & Sanctions checked: | C19: Is the director/s confirmed as being on the PEP or Sanctions register (not a potential match). If a match refer to dedicated team member for enhanced search.
A20: ID Document is clear and valid | C20: Have the correct, clear identification documents and Customer Identification form been completed correctly, signed?
A21: Company & Trust Loans - Beneficial owner with greater than 25% ownership: | C21: Non-individual entities: Has the correct information and documentation been collected to verify the customer to ensure we meet our AML obligations including the verification of identity of beneficial owners.
A22: Directors Guarantee | C22: Is a directors guarantee being taken as part of security?
A23: Guarantors/Sponsors Statement of position | C23: Summary of assets and liabilities of . State main assets (ie home, car, etc) Excess assets over liabilities. State how applicant could meet a call of the guarantee.
A24: Supporting Income | C24: What entity and supporting income included in loan assessment
A25: Equifax /commercial search. | C25: Comment on the credit bureau file. Where there is an adverse listing what is the reason and why is it accepted. If there are numerous inquiries and the customer has stated no liabilities - what investigations were done and what was the outcome. If there are items that don't match the profile of the customer e.g. customer aged 50 and new credit file, document investigations completed. Is the information on the credit file consistent with the information provided in the customer's application form e.g. in relation to liabilities.
A26: Is a PPSR being taken as part of our security. | C26: Does the equifax search reveal a registered interest. State why a party has a secured interest over applicants property and how this could effect our interest.
A27: APP 1 Veda | C27: Comment on the credit bureau file. Where there is an adverse listing what is the reason and why is it accepted. If there are numerous inquiries and the customer has stated no liabilities - what investigations were done and what was the outcome. Is the information on the credit file consistent with the information provided in the customer's application form e.g. in relation to liabilities.
A28: Guarantor 1 Income checked: | C28: Summary about the applicant, job, how long employed, income and what documents were used to verify that income and employment. Is income reasonable for the borrower's employment and age. If self employed what does the applicants industry do.
A29: APP 2 Veda | C29: Comment on the credit bureau file. Where there is an adverse listing what is the reason and why is it accepted. If there are numerous inquiries and the customer has stated no liabilities - what investigations were done and what was the outcome. Is the information on the credit file consistent with the information provided in the customer's application form e.g. in relation to liabilities.
A30: Guarantor 2 Income checked: | C30: Summary about the applicant, job, how long employed, income and what documents were used to verify that income and employment. Is income reasonable for the borrower's employment and age. If self employed what does the applicants industry do.
A31: Conduct assessed (Refinance) | C31: Refinance: Comment on conduct of any loans that are being refinanced and where adverse conduct exists why and mitigation. Confirm that 6 months statements held.
A32: Funds to complete ( Purchase): | C32: Purchase: Comment on where the funds to complete are coming from and have been verified.
A33: Other:
A34: Exceptions: | C34: Identify any exceptions and mitigation for the exception approval. Exceptions required to be approved by Challenger
A35: Exception Register updated | C35: Has the exception to correctly recorded.
A36: Conditions Precedent and subsequent | C36: Conditions that are to be included as part of the loan conditions both prior to loan draw down and post loan drawdown.
A37: Recommendation: | C37: Recommendation of the deal if not with your DCA " This file is recommended for approval."
A38: Joint Approvers Notes | C38: " This file is jointly approved "
A39: App1 ABN:
A40: App2 ABN:
A42: COMPLIANCE:
A43: Privacy Dec held:
A44: CRO & Features required:
A45: Customer Identification Form:
A47: SE CHECK COMPLETE:
A48: CUSTOMER ID'D:
A49: Confirm requirements and objectives and benefit: In reviewing the application, your requirements are (a) interest only payments, (b) lowest interest rate and objectives are to purchase the property at ......(address); or (b) refinance the debt with (lender); and/or (c) consolidate debt (i), (ii), (iii) etc . Is this correct? Are there any other requirements and objectives?
A50: Business operated and how long:
A51: Income confirmed: Do you expect an increase or decrease in your income over the next 3 years. If a decrease, describe events that would cause this and your strategy to maintain your repayments / details of your exit strategy.
A52: Confirm loan amount, product, interest rate & repayment with the borrower: If there is an indication on the application which suggests financials are available for the borrower, we need to question if they are available, therefore advising they are entitled to a different product (Full Doc).
A53: Any other info:
B57: ACCOUNTANT CHECK COMPLETE:
B59: Called XXXX (verified on TPB - registration number XXXX) on phone number XXXX (internet site)
B60: Confirmed prepared accounts since year XXXX
B61: 20XX NPBT $___ Deductions $___
B62: 20XX NPBT $___ Deductions $___
B63: Other:

Sheet Assessment Notes - SMSF_x0009_ (hidden)
A1: UNDERWRITER NOTES- SMSF | C1: INSTRUCTIONS | D1: COMMENTARY
A2: Purpose | C2: If the purpose is for Cash out, Equity Release, Debt consolidation , Property Improvement or the Sole Purpose test is not met the application is to be DECLINED.Loan purpose to be correctly reflected in NG | F2: Purchase O/O (Commercial Only) | G2: Prime FD 50% $3.0M | H2: Yes | I2: Retail | J2: CAT 1
A3: Product | C3: Product and LVR Bands | F3: Purchase Investment - Commercial | G3: Prime FD >50-65% $3.00M | H3: No | I3: Office | J3: CAT 2
A4: Loan Amount | C4: Loan Amount | F4: Refinance O/O ( Commercial Only) | G4: Prime FD >65-70% $3.00M | I4: Industrial | J4: CAT 3 (Max 60% LVR of $750K). Refer Instructions for CAT 3
A5: Global Exposure | C5: Total Loan Amount of all Pepper exposure held. If this is the only loan state "No other exposure held". Max aggregate exp $7.0M | F5: Refinance Investment- Commercial | G5: Prime FD >70-75% $ 2.50M | I5: Boarding House
A6: Funds to complete ( Purchase): Are FTC evidenced from SMSF transactional account. | C6: Funds to complete must be evidenced as being available in the members SMSF bank account. This to be evident prior to settlement. If not evident loan cannot proceed. | F6: Purchase Investment- Residential | G6: Prime FD >75-80% (Resi Only) $2.0M | I6: Rooming House
A7: Loan term. Interest Only Term | C7: Loan structure . Ie Total loan term and term of interest only | F7: Refinance Investment - Residential | G7: Near Prime FD 50% $3.0M | I7: Residential
A8: Is the SMSF a Complying Superannuation Fund.(Search the SMSF ABN) | C8: If answered NO application to be declined. Refer Super Fund ABN Look Up. https://superfundlookup.gov.au/ABN/View?id=65714394898. Reference Tax return or Trust deed dates and addresses. | G8: Near Prime FD >50-65% $3.00M
A9: Are Members related ? | C9: A member cannot be an employee of another member unless related. | G9: Near Prime FD >65-70% $3.00M
A10: Asset Class | C10: Description of asset class of security. Any other asset class not located in selection is unacceptable. | G10: Near Prime FD >70-75% $ 2.50M
A11: Has NG Security Tab been updated | C11: Update NG Security | G11: Near Prime FD >75-80% (Resi Only) $1.50M
A12: Is security a single acquirable asset | C12: If the asset asset is not a single acquirable asset the transaction is to be declined.
A13: Address | C13: Address of property being offered as security | G13: Residential | I13: Prime Lender- 6 months BBS
A14: Security Estimate: | C14: Security value amount used for LVR calculation. | G14: Commercial - | I14: Non Prime Lender - 12 mmonths BBS
A15: Location- CAT 1 2, or 3 | C15: What is the security Property location category? If CAT 3 maximum LVR is 60% or $750K ( NSW, VIC, QLD, TAS/ACT) whichever is the lower. | I15: N/A - For purchase
A16: LVR: | C16: LVR based on loan amount | G16: Yes- Addition Income Addendum to be completed | H16: Yes
A17: DSCR | C17: Debt Service ratio as per outcome of Servicing Calculator. **Min 1.25 times for both Full Doc and Alt doc loans. | G17: No | H17: No- Unable to progress (Decline)
A18: Is property being rented Residential or commercial | C18: If commercial and an executed lease not in existence assessment to include ability to meet loan commitments from existing liquidity of fund during vacancy. Vacancy period to be understood from valuation commentary.
A19: Has application Fee be update | C19: Refer rate card for application Fees
A20: Valuation Reviewed. | C20: Valuation reviewed and acceptable. Refer separate valuation review checklist. Please comment on industry that the tenant is involved in.
A21: Fraud Check on Directors/Members/Gtors and clear | C21: Is the outcome of the Equifax Fraud check in NextGen Clear? If a match, to be referred to Senior Manager to investigate the match
A22: PEP & Sanctions checked on Directors/Members/Gtors and clear: | C22: Is the director/s confirmed as being on the PEP or Sanctions register (not a potential match). If a match refer to dedicated team member for enhanced search.
A23: Has Customer Identification Form been reviewed for correctness. | C23: Check: Applicants Name, Address, Minimum Doc Requirements, Broker Declaration
A24: ID Document is clear and valid | C24: Have the correct, clear identification documents and Customer Identification form been completed correctly, signed?
A25: Company & Trust Loans - Are all members directors of the SMSF Trust | C25: All SMSF members must be directors of the Corporate Trustee of the Superannuation Trust .Has the correct information and documentation been collected to verify the customer to ensure we meet our AML obligations including the verification of identity of beneficial owners.
A26: Is the Trustee for both the Superannuation Trust and Bare ( Property Holding Trusts) corporate entities. | C26: If either of the Trustees of the SMSF Trust or Bare Trust are individuals we are unable to progress on this structure.
A27: Does the SMSF have minimum $200,000 in assets | C27: This is a minimum requirement, Assets less than $200,000 are to be referred.Evidenced in Super statements
A28: Directors/Members Guarantee | C28: All members must be a director of the SMSF and a guarantee be taken as part of security?
A29: Guarantors/Sponsors Statement of position. Is each member in a solvent financial position? | C29: Summary of assets and liabilities of . State main assets (ie home, car, etc) Excess assets over liabilities. State how applicant could meet a call of the guarantee.
A30: Is additional supporting income from an individual member required. | C30: When required the individual member section of the calculator to be completed. An acknowledgment from the member that personal financial advice has been recieced and discussed with their advisor.
A31: Equifax /commercial search. | C31: Does any member have adverse RHI data. Where there is an adverse listing what is the reason and why is it accepted. Is the information on the credit file consistent with the information provided in the customer's application form e.g. in relation to liabilities.
A32: Do all members have a clear credit report. | C32: Comment on the credit bureau file. Where there is an adverse listing what is the reason and why is it accepted. If there are numerous inquiries and the customer has stated no liabilities - what investigations were done and what was the outcome. Is the information on the credit file consistent with the information provided in the customer's application form e.g. in relation to liabilities.
A33: Does the SMSF service from historical known income streams | C33: Summary about the applicant, job, how long employed, income and what documents were used to verify that income and employment. Is income reasonable for the borrower's employment and age. If self employed what does the applicants industry do.
A34: Refinance- Do we hold refinance statements | C34: Refinance: Comment on conduct of any loans that are being refinanced and where adverse conduct exists why and mitigation.
A35: Refinance- Do we hold copy of the LRBA loan agreement being refinanced. | C35: Copy of loan agreement from outgoing lender to be obtained to allow Galilee to review.
A36: Is privacy Consent held ( Check if electonically signed and obtain Docu Sign) | C36: If this is signed with an electonic signature obtain docu sign certifciate
A37: ABN Search- PAYG | C37: Confirm employer ABN if applicable
A38: ABN Search- Self Employed Applicants | C38: When relying on additional income refer to standard CRE origination standard
A39: Is this a joint approval | C39: " This file is jointly approved "

Sheet Loan Summary - SMSF (hidden)
A1: Purpose
A3: Income Summary

Sheet Valuation Review Template (hidden)
A1: Valuation Review template V Feb 24 | D1: Assessors Comments/Mitigants ( If required) | E1: Instructions
A3: Property Address:
A4: Valuation Instructed by Pepper | E4: Has Valuation report been instructed by Pepper. | G4: Yes | H4: Direct Comparison
A5: Valuation Address: | E5: Confirm that address in NG & aligns with with valuation address . | G5: No | H5: Capitalisation
A6: Title Particulars: | E6: Confirm title particulars match with Valuation & NG. Does the title search not any incumberences or Caveats that may pose an adverse effect on our security | H6: Tenant
A7: Client Name | E7: Does name on valuation and Applicant align? | G7: Retail | H7: Landlord
A8: Conforming Zoning: | E8: Check the zoning and that the improvement is comforming or has existing use rights. | G8: Commercial
A9: Zoning | E9: Does the zoning in NG (security TAB reflect the valuation zoning? | G9: Industrial
A10: Property Type (Updated in NG) | E10: Update NG with the correct Property Type | G10: Residential
A11: Current Property Use Acceptable | E11: Review valuers comments regarding properties existing use. Is the existing use within Pepper's acceptable purposes.
A12: Valuation Amt Exclisive of GST | E12: If Valuation returns lower than OEMV and LVR band increases liaise with Broker and obtain confirmation of new loan | G12: Yes
A13: Valuation Approach: Primary Type. | C13: Direct Comparison | E13: Ensure that 2 Valuation methods have been adopted. Options - Direct Comparison, Income Capitalisation or Summation | G13: No
A14: Have Valuers calculations be checked | E14: Ensure Valuers calculations are accurate
A15: LVR: | E15: Ensure the LVR Band is within guidelines if LVR changes | G15: N/A- Refinance/Equity Release
A16: Cap. Rate: | E16: If Valuer has used Income Capitalisation as a Primary / Secondary method, what is the rate? Have they provided comparable sales evidence within the range? If not, have they provided commentary on why comparables havent been provided?
A17: Sales evidence rate range: | E17: Does the proposed securities rate range fit between the Comparables
A18: Are the Sales evidence within 6 months: | E18: Make commentary on whether the sales are within 6 months and if not what the Valuer has made commentary on
A19: Are the Sales evidence within 10%: | E19: Make commentary on whether the sales are within 10% of the M/V and if not what the Valuer has made commentary on
A20: Lease Income (gross): | E20: Does the proposed lease income in DSC align with the market income that the Valuer has provided
A21: Outgoings: ( Who is responsible). | E21: Are the outgoings paid by the tenant / landlord?
A22: Rental evidence rate range: | E22: Note the rental rate range. Does the rate for the proposed security fit within the range?
A23: Risk ratings: Are there medium /High Risk Rating | E23: If there are Medium to High risk ranges further commentary is required to mitigate and accept the risk.
A24: Selling Period < 6 mths: | E24: If the selling period is above 6 months further investigation is required.
A25: Reliant Parties: | E25: Ensure that all reliant parties are noted on the Valuation report - Refer below
A26: Enviro Checklist: | E26: Ensure that this has been completed and no contamination issues are presented
A27: Acceptable Security: | E27: Is this proposed security acceptable.
A28: Additional Documents to be sighted: | E28: Valuer will make commentary on whether Pepper will need to source additional documentation
A29: Cladding: | E29: Does the property have aluminium cladding. If so, we need confirmation that the product utilised meets Australian standards.
A30: Insurance policy: Added to NG | E30: If property is not strata'd add Insurance policy condition as a condition subsequent and note the Insurance replacement figure.
A31: Contract of Sale: | E31: Is the Contract Of Sale executed / Notes Purchase Price & reflects the applicant details?
A34: CRE Reliant parties:
A36: Pepper Group Limited, Pepper Finance Corporation Limited, BTA Institutional Services Australia Limited, BNY Trust Company of Australia Limited, Pepper Home Loans Pty Limited, Westpac Banking Corporation, Challenger Life Company Limited

Sheet Cashflow Sensitivity Model (hidden)
A1: Cashflow Sensitivity Model | C1: Actuals | D1: Best Case | E1: Mid Case | F1: Worst Case
D2: Reductions in Sales of | L2: Scenarios
D3: 0.1 | E3: 0.25 | F3: 0.5 | G3: Select | L3: 1. reduction in sales volume
A4: Sales | C4: 500 | D4: =$C4*(1-D3) -> 450 | E4: =$C4*(1-$E$3) -> 375 | F4: =$C4*(1-$F$3) -> 250 | G4: Enter actual sales in highlighted cell | L4: 2. reduction in sales prices
L5: 3. both 1 and 2
A6: COGS | C6: =C4-C7 -> 200 | D6: =D4-D7 -> 202.5 | E6: 187.5 | F6: 137.5
A7: Gross Profit $ | C7: =C8*C4 -> 300 | D7: =D8*D4 -> 247.5 | E7: 187.5 | F7: 112.5
A8: Gross Profit Margin % | C8: 0.6 | D8: 0.55 | E8: 0.5 | F8: 0.45 | G8: Select
A10: Other Variable Expenses
A11: Advertising & Marketing | C11: 5 | D11: =$C11*(1-$D$3) -> 4.5 | E11: =$C11*(1-$E$3) -> 3.75 | F11: =$C11*(1-$F$3) -> 2.5
A12: Sub-Total | C12: =SUM(C10:C11) -> 5 | D12: =SUM(D10:D11) -> 4.5 | E12: =SUM(E10:E11) -> 3.75 | F12: =SUM(F10:F11) -> 2.5
A14: Fixed Expenses
A15: Salaries & Wages | C15: 1 | D15: 1 | E15: 1 | F15: 1
A16: Insurances | C16: 2 | D16: 2 | E16: 2 | F16: 2
A17: Superannuation | C17: 3 | D17: 3 | E17: 3 | F17: 3
A18: Property Expenses | C18: 4 | D18: 4 | E18: 4 | F18: 4
A19: Maintenance | C19: 5 | D19: 5 | E19: 5 | F19: 5
A20: Office Supplies | C20: 6 | D20: 6 | E20: 6 | F20: 6
A21: Professional Services | C21: 7 | D21: 7 | E21: 7 | F21: 7
A22: Interest | C22: 8 | D22: 8 | E22: 8 | F22: 8
A23: Leasing | C23: 9 | D23: 9 | E23: 9 | F23: 9
A24: Transport Costs | C24: 10 | D24: 10 | E24: 10 | F24: 10
A25: LHP | C25: 11 | D25: 11 | E25: 11 | F25: 11
A26: Sub-Total | C26: =SUM(C14:C25) -> 66 | D26: =SUM(D14:D25) -> 66 | E26: 66 | F26: 66
A28: NPBT | C28: =C4-C6-C26-C12 -> 229 | D28: =D4-D6-D26-D12 -> 177 | E28: 117.75 | F28: 44
A29: NPBT % | C29: =C28/C4 -> 0.458 | D29: =D28/D4 -> 0.3933333333 | E29: =E28/E4 -> 0.314 | F29: =F28/F4 -> 0.176
A30: NPAT | C30: =C28-C29 -> 228.542 | D30: =D28-D29 -> 176.6066667 | E30: 117.436 | F30: 43.824
A33: % Reduction in Sales | D33: =D3 -> 0.1 | E33: =E3 -> 0.25 | F33: 0.5
A34: % Change in GP Ratio | D34: =(D8-C8)/C8 -> -0.08333333333 | E34: =(E8-D8)/D8 -> -0.09090909091 | F34: -0.1
A35: % Change in NPBT | D35: =(D28-C28)/C28 -> -0.2270742358 | E35: =(E28-C28)/C28 -> -0.4858078603 | F35: =(F28-C28)/C28 -> -0.807860262

Sheet Rental Schedule (hidden)
A1: Property Schedule
A2: Borrowers' name(s):
A3: Application number(s):
A4: Property Address | B4: Owner(s) | C4: % owned - Borrower 1 | D4: % owned - Borrower 2 | E4: % owned - Borrower 3 | F4: % owned - Borrower 4 | G4: Estimated value | H4: Estimated rental | I4: Rent period - select from list | J4: Gross Annual Rent - Note 4. | K4: Investment Loan Balance | L4: Borrower 1 rental share - transfer to DSC | M4: Borrower 2 rental share - transfer to DSC | N4: Borrower 3 rental share - transfer to DSC | O4: Borrower 4 rental share - transfer to DSC | P4: Borrower 1 loan share - transfer to DSC | Q4: Borrower 2 loan share - transfer to DSC | R4: Borrower 3 loan share - transfer to DSC | S4: Borrower 4 loan share - transfer to DSC | T4: Actual Interest % | U4: Int deduction $ - Borrower 1 | V4: Int deduction $ - Borrower 2 | W4: Int deduction $ - Borrower 3 | X4: Int deduction $ - Borrower 4
I5: Weekly | J5: =IF(I5=$AD$5,H5*52, IF(I5=$AD$6,H5*26, IF(I5=$AD$7,H5*12," "))) -> 0 | L5: =J5*C5 -> 0 | M5: =J5*D5 -> 0 | N5: =J5*E5 -> 0 | O5: =J5*F5 -> 0 | P5: =K5*C5 -> 0 | Q5: =K5*D5 -> 0 | R5: =K5*E5 -> 0 | S5: =K5*F5 -> 0 | U5: =T5*P5*C5 -> 0 | V5: =T5*Q5*D5 -> 0 | W5: =T5*R5*E5 -> 0 | X5: =T5*S5*F5 -> 0 | AD5: Weekly
I6: Weekly | J6: =IF(I6=$AD$5,H6*52, IF(I6=$AD$6,H6*26, IF(I6=$AD$7,H6*12," "))) -> 0 | L6: 0 | M6: 0 | N6: =J6*E6 -> 0 | O6: =J6*F6 -> 0 | P6: 0 | Q6: 0 | R6: =K6*E6 -> 0 | S6: =K6*F6 -> 0 | U6: =T6*Q6*C6 -> 0 | V6: 0 | W6: =U6*R6*E6 -> 0 | X6: 0 | AD6: Fortnightly
I7: Weekly | J7: =IF(I7=$AD$5,H7*52, IF(I7=$AD$6,H7*26, IF(I7=$AD$7,H7*12," "))) -> 0 | L7: 0 | M7: 0 | N7: 0 | O7: 0 | P7: 0 | Q7: 0 | R7: 0 | S7: 0 | U7: =T7*Q7*C7 -> 0 | V7: 0 | W7: 0 | X7: 0 | AD7: Monthly
I8: Weekly | J8: 0 | L8: 0 | M8: 0 | N8: 0 | O8: 0 | P8: 0 | Q8: 0 | R8: 0 | S8: 0 | U8: =T8*Q8*C8 -> 0 | V8: 0 | W8: 0 | X8: 0 | AD8: Annually
I9: Weekly | J9: 0 | L9: 0 | M9: 0 | N9: 0 | O9: 0 | P9: 0 | Q9: 0 | R9: 0 | S9: 0 | U9: =T9*Q9*C9 -> 0 | V9: 0 | W9: 0 | X9: 0
I10: Weekly | J10: 0 | L10: 0 | M10: 0 | N10: 0 | O10: 0 | P10: 0 | Q10: 0 | R10: 0 | S10: 0 | U10: =T10*Q10*C10 -> 0 | V10: 0 | W10: 0 | X10: 0
I11: Weekly | J11: =IF(I11=$AD$5,H11*52, IF(I11=$AD$6,H11*26, IF(I11=$AD$7,H11*12," "))) -> 0 | L11: =J11*C11 -> 0 | M11: =J11*D11 -> 0 | N11: =J11*E11 -> 0 | O11: =J11*F11 -> 0 | P11: =K11*C11 -> 0 | Q11: =K11*D11 -> 0 | R11: =K11*E11 -> 0 | S11: =K11*F11 -> 0 | U11: =T11*Q11*C11 -> 0 | V11: =T11*Q11*D11 -> 0 | W11: =U11*R11*E11 -> 0 | X11: =V11*S11*F11 -> 0
I12: Weekly | J12: 0 | L12: 0 | M12: 0 | N12: 0 | O12: 0 | P12: 0 | Q12: 0 | R12: 0 | S12: 0 | U12: 0 | V12: 0 | W12: 0 | X12: 0
I13: Weekly | J13: 0 | L13: 0 | M13: 0 | N13: 0 | O13: 0 | P13: 0 | Q13: 0 | R13: 0 | S13: 0 | U13: 0 | V13: 0 | W13: 0 | X13: 0
I14: Weekly | J14: 0 | L14: =J14*C14 -> 0 | M14: =J14*D14 -> 0 | N14: 0 | O14: 0 | P14: =K14*C14 -> 0 | Q14: =K14*D14 -> 0 | R14: 0 | S14: 0 | U14: =T14*Q14*C14 -> 0 | V14: =T14*Q14*D14 -> 0 | W14: 0 | X14: 0
I15: Weekly | J15: 0 | L15: =J15*C15 -> 0 | M15: =J15*D15 -> 0 | N15: 0 | O15: 0 | P15: =K15*C15 -> 0 | Q15: =K15*D15 -> 0 | R15: 0 | S15: 0 | U15: =T15*Q15*C15 -> 0 | V15: =T15*Q15*D15 -> 0 | W15: 0 | X15: 0
I16: Weekly | J16: =IF(I16=$AD$5,H16*52, IF(I16=$AD$6,H16*26, IF(I16=$AD$7,H16*12," "))) -> 0 | L16: =J16*C16 -> 0 | M16: =J16*D16 -> 0 | N16: 0 | O16: 0 | P16: =K16*C16 -> 0 | Q16: =K16*D16 -> 0 | R16: 0 | S16: 0 | U16: =T16*Q16*C16 -> 0 | V16: =T16*Q16*D16 -> 0 | W16: 0 | X16: 0
I17: Weekly | J17: 0 | L17: 0 | M17: 0 | N17: 0 | O17: 0 | P17: 0 | Q17: 0 | R17: 0 | S17: 0 | U17: 0 | V17: 0 | W17: 0 | X17: 0
I18: Weekly | J18: 0 | L18: 0 | M18: 0 | N18: 0 | O18: 0 | P18: 0 | Q18: 0 | R18: 0 | S18: 0 | U18: 0 | V18: 0 | W18: 0 | X18: 0
I19: Weekly | J19: 0 | L19: 0 | M19: 0 | N19: 0 | O19: 0 | P19: 0 | Q19: 0 | R19: =K19*E19 -> 0 | S19: =K19*F19 -> 0 | U19: 0 | V19: 0 | W19: 0 | X19: 0
A20: TOTALS | G20: =SUM(G5:G19) -> 0 | H20: =SUM(H5:H19) -> 0 | J20: =SUM(J5:J19) -> 0 | K20: 0 | L20: 0 | M20: 0 | N20: 0 | O20: 0 | Q20: =SUM(Q5:Q19) -> 0 | R20: =SUM(R5:R19) -> 0 | S20: 0 | U20: =SUM(U5:U19) -> 0 | V20: =SUM(V5:V19) -> 0 | W20: =SUM(W5:W19) -> 0 | X20: 0

Sheet Workings (hidden)
A1: Loan Affordability Calculator

Sheet Jackson Data Entry (hidden)
A1: Serviceability Test Rate | B1: =ResiWAVGAssessmentRate -> <Select Int Rate Buffer>
A2: Actual NSR | B2: =ResiActualNSR -> 0
A3: Stressed NSR | B3: =ResiAssessmentNSR -> 0
A4: Actual DSR | B4: =Residential!E84 -> -
A5: Stressed DSR | B5: =Residential!M84 -> -
A6: Declared LE | B6: =Residential!E45 -> 0
A7: LE Benchmark | B7: =Residential!R44 -> 0
A8: Gross pre-shaded income | B8: =SUM(Residential!E19:E23,Residential!G19:G23,Residential!I19:I23,Residential!K19:K23,Residential!M19:M23,Residential!O19:O23,Residential!E26,Residential!G26,Residential!I26,Residential!K26,Residential!M26,Residential!O26) -> 0
A9: Primary Income | B9: =ResiTotalIncome -> 0
A10: Living Cost (Monthly) | B10: =Residential!M78 -> 0
P21: x`

Sheet Version Control (hidden)
A1: Version | B1: Created date | C1: Date Effective | D1: Created By | E1: Approved By | F1: Change
A2: 2.5 | F2: Assessment rate +1.00% Credit Card assess @2.00% of limit Living Expenses: Single - $10,650 Joint - $15,480 Additional Adult - $3,500 Additional Children - $3,740 Rental Income – 85% of gross
A3: 2.6 | F3: Assessment rate +1.00% Credit Card assess @2.00% of limit Living Expenses: Single - $10,650 Joint - $15,480 Additional Adult - $4,830 Additional Children - $3,740 Rental Income – 85% of gross
A4: 2.7 | F4: Assessment rate +1.00% Credit Card assess @2.00% of limit Living Expenses: Single - $10,650 Joint - $15,480 Additional Adult - $3,500 Additional Children - $3,740 Rental Income – 85% of gross
A5: 2.8
A6: 2.9 | B6: 2008 | F6: Assessment rate +1.50% Credit Card assess @2.00% of limit Living Expenses: Single - $11,500 Joint - $16,500 Additional Adult - $5,000 Additional Children - $4,200
A7: 3.2 | B7: 2008 | F7: Assessment rate +1.50% Credit Card assess @2.00% of limit Living Expenses: Single - $12,750 Joint - $18,250 Additional Children - $4,600
A8: 3.7 | B8: 2011-01-28 | F8: Assessment rate +2.00% Credit Card assess @2.00% of limit Living Expenses: Single - $14,400 Joint - $20,400 Additional Adult - $14,000 Additional Children - $5,240 Rental Income – 85% of gross Other Mortgage Payments – Actual Other Liabilities – Actual
A9: 4.2
A10: 4.3 | F10: Assessment rate +2.00% Credit Card assess @2.00% of limit Living Expenses: Single - $15,564 Joint - $22,620 Each Dep Child - $5,520 Rental Income – 100% of gross Other Mortgage Payments – Actual Other Liabilities – Actual
A11: 4.5 | F11: Assessment rate +2.00% Credit Card assess @2.00% of limit Living Expenses: Single - $15,564 Joint - $22,620 Each Dep Child - $5,520 Rental Income – 100% of gross Other Mortgage Payments – Actual Other Liabilities – Actual
A12: 4.6 | F12: Assessment rate +2.00% Credit Card assess @2.00% of limit Living Expenses: Single - $15,564 Joint - $22,620 Each Dep Child - $5,520 Rental Income – 100% of gross Other Mortgage Payments – Actual Other Liabilities – Actual
A13: 4.92 | B13: 2015-09-01 | F13: Assessment rate +2.00% or Floor of 7.20% Credit Card assess @3.00% of limit Living Expenses: Single - $15,564 Joint - $26,724 Additional Children - $5,520 Rental Income – 80% of gross Other Mortgage Payments - +20% Other Liabilities – Actual
A14: 4.93
A15: 4.94
A16: 4.96
A17: 4.97 | B17: 2018-03-18 | C17: 2018-05-28 | D17: Neil Culkin | E17: Neil Culkin | F17: Version control added Adopted LIXI+ living expense categorisation. Removed mandatory fields for living expenses (broker version only) Added FY2018 tax rates (brackets 3 & 4 income ranges) Updated HPI per latest rates (Q4 2017) from Melbourne Institute Negative gearing benefit removed for Untaxed income and Add Backs (F39 & F40) P&I repayment now being quoted (E55 & E57) Repayment formula’s updated to PMT (I8 & J8) Mandatory entry of cells for living expenses removed as broker get confused when not applicable. E29 & F29 deleted and B40 changed from 8 to 7 (“rates” sheet) Added comments, extracts from and links to the ATO website in the ‘rates’ tab to explain that there are separate 2 calculations at play, now reflected in the tax calculation (I32:I37) for the broker version:  Tax Offset for Low income earners  Medicare levy calculation and Medicare Levy reduction for Low Income earners
A18: 4.97 | B18: 2018-05-28 | C18: 2018-05-28 | D18: Neil Culkin | E18: Neil Culkin | F18: Cell D9 amended from "Loan Term:" to "Loan Term (years)"
A19: 4.98 | B19: 2018-07-17 | C19: 2018-08-13 | D19: Neil Culkin | E19: Neil Culkin | F19: Cell B8 now includes commentary that loan amount includes capitalised fee (effective 16/7/2018) Requirement for DSR < 50% removed to align with policy NSR must be at least 1.35x for LVR > 90%
A20: 4.981 | C20: 2018-10-15 | F20: New internal loan assessment template
A21: 5 | C21: 2019-01-01 | D21: Neil Culkin | E21: Credit Committee | F21: Calculator restructured to cater for 2018 Q1 HEM Living Expense CRE calculator created Other mortgage repayments will be loaded by 25% up from 20% Income for 32.5% tax bracket increase from $87,000 to $90,000 Negative gearing calculation rate increased to 4.8% to match market offer
A22: 5.1 | B22: 2019-04-04 | C22: 2019-04-17 | D22: Devika Dharmapalan | E22: Neil Culkin | F22: 1) A pop up box is to appear on the calculator in the below highlighted area if: The customer declared living expenses (cell R41) is less than 90% of the benchmark (cell R40) AND NSR (cell M75) < 1.5x OR The assessed NSR (cell M75) is ≥1.00 and ≤1.10x AND R40 > R41 The message is to state “To assist Pepper in verifying the customer living expenses, please provide last 3 months transaction bank statements” 2) Set to True, "Is An Applicant" Cell in both Residential and CRE Tabs, when an applicant exsist but income column is blank or zero 3) Change Tab Name "CRE" to "Commercial" and change the heading from "CRE Serviciability Calculator" to "Commercial Servicability Calculator" 4) Add new Tab "Assessment Notes - Commercial" 5) Change Tab Name "Assessment Notes" to "Assessment Notes - Residential" 6) Change Tab Name "User Guide - CRE" to "User Guide Commercial" 7) Change All Macrose to Refer "Commercial" tab instead of "CRE" 8) Remove "Lease Doc" option from Documnetation Type Field in "Commercial Tab" 9) Devika added the contents provided by Paul Dean to "Assessment Notes -Commercial" 10) Commercial tab - Cell E,G,I,K 52 amended to use income as E,G,I,K 47 less tax instead of E,G,I,K 66. Total taxable Income has to do with the income bracket used to determine the corresponding HEM living expense whereas the total income is what should be used for servicing 11) Eligible and maximum borrowing amounts (M82 & M83) to note minimum amount of $0
A23: 5.2 | B23: 2018-06-05 | D23: Neil Culkin | E23: Credit Committee | F23: 1) BBS & BAS calculator updated 2) Credit card repayment calculation amended from 3% to 3.82% which as a proxy for assessing a credit card limit being ammortised over 3 years at an interest rate of 22%
A24: 5.3 | B24: 2019-09-23 | C24: 2019-10-01 | D24: Mick Sedgers | E24: Neil Culkin | F24: 1. Reduce Assessment benchmark interest rate to 5.85% (Floor Rate) and Assessment buffer to be increased to 2.50%. 2. reduce the negative gearing interest rate to 4.06%
A25: 5.4 | B25: 2020-01-06 | C25: 2020-03-30 | D25: Neil Culkin | E25: Neil Culkin | F25: 1. Living Expense Benchmark updated to HEM Q4 2019 2. Adjusted Company Tax rate from 30% to 27.5%. This applies to companies with turnovers < $50m which aligns to the Pepper customer profile. 3. Adjusted CRE ICR & DSCR ratio's changed to 3 decimal places to allow for rounding to the required ICR & DSCR which is on a two declimal point basis. 4. Fix error: DSR calculation was deducting rental expense (cell M50) from the numerator in the calculation on a monthly basis instead of annual resulting in a over-statement of debt in the calculation. Amended to annual figure. 5. Reduce the negative gearing interest rate to 3.67%
A26: 5.5 | B26: 2020-06-22 | C26: 2020-07-01 | D26: Neil Culkin | E26: Neil Culkin | F26: 1. Removal of Self employed 1.25 NSR requirement in notes 2. Adjustment of Company tax from 27.5% to 26% for FY21 tax rates 3. Addition of Trust question in underwriter templates 4. Correction in Rental Schedule to calculate share for DSC from 100% column J) and not buffered (column L). 5. Addition to Rental Schedule to calculate Investment Loan amount for each borrower (columns O & P) 5. Add 2 additional borrowers in rental Schedule
A27: 5.6 | B27: 2020-09-10 | C27: 2020-09-17 | D27: Neil Culkin | E27: Neil Culkin | F27: 1. Reduce Assessment benchmark interest rate to 5.50% (Floor Rate) 2. Living Expense Benchmark updated to HEM Q2 2020
A28: 5.7 | B28: 2020-10-23 | C28: 2020-11-12 | D28: Devika Dharmapalan | E28: Neil Culkin | F28: 1. Updated FY 2021 personal tax rates 2. Ability to enter to Pepper loan amounts for serviceability (Residential) 3. Re-introduction of construction loan NSR requirement note 4. CRE Better Choice calculator with ICR/DSCR "Refer to BDM" message 5. Business name entered to SEIC sheet
A29: 5.8 | B29: 2021-05-24 | C29: 2021-08-16 | D29: Neil Culkin | E29: Neil Culkin | F29: 1. Living Expense Benchmark updated to HEM Q1 2021 2. Reduce negative gearing interest rate to 3.29% 3. Correction in Maximum Serviceable Loan Amount formula as the maximum IO term was being conservatively applied to all splits. 4. Updated Compant Tax rate from 26.00% to 25.00% 5. Assessment note template changes to include Greater Sydney COVID impact assessment and change Credit File Summary to adverse credit assessment
A30: 5.8a | B30: 2021-08-26 | C30: 2021-08-26 | D30: Neil Culkin | E30: Neil Culkin | F30: 1. Addition of Jackson Data Entry tab (Internal Credit Version only)
A31: 5.8b | B31: 2021-08-30 | C31: 2021-08-30 | D31: Neil Culkin | E31: Neil Culkin | F31: 1. COVID Impact Assessment expanded to include VIC (Internal Credit Version only)
A32: 5.8c | B32: 2021-12-02 | C32: 2021-12-02 | D32: Neil Culkin | E32: Neil Culkin | F32: 1. COVID Impact Assessment removed (Internal Credit Version only)
A33: 5.8d | B33: 2022-03-02 | C33: 2022-03-02 | D33: Neil Culkin | E33: Neil Culkin | F33: 1. CRE maxium loan term adjusted from 25 to 30 years
A34: 5.9 | B34: 2022-04-08 | C34: Release with 6.0 v2 | D34: Neil Culkin & Devika Dharmapalan | E34: Neil Culkin | F34: 1. Removal on construction loan 1.10x NSR requirement 2. Addition of 1.25x NSR requirement when aggreated loan > $1.5m and aggregated LVR > 70% 3. HEM updated to Q42021 4. Company name updated to Pepper Money Ltd. 5. "Assessment Notes - Residential" sheet deleted 6. Change the text from “To assist in verifying the customers living expenses, please provide last 3 months transaction bank statements” to “The living expenses declared by the customer are at risk of being understated when compared to a living expense benchmark. A Level 5 Pepper DCA holder will be required to approve this application”. 7. Change the logic for the text of point 1 to appear only when the NSR is < 1.5x AND the ‘Compared to HEM’ expenses (per below table) are < 80% of the benchmark. 8. Amened the 'Living Expense Used' field (R42) formula to = [Higher of 'Compared to HEM' expenses & HEM] + [Expenses not 'Compared to HEM' excluding Investment property costs] + [Investment Property costs - (Rental Income x 15%)]. Changed Formula R42 in Residential Tab from "=MAX(R40:R41)" to =MAX(R40,E41)+K41+MAX(0,((G52*12)-(R25*15%))) 9. Amended Living Expense categories and included differentiation as to which categoreis are compared to HEM and which are added to the higher of (those categories compared to HEM and HEM) 10. Adjusted the "Data" tab to include new living expense categories 11. Adjusted the Test Cases tab to include new living expense categories 12. Correction of cell B7 on 'Jackson Data Entry' sheet to pick up benchmark and not LE result. This was applied in v5.8(d) for CRE. 13. 'User Guide - Residential' updated to include new or amended categories
A35: 6 | B35: 2022-05-24 | C35: Release with 6.0 v2 | D35: Neil Culkin | E35: Neil Culkin | F35: 1. Update HEM benchmark from Q421 to Q122
A36: 6.0 v2 | B36: 2022-06-20 | C36: 2022-07-01 | D36: Neil Culkin | E36: Neil Culkin | F36: 1. 'Residential' tab, Workings for Negative Gearing (cells E33, G33, I33, K33, M33, O33) corrected to deduct G52 (investment property expenses) not G51 (body corporate & land tax expenses)
A37: 6.0 v3 | B37: 2022-06-20 | C37: 2022-07-01 | D37: Neil Culkin | E37: Neil Culkin | F37: 1. 'Residential' tab, Workings for Negative Gearing (cells E33, G33, I33, K33, M33, O33) corrected to deduct G52 (investment property expenses) not G51 (body corporate & land tax expenses)
A38: 6.1 | B38: 2022-07-19 | C38: 2023-02-01 | D38: Neil Culkin | E38: Neil Culkin | F38: 1. Update HEM benchmark from Q122 to Q322 2. Update Superannuation addback label on SEIC from 9% to 10.50% 3. Inclusion of First Home Buyer Choice property tax into the living expense definitions
A39: 6.2 | B39: 2023-05-17 | C39: 2023-07-01 | D39: Neil Culkin | E39: Neil Culkin | F39: 1. Update HEM benchmark from Q322 to Q123 2. Reduce negative gearing interest rate to 6.04% 3. Tax tables updated (medicare levy and low income tax offset) 4. Release of BBS & BAS calculator to brokers
A40: 6.3 | B40: 2023-07-28 | C40: 2023-08-04 | D40: Neil Culkin | E40: Neil Culkin | F40: 1. Introduction of 1% interest buffer with specific eligbility 2. Interest rate buffer adjusted from 2.5% to 2% (Residential Lending programs only, CRE not included) 3. Adjustment of NSR requirement for > 90% LVR loans from 1.35 to 1.25x
A41: 6.4 | B41: 2023-10-06 | C41: 2023-10-31 | D41: Neil Culkin | E41: Neil Culkin | F41: 1. Update HEM benchmark from Q123 to Q223 2. Commercial: Minimum ICR removed 3. Commercial: Minimum DSCR amended to 1x Fulldoc & Leasedoc and 1.2x for Altdoc 4. Commercial: Assessment rate introduced being higher of floor rate and actual rate + 2% 5. Better Choice commercial serviceability calculator deleted 6. Row 51 (commercial calculator) updated to include the same tax offset formula as residential calculator.
A42: 6.5 | B42: 2023-11-17 | C42: 01/03/2024 changed to 11/3/2024 | D42: Neil Culkin | E42: Neil Culkin | F42: 1. Update HEM benchmark from Q223 to Q323 2. Merger of SMSF calculator into this excel tool 3. New internal fields calculating the maximum assessment rate and interest buffer the loan will requre to service at a 1x NSR 4. Policy banner on Residential calculator position change
A43: 6.6 | B43: 2024-04-02 | C43: 2024-04-04 | D43: Neil Culkin | E43: Neil Culkin | F43: 1. <Please select> logic added included in the Residential interest rate buffer selection. 2. Cell I8 in Residential tab included in the Clear From functionality 3. SMSF additional non-concenssional output to not provide an application incomplete status where a negative figure exists. Specifically, SMSF Tab, Cell P50, Formula changed from =IF(OR(SMSFNewLoanAmount="",SMSFInterestRate="",SMSFLoanTermInYears="",SMSFLoanTermInYears<SMSFIOTermInYears,C20<>"",E20<>"",C23<>"",E23<>"",C25<>"",E25<>""),"INCOMPLETE",IF(AND(E56="",OR(E65<>0,E70<>0,SUM(E73:E77)<>0)),"INCOMPLETE",IF(AND(G56="",OR(G65<>0,G70<>0,SUM(G73:G77)<>0)),"INCOMPLETE",IF(AND(I56="",OR(I65<>0,I70<>0,SUM(I73:I77)<>0)),"INCOMPLETE",IF(AND(K56="",OR(K65<>0,K70<>0,SUM(K73:K77)<>0)),"INCOMPLETE",IF(AND(M56="",OR(M65<>0,M70<>0,SUM(M73:M77)<>0)),"INCOMPLETE",IF(AND(O56="",OR(O65<>0,O70<>0,SUM(O73:O77)<>0)),"INCOMPLETE","COMPLETE"))))))) to =IF(OR(SMSFNewLoanAmount="",SMSFInterestRate="",SMSFLoanTermInYears="",SMSFLoanTermInYears<SMSFIOTermInYears,C20<>"",E20<>"",C23<>"",E23<>"",C25<>""),"INCOMPLETE",IF(AND(E56="",OR(E65<>0,E70<>0,SUM(E73:E77)<>0)),"INCOMPLETE",IF(AND(G56="",OR(G65<>0,G70<>0,SUM(G73:G77)<>0)),"INCOMPLETE",IF(AND(I56="",OR(I65<>0,I70<>0,SUM(I73:I77)<>0)),"INCOMPLETE",IF(AND(K56="",OR(K65<>0,K70<>0,SUM(K73:K77)<>0)),"INCOMPLETE",IF(AND(M56="",OR(M65<>0,M70<>0,SUM(M73:M77)<>0)),"INCOMPLETE",IF(AND(O56="",OR(O65<>0,O70<>0,SUM(O73:O77)<>0)),"INCOMPLETE","COMPLETE")))))))
A44: 6.7 | B44: 2024-05-02 | C44: 2024-05-16 | D44: Neil Culkin | E44: Neil Culkin | F44: 1. FY2025 tax rates applied 2. SMSF updates: - SGC increase from $27,500 to $30,000 ( Concessional) - Non Concessional Cap increase from $110,000 to $120,000 - Super contribution increase from 11.0% to 11.5% 3. Commercial calculator corrected to have a hard 2% assessment buffer
A45: 6.8 | B45: 2024-05-20 | C45: 2024-09-17 | D45: Neil Culkin | E45: Neil Culkin | F45: 1. HEM update to 24 Q2 2. Adjustment of primary residence strata fees (living expense) to be included in primary residence expenses which are compared to HEM 3. SMSF calculator: E,G, I, K, M, O 93 adjusted to calculate a minimum of zero 4. SMSF calculator: O47, DSCR result corrected to not show a FAIL result if additional non-concessionary member contributions arent affordable
A46: 6.8b | B46: 2024-10-04 | C46: 2024-10-04 | D46: Neil Culkin | E46: Neil Culkin | F46: 1. SMSF calculator: E,G, I, K, M, O 93 adjusted to now allow a negative for manual consideration with an instruction note included.
A47: 6.8c | B47: 2024-10-22 | C47: 2024-10-28 | D47: Neil Culkin | E47: Neil Culkin | F47: 1. Residential - removiing the 1.25NSR requirement where exposure > $1.5m and aggregate LVR > 70%
A48: 6.9 | B48: 2024-11-15 | C48: 2025-03-10 | D48: Neil Culkin | E48: Neil Culkin | F48: 1. HEM update to 24 Q4 2. Loan term > 30 years message amended to be a validation that loan terms > 30 years cannot be interest only 3. SMSF Calculator, minor label updates 4. SMSF Calculator, concessional member contributions changed to pre-tax Row 84 Old Formula =MAX(E61+E62+E64*RentalIncomeShading-E67*WorkingsForNegativeGearing,0) New Formula =MAX(E61+E62+E64*RentalIncomeShading-E67*WorkingsForNegativeGearing,0)-SMSFAvailableSurplusForAdditionalVoluntaryConcessionContributionsM1 Row 87 Old Formula =IFERROR(HLOOKUP(E63+E84+E86,HemCombinedIncomeRange,3,TRUE),1) New Formula =IFERROR(HLOOKUP(E63+MAX(E61+E62+E64*RentalIncomeShading-E67*WorkingsForNegativeGearing,0)+E86,HemCombinedIncomeRange,3,TRUE),1) 5. SMSF Calculator, M11 & M12 updated to state the 2% assessment rate 6. 1% buffer eligibility updated from 700 score to be Prime and Near Prime Clear customers only
A49: 6.9a | B49: 2024-04-02 | C49: 2025-04-14 | D49: Neil Culkin | E49: Neil Culkin | F49: 1. SMSF M50 update to remove Complete result when below the line is started but incomplete 2. SMSF E23 messaging updated to correctly reflect scenarios 3. SMSF E25 update to allow spousal offsetting of expenses and taking aggregate surplus for additional non-concessional contributions. 4. SMSF user guide updated wording for rental income title, contribution value titles, DSCR requirement.
A50: 6.1 | B50: 2025-06-06 | C50: 2025-06-18 | D50: Neil Culkin | E50: Neil Culkin | F50: 1. HEM updated to 25 Q1 2. Minor wording updated to 1% eligibility
A51: 6.11 | B51: 2025-08-05 | C51: 2026-04-30 | D51: Neil Culkin | E51: Neil Culkin | F51: 1. Superannuation label increased from 11% to 12% in SEIC 2. INCOMPLETE result in resi calculator (O78), updated to include second loan amount interest rate and loan term need to be populated if a second loan amount is entered 3. BAS calculator updated to include an annualised results in row 12 4. BNPL guidelines included 5. Capacity test sheet added 6. SMSF Calculator - Correction to Row 91 to pick up correct members SG for additinal concessional contribution calculation 7. HEM updated to 25 Q4 8. Hide Actual NSR results on all calculators 9. Updated FAIL result commentary on SMSF calculator 10. Introduction of 'SPV - Non-Borrower' income calculator 11. Introduction of arrears calculator
A52: 6.11.1 | B52: 2026-05-01 | C52: 2026-04-30 | D52: Neil Culkin | E52: Neil Culkin | F52: FORMAT ADJUSTMENTS ONLY 1. Residenial Actual results made visible. Actual NSR result remains hidden 2. Arrears Calculator updated to have month by month scheduled repayment, shows arrears position in red, no decimal places and Near Prime ≤0.25 months in arrears (not <0.25) 3. Residential, Rows 23 & 24 grey out for Non-Borrowing SPV entity 4. Pepper branding applied to YTD calculator
A53: 6.11.2 | B53: 2026-05-10 | C53: 2026-04-30 | D53: Neil Culkin | E53: Neil Culkin | F53: 1. SMSF calculator allowance for investment return on the residual post-purchase superannuation investments changed from 4% to 'RBA cash rate + 0.5%' ROI
A54: 6.2 | B54: 2026-06-04 | C54: 2026-07-28 | D54: Neil Culkin | E54: Neil Culkin | F54: 1. Introduction of Negative Gearing and Neutral Gearing tax methods in the Residential, Commercial and SMSF calculators. Updates to tax calculation and HEM calculation (which will maintain on neutral tax approach pool household income after net investments for HEM allocation per negative gearing pool). 2. Update super guarantee rate references to 12% 4. Update tax rates for the individual incme band of $18,201 – $45,000 to 15% 5. Update of tax rate labels 6. Interest rate for negative gearing updated from 6.04% to 6.09% per RBA Investment New Loan P&I April 2026 7. SMSF Calculator: Concessional Contributions $32,500 ( Increase from $30,000) ad Non Concessional Contributions $130,000 ( Increase from $120,000)

Sheet Inputs (hidden)
A1: Inputs | K1: Hem Classification
K2: Category | L2: Compared to HEM | O2: Note: Please make changes in "Residential" Worksheet column K and L
A3: Baseline Assessment Rate | B3: 0.055 | H3: Owner occupied property utilities, rates & costs | K3: =Residential!C54 -> Primary residence utilities, rates, strata fees & expenses | L3: =Residential!F54 -> Yes
H4: Rented property costs | K4: =Residential!C55 -> Primary residence land tax & FHB property tax | L4: =Residential!F55 -> No
A5: Assessment Loading | B5: =IF(Residential!I8="1.00% (eligibility above)",1%,IF(Residential!I8=2%,2%,2%)) -> 0.02 | H5: Investment property utilities, rates & costs | K5: =Residential!C56 -> Investment property expenses (negative gearing eligible pool) | L5: =Residential!F56 -> No
H6: Telephone, Internet, Pay TV & Media Streaming | K6: =Residential!C57 -> Investment property expenses (negative gearing ineligible pool) | L6: =Residential!F57 -> No
A7: Credit Card Commitments | B7: 0.0382 | H7: Groceries | K7: =Residential!C58 -> Telephone, internet, Pay TV & media streaming | L7: =Residential!F58 -> Yes
H8: Recreation & Entertainment | K8: =Residential!C59 -> Groceries | L8: =Residential!F59 -> Yes
A9: Workings for Negative Gearing | B9: 0.0609 | H9: Clothing & Personal Care | K9: =Residential!C60 -> Recreation & Entertainment | L9: =Residential!F60 -> Yes
H10: Medical & Health | K10: =Residential!C61 -> Clothing & Personal Care | L10: =Residential!F61 -> Yes
A11: Other Mortgage Repayment Buffer | B11: 1.25 | H11: Transport | K11: =Residential!C62 -> Medical & Health | L11: =Residential!F62 -> Yes
H12: Education | K12: =Residential!C63 -> Transport | L12: =Residential!F63 -> Yes
A13: Rental Income Shading | B13: 0.8 | K13: =Residential!C64 -> Education – non Private schooling | L13: =Residential!F64 -> Yes
H14: Childcare | K14: =Residential!C65 -> Education - Private schooling | L14: =Residential!F65 -> No
A15: Company Tax | B15: 0.25 | H15: Insurance | K15: =Residential!C66 -> Childcare | L15: =Residential!F66 -> Yes
K16: =Residential!C67 -> Insurance - General Basic | L16: =Residential!F67 -> Yes
A17: NumberOfWeeksInAYear | B17: 52 | H17: Other Living Expenses | K17: =Residential!C68 -> Insurance - Health, Sickness, Personal Accident & Life | L17: =Residential!F68 -> No
A18: NumberOfMonthsInAYear | B18: 12 | K18: =Residential!C69 -> Other Living Expenses | L18: =Residential!F69 -> No
K19: =Residential!C70 -> Child & Spousal Maintenance | L19: =Residential!F70 -> No
A20: Acceptable NSR For LVR > 90% | B20: 1.35 | H20: Maximum Assessment Rate (calculation)
A21: Acceptable NSR For Applicants with majority income as Government Allowances | B21: 1.25 | H21: =ROUNDDOWN((RATE((ResiWAVGLoanTerm-ResiWAVGLoanIOTerm)*12, -(Residential!M79-Residential!M81), ResiNewLoanTotalAmount))*12,4) -> 
A22: Acceptable NSR for All other applicants | B22: 1 | H22: Assessment Rate Buffer to achieve 1x NSR
H23: =H21-ResiWAVGAssessmentRate -> 
A24: Allowable Government Allowance over Total Income Limitation | B24: 0.5
H28: List for 1% buffer
H30: 0.02
H31: 0.01
A32: CRE
B33: Full Doc | C33: Alt Doc | D33: Lease Doc
A34: Minimum ICR | B34: 0 | C34: 0 | D34: 0
A35: Minimum DSCR | B35: 0.995 | C35: 1.195 | D35: 0.995
A36: Minimum DSCR Better Choice | B36: 1.495 | C36: 1.495 | D36: 1.495
A37: Minimum DSCR Better Choice with condition message | B37: 1.245 | C37: 1.245 | D37: 1.245 | F37: Refer BDM
A40: Residenital
A41: Minimum Loan Term in Years | B41: 10
A42: Maximum Loan Term In years | B42: 40
A43: Maximum Loan Term In Years For Prime Loans | B43: 30
A45: Minimum Interest Only Loan term in Years | B45: 0
A46: Maximum Interest Only Loan term in Years | B46: 5
A49: SMSF
A51: Compulsary Superannuation Percentage | B51: 0.115
A52: Concessional Contributions Capped Amount | B52: 32500 | H52: Owner occupied property utilities, rates & costs
A53: Non Concessional Capped Amount | B53: 130000 | H53: Rented property costs
A54: MinimumAdministrationCost | B54: 1500 | H54: Investment property utilities, rates & costs
A55: Superannuation Tax | B55: 0.15 | H55: Telephone, Internet, Pay TV & Media Streaming
H56: Groceries
A57: Minimum SMSF DSCR | B57: 0.995 | H57: Recreation & Entertainment
H58: Clothing & Personal Care
H59: Medical & Health
H60: Transport
H61: Education
H63: Childcare
H64: Insurance
H66: Other Living Expenses
I72: Loan details
I75: Income | J75: Net Member Contributions | K75: PAYG Super Guarantee Concessional (compulsory) Super (capped $27,500)
K76: PAYG Super Guarantee Non-Concessional (compulsory) Super (capped $110,000)
A77: Allowable Government Allowance over Total Income Limitation | B77: 0.5 | K77: Non-PAYG?
K78: Gross income - tax - living expenses - debt repayments = Non-Concessional Additional Super (total non-concessional capped at $110,000)
J79: SMSF | K79: Rental income CRE (100% of net) Residential (80% of gross)
K80: Return on investments
K81: Less adminstration expenses (floor $2,500)
K82: Less debt expenses (mortgage + 25%)
I84: DSCR | J84: SMSF net income + Net Member Contributions / SMSF debt repayments

Sheet Validation (hidden)
A1: Residential | B1: Applicant 1 | C1: Applicant 2 | D1: Applicant 3 | E1: Applicant 4 | F1: Applicant 5 | G1: Applicant 6 | I1: CRE | J1: Applicant 1 | K1: Applicant 2 | L1: Applicant 3 | M1: Applicant 4 | R1: Valid Status Resi | T1: Valid Status CRE | V1: Residential | W1: Member 1 | X1: Member 2 | Y1: Member 3 | Z1: Member 4 | AA1: Member 5 | AB1: Member 6 | AE1: Valid Status | AH1: Validation Rules | AI1: Remarks
A2: Applicant 1 | B2: =IF(AND(B$1<>$A2,HLOOKUP($A2,Residential!$E$14:$O$15,2,FALSE)="Individual (Couple)",Residential!E$15="Individual (Couple)"),$A2) -> FALSE | C2: =IF(AND(C$1<>$A2,HLOOKUP($A2,Residential!$E$14:$O$15,2,FALSE)="Individual (Couple)",Residential!G$15="Individual (Couple)"),$A2) -> FALSE | D2: =IF(AND(D$1<>$A2,HLOOKUP($A2,Residential!$E$14:$O$15,2,FALSE)="Individual (Couple)",Residential!I$15="Individual (Couple)"),$A2) -> FALSE | E2: =IF(AND(E$1<>$A2,HLOOKUP($A2,Residential!$E$14:$O$15,2,FALSE)="Individual (Couple)",Residential!K$15="Individual (Couple)"),$A2) -> FALSE | F2: =IF(AND(F$1<>$A2,HLOOKUP($A2,Residential!$E$14:$O$15,2,FALSE)="Individual (Couple)",Residential!M$15="Individual (Couple)"),$A2) -> FALSE | G2: =IF(AND(G$1<>$A2,HLOOKUP($A2,Residential!$E$14:$O$15,2,FALSE)="Individual (Couple)",Residential!O$15="Individual (Couple)"),$A2) -> FALSE | I2: Applicant 1 | J2: =IF(AND(J$1<>$I2,HLOOKUP($I2,Commercial!$E$38:$K$39,2,FALSE)="Individual (Couple)",Commercial!E$39="Individual (Couple)"),$I2) -> FALSE | K2: =IF(AND(K$1<>$I2,HLOOKUP($I2,Commercial!$E$38:$K$39,2,FALSE)="Individual (Couple)",Commercial!G$39="Individual (Couple)"),$I2) -> FALSE | L2: =IF(AND(L$1<>$I2,HLOOKUP($I2,Commercial!$E$38:$K$39,2,FALSE)="Individual (Couple)",Commercial!I$39="Individual (Couple)"),$I2) -> FALSE | M2: =IF(AND(M$1<>$I2,HLOOKUP($I2,Commercial!$E$38:$K$39,2,FALSE)="Individual (Couple)",Commercial!K$39="Individual (Couple)"),$I2) -> FALSE | R2: Company | T2: Individual (Single) | V2: Member 1 | W2: =IF(AND(W$1<>$V2,HLOOKUP($V2,SMSF!$E$55:$O$56,2,FALSE)="Individual (Couple)",SMSF!E$56="Individual (Couple)"),$V2) -> FALSE | X2: =IF(AND(X$1<>$V2,HLOOKUP($V2,SMSF!$E$55:$O$56,2,FALSE)="Individual (Couple)",SMSF!G$56="Individual (Couple)"),$V2) -> FALSE | Y2: =IF(AND(Y$1<>$V2,HLOOKUP($V2,SMSF!$E$55:$O$56,2,FALSE)="Individual (Couple)",SMSF!I$56="Individual (Couple)"),$V2) -> FALSE | Z2: =IF(AND(Z$1<>$V2,HLOOKUP($V2,SMSF!$E$55:$O$56,2,FALSE)="Individual (Couple)",SMSF!K$56="Individual (Couple)"),$V2) -> FALSE | AA2: =IF(AND(AA$1<>$V2,HLOOKUP($V2,SMSF!$E$55:$O$56,2,FALSE)="Individual (Couple)",SMSF!M$56="Individual (Couple)"),$V2) -> FALSE | AB2: =IF(AND(AB$1<>$V2,HLOOKUP($V2,SMSF!$E$55:$O$56,2,FALSE)="Individual (Couple)",SMSF!O$56="Individual (Couple)"),$V2) -> FALSE | AE2: Individual (Single) | AH2: =SMSF!E20 -> 0 | AI2: =IF(AH2="","Valid","Invalid") -> Invalid
A3: Applicant 2 | B3: =IF(AND(B$1<>$A3,HLOOKUP($A3,Residential!$E$14:$O$15,2,FALSE)="Individual (Couple)",Residential!E$15="Individual (Couple)"),$A3) -> FALSE | C3: =IF(AND(C$1<>$A3,HLOOKUP($A3,Residential!$E$14:$O$15,2,FALSE)="Individual (Couple)",Residential!G$15="Individual (Couple)"),$A3) -> FALSE | D3: =IF(AND(D$1<>$A3,HLOOKUP($A3,Residential!$E$14:$O$15,2,FALSE)="Individual (Couple)",Residential!I$15="Individual (Couple)"),$A3) -> FALSE | E3: =IF(AND(E$1<>$A3,HLOOKUP($A3,Residential!$E$14:$O$15,2,FALSE)="Individual (Couple)",Residential!K$15="Individual (Couple)"),$A3) -> FALSE | F3: =IF(AND(F$1<>$A3,HLOOKUP($A3,Residential!$E$14:$O$15,2,FALSE)="Individual (Couple)",Residential!M$15="Individual (Couple)"),$A3) -> FALSE | G3: =IF(AND(G$1<>$A3,HLOOKUP($A3,Residential!$E$14:$O$15,2,FALSE)="Individual (Couple)",Residential!O$15="Individual (Couple)"),$A3) -> FALSE | I3: Applicant 2 | J3: =IF(AND(J$1<>$I3,HLOOKUP($I3,Commercial!$E$38:$K$39,2,FALSE)="Individual (Couple)",Commercial!E$39="Individual (Couple)"),$I3) -> FALSE | K3: =IF(AND(K$1<>$I3,HLOOKUP($I3,Commercial!$E$38:$K$39,2,FALSE)="Individual (Couple)",Commercial!G$39="Individual (Couple)"),$I3) -> FALSE | L3: =IF(AND(L$1<>$I3,HLOOKUP($I3,Commercial!$E$38:$K$39,2,FALSE)="Individual (Couple)",Commercial!I$39="Individual (Couple)"),$I3) -> FALSE | M3: =IF(AND(M$1<>$I3,HLOOKUP($I3,Commercial!$E$38:$K$39,2,FALSE)="Individual (Couple)",Commercial!K$39="Individual (Couple)"),$I3) -> FALSE | R3: Individual (Single) | T3: Individual (Couple) | V3: Member 2 | W3: =IF(AND(W$1<>$V3,HLOOKUP($V3,SMSF!$E$55:$O$56,2,FALSE)="Individual (Couple)",SMSF!E$56="Individual (Couple)"),$V3) -> FALSE | X3: =IF(AND(X$1<>$V3,HLOOKUP($V3,SMSF!$E$55:$O$56,2,FALSE)="Individual (Couple)",SMSF!G$56="Individual (Couple)"),$V3) -> FALSE | Y3: =IF(AND(Y$1<>$V3,HLOOKUP($V3,SMSF!$E$55:$O$56,2,FALSE)="Individual (Couple)",SMSF!I$56="Individual (Couple)"),$V3) -> FALSE | Z3: =IF(AND(Z$1<>$V3,HLOOKUP($V3,SMSF!$E$55:$O$56,2,FALSE)="Individual (Couple)",SMSF!K$56="Individual (Couple)"),$V3) -> FALSE | AA3: =IF(AND(AA$1<>$V3,HLOOKUP($V3,SMSF!$E$55:$O$56,2,FALSE)="Individual (Couple)",SMSF!M$56="Individual (Couple)"),$V3) -> FALSE | AB3: =IF(AND(AB$1<>$V3,HLOOKUP($V3,SMSF!$E$55:$O$56,2,FALSE)="Individual (Couple)",SMSF!O$56="Individual (Couple)"),$V3) -> FALSE | AE3: Individual (Couple) | AH3: =SMSF!C23 ->  | AI3: =IF(AH3="","Valid","Invalid") -> Valid
A4: Applicant 3 | B4: =IF(AND(B$1<>$A4,HLOOKUP($A4,Residential!$E$14:$O$15,2,FALSE)="Individual (Couple)",Residential!E$15="Individual (Couple)"),$A4) -> FALSE | C4: =IF(AND(C$1<>$A4,HLOOKUP($A4,Residential!$E$14:$O$15,2,FALSE)="Individual (Couple)",Residential!G$15="Individual (Couple)"),$A4) -> FALSE | D4: =IF(AND(D$1<>$A4,HLOOKUP($A4,Residential!$E$14:$O$15,2,FALSE)="Individual (Couple)",Residential!I$15="Individual (Couple)"),$A4) -> FALSE | E4: =IF(AND(E$1<>$A4,HLOOKUP($A4,Residential!$E$14:$O$15,2,FALSE)="Individual (Couple)",Residential!K$15="Individual (Couple)"),$A4) -> FALSE | F4: =IF(AND(F$1<>$A4,HLOOKUP($A4,Residential!$E$14:$O$15,2,FALSE)="Individual (Couple)",Residential!M$15="Individual (Couple)"),$A4) -> FALSE | G4: =IF(AND(G$1<>$A4,HLOOKUP($A4,Residential!$E$14:$O$15,2,FALSE)="Individual (Couple)",Residential!O$15="Individual (Couple)"),$A4) -> FALSE | I4: Applicant 3 | J4: =IF(AND(J$1<>$I4,HLOOKUP($I4,Commercial!$E$38:$K$39,2,FALSE)="Individual (Couple)",Commercial!E$39="Individual (Couple)"),$I4) -> FALSE | K4: =IF(AND(K$1<>$I4,HLOOKUP($I4,Commercial!$E$38:$K$39,2,FALSE)="Individual (Couple)",Commercial!G$39="Individual (Couple)"),$I4) -> FALSE | L4: =IF(AND(L$1<>$I4,HLOOKUP($I4,Commercial!$E$38:$K$39,2,FALSE)="Individual (Couple)",Commercial!I$39="Individual (Couple)"),$I4) -> FALSE | M4: =IF(AND(M$1<>$I4,HLOOKUP($I4,Commercial!$E$38:$K$39,2,FALSE)="Individual (Couple)",Commercial!K$39="Individual (Couple)"),$I4) -> FALSE | R4: Individual (Couple) | V4: Member 3 | W4: =IF(AND(W$1<>$V4,HLOOKUP($V4,SMSF!$E$55:$O$56,2,FALSE)="Individual (Couple)",SMSF!E$56="Individual (Couple)"),$V4) -> FALSE | X4: =IF(AND(X$1<>$V4,HLOOKUP($V4,SMSF!$E$55:$O$56,2,FALSE)="Individual (Couple)",SMSF!G$56="Individual (Couple)"),$V4) -> FALSE | Y4: =IF(AND(Y$1<>$V4,HLOOKUP($V4,SMSF!$E$55:$O$56,2,FALSE)="Individual (Couple)",SMSF!I$56="Individual (Couple)"),$V4) -> FALSE | Z4: =IF(AND(Z$1<>$V4,HLOOKUP($V4,SMSF!$E$55:$O$56,2,FALSE)="Individual (Couple)",SMSF!K$56="Individual (Couple)"),$V4) -> FALSE | AA4: =IF(AND(AA$1<>$V4,HLOOKUP($V4,SMSF!$E$55:$O$56,2,FALSE)="Individual (Couple)",SMSF!M$56="Individual (Couple)"),$V4) -> FALSE | AB4: =IF(AND(AB$1<>$V4,HLOOKUP($V4,SMSF!$E$55:$O$56,2,FALSE)="Individual (Couple)",SMSF!O$56="Individual (Couple)"),$V4) -> FALSE | AH4: =SMSF!E23 ->  | AI4: =IF(AH4="","Valid","Invalid") -> Valid
A5: Applicant 4 | B5: =IF(AND(B$1<>$A5,HLOOKUP($A5,Residential!$E$14:$O$15,2,FALSE)="Individual (Couple)",Residential!E$15="Individual (Couple)"),$A5) -> FALSE | C5: =IF(AND(C$1<>$A5,HLOOKUP($A5,Residential!$E$14:$O$15,2,FALSE)="Individual (Couple)",Residential!G$15="Individual (Couple)"),$A5) -> FALSE | D5: =IF(AND(D$1<>$A5,HLOOKUP($A5,Residential!$E$14:$O$15,2,FALSE)="Individual (Couple)",Residential!I$15="Individual (Couple)"),$A5) -> FALSE | E5: =IF(AND(E$1<>$A5,HLOOKUP($A5,Residential!$E$14:$O$15,2,FALSE)="Individual (Couple)",Residential!K$15="Individual (Couple)"),$A5) -> FALSE | F5: =IF(AND(F$1<>$A5,HLOOKUP($A5,Residential!$E$14:$O$15,2,FALSE)="Individual (Couple)",Residential!M$15="Individual (Couple)"),$A5) -> FALSE | G5: =IF(AND(G$1<>$A5,HLOOKUP($A5,Residential!$E$14:$O$15,2,FALSE)="Individual (Couple)",Residential!O$15="Individual (Couple)"),$A5) -> FALSE | I5: Applicant 4 | J5: =IF(AND(J$1<>$I5,HLOOKUP($I5,Commercial!$E$38:$K$39,2,FALSE)="Individual (Couple)",Commercial!E$39="Individual (Couple)"),$I5) -> FALSE | K5: =IF(AND(K$1<>$I5,HLOOKUP($I5,Commercial!$E$38:$K$39,2,FALSE)="Individual (Couple)",Commercial!G$39="Individual (Couple)"),$I5) -> FALSE | L5: =IF(AND(L$1<>$I5,HLOOKUP($I5,Commercial!$E$38:$K$39,2,FALSE)="Individual (Couple)",Commercial!I$39="Individual (Couple)"),$I5) -> FALSE | M5: =IF(AND(M$1<>$I5,HLOOKUP($I5,Commercial!$E$38:$K$39,2,FALSE)="Individual (Couple)",Commercial!K$39="Individual (Couple)"),$I5) -> FALSE | R5: Non-borrowing SPV | V5: Member 4 | W5: =IF(AND(W$1<>$V5,HLOOKUP($V5,SMSF!$E$55:$O$56,2,FALSE)="Individual (Couple)",SMSF!E$56="Individual (Couple)"),$V5) -> FALSE | X5: =IF(AND(X$1<>$V5,HLOOKUP($V5,SMSF!$E$55:$O$56,2,FALSE)="Individual (Couple)",SMSF!G$56="Individual (Couple)"),$V5) -> FALSE | Y5: =IF(AND(Y$1<>$V5,HLOOKUP($V5,SMSF!$E$55:$O$56,2,FALSE)="Individual (Couple)",SMSF!I$56="Individual (Couple)"),$V5) -> FALSE | Z5: =IF(AND(Z$1<>$V5,HLOOKUP($V5,SMSF!$E$55:$O$56,2,FALSE)="Individual (Couple)",SMSF!K$56="Individual (Couple)"),$V5) -> FALSE | AA5: =IF(AND(AA$1<>$V5,HLOOKUP($V5,SMSF!$E$55:$O$56,2,FALSE)="Individual (Couple)",SMSF!M$56="Individual (Couple)"),$V5) -> FALSE | AB5: =IF(AND(AB$1<>$V5,HLOOKUP($V5,SMSF!$E$55:$O$56,2,FALSE)="Individual (Couple)",SMSF!O$56="Individual (Couple)"),$V5) -> FALSE | AH5: =SMSF!C25 ->  | AI5: =IF(AH5="","Valid","Invalid") -> Valid
A6: Applicant 5 | B6: =IF(AND(B$1<>$A6,HLOOKUP($A6,Residential!$E$14:$O$15,2,FALSE)="Individual (Couple)",Residential!E$15="Individual (Couple)"),$A6) -> FALSE | C6: =IF(AND(C$1<>$A6,HLOOKUP($A6,Residential!$E$14:$O$15,2,FALSE)="Individual (Couple)",Residential!G$15="Individual (Couple)"),$A6) -> FALSE | D6: =IF(AND(D$1<>$A6,HLOOKUP($A6,Residential!$E$14:$O$15,2,FALSE)="Individual (Couple)",Residential!I$15="Individual (Couple)"),$A6) -> FALSE | E6: =IF(AND(E$1<>$A6,HLOOKUP($A6,Residential!$E$14:$O$15,2,FALSE)="Individual (Couple)",Residential!K$15="Individual (Couple)"),$A6) -> FALSE | F6: =IF(AND(F$1<>$A6,HLOOKUP($A6,Residential!$E$14:$O$15,2,FALSE)="Individual (Couple)",Residential!M$15="Individual (Couple)"),$A6) -> FALSE | G6: =IF(AND(G$1<>$A6,HLOOKUP($A6,Residential!$E$14:$O$15,2,FALSE)="Individual (Couple)",Residential!O$15="Individual (Couple)"),$A6) -> FALSE | V6: Member 5 | W6: =IF(AND(W$1<>$V6,HLOOKUP($V6,SMSF!$E$55:$O$56,2,FALSE)="Individual (Couple)",SMSF!E$56="Individual (Couple)"),$V6) -> FALSE | X6: =IF(AND(X$1<>$V6,HLOOKUP($V6,SMSF!$E$55:$O$56,2,FALSE)="Individual (Couple)",SMSF!G$56="Individual (Couple)"),$V6) -> FALSE | Y6: =IF(AND(Y$1<>$V6,HLOOKUP($V6,SMSF!$E$55:$O$56,2,FALSE)="Individual (Couple)",SMSF!I$56="Individual (Couple)"),$V6) -> FALSE | Z6: =IF(AND(Z$1<>$V6,HLOOKUP($V6,SMSF!$E$55:$O$56,2,FALSE)="Individual (Couple)",SMSF!K$56="Individual (Couple)"),$V6) -> FALSE | AA6: =IF(AND(AA$1<>$V6,HLOOKUP($V6,SMSF!$E$55:$O$56,2,FALSE)="Individual (Couple)",SMSF!M$56="Individual (Couple)"),$V6) -> FALSE | AB6: =IF(AND(AB$1<>$V6,HLOOKUP($V6,SMSF!$E$55:$O$56,2,FALSE)="Individual (Couple)",SMSF!O$56="Individual (Couple)"),$V6) -> FALSE | AH6: =SMSF!E25 ->  | AI6: =IF(AH6="","Valid","Invalid") -> Valid
A7: Applicant 6 | B7: =IF(AND(B$1<>$A7,HLOOKUP($A7,Residential!$E$14:$O$15,2,FALSE)="Individual (Couple)",Residential!E$15="Individual (Couple)"),$A7) -> FALSE | C7: =IF(AND(C$1<>$A7,HLOOKUP($A7,Residential!$E$14:$O$15,2,FALSE)="Individual (Couple)",Residential!G$15="Individual (Couple)"),$A7) -> FALSE | D7: =IF(AND(D$1<>$A7,HLOOKUP($A7,Residential!$E$14:$O$15,2,FALSE)="Individual (Couple)",Residential!I$15="Individual (Couple)"),$A7) -> FALSE | E7: =IF(AND(E$1<>$A7,HLOOKUP($A7,Residential!$E$14:$O$15,2,FALSE)="Individual (Couple)",Residential!K$15="Individual (Couple)"),$A7) -> FALSE | F7: =IF(AND(F$1<>$A7,HLOOKUP($A7,Residential!$E$14:$O$15,2,FALSE)="Individual (Couple)",Residential!M$15="Individual (Couple)"),$A7) -> FALSE | G7: =IF(AND(G$1<>$A7,HLOOKUP($A7,Residential!$E$14:$O$15,2,FALSE)="Individual (Couple)",Residential!O$15="Individual (Couple)"),$A7) -> FALSE | V7: Member 6 | W7: =IF(AND(W$1<>$V7,HLOOKUP($V7,SMSF!$E$55:$O$56,2,FALSE)="Individual (Couple)",SMSF!E$56="Individual (Couple)"),$V7) -> FALSE | X7: =IF(AND(X$1<>$V7,HLOOKUP($V7,SMSF!$E$55:$O$56,2,FALSE)="Individual (Couple)",SMSF!G$56="Individual (Couple)"),$V7) -> FALSE | Y7: =IF(AND(Y$1<>$V7,HLOOKUP($V7,SMSF!$E$55:$O$56,2,FALSE)="Individual (Couple)",SMSF!I$56="Individual (Couple)"),$V7) -> FALSE | Z7: =IF(AND(Z$1<>$V7,HLOOKUP($V7,SMSF!$E$55:$O$56,2,FALSE)="Individual (Couple)",SMSF!K$56="Individual (Couple)"),$V7) -> FALSE | AA7: =IF(AND(AA$1<>$V7,HLOOKUP($V7,SMSF!$E$55:$O$56,2,FALSE)="Individual (Couple)",SMSF!M$56="Individual (Couple)"),$V7) -> FALSE | AB7: =IF(AND(AB$1<>$V7,HLOOKUP($V7,SMSF!$E$55:$O$56,2,FALSE)="Individual (Couple)",SMSF!O$56="Individual (Couple)"),$V7) -> FALSE | AE7: Valid Status 1
AE8: Individual (Single)
B9: =IF(MID(Residential!E15,13,6)<>"Couple","","N/A") ->  | C9: =IF(MID(Residential!G15,13,6)<>"Couple","","N/A") ->  | D9: =IF(MID(Residential!I15,13,6)<>"Couple","","N/A") ->  | E9: =IF(MID(Residential!K15,13,6)<>"Couple","","N/A") ->  | F9: =IF(MID(Residential!M15,13,6)<>"Couple","","N/A") ->  | G9: =IF(MID(Residential!O15,13,6)<>"Couple","","N/A") ->  | J9: =IF(MID(Commercial!$E39,13,6)<>"Couple","","N/A") ->  | K9: =IF(MID(Commercial!$G39,13,6)<>"Couple","","N/A") ->  | L9: =IF(MID(Commercial!$I39,13,6)<>"Couple","","N/A") ->  | M9: =IF(MID(Commercial!$K39,13,6)<>"Couple","","N/A") ->  | W9: =IF(MID(SMSF!E56,13,6)<>"Couple","","N/A") ->  | X9: =IF(MID(SMSF!G56,13,6)<>"Couple","","N/A") ->  | Y9: =IF(MID(SMSF!I56,13,6)<>"Couple","","N/A") ->  | Z9: =IF(MID(SMSF!K56,13,6)<>"Couple","","N/A") ->  | AA9: =IF(MID(SMSF!M56,13,6)<>"Couple","","N/A") ->  | AB9: =IF(MID(SMSF!O56,13,6)<>"Couple","","N/A") ->  | AE9: Individual (Couple)
B10: =IF(MID(Residential!E15,13,6)<>"Couple","","Non-loan party") ->  | C10: =IF(MID(Residential!G15,13,6)<>"Couple","","Non-loan party") ->  | D10: =IF(MID(Residential!I15,13,6)<>"Couple","","Non-loan party") ->  | E10: =IF(MID(Residential!K15,13,6)<>"Couple","","Non-loan party") ->  | F10: =IF(MID(Residential!M15,13,6)<>"Couple","","Non-loan party") ->  | G10: =IF(MID(Residential!O15,13,6)<>"Couple","","Non-loan party") ->  | J10: =IF(MID(Commercial!$E39,13,6)<>"Couple","","Non-loan party") ->  | K10: =IF(MID(Commercial!$G39,13,6)<>"Couple","","Non-loan party") ->  | L10: =IF(MID(Commercial!$I39,13,6)<>"Couple","","Non-loan party") ->  | M10: =IF(MID(Commercial!$K39,13,6)<>"Couple","","Non-loan party") ->  | W10: =IF(MID(SMSF!E56,13,6)<>"Couple","","Non-loan party") ->  | X10: =IF(MID(SMSF!G56,13,6)<>"Couple","","Non-loan party") ->  | Y10: =IF(MID(SMSF!I56,13,6)<>"Couple","","Non-loan party") ->  | Z10: =IF(MID(SMSF!K56,13,6)<>"Couple","","Non-loan party") ->  | AA10: =IF(MID(SMSF!M56,13,6)<>"Couple","","Non-loan party") ->  | AB10: =IF(MID(SMSF!O56,13,6)<>"Couple","","Non-loan party") -> 
B11: =IFERROR(INDEX(B$2:B$7,SMALL(IF(ISTEXT(B$2:B$7),ROW(B$1:B$6),""), ROW(B2)-1)),"-") -> - | C11: =IFERROR(INDEX(C$2:C$7,SMALL(IF(ISTEXT(C$2:C$7),ROW(C$1:C$6),""), ROW(C2)-1)),"-") -> - | D11: =IFERROR(INDEX(D$2:D$7,SMALL(IF(ISTEXT(D$2:D$7),ROW(D$1:D$6),""), ROW(D2)-1)),"-") -> - | E11: =IFERROR(INDEX(E$2:E$7,SMALL(IF(ISTEXT(E$2:E$7),ROW(E$1:E$6),""), ROW(E2)-1)),"-") -> - | F11: =IFERROR(INDEX(F$2:F$7,SMALL(IF(ISTEXT(F$2:F$7),ROW(F$1:F$6),""), ROW(F2)-1)),"-") -> - | G11: =IFERROR(INDEX(G$2:G$7,SMALL(IF(ISTEXT(G$2:G$7),ROW(G$1:G$6),""), ROW(G2)-1)),"-") -> - | J11: =IFERROR(INDEX(J$2:J$5,SMALL(IF(ISTEXT(J$2:J$5),ROW(J$1:J$4),""), ROW(J2)-1)),"-") -> - | K11: =IFERROR(INDEX(K$2:K$5,SMALL(IF(ISTEXT(K$2:K$5),ROW(K$1:K$4),""), ROW(K2)-1)),"-") -> - | L11: =IFERROR(INDEX(L$2:L$5,SMALL(IF(ISTEXT(L$2:L$5),ROW(L$1:L$4),""), ROW(L2)-1)),"-") -> - | M11: =IFERROR(INDEX(M$2:M$5,SMALL(IF(ISTEXT(M$2:M$5),ROW(M$1:M$4),""), ROW(M2)-1)),"-") -> - | W11: =IFERROR(INDEX(W$2:W$7,SMALL(IF(ISTEXT(W$2:W$7),ROW(W$1:W$6),""), ROW(W2)-1)),"-") -> - | X11: =IFERROR(INDEX(X$2:X$7,SMALL(IF(ISTEXT(X$2:X$7),ROW(X$1:X$6),""), ROW(X2)-1)),"-") -> - | Y11: =IFERROR(INDEX(Y$2:Y$7,SMALL(IF(ISTEXT(Y$2:Y$7),ROW(Y$1:Y$6),""), ROW(Y2)-1)),"-") -> - | Z11: =IFERROR(INDEX(Z$2:Z$7,SMALL(IF(ISTEXT(Z$2:Z$7),ROW(Z$1:Z$6),""), ROW(Z2)-1)),"-") -> - | AA11: =IFERROR(INDEX(AA$2:AA$7,SMALL(IF(ISTEXT(AA$2:AA$7),ROW(AA$1:AA$6),""), ROW(AA2)-1)),"-") -> - | AB11: =IFERROR(INDEX(AB$2:AB$7,SMALL(IF(ISTEXT(AB$2:AB$7),ROW(AB$1:AB$6),""), ROW(AB2)-1)),"-") -> -
B12: =IFERROR(INDEX(B$2:B$7,SMALL(IF(ISTEXT(B$2:B$7),ROW(B$1:B$6),""), ROW(B3)-1)),"-") -> - | C12: =IFERROR(INDEX(C$2:C$7,SMALL(IF(ISTEXT(C$2:C$7),ROW(C$1:C$6),""), ROW(C3)-1)),"-") -> - | D12: =IFERROR(INDEX(D$2:D$7,SMALL(IF(ISTEXT(D$2:D$7),ROW(D$1:D$6),""), ROW(D3)-1)),"-") -> - | E12: =IFERROR(INDEX(E$2:E$7,SMALL(IF(ISTEXT(E$2:E$7),ROW(E$1:E$6),""), ROW(E3)-1)),"-") -> - | F12: =IFERROR(INDEX(F$2:F$7,SMALL(IF(ISTEXT(F$2:F$7),ROW(F$1:F$6),""), ROW(F3)-1)),"-") -> - | G12: =IFERROR(INDEX(G$2:G$7,SMALL(IF(ISTEXT(G$2:G$7),ROW(G$1:G$6),""), ROW(G3)-1)),"-") -> - | J12: =IFERROR(INDEX(J$2:J$5,SMALL(IF(ISTEXT(J$2:J$5),ROW(J$1:J$4),""), ROW(J3)-1)),"-") -> - | K12: =IFERROR(INDEX(K$2:K$5,SMALL(IF(ISTEXT(K$2:K$5),ROW(K$1:K$4),""), ROW(K3)-1)),"-") -> - | L12: =IFERROR(INDEX(L$2:L$5,SMALL(IF(ISTEXT(L$2:L$5),ROW(L$1:L$4),""), ROW(L3)-1)),"-") -> - | M12: =IFERROR(INDEX(M$2:M$5,SMALL(IF(ISTEXT(M$2:M$5),ROW(M$1:M$4),""), ROW(M3)-1)),"-") -> - | W12: =IFERROR(INDEX(W$2:W$7,SMALL(IF(ISTEXT(W$2:W$7),ROW(W$1:W$6),""), ROW(W3)-1)),"-") -> - | X12: =IFERROR(INDEX(X$2:X$7,SMALL(IF(ISTEXT(X$2:X$7),ROW(X$1:X$6),""), ROW(X3)-1)),"-") -> - | Y12: =IFERROR(INDEX(Y$2:Y$7,SMALL(IF(ISTEXT(Y$2:Y$7),ROW(Y$1:Y$6),""), ROW(Y3)-1)),"-") -> - | Z12: =IFERROR(INDEX(Z$2:Z$7,SMALL(IF(ISTEXT(Z$2:Z$7),ROW(Z$1:Z$6),""), ROW(Z3)-1)),"-") -> - | AA12: =IFERROR(INDEX(AA$2:AA$7,SMALL(IF(ISTEXT(AA$2:AA$7),ROW(AA$1:AA$6),""), ROW(AA3)-1)),"-") -> - | AB12: =IFERROR(INDEX(AB$2:AB$7,SMALL(IF(ISTEXT(AB$2:AB$7),ROW(AB$1:AB$6),""), ROW(AB3)-1)),"-") -> - | AE12: Valid Status 2
B13: =IFERROR(INDEX(B$2:B$7,SMALL(IF(ISTEXT(B$2:B$7),ROW(B$1:B$6),""), ROW(B4)-1)),"-") -> - | C13: =IFERROR(INDEX(C$2:C$7,SMALL(IF(ISTEXT(C$2:C$7),ROW(C$1:C$6),""), ROW(C4)-1)),"-") -> - | D13: =IFERROR(INDEX(D$2:D$7,SMALL(IF(ISTEXT(D$2:D$7),ROW(D$1:D$6),""), ROW(D4)-1)),"-") -> - | E13: =IFERROR(INDEX(E$2:E$7,SMALL(IF(ISTEXT(E$2:E$7),ROW(E$1:E$6),""), ROW(E4)-1)),"-") -> - | F13: =IFERROR(INDEX(F$2:F$7,SMALL(IF(ISTEXT(F$2:F$7),ROW(F$1:F$6),""), ROW(F4)-1)),"-") -> - | G13: =IFERROR(INDEX(G$2:G$7,SMALL(IF(ISTEXT(G$2:G$7),ROW(G$1:G$6),""), ROW(G4)-1)),"-") -> - | J13: =IFERROR(INDEX(J$2:J$5,SMALL(IF(ISTEXT(J$2:J$5),ROW(J$1:J$4),""), ROW(J4)-1)),"-") -> - | K13: =IFERROR(INDEX(K$2:K$5,SMALL(IF(ISTEXT(K$2:K$5),ROW(K$1:K$4),""), ROW(K4)-1)),"-") -> - | L13: =IFERROR(INDEX(L$2:L$5,SMALL(IF(ISTEXT(L$2:L$5),ROW(L$1:L$4),""), ROW(L4)-1)),"-") -> - | M13: =IFERROR(INDEX(M$2:M$5,SMALL(IF(ISTEXT(M$2:M$5),ROW(M$1:M$4),""), ROW(M4)-1)),"-") -> - | W13: =IFERROR(INDEX(W$2:W$7,SMALL(IF(ISTEXT(W$2:W$7),ROW(W$1:W$6),""), ROW(W4)-1)),"-") -> - | X13: =IFERROR(INDEX(X$2:X$7,SMALL(IF(ISTEXT(X$2:X$7),ROW(X$1:X$6),""), ROW(X4)-1)),"-") -> - | Y13: =IFERROR(INDEX(Y$2:Y$7,SMALL(IF(ISTEXT(Y$2:Y$7),ROW(Y$1:Y$6),""), ROW(Y4)-1)),"-") -> - | Z13: =IFERROR(INDEX(Z$2:Z$7,SMALL(IF(ISTEXT(Z$2:Z$7),ROW(Z$1:Z$6),""), ROW(Z4)-1)),"-") -> - | AA13: =IFERROR(INDEX(AA$2:AA$7,SMALL(IF(ISTEXT(AA$2:AA$7),ROW(AA$1:AA$6),""), ROW(AA4)-1)),"-") -> - | AB13: =IFERROR(INDEX(AB$2:AB$7,SMALL(IF(ISTEXT(AB$2:AB$7),ROW(AB$1:AB$6),""), ROW(AB4)-1)),"-") -> - | AE13: Individual (Single)
B14: =IFERROR(INDEX(B$2:B$7,SMALL(IF(ISTEXT(B$2:B$7),ROW(B$1:B$6),""), ROW(B5)-1)),"-") -> - | C14: =IFERROR(INDEX(C$2:C$7,SMALL(IF(ISTEXT(C$2:C$7),ROW(C$1:C$6),""), ROW(C5)-1)),"-") -> - | D14: =IFERROR(INDEX(D$2:D$7,SMALL(IF(ISTEXT(D$2:D$7),ROW(D$1:D$6),""), ROW(D5)-1)),"-") -> - | E14: =IFERROR(INDEX(E$2:E$7,SMALL(IF(ISTEXT(E$2:E$7),ROW(E$1:E$6),""), ROW(E5)-1)),"-") -> - | F14: =IFERROR(INDEX(F$2:F$7,SMALL(IF(ISTEXT(F$2:F$7),ROW(F$1:F$6),""), ROW(F5)-1)),"-") -> - | G14: =IFERROR(INDEX(G$2:G$7,SMALL(IF(ISTEXT(G$2:G$7),ROW(G$1:G$6),""), ROW(G5)-1)),"-") -> - | W14: =IFERROR(INDEX(W$2:W$7,SMALL(IF(ISTEXT(W$2:W$7),ROW(W$1:W$6),""), ROW(W5)-1)),"-") -> - | X14: =IFERROR(INDEX(X$2:X$7,SMALL(IF(ISTEXT(X$2:X$7),ROW(X$1:X$6),""), ROW(X5)-1)),"-") -> - | Y14: =IFERROR(INDEX(Y$2:Y$7,SMALL(IF(ISTEXT(Y$2:Y$7),ROW(Y$1:Y$6),""), ROW(Y5)-1)),"-") -> - | Z14: =IFERROR(INDEX(Z$2:Z$7,SMALL(IF(ISTEXT(Z$2:Z$7),ROW(Z$1:Z$6),""), ROW(Z5)-1)),"-") -> - | AA14: =IFERROR(INDEX(AA$2:AA$7,SMALL(IF(ISTEXT(AA$2:AA$7),ROW(AA$1:AA$6),""), ROW(AA5)-1)),"-") -> - | AB14: =IFERROR(INDEX(AB$2:AB$7,SMALL(IF(ISTEXT(AB$2:AB$7),ROW(AB$1:AB$6),""), ROW(AB5)-1)),"-") -> - | AE14: Individual (Couple)
B15: =IFERROR(INDEX(B$2:B$7,SMALL(IF(ISTEXT(B$2:B$7),ROW(B$1:B$6),""), ROW(B6)-1)),"-") -> - | C15: =IFERROR(INDEX(C$2:C$7,SMALL(IF(ISTEXT(C$2:C$7),ROW(C$1:C$6),""), ROW(C6)-1)),"-") -> - | D15: =IFERROR(INDEX(D$2:D$7,SMALL(IF(ISTEXT(D$2:D$7),ROW(D$1:D$6),""), ROW(D6)-1)),"-") -> - | E15: =IFERROR(INDEX(E$2:E$7,SMALL(IF(ISTEXT(E$2:E$7),ROW(E$1:E$6),""), ROW(E6)-1)),"-") -> - | F15: =IFERROR(INDEX(F$2:F$7,SMALL(IF(ISTEXT(F$2:F$7),ROW(F$1:F$6),""), ROW(F6)-1)),"-") -> - | G15: =IFERROR(INDEX(G$2:G$7,SMALL(IF(ISTEXT(G$2:G$7),ROW(G$1:G$6),""), ROW(G6)-1)),"-") -> - | W15: =IFERROR(INDEX(W$2:W$7,SMALL(IF(ISTEXT(W$2:W$7),ROW(W$1:W$6),""), ROW(W6)-1)),"-") -> - | X15: =IFERROR(INDEX(X$2:X$7,SMALL(IF(ISTEXT(X$2:X$7),ROW(X$1:X$6),""), ROW(X6)-1)),"-") -> - | Y15: =IFERROR(INDEX(Y$2:Y$7,SMALL(IF(ISTEXT(Y$2:Y$7),ROW(Y$1:Y$6),""), ROW(Y6)-1)),"-") -> - | Z15: =IFERROR(INDEX(Z$2:Z$7,SMALL(IF(ISTEXT(Z$2:Z$7),ROW(Z$1:Z$6),""), ROW(Z6)-1)),"-") -> - | AA15: =IFERROR(INDEX(AA$2:AA$7,SMALL(IF(ISTEXT(AA$2:AA$7),ROW(AA$1:AA$6),""), ROW(AA6)-1)),"-") -> - | AB15: =IFERROR(INDEX(AB$2:AB$7,SMALL(IF(ISTEXT(AB$2:AB$7),ROW(AB$1:AB$6),""), ROW(AB6)-1)),"-") -> -
V17: Do not delete this formula | W17: =IF(RIGHT(SMSF!Z57,1)="2",SMSFAvailableSurplusForAdditionalVoluntaryConcessionContributionsM1+SMSFAvailableSurplusForAdditionalVoluntaryNonConcessionContributionsM1+SMSFAvailableSurplusForAdditionalVoluntaryConcessionContributionsM2+SMSFAvailableSurplusForAdditionalVoluntaryNonConcessionContributionsM2,IF(RIGHT(SMSF!Z57,1)="3",SMSFAvailableSurplusForAdditionalVoluntaryConcessionContributionsM1+SMSFAvailableSurplusForAdditionalVoluntaryNonConcessionContributionsM1+SMSFAvailableSurplusForAdditionalVoluntaryConcessionContributionsM3+SMSFAvailableSurplusForAdditionalVoluntaryNonConcessionContributionsM3,IF(RIGHT(SMSF!Z57,1)="4",SMSFAvailableSurplusForAdditionalVoluntaryConcessionContributionsM1+SMSFAvailableSurplusForAdditionalVoluntaryNonConcessionContributionsM1+SMSFAvailableSurplusForAdditionalVoluntaryConcessionContributionsM4+SMSFAvailableSurplusForAdditionalVoluntaryNonConcessionContributionsM4,IF(RIGHT(SMSF!Z57,1)="5",SMSFAvailableSurplusForAdditionalVoluntaryConcessionContributionsM1+SMSFAvailableSurplusForAdditionalVoluntaryNonConcessionContributionsM1+SMSFAvailableSurplusForAdditionalVoluntaryConcessionContributionsM5+SMSFAvailableSurplusForAdditionalVoluntaryNonConcessionContributionsM5,IF(RIGHT(SMSF!Z57,1)="6",SMSFAvailableSurplusForAdditionalVoluntaryConcessionContributionsM1+SMSFAvailableSurplusForAdditionalVoluntaryNonConcessionContributionsM1+SMSFAvailableSurplusForAdditionalVoluntaryConcessionContributionsM6+SMSFAvailableSurplusForAdditionalVoluntaryNonConcessionContributionsM6,0))))) -> 0 | X17: =IF(RIGHT(SMSF!AB57,1)="3",SMSFAvailableSurplusForAdditionalVoluntaryConcessionContributionsM1+SMSFAvailableSurplusForAdditionalVoluntaryNonConcessionContributionsM1+SMSFAvailableSurplusForAdditionalVoluntaryConcessionContributionsM3+SMSFAvailableSurplusForAdditionalVoluntaryNonConcessionContributionsM3,IF(RIGHT(SMSF!AB57,1)="4",SMSFAvailableSurplusForAdditionalVoluntaryConcessionContributionsM1+SMSFAvailableSurplusForAdditionalVoluntaryNonConcessionContributionsM1+SMSFAvailableSurplusForAdditionalVoluntaryConcessionContributionsM4+SMSFAvailableSurplusForAdditionalVoluntaryNonConcessionContributionsM4,IF(RIGHT(SMSF!AB57,1)="5",SMSFAvailableSurplusForAdditionalVoluntaryConcessionContributionsM1+SMSFAvailableSurplusForAdditionalVoluntaryNonConcessionContributionsM1+SMSFAvailableSurplusForAdditionalVoluntaryConcessionContributionsM5+SMSFAvailableSurplusForAdditionalVoluntaryNonConcessionContributionsM5,IF(RIGHT(SMSF!AB57,1)="6",SMSFAvailableSurplusForAdditionalVoluntaryConcessionContributionsM1+SMSFAvailableSurplusForAdditionalVoluntaryNonConcessionContributionsM1+SMSFAvailableSurplusForAdditionalVoluntaryConcessionContributionsM6+SMSFAvailableSurplusForAdditionalVoluntaryNonConcessionContributionsM6,0)))) -> 0 | Y17: =IF(RIGHT(SMSF!AD57,1)="4",SMSFAvailableSurplusForAdditionalVoluntaryConcessionContributionsM1+SMSFAvailableSurplusForAdditionalVoluntaryNonConcessionContributionsM1+SMSFAvailableSurplusForAdditionalVoluntaryConcessionContributionsM4+SMSFAvailableSurplusForAdditionalVoluntaryNonConcessionContributionsM4,IF(RIGHT(SMSF!AD57,1)="5",SMSFAvailableSurplusForAdditionalVoluntaryConcessionContributionsM1+SMSFAvailableSurplusForAdditionalVoluntaryNonConcessionContributionsM1+SMSFAvailableSurplusForAdditionalVoluntaryConcessionContributionsM5+SMSFAvailableSurplusForAdditionalVoluntaryNonConcessionContributionsM5,IF(RIGHT(SMSF!AD57,1)="6",SMSFAvailableSurplusForAdditionalVoluntaryConcessionContributionsM1+SMSFAvailableSurplusForAdditionalVoluntaryNonConcessionContributionsM1+SMSFAvailableSurplusForAdditionalVoluntaryConcessionContributionsM6+SMSFAvailableSurplusForAdditionalVoluntaryNonConcessionContributionsM6,0))) -> 0 | Z17: =IF(RIGHT(SMSF!AF57,1)="5",SMSFAvailableSurplusForAdditionalVoluntaryConcessionContributionsM1+SMSFAvailableSurplusForAdditionalVoluntaryNonConcessionContributionsM1+SMSFAvailableSurplusForAdditionalVoluntaryConcessionContributionsM5+SMSFAvailableSurplusForAdditionalVoluntaryNonConcessionContributionsM5,IF(RIGHT(SMSF!AF57,1)="6",SMSFAvailableSurplusForAdditionalVoluntaryConcessionContributionsM1+SMSFAvailableSurplusForAdditionalVoluntaryNonConcessionContributionsM1+SMSFAvailableSurplusForAdditionalVoluntaryConcessionContributionsM6+SMSFAvailableSurplusForAdditionalVoluntaryNonConcessionContributionsM6,0)) -> 0 | AA17: =IF(RIGHT(SMSF!AH57,1)="6",SMSFAvailableSurplusForAdditionalVoluntaryConcessionContributionsM1+SMSFAvailableSurplusForAdditionalVoluntaryNonConcessionContributionsM1+SMSFAvailableSurplusForAdditionalVoluntaryConcessionContributionsM6+SMSFAvailableSurplusForAdditionalVoluntaryNonConcessionContributionsM6,0) -> 0 | AB17: 0 | AE17: Valid Status 3
AE18: Individual (Single)
A19: Dependents Lookup | V19: Dependents Lookup | AE19: Individual (Couple)
A20: Dependents | B20: DependedntsCode | V20: Dependents | W20: DependedntsCode
A21: 0 | B21: 1 | V21: 0 | W21: 1
A22: 1 | B22: 1 | V22: 1 | W22: 1 | AE22: Valid Status 4
A23: 2 | B23: 2 | V23: 2 | W23: 2 | AE23: Individual (Single)
A24: 3 | B24: 3 | V24: 3 | W24: 3 | AE24: Individual (Couple)
A25: 4 | B25: 4+ | V25: 4 | W25: 4+
AE27: Valid Status 5
AE28: Individual (Single)
AE29: Individual (Couple)
AE32: Valid Status 6
AE33: Individual (Single)
AE34: Individual (Couple)
B37: Don’t remove | C37: Don’t remove | W37: Don’t remove | X37: Don’t remove
A39: Servicability Calculator | I39: CRE | V39: Servicability Calculator
B40: Applicant 1 | C40: Applicant 2 | D40: Applicant 3 | E40: Applicant 4 | F40: Applicant 5 | G40: Applicant 6 | I40: Applicant 1 | J40: Applicant 2 | K40: Applicant 3 | L40: Applicant 4 | W40: Member 1 | X40: Member 2 | Y40: Member 3 | Z40: Member 4 | AA40: Member 5 | AB40: Member 6
A41: Status | V41: Status
A42: Individual (Couple) With | V42: Individual (Couple) With
W51: =OFFSET(Validation!W$9:W$15,0,0,COUNTIF(Validation!W$9:W$15,"<>-")) ->  | X51: =OFFSET(Validation!X$9:X$15,0,0,COUNTIF(Validation!X$9:X$15,"<>-")) ->  | Y51: =OFFSET(Validation!Y$9:Y$15,0,0,COUNTIF(Validation!Y$9:Y$15,"<>-")) ->  | Z51: =OFFSET(Validation!Z$9:Z$15,0,0,COUNTIF(Validation!Z$9:Z$15,"<>-")) ->  | AA51: =OFFSET(Validation!AA$9:AA$15,0,0,COUNTIF(Validation!AA$9:AA$15,"<>-")) ->  | AB51: =OFFSET(Validation!AB$9:AB$15,0,0,COUNTIF(Validation!AB$9:AB$15,"<>-")) -> 

Sheet HEM Table (hidden)
A1: Combined Couple Gross Income | C1: =B2 -> 0 | D1: =C2 -> 27000 | E1: =D2 -> 40000 | F1: =E2 -> 54000 | G1: 67000 | H1: 81000 | I1: 107000 | J1: 134000 | K1: 161000 | L1: 188000 | M1: 215000 | N1: 269000 | O1: 336000 | P1: 403000 | S1: Higher income band used as data not available for income band
A2: HEM 2025Q4 | C2: 27000 | D2: 40000 | E2: 54000 | F2: 67000 | G2: 81000 | H2: 107000 | I2: 134000 | J2: 161000 | K2: 188000 | L2: 215000 | M2: 269000 | N2: 336000 | O2: 403000 | P2: 999999999
C3: 1 | D3: 2 | E3: 3 | F3: 4 | G3: 5 | H3: 6 | I3: 7 | J3: 8 | K3: 9 | L3: 10 | M3: 11 | N3: 12 | O3: 13 | P3: 14
A4: Pepper - Proposed
A5: Single | B5: P-S | C5: =C25 -> 317.5138233 | D5: 335.3378894 | E5: 351.2260567 | F5: 375.2288397 | G5: 420.0894076 | H5: 481.3617992 | I5: 569.2415629 | J5: 649.0638849 | K5: 727.3847624 | L5: 786.1623198 | M5: 840.9032972 | N5: 963.1730772 | O5: 1127.962522 | P5: 1149.849405
A6: Couple | B6: P-C | C6: =D6 -> 612.1480451 | D6: =D20 -> 612.1480451 | E6: 628.0091705 | F6: 651.9710997 | G6: 696.7553122 | H6: 757.9234156 | I6: 845.6536043 | J6: 925.3400635 | K6: 1003.527635 | L6: 1062.205152 | M6: 1116.852957 | N6: 1238.914627 | O6: 1403.423592 | P6: 1425.273224
A7: Single parent with 1 child (per child) | B7: P-SD1 | C7: =D7 -> 99.38524318 | D7: =IF(D26-D25<0,0,D26-D25) -> 99.38524318 | E7: 99.33246894 | F7: 99.25274259 | G7: 99.10373215 | H7: 98.90021009 | I7: 98.6083095 | J7: 98.34317136 | K7: 98.08301975 | L7: 97.88778563 | M7: 97.70595498 | N7: 97.29982379 | O7: 96.75246008 | P7: 96.67976091
A8: Single parent with 2 children (per child) | B8: P-SD2 | C8: 106.7092703 | D8: =IF(D27-D25<0,0,D27-D25)/2 -> 106.7092703 | E8: 106.6646611 | F8: 106.597269 | G8: 106.4713116 | H8: 106.2992776 | I8: 106.0525375 | J8: 105.8284196 | K8: 105.608517 | L8: 105.4434879 | M8: 105.2897892 | N8: 104.9464911 | O8: 104.4838104 | P8: 104.4223595
A9: Single parent with 3 children (per child) | B9: P-SD3 | C9: 109.1087251 | D9: =E9 -> 109.1087251 | E9: =IF(E28-E25<0,0,E28-E25)/3 -> 109.1087251 | F9: 109.0454444 | G9: 108.9271714 | H9: 108.7656335 | I9: 108.5339468 | J9: 108.3235023 | K9: 108.117016 | L9: 107.9620553 | M9: 107.8177339 | N9: 107.4953802 | O9: 107.0609272 | P9: 107.0032257
A10: Single parent with 4 or more children (per child) | B10: P-SD4+ | C10: 109.1087251 | D10: 109.1087251 | E10: =IF(E28-E25<0,0,E28-E25)/3 -> 109.1087251 | F10: 109.0454444 | G10: 108.9271714 | H10: 108.7656335 | I10: 108.5339468 | J10: 108.3235023 | K10: 108.117016 | L10: 107.9620553 | M10: 107.8177339 | N10: 107.4953802 | O10: 107.0609272 | P10: 107.0032257
A11: Couple with 1 child (per child) | B11: P-CD1 | C11: 88.15938972 | D11: 88.15938972 | E11: =IF(E21-E20<0,0,E21-E20) -> 88.15938972 | F11: 88.23055402 | G11: 88.3635569 | H11: 88.54521713 | I11: 88.80576539 | J11: 89.04242397 | K11: 89.27463272 | L11: 89.44889421 | M11: 89.61119371 | N11: 89.97370042 | O11: 90.46227078 | P11: 90.52716131
A12: Couple with 2 children (per child) | B12: P-CD2 | C12: 83.64544787 | D12: 83.64544787 | E12: =IF(E22-E20<0,0,E22-E20)/2 -> 83.64544787 | F12: 83.62480918 | G12: 83.58623524 | H12: 83.53354805 | I12: 83.45798313 | J12: 83.38934736 | K12: 83.32200128 | L12: 83.27145926 | M12: 83.22438974 | N12: 83.11925397 | O12: 82.97755697 | P12: 82.95873688
A13: Couple with 3 children (per child) | B13: P-CD3 | C13: 75.88679288 | D13: 75.88679288 | E13: =F13 -> 75.88679288 | F13: =IF(F23-F20<0,0,F23-F20)/3 -> 75.88679288 | G13: 75.88696424 | H13: 75.88719688 | I13: 75.88753155 | J13: 75.88783582 | K13: 75.8881353 | L13: 75.88835779 | M13: 75.88856717 | N13: 75.88903151 | O13: 75.88965963 | P13: 75.88974288
A14: Couple with 4 or more children (per child) | B14: P-CD4+ | C14: =D14 -> 75.88679288 | D14: =E14 -> 75.88679288 | E14: =F14 -> 75.88679288 | F14: =IF(F23-F20<0,0,F23-F20)/3 -> 75.88679288 | G14: 75.88696424 | H14: 75.88719688 | I14: 75.88753155 | J14: 75.88783582 | K14: 75.8881353 | L14: 75.88835779 | M14: 75.88856717 | N14: 75.88903151 | O14: 75.88965963 | P14: 75.88974288
C16: 1 | D16: 2 | E16: 3 | F16: 4 | G16: 5 | H16: 6 | I16: 7 | J16: 8 | K16: 9 | L16: 10 | M16: 11 | N16: 12 | O16: 13 | P16: 14
C17: 27000 | D17: 27000 | E17: 40000 | F17: 54000 | G17: 67000 | H17: 81000 | I17: 107000 | J17: 134000 | K17: 161000 | L17: 188000 | M17: 215000 | N17: 269000 | O17: 336000 | P17: 403000
C18: or less | D18: to | E18: to | F18: to | G18: to | H18: to | I18: to | J18: to | K18: to | L18: to | M18: to | N18: to | O18: to | P18: to
A19: Australia | D19: 40000 | E19: 54000 | F19: 67000 | G19: 81000 | H19: 107000 | I19: 134000 | J19: 161000 | K19: 188000 | L19: 215000 | M19: 269000 | N19: 336000 | O19: 403000 | P19: 671000
A20: Couple | D20: 612.1480451 | E20: 628.0091705 | F20: 651.9710997 | G20: 696.7553122 | H20: 757.9234156 | I20: 845.6536043 | J20: 925.3400635 | K20: 1003.527635 | L20: 1062.205152 | M20: 1116.852957 | N20: 1238.914627 | O20: 1403.423592 | P20: 1425.273224
A21: Couple with 1 child | E21: 716.1685602 | F21: 740.2016537 | G21: 785.1188691 | H21: 846.4686328 | I21: 934.4593697 | J21: 1014.382487 | K21: 1092.802268 | L21: 1151.654046 | M21: 1206.46415 | N21: 1328.888327 | O21: 1493.885863 | P21: 1515.800385
A22: Couple with 2 children | E22: 795.3000662 | F22: 819.2207181 | G22: 863.9277827 | H22: 924.9905117 | I22: 1012.569571 | J22: 1092.118758 | K22: 1170.171638 | L22: 1228.74807 | M22: 1283.301736 | N22: 1405.153135 | O22: 1569.378706 | P22: 1591.190698
A23: Couple with 3 or more children | F23: 879.6314784 | G23: 924.416205 | H23: 985.5850063 | I23: 1073.316199 | J23: 1153.003571 | K23: 1231.192041 | L23: 1289.870225 | M23: 1344.518658 | N23: 1466.581721 | O23: 1631.092571 | P23: 1652.942453
A25: Single person | C25: 317.5138233 | D25: 335.3378894 | E25: 351.2260567 | F25: 375.2288397 | G25: 420.0894076 | H25: 481.3617992 | I25: 569.2415629 | J25: 649.0638849 | K25: 727.3847624 | L25: 786.1623198 | M25: 840.9032972 | N25: 963.1730772 | O25: 1127.962522 | P25: 1149.849405
A26: Single parent with 1 child | D26: 434.7231326 | E26: 450.5585257 | F26: 474.4815823 | G26: 519.1931398 | H26: 580.2620093 | I26: 667.8498724 | J26: 747.4070563 | K26: 825.4677822 | L26: 884.0501054 | M26: 938.6092521 | N26: 1060.472901 | O26: 1224.714982 | P26: 1246.529166
A27: Single parent with 2 children | D27: 548.75643 | E27: 564.5553789 | F27: 588.4233776 | G27: 633.0320308 | H27: 693.9603545 | I27: 781.3466379 | J27: 860.7207241 | K27: 938.6017963 | L27: 997.0492955 | M27: 1051.482876 | N27: 1173.066059 | O27: 1336.930143 | P27: 1358.694124
A28: Single parent with 3 or more children | E28: 678.5522321 | F28: 702.365173 | G28: 746.8709219 | H28: 807.6586997 | I28: 894.8434033 | J28: 974.0343918 | K28: 1051.73581 | L28: 1110.048486 | M28: 1164.356499 | N28: 1285.659218 | O28: 1449.145303 | P28: 1470.859082
A36: Comparison to prior Benchmark version
A38: HEM 2025Q1
C40: 26000 | D40: 26000 | E40: 39000 | F40: 52000 | G40: 65000 | H40: 78000 | I40: 104000 | J40: 130000 | K40: 156000 | L40: 182000 | M40: 208000 | N40: 261000 | O40: 326000 | P40: 391000
C41: or less | D41: to | E41: to | F41: to | G41: to | H41: to | I41: to | J41: to | K41: to | L41: to | M41: to | N41: to | O41: to | P41: to
A42: Australia | D42: 39000 | E42: 52000 | F42: 65000 | G42: 78000 | H42: 104000 | I42: 130000 | J42: 156000 | K42: 182000 | L42: 208000 | M42: 261000 | N42: 326000 | O42: 391000 | P42: 651000
A43: Couple | D43: 597.911083 | E43: 613.1863723 | F43: 638.5072475 | G43: 678.071732 | H43: 740.8257341 | I43: 826.4992388 | J43: 903.2593174 | K43: 981.3761272 | L43: 1034.63923 | M43: 1092.863473 | N43: 1208.405488 | O43: 1380.42492 | P43: 1403.621479
A44: Couple with 1 child | E44: 703.5135697 | F44: 728.9696562 | G44: 768.7454106 | H44: 831.8345134 | I44: 917.9655094 | J44: 995.1354787 | K44: 1073.669427 | L44: 1127.216949 | M44: 1185.752106 | N44: 1301.911105 | O44: 1474.849109 | P44: 1498.169534
A45: Couple with 2 children | E45: 772.8847655 | F45: 798.2334464 | G45: 837.8413771 | H45: 900.6642909 | I45: 986.4318772 | J45: 1063.276246 | K45: 1141.478841 | L45: 1194.800431 | M45: 1253.088613 | N45: 1368.757509 | O45: 1540.965839 | P45: 1564.187872
A46: Couple with 3 or more children | F46: 862.8200521 | G46: 902.5497961 | H46: 965.565921 | I46: 1051.597286 | J46: 1128.677992 | K46: 1207.121095 | L46: 1260.606676 | M46: 1319.074123 | N46: 1435.098756 | O46: 1607.836712 | P46: 1631.130164
A48: Single person | C48: 307.3927638 | D48: 324.0620156 | E48: 339.3125555 | F48: 364.5924053 | G48: 404.0927863 | H48: 466.7451121 | I48: 552.2798072 | J48: 628.9155157 | K48: 706.9057598 | L48: 760.0825631 | M48: 818.2124706 | N48: 933.567281 | O48: 1105.308002 | P48: 1128.466977
A49: Single parent with 1 child | D49: 421.0873571 | E49: 436.2258816 | F49: 461.3200515 | G49: 500.5303035 | H49: 562.7224489 | I49: 647.6288937 | J49: 723.7017136 | K49: 801.1191226 | L49: 853.9053437 | M49: 911.6082891 | N49: 1026.115822 | O49: 1196.595109 | P49: 1219.583985
A50: Single parent with 2 children | D50: 529.6391981 | E50: 544.7456119 | F50: 569.7865549 | G50: 608.9136362 | H50: 670.9738653 | I50: 755.7002137 | J50: 831.6116707 | K50: 908.8648677 | L50: 961.5391151 | M50: 1019.119668 | N50: 1133.384313 | O50: 1303.501988 | P50: 1326.4421
A51: Single parent with 3 or more children | E51: 653.2653422 | F51: 678.2530584 | G51: 717.296969 | H51: 779.2252818 | I51: 863.7715336 | J51: 939.5216278 | K51: 1016.610613 | L51: 1069.172886 | M51: 1126.631047 | N51: 1240.652804 | O51: 1410.408867 | P51: 1433.300216
A53: CHANGE
A54: Couple | D54: =D20-D43 -> 14.23696215 | E54: 14.82279819 | F54: 13.46385218 | G54: 18.6835802 | H54: 17.09768155 | I54: 19.1543655 | J54: 22.08074613 | K54: 22.15150815 | L54: 27.56592206 | M54: 23.98948404 | N54: 30.50913877 | O54: 22.99867222 | P54: 21.65174455
A55: Couple with 1 child | E55: =E21-E44 -> 12.65499052 | F55: 11.23199756 | G55: 16.37345856 | H55: 14.63411933 | I55: 16.49386029 | J55: 19.24700877 | K55: 19.13284074 | L55: 24.43709711 | M55: 20.71204452 | N55: 26.97722269 | O55: 19.0367539 | P55: 17.63085116
A56: Couple with 2 children | E56: =E22-E45 -> 22.41530075 | F56: 20.98727164 | G56: 26.08640559 | H56: 24.32622082 | I56: 26.13769337 | J56: 28.84251196 | K56: 28.69279705 | L56: 33.94763933 | M56: 30.21312361 | N56: 36.39562537 | O56: 28.41286686 | P56: 27.00282605
A57: Couple with 3 or more children | F57: =F23-F46 -> 16.81142627 | G57: 21.8664089 | H57: 20.0190853 | I57: 21.71891337 | J57: 24.32557934 | K57: 24.07094673 | L57: 29.26354903 | M57: 25.44453534 | N57: 31.48296538 | O57: 23.25585917 | P57: 21.81228863
A59: Single person | C59: =C25-C48 -> 10.12105951 | D59: 11.27587382 | E59: 11.91350119 | F59: 10.63643442 | G59: 15.99662133 | H59: 14.6166871 | I59: 16.9617557 | J59: 20.14836924 | K59: 20.47900258 | L59: 26.07975673 | M59: 22.69082655 | N59: 29.60579615 | O59: 22.65451946 | P59: 21.38242781
A60: Single parent with 1 child | D60: =D26-D49 -> 13.63577545 | E60: 14.33264406 | F60: 13.16153083 | G60: 18.66283629 | H60: 17.53956045 | I60: 20.22097871 | J60: 23.70534271 | K60: 24.34865958 | L60: 30.14476172 | M60: 27.00096308 | N60: 34.35707888 | O60: 28.11987319 | P60: 26.94518115
A61: Single parent with 2 children | D61: =D27-D50 -> 19.11723187 | E61: 19.80976699 | F61: 18.63682273 | G61: 24.11839461 | H61: 22.98648916 | I61: 25.64642421 | J61: 29.10905338 | K61: 29.7369286 | L61: 35.51018044 | M61: 32.36320767 | N61: 39.68174654 | O61: 33.42815505 | P61: 32.25202347
A62: Single parent with 3 or more children | E62: =E28-E51 -> 25.28688992 | F62: 24.11211462 | G62: 29.57395293 | H62: 28.43341787 | I62: 31.07186971 | J62: 34.51276406 | K62: 35.12519762 | L62: 40.87559915 | M62: 37.72545226 | N62: 45.00641419 | O62: 38.7364369 | P62: 37.55886579

Sheet Tax Table (hidden)
I2: This is the Tax Offset for Low income earners
I3: https://www.ato.gov.au/individuals/income-deductions-offsets-and-records/tax-offsets/low-and-middle-income-earner-tax-offsets/
A4: Medicare Levy 2025 - 2026 | D4: 1 | E4: Tax offset for Low income earners | G4: Tax Offset reduced %
A5: Threshold | B5: Value | C5: Rate | E5: Thresholds | F5: Max Tax Offset
A6: Minimum for partial levy | B6: 28011 | C6: 0.1 | E6: 0 | F6: 700
A7: Minimum for full levy | B7: 35013 | C7: 0.02 | E7: 37500 | F7: 700 | G7: -0.05
E8: 45000 | F8: 325 | G8: -0.015
E9: 66667 | F9: 0
E10: 999999999
A18: Tax 2026-2027
A19: Tax Bracket Min | B19: Tax For Bracket | C19: Tax Rate | I19: This is the Medicare levy reduction for low income earners
A20: 0 | B20: 0 | C20: 0 | I20: https://www.ato.gov.au/individuals-and-families/medicare-and-private-health-insurance/medicare-levy/medicare-levy-reduction/medicare-levy-reduction-for-low-income-earners
A21: 18200 | B21: 0 | C21: 0.15
A22: 45000 | B22: =(A22-A21)*C21 -> 4020 | C22: 0.3
A23: 135000 | B23: =(A22-A21)*C21+(A23-A22)*C22 -> 31020 | C23: 0.37
A24: 190000 | B24: =(A22-A21)*C21+(A23-A22)*C22+(A24-A23)*C23 -> 51370 | C24: 0.45
A25: 999999999 | B25: =B24 -> 51370 | C25: 0.45
A31: https://treasury.gov.au/tax-cuts

Sheet ResidentialTestCases (hidden)
A1: Test Cases TestCases TestCases TestCases TestCases TestCases TestCases TestCases TestCases TestCases TestCases TestCases TestCases TestCases TestCases TestCases TestCases TestCases TestCases TestCases TestCases TestCases TestCases TestCases TestCases TestCases TestCases TestCases TestCases TestCases TestCases TestCases TestCases TestCases TestCases TestCases TestCases TestCases TestCases TestCases TestCases TestCases TestCases TestCases TestCases TestCases TestCases TestCases TestCases TestCases TestCases TestCases TestCases TestCases TestCases TestCases TestCases TestCases TestCases TestCases TestCases TestCases TestCases TestCases TestCases TestCases TestCases TestCases TestCases TestCases TestCases TestCases TestCases TestCases TestCases TestCases TestCases TestCases TestCases TestCases TestCases TestCases TestCases TestCases TestCases TestCases TestCases TestCases TestCases TestCases TestCases TestCases TestCases TestCases TestCases | DV1: Original-Result-set Original-Result-set Original-Result-set Original-Result-set Original-Result-set Original-Result-set Original-Result-set Original-Result-set Original-Result-set Original-Result-set Original-Result-set Original-Result-set Original-Result-set Original-Result-set Original-Result-set Original-Result-set Original-Result-set Original-Result-set Original-Result-set Original-Result-set Original-Result-set Original-Result-set Original-Result-set Original-Result-set Original-Result-set Original-Result-set Original-Result-set Original-Result-set Original-Result-set | GF1: New-Resultset New-Resultset New-Resultset New-Resultset New-Resultset New-Resultset New-Resultset New-Resultset New-Resultset New-Resultset New-Resultset New-Resultset New-Resultset New-Resultset New-Resultset New-Resultset New-Resultset New-Resultset New-Resultset New-Resultset New-Resultset New-Resultset New-Resultset New-Resultset New-Resultset New-Resultset New-Resultset New-Resultset New-Resultset New-Resultset New-Resultset New-Resultset New-Resultset New-Resultset New-Resultset New-Resultset New-Resultset New-Resultset New-Resultset New-Resultset | IP1: Test cases will run when date tested is blank and Run Scenario Flag is "Y"
A2: Total Loan Amount | B2: WAVG Interest Rate | C2: WAVG Assessment Rate | D2: Max Loan Term | E2: Max IO Term | F2: Loan Amount 1 | G2: Interest Rate 1 | H2: Assessement Rate 1 | I2: Loan Term 1 | J2: IO Term 1 | K2: Loan Amount 2 | L2: Interest Rate 2 | M2: Assessment Rate 2 | N2: Loan Term 2 | O2: IO Term 2 | P2: Status 1 | Q2: Status 2 | R2: Status 3 | S2: Status 4 | T2: Status 5 | U2: Status 6 | V2: Couple With 1 | W2: Couple With 2 | X2: Couple With 3 | Y2: Couple With 4 | Z2: Couple With 5 | AA2: Couple With 6 | AB2: Dependants 1 | AC2: Dependants 2 | AD2: Dependants 3 | AE2: Dependants 4 | AF2: Dependants 5 | AG2: Dependants 6 | AH2: Gross Annual Income 1 | AI2: Gross Annual Income 2 | AJ2: Gross Annual Income 3 | AK2: Gross Annual Income 4 | AL2: Gross Annual Income 5 | AM2: Gross Annual Income 6 | AN2: Untaxed Income 1 | AO2: Untaxed Income 2 | AP2: Untaxed Income 3 | AQ2: Untaxed Income 4 | AR2: Untaxed Income 5 | AS2: Untaxed Income 6 | AT2: SEIC 1 | AU2: SEIC 2 | AV2: SEIC 3 | AW2: SEIC 4 | AX2: SEIC 5 | AY2: SEIC 6 | AZ2: Add Backs 1 | BA2: Add Backs 2 | BB2: Add Backs 3 | BC2: Add Backs 4 | BD2: Add Backs 5 | BE2: Add Backs 6 | BF2: NPBT 1 | BG2: NPBT 2 | BH2: NPBT 3 | BI2: NPBT 4 | BJ2: NPBT 5 | BK2: NPBT 6 | BL2: Investment Lending (eligible for negative gearing) - Gross Rental Income 1 | BM2: Investment Lending (eligible for negative gearing) - Gross Rental Income 2 | BN2: Investment Lending (eligible for negative gearing) - Gross Rental Income 3 | BO2: Investment Lending (eligible for negative gearing) - Gross Rental Income 4 | BP2: Investment Lending (eligible for negative gearing) - Gross Rental Income 5 | BQ2: Investment Lending (eligible for negative gearing) - Gross Rental Income 6 | BR2: Investment Lending (eligible for negative gearing) - Investment Property Loan Balance 1 | BS2: Investment Lending (eligible for negative gearing) - Investment Property Loan Balance 2 | BT2: Investment Lending (eligible for negative gearing) - Investment Property Loan Balance 3 | BU2: Investment Lending (eligible for negative gearing) - Investment Property Loan Balance 4 | BV2: Investment Lending (eligible for negative gearing) - Investment Property Loan Balance 5 | BW2: Investment Lending (eligible for negative gearing) - Investment Property Loan Balance 6 | BX2: Investment Lending (ineligible for negative gearing) - Gross Rental Income 1 | BY2: Investment Lending (ineligible for negative gearing) - Gross Rental Income 2 | BZ2: Investment Lending (ineligible for negative gearing) - Gross Rental Income 3 | CA2: Investment Lending (ineligible for negative gearing) - Gross Rental Income 4 | CB2: Investment Lending (ineligible for negative gearing) - Gross Rental Income 5 | CC2: Investment Lending (ineligible for negative gearing) - Gross Rental Income 6 | CD2: Investment Lending (ineligible for negative gearing) - Investment Property Loan Balance 1 | CE2: Investment Lending (ineligible for negative gearing) - Investment Property Loan Balance 2 | CF2: Investment Lending (ineligible for negative gearing) - Investment Property Loan Balance 3 | CG2: Investment Lending (ineligible for negative gearing) - Investment Property Loan Balance 4 | CH2: Investment Lending (ineligible for negative gearing) - Investment Property Loan Balance 5 | CI2: Investment Lending (ineligible for negative gearing) - Investment Property Loan Balance 6 | CJ2: Primary residence utilities, rates & expenses | CK2: Primary residence strata fees & land tax | CL2: Investment property expenses (negative gearing eligible pool) | CM2: Investment property expenses (negative gearing ineligible pool) | CN2: Telephone, internet, Pay TV & media streaming | CO2: Groceries | CP2: Recreation & Entertainment | CQ2: Clothing & Personal Care | CR2: Medical & Health | CS2: Transport | CT2: Education – non Private schooling | CU2: Education - Private schooling | CV2: Childcare | CW2: Insurance - General Basic | CX2: Insurance - Health, Sickness, Personal Accident & Life | CY2: Other Living Expenses | CZ2: Child & Spousal Maintenance | DA2: Compared To Hem - Primary residence costs including utilities, rates & expenses | DB2: Compared To Hem - Body Corporate Fees, Strata Fees, Land Tax on Owner Occupied property | DC2: Compared To Hem - Investment property expenses (negative gearing eligible pool) | DD2: Compared To Hem - Investment property costs including utilities, rates & strata fees & land tax | DE2: Compared To Hem - Telephone, internet, Pay TV & media streaming | DF2: Compared To Hem - Groceries | DG2: Compared To Hem - Recreation & Entertainment | DH2: Compared To Hem - Clothing & Personal Care | DI2: Compared To Hem - Medical & Health | DJ2: Compared To Hem - Transport | DK2: Compared To Hem - Education – non Private schooling | DL2: Compared To Hem - Education - Private schooling | DM2: Compared To Hem - Childcare | DN2: Compared To Hem - Insurance - General Basic | DO2: Compared To Hem - Insurance - Health, Sickness and Personal Accident, Life | DP2: Compared To Hem - Other Living Expenses | DQ2: Compared To Hem - Child and Spousal Maintenance | DR2: Rent/Board | DS2: Total Credit Card Limit | DT2: Other Mortgage Repayments | DU2: Other Liabilities | DV2: Tax Applicant 1 | DW2: Tax Applicant 2 | DX2: Tax Applicant 3 | DY2: Tax Applicant 4 | DZ2: Tax Applicant 5 | EA2: Tax Applicant 6 | EB2: Net Income Applicant 1 | EC2: Net Income Applicant 2 | ED2: Net Income Applicant 3 | EE2: Net Income Applicant 4 | EF2: Net Income Applicant 5 | EG2: Net Income Applicant 6 | EH2: Net Income Total | EI2: Hem Living Expense Applicant 1 | EJ2: Hem Living Expense Applicant 2 | EK2: Hem Living Expense Applicant 3 | EL2: Hem Living Expense Applicant 4 | EM2: Hem Living Expense Applicant 5 | EN2: Hem Living Expense Applicant 6 | EO2: Hem Living Expense Total | EP2: Customer Nominated Living Expenses | EQ2: Living Expense Used | ER2: Net Available Income | ES2: Baseline Assessment Rate | ET2: Assessment Loading | EU2: Credit Card Commitments | EV2: Workings for Negative Gearing | EW2: Other Mortgage Repayment Buffer | EX2: Rental Income Shading | EY2: Company Tax | EZ2: Actual Rate Monthly Total Income | FA2: Actual Rate Monthly - Net Income | FB2: Actual Rate Monthly - Living Costs | FC2: Actual Rate Monthly - Net Available Income | FD2: Actual Rate Monthly - Proposed Repayments | FE2: Actual Rate Monthly - Other Commitments | FF2: Actual Rate Annually Total Income | FG2: Actual Rate Annually - Net Income | FH2: Actual Rate Annually - Living Costs | FI2: Actual Rate Annually - Net Available Income | FJ2: Actual Rate Annually - Proposed Repayments | FK2: Actual Rate Annually - Other Commitments | FL2: Assessment Rate Monthly Total Income | FM2: Assessment Rate Monthly - Net Income | FN2: Assessment Rate Monthly - Living Costs | FO2: Assessment Rate Monthly - Net Available Income | FP2: Assessment Rate Monthly - Proposed Repayments | FQ2: Assessment Rate Monthly - Other Commitments | FR2: Assessment Rate Annually Total Income | FS2: Assessment Rate Annually - Net Income | FT2: Assessment Rate Annually - Living Costs | FU2: Assessment Rate Annually - Net Available Income | FV2: Assessment Rate Annually - Proposed Repayments | FW2: Assessment Rate Annually - Other Commitments | FX2: Actual NSR | FY2: Actual DSR | FZ2: Actual Results | GA2: Assessment NSR | GB2: Assessment DSR | GC2: Assessment Results | GD2: Eligible Loan Amount | GE2: Maximum Serviceable Loan Amount | GF2: Tax Applicant 1 | GG2: Tax Applicant 2 | GH2: Tax Applicant 3 | GI2: Tax Applicant 4 | GJ2: Tax Applicant 5 | GK2: Tax Applicant 6 | GL2: Net Income Applicant 1 | GM2: Net Income Applicant 2 | GN2: Net Income Applicant 3 | GO2: Net Income Applicant 4 | GP2: Net Income Applicant 5 | GQ2: Net Income Applicant 6 | GR2: Net Income Total | GS2: Hem Living Expense Applicant 1 | GT2: Hem Living Expense Applicant 2 | GU2: Hem Living Expense Applicant 3 | GV2: Hem Living Expense Applicant 4 | GW2: Hem Living Expense Applicant 5 | GX2: Hem Living Expense Applicant 6 | GY2: Hem Living Expense Total | GZ2: Customer Nominated Living Expenses | HA2: Living Expense Used | HB2: Net Available Income | HC2: Baseline Assessment Rate | HD2: Assessment Loading | HE2: Credit Card Commitments | HF2: Workings for Negative Gearing | HG2: Other Mortgage Repayment Buffer | HH2: Rental Income Shading | HI2: Company Tax | HJ2: Actual Rate Monthly Total Income | HK2: Actual Rate Monthly - Net Income | HL2: Actual Rate Monthly - Living Costs | HM2: Actual Rate Monthly - Net Available Income | HN2: Actual Rate Monthly - Proposed Repayments | HO2: Actual Rate Monthly - Other Commitments | HP2: Actual Rate Annually Total Income | HQ2: Actual Rate Annually - Net Income | HR2: Actual Rate Annually - Living Costs | HS2: Actual Rate Annually - Net Available Income | HT2: Actual Rate Annually - Proposed Repayments | HU2: Actual Rate Annually - Other Commitments | HV2: Assessment Rate Monthly Total Income | HW2: Assessment Rate Monthly - Net Income | HX2: Assessment Rate Monthly - Living Costs | HY2: Assessment Rate Monthly - Net Available Income | HZ2: Assessment Rate Monthly - Proposed Repayments | IA2: Assessment Rate Monthly - Other Commitments | IB2: Assessment Rate Annually Total Income | IC2: Assessment Rate Annually - Net Income | ID2: Assessment Rate Annually - Living Costs | IE2: Assessment Rate Annually - Net Available Income | IF2: Assessment Rate Annually - Proposed Repayments | IG2: Assessment Rate Annually - Other Commitments | IH2: Actual NSR | II2: Actual DSR | IJ2: Actual Results | IK2: Assessment NSR | IL2: Assessment DSR | IM2: Assessment Results | IN2: Eligible Loan Amount | IO2: Maximum Serviceable Loan Amount | IP2: Pass or Fail | IQ2: Run Scenario Flag | IR2: Date Tested | IS2: Scenario | IT2: Sequence | IU2: Name | IV2: Test Results notes
A3: 1000000 | B3: 0.06 | C3: 0.085 | D3: 30 | E3: 5 | F3: 1000000 | G3: 0.06 | H3: 0.085 | I3: 30 | J3: 5 | P3: Individual (Couple) | Q3: Individual (Couple) | V3: Applicant 2 | W3: Applicant 1 | AB3: 2 | AH3: 270000 | AI3: 0 | AJ3: 0 | AK3: 0 | AL3: 0 | AM3: 0 | AN3: 0 | AO3: 0 | AP3: 0 | AQ3: 0 | AR3: 0 | AS3: 0 | AT3: 135000 | AU3: 0 | AV3: 0 | AW3: 0 | AX3: 0 | AY3: 0 | AZ3: 0 | BA3: 0 | BB3: 0 | BC3: 0 | BD3: 0 | BE3: 0 | BF3: 100000 | BG3: 0 | BH3: 0 | BI3: 0 | BJ3: 0 | BK3: 0 | BL3: 0 | BM3: 100000 | BN3: 0 | BO3: 0 | BP3: 0 | BQ3: 0 | BR3: 0 | BS3: 300000 | BT3: 0 | BU3: 0 | BV3: 0 | BW3: 0 | CJ3: 100 | CK3: 0 | CL3: 100 | CM3: 0 | CN3: 80 | CO3: 300 | CP3: 80 | CQ3: 30 | CR3: 50 | CS3: 50 | CT3: 50 | CU3: 0 | CV3: 0 | CW3: 0 | CX3: 0 | CY3: 0 | CZ3: 0 | DA3: Yes | DB3: No | DC3: No | DD3: No | DE3: Yes | DF3: Yes | DG3: Yes | DH3: Yes | DI3: Yes | DJ3: Yes | DK3: Yes | DL3: No | DM3: Yes | DN3: Yes | DO3: No | DP3: No | DQ3: No | DR3: 0 | DS3: 5000 | DT3: 1000 | DU3: 500 | DV3: 181220 | DW3: 9889.6 | DX3: 0 | DY3: 0 | DZ3: 0 | EA3: 0 | EB3: 323780 | EC3: 70202.45 | ED3: 0 | EE3: 0 | EF3: 0 | EG3: 0 | EH3: 393982.45 | EI3: 82741.92 | EJ3: 0 | EK3: 0 | EL3: 0 | EM3: 0 | EN3: 0 | EO3: 82741.92 | EP3: 7920 | EQ3: 82741.92 | ER3: 311240.53 | ES3: 0.055 | ET3: 0.02 | EU3: 0.0382 | EV3: 0.0609 | EW3: 1.25 | EX3: 0.8 | EY3: 0.25 | EZ3: 48750 | FA3: 32831.87 | FB3: 6895.16 | FC3: 25936.71 | FD3: 6443.01 | FE3: 1941 | FF3: 585000 | FG3: 393982.45 | FH3: 82741.92 | FI3: 311240.53 | FJ3: 77316.17 | FK3: 23292 | FL3: 48750 | FM3: 32831.87 | FN3: 6895.16 | FO3: 25936.71 | FP3: 7718.16 | FQ3: 1941 | FR3: 585000 | FS3: 393982.45 | FT3: 82741.92 | FU3: 311240.53 | FV3: 92617.95 | FW3: 23292 | FX3: 3.09 | FY3: 0.1719797747 | FZ3: PASS | GA3: 2.68 | GB3: 0.1981366604 | GC3: PASS | GD3: 1000000 | GE3: 3108900.72 | GF3: 181220 | GG3: 9889.6 | GH3: 0 | GI3: 0 | GJ3: 0 | GK3: 0 | GL3: 323780 | GM3: 70202.45 | GN3: 0 | GO3: 0 | GP3: 0 | GQ3: 0 | GR3: 393982.45 | GS3: 82741.92 | GT3: 0 | GU3: 0 | GV3: 0 | GW3: 0 | GX3: 0 | GY3: 82741.92 | GZ3: 7920 | HA3: 82741.92 | HB3: 311240.53 | HC3: 0.055 | HD3: 0.02 | HE3: 0.0382 | HF3: 0.0609 | HG3: 1.25 | HH3: 0.8 | HI3: 0.25 | HJ3: 48750 | HK3: 32831.87 | HL3: 6895.16 | HM3: 25936.71 | HN3: 6443.01 | HO3: 1941 | HP3: 585000 | HQ3: 393982.45 | HR3: 82741.92 | HS3: 311240.53 | HT3: 77316.17 | HU3: 23292 | HV3: 48750 | HW3: 32831.87 | HX3: 6895.16 | HY3: 25936.71 | HZ3: 7718.16 | IA3: 1941 | IB3: 585000 | IC3: 393982.45 | ID3: 82741.92 | IE3: 311240.53 | IF3: 92617.95 | IG3: 23292 | IH3: 3.09 | II3: 0.1719797747 | IJ3: PASS | IK3: 2.68 | IL3: 0.1981366604 | IM3: PASS | IN3: 1000000 | IO3: 3108900.72 | IP3: =IF(AND(DV3=GF3,DW3=GG3,DX3=GH3,DY3=GI3,DZ3=GJ3,EA3=GK3,EB3=GL3,EC3=GM3,ED3=GN3,EE3=GO3,EF3=GP3,EG3=GQ3,EH3=GR3,EI3=GS3,EJ3=GT3,EK3=GU3,EL3=GV3,EM3=GW3,EN3=GX3,EO3=GY3,EP3=GZ3,EQ3=HA3,ER3=HB3,ES3=HC3,ET3=HD3,EU3=HE3,EV3=HF3,EW3=HG3,EX3=HH3,EY3=HI3,EZ3=HJ3,FA3=HK3,FB3=HL3,FC3=HM3,FD3=HN3,FE3=HO3,FF3=HP3,FG3=HQ3,FH3=HR3,FI3=HS3,FJ3=HT3,FK3=HU3,FL3=HV3,FM3=HW3,FN3=HX3,FO3=HY3,FP3=HZ3,FQ3=IA3,FR3=IB3,FS3=IC3,FT3=ID3,FU3=IE3,FV3=IF3,FW3=IG3,FX3=IH3,FY3=II3,FZ3=IJ3,GA3=IK3,GB3=IL3,GC3=IM3,GD3=IN3),"Pass","Fail") -> Pass | IQ3: Y | IR3: 2026-07-14T15:15:49 | IT3: Case 1 | IU3: Neil | IV3: Reconciled - tax change | IW3: =IO3-GE3 -> 0
A4: 1000000 | B4: 0.06 | C4: 0.085 | D4: 25 | E4: 0 | F4: 1000000 | G4: 0.06 | H4: 0.085 | I4: 25 | J4: 0 | P4: Individual (Couple) | Q4: Individual (Couple) | V4: Applicant 2 | W4: Applicant 1 | AB4: 2 | AH4: 260000 | AI4: 0 | AJ4: 0 | AK4: 0 | AL4: 0 | AM4: 0 | AN4: 0 | AO4: 0 | AP4: 0 | AQ4: 0 | AR4: 0 | AS4: 0 | AT4: 135000 | AU4: 0 | AV4: 0 | AW4: 0 | AX4: 0 | AY4: 0 | AZ4: 0 | BA4: 0 | BB4: 0 | BC4: 0 | BD4: 0 | BE4: 0 | BF4: 0 | BG4: 0 | BH4: 0 | BI4: 0 | BJ4: 0 | BK4: 0 | BL4: 0 | BM4: 100000 | BN4: 0 | BO4: 0 | BP4: 0 | BQ4: 0 | BR4: 0 | BS4: 0 | BT4: 0 | BU4: 0 | BV4: 0 | BW4: 0 | CJ4: 0 | CK4: 0 | CL4: 0 | CM4: 0 | CN4: 0 | CO4: 0 | CP4: 0 | CQ4: 0 | CR4: 0 | CS4: 0 | CT4: 0 | CU4: 0 | CV4: 2000 | CW4: 0 | CX4: 0 | CY4: 0 | CZ4: 0 | DA4: Yes | DB4: No | DC4: No | DD4: No | DE4: Yes | DF4: Yes | DG4: Yes | DH4: Yes | DI4: Yes | DJ4: Yes | DK4: Yes | DL4: No | DM4: Yes | DN4: Yes | DO4: No | DP4: No | DQ4: No | DR4: 0 | DS4: 5000 | DT4: 1000 | DU4: 500 | DV4: 151520 | DW4: 16120 | DX4: 0 | DY4: 0 | DZ4: 0 | EA4: 0 | EB4: 243480 | EC4: 63880 | ED4: 0 | EE4: 0 | EF4: 0 | EG4: 0 | EH4: 307360 | EI4: 82741.92 | EJ4: 0 | EK4: 0 | EL4: 0 | EM4: 0 | EN4: 0 | EO4: 82741.92 | EP4: 24000 | EQ4: 82741.92 | ER4: 224618.08 | ES4: 0.055 | ET4: 0.02 | EU4: 0.0382 | EV4: 0.0609 | EW4: 1.25 | EX4: 0.8 | EY4: 0.25 | EZ4: 39583.33 | FA4: 25613.33 | FB4: 6895.16 | FC4: 18718.17 | FD4: 6443.01 | FE4: 1941 | FF4: 475000 | FG4: 307360 | FH4: 82741.92 | FI4: 224618.08 | FJ4: 77316.17 | FK4: 23292 | FL4: 39583.33 | FM4: 25613.33 | FN4: 6895.16 | FO4: 18718.17 | FP4: 7718.16 | FQ4: 1941 | FR4: 475000 | FS4: 307360 | FT4: 82741.92 | FU4: 224618.08 | FV4: 92617.95 | FW4: 23292 | FX4: 2.23 | FY4: 0.2118066698 | FZ4: PASS | GA4: 1.93 | GB4: 0.2440209396 | GC4: PASS | GD4: 1000000 | GE4: 2173704 | GF4: 151520 | GG4: 16120 | GH4: 0 | GI4: 0 | GJ4: 0 | GK4: 0 | GL4: 243480 | GM4: 63880 | GN4: 0 | GO4: 0 | GP4: 0 | GQ4: 0 | GR4: 307360 | GS4: 82741.92 | GT4: 0 | GU4: 0 | GV4: 0 | GW4: 0 | GX4: 0 | GY4: 82741.92 | GZ4: 24000 | HA4: 82741.92 | HB4: 224618.08 | HC4: 0.055 | HD4: 0.02 | HE4: 0.0382 | HF4: 0.0609 | HG4: 1.25 | HH4: 0.8 | HI4: 0.25 | HJ4: 39583.33 | HK4: 25613.33 | HL4: 6895.16 | HM4: 18718.17 | HN4: 6443.01 | HO4: 1941 | HP4: 475000 | HQ4: 307360 | HR4: 82741.92 | HS4: 224618.08 | HT4: 77316.17 | HU4: 23292 | HV4: 39583.33 | HW4: 25613.33 | HX4: 6895.16 | HY4: 18718.17 | HZ4: 7718.16 | IA4: 1941 | IB4: 475000 | IC4: 307360 | ID4: 82741.92 | IE4: 224618.08 | IF4: 92617.95 | IG4: 23292 | IH4: 2.23 | II4: 0.2118066698 | IJ4: PASS | IK4: 1.93 | IL4: 0.2440209396 | IM4: PASS | IN4: 1000000 | IO4: 2173704 | IP4: Pass | IQ4: Y | IR4: 2026-07-14T15:15:52 | IT4: Case 2 | IU4: Neil | IV4: Reconciled - tax change | IW4: =IO4-GE4 -> 0
A5: 1000000 | B5: 0.04 | C5: 0.065 | D5: 31 | E5: 0 | F5: 1000000 | G5: 0.04 | H5: 0.065 | I5: 31 | J5: 0 | P5: Individual (Couple) | Q5: Individual (Couple) | V5: Applicant 2 | W5: Applicant 1 | AB5: 2 | AH5: 260000 | AI5: 0 | AJ5: 0 | AK5: 0 | AL5: 0 | AM5: 0 | AN5: 0 | AO5: 0 | AP5: 0 | AQ5: 0 | AR5: 0 | AS5: 0 | AT5: 135000 | AU5: 0 | AV5: 0 | AW5: 0 | AX5: 0 | AY5: 0 | AZ5: 0 | BA5: 0 | BB5: 0 | BC5: 0 | BD5: 0 | BE5: 0 | BF5: 0 | BG5: 0 | BH5: 0 | BI5: 0 | BJ5: 0 | BK5: 0 | BL5: 0 | BM5: 100000 | BN5: 0 | BO5: 0 | BP5: 0 | BQ5: 0 | BR5: 0 | BS5: 1000000 | BT5: 0 | BU5: 0 | BV5: 0 | BW5: 0 | CJ5: 500 | CK5: 0 | CL5: 300 | CM5: 0 | CN5: 300 | CO5: 1200 | CP5: 1500 | CQ5: 1200 | CR5: 500 | CS5: 400 | CT5: 500 | CU5: 0 | CV5: 0 | CW5: 500 | CX5: 0 | CY5: 0 | CZ5: 0 | DA5: Yes | DB5: No | DC5: No | DD5: No | DE5: Yes | DF5: Yes | DG5: Yes | DH5: Yes | DI5: Yes | DJ5: Yes | DK5: Yes | DL5: No | DM5: Yes | DN5: Yes | DO5: No | DP5: No | DQ5: No | DR5: 0 | DS5: 5000 | DT5: 10000 | DU5: 500 | DV5: 151520 | DW5: 0 | DX5: 0 | DY5: 0 | DZ5: 0 | EA5: 0 | EB5: 243480 | EC5: 80000 | ED5: 0 | EE5: 0 | EF5: 0 | EG5: 0 | EH5: 323480 | EI5: 82741.92 | EJ5: 0 | EK5: 0 | EL5: 0 | EM5: 0 | EN5: 0 | EO5: 82741.92 | EP5: 75600 | EQ5: 82741.92 | ER5: 240738.08 | ES5: 0.055 | ET5: 0.02 | EU5: 0.0382 | EV5: 0.0609 | EW5: 1.25 | EX5: 0.8 | EY5: 0.25 | EZ5: 39583.33 | FA5: 26956.67 | FB5: 6895.16 | FC5: 20061.51 | FD5: 4694.71 | FE5: 13191 | FF5: 475000 | FG5: 323480 | FH5: 82741.92 | FI5: 240738.08 | FJ5: 56336.57 | FK5: 158292 | FL5: 39583.33 | FM5: 26956.67 | FN5: 6895.16 | FO5: 20061.51 | FP5: 5926.95 | FQ5: 13191 | FR5: 475000 | FS5: 323480 | FT5: 82741.92 | FU5: 240738.08 | FV5: 71123.4 | FW5: 158292 | FX5: 1.12 | FY5: 0.451849612 | FZ5: PASS | GA5: 1.04 | GB5: 0.4829797883 | GC5: PASS | GD5: 1000000 | GE5: 1159112.2 | GF5: 151520 | GG5: 0 | GH5: 0 | GI5: 0 | GJ5: 0 | GK5: 0 | GL5: 243480 | GM5: 80000 | GN5: 0 | GO5: 0 | GP5: 0 | GQ5: 0 | GR5: 323480 | GS5: 82741.92 | GT5: 0 | GU5: 0 | GV5: 0 | GW5: 0 | GX5: 0 | GY5: 82741.92 | GZ5: 75600 | HA5: 82741.92 | HB5: 240738.08 | HC5: 0.055 | HD5: 0.02 | HE5: 0.0382 | HF5: 0.0609 | HG5: 1.25 | HH5: 0.8 | HI5: 0.25 | HJ5: 39583.33 | HK5: 26956.67 | HL5: 6895.16 | HM5: 20061.51 | HN5: 4694.71 | HO5: 13191 | HP5: 475000 | HQ5: 323480 | HR5: 82741.92 | HS5: 240738.08 | HT5: 56336.57 | HU5: 158292 | HV5: 39583.33 | HW5: 26956.67 | HX5: 6895.16 | HY5: 20061.51 | HZ5: 5926.95 | IA5: 13191 | IB5: 475000 | IC5: 323480 | ID5: 82741.92 | IE5: 240738.08 | IF5: 71123.4 | IG5: 158292 | IH5: 1.12 | II5: 0.451849612 | IJ5: PASS | IK5: 1.04 | IL5: 0.4829797883 | IM5: PASS | IN5: 1000000 | IO5: 1159112.2 | IP5: Pass | IQ5: Y | IR5: 2026-07-14T15:15:55 | IT5: Case 3 | IU5: Neil | IV5: Reconciled - tax change | IW5: 0
A6: 2000000 | B6: 0.05 | C6: 0.075 | D6: 25 | E6: 1 | F6: 2000000 | G6: 0.05 | H6: 0.075 | I6: 25 | J6: 1 | P6: Individual (Single) | Q6: Individual (Couple) | R6: Individual (Single) | W6: Non-loan Party | AD6: 3 | AH6: 80000 | AI6: 100000 | AJ6: 120000 | AK6: 0 | AL6: 0 | AM6: 0 | AN6: 0 | AO6: 0 | AP6: 0 | AQ6: 0 | AR6: 0 | AS6: 0 | AT6: 0 | AU6: 0 | AV6: 0 | AW6: 0 | AX6: 0 | AY6: 0 | AZ6: 0 | BA6: 0 | BB6: 0 | BC6: 0 | BD6: 0 | BE6: 0 | BF6: 0 | BG6: 0 | BH6: 0 | BI6: 0 | BJ6: 0 | BK6: 0 | BL6: 0 | BM6: 0 | BN6: 0 | BO6: 0 | BP6: 0 | BQ6: 0 | BR6: 0 | BS6: 0 | BT6: 0 | BU6: 0 | BV6: 0 | BW6: 0 | CJ6: 0 | CK6: 0 | CL6: 0 | CM6: 0 | CN6: 0 | CO6: 0 | CP6: 0 | CQ6: 0 | CR6: 0 | CS6: 0 | CT6: 0 | CU6: 0 | CV6: 0 | CW6: 0 | CX6: 0 | CY6: 0 | CZ6: 0 | DA6: Yes | DB6: No | DC6: No | DD6: No | DE6: Yes | DF6: Yes | DG6: Yes | DH6: Yes | DI6: Yes | DJ6: Yes | DK6: Yes | DL6: No | DM6: Yes | DN6: Yes | DO6: No | DP6: No | DQ6: No | DR6: 0 | DS6: 0 | DT6: 0 | DU6: 0 | DV6: 16120 | DW6: 22520 | DX6: 28920 | DY6: 0 | DZ6: 0 | EA6: 0 | EB6: 63880 | EC6: 77480 | ED6: 91080 | EE6: 0 | EF6: 0 | EG6: 0 | EH6: 232440 | EI6: 21844.65 | EJ6: 39412.02 | EK6: 46531.86 | EL6: 0 | EM6: 0 | EN6: 0 | EO6: 107788.52 | EP6: 0 | EQ6: 107788.52 | ER6: 124651.48 | ES6: 0.055 | ET6: 0.02 | EU6: 0.0382 | EV6: 0.0609 | EW6: 1.25 | EX6: 0.8 | EY6: 0.25 | EZ6: 25000 | FA6: 19370 | FB6: 8982.38 | FC6: 10387.62 | FD6: 11937.95 | FE6: 0 | FF6: 300000 | FG6: 232440 | FH6: 107788.52 | FI6: 124651.48 | FJ6: 143255.4 | FK6: 0 | FL6: 25000 | FM6: 19370 | FN6: 8982.38 | FO6: 10387.62 | FP6: 14355.19 | FQ6: 0 | FR6: 300000 | FS6: 232440 | FT6: 107788.52 | FU6: 124651.48 | FV6: 172262.3 | FW6: 0 | FX6: 0.87 | FY6: 0.4775180098 | FZ6: FAIL | GA6: 0.72 | GB6: 0.5742076636 | GC6: FAIL | GD6: 1447141.95 | GE6: 1447141.95 | GF6: 16120 | GG6: 22520 | GH6: 28920 | GI6: 0 | GJ6: 0 | GK6: 0 | GL6: 63880 | GM6: 77480 | GN6: 91080 | GO6: 0 | GP6: 0 | GQ6: 0 | GR6: 232440 | GS6: 21844.65 | GT6: 39412.02 | GU6: 46531.86 | GV6: 0 | GW6: 0 | GX6: 0 | GY6: 107788.52 | GZ6: 0 | HA6: 107788.52 | HB6: 124651.48 | HC6: 0.055 | HD6: 0.02 | HE6: 0.0382 | HF6: 0.0609 | HG6: 1.25 | HH6: 0.8 | HI6: 0.25 | HJ6: 25000 | HK6: 19370 | HL6: 8982.38 | HM6: 10387.62 | HN6: 11937.95 | HO6: 0 | HP6: 300000 | HQ6: 232440 | HR6: 107788.52 | HS6: 124651.48 | HT6: 143255.4 | HU6: 0 | HV6: 25000 | HW6: 19370 | HX6: 8982.38 | HY6: 10387.62 | HZ6: 14355.19 | IA6: 0 | IB6: 300000 | IC6: 232440 | ID6: 107788.52 | IE6: 124651.48 | IF6: 172262.3 | IG6: 0 | IH6: 0.87 | II6: 0.4775180098 | IJ6: FAIL | IK6: 0.72 | IL6: 0.5742076636 | IM6: FAIL | IN6: 1447141.95 | IO6: 1447141.95 | IP6: Pass | IQ6: Y | IR6: 2026-07-14T15:15:57 | IT6: Case 4 | IU6: Neil | IV6: Reconciled - tax change | IW6: 0
A7: 1000000 | B7: 0.04 | C7: 0.065 | D7: 25 | E7: 0 | F7: 1000000 | G7: 0.04 | H7: 0.065 | I7: 25 | J7: 0 | P7: Individual (Single) | Q7: Individual (Single) | R7: Individual (Single) | S7: Individual (Single) | T7: Individual (Single) | U7: Individual (Single) | AH7: 18200 | AI7: 22000 | AJ7: 30000 | AK7: 40000 | AL7: 95000 | AM7: 190000 | AN7: 0 | AO7: 0 | AP7: 0 | AQ7: 0 | AR7: 0 | AS7: 0 | AT7: 0 | AU7: 0 | AV7: 0 | AW7: 0 | AX7: 0 | AY7: 0 | AZ7: 0 | BA7: 0 | BB7: 0 | BC7: 0 | BD7: 0 | BE7: 0 | BF7: 0 | BG7: 0 | BH7: 0 | BI7: 0 | BJ7: 0 | BK7: 0 | BL7: 0 | BM7: 0 | BN7: 0 | BO7: 0 | BP7: 0 | BQ7: 0 | BR7: 0 | BS7: 0 | BT7: 0 | BU7: 0 | BV7: 0 | BW7: 0 | CJ7: 0 | CK7: 0 | CL7: 0 | CM7: 0 | CN7: 0 | CO7: 0 | CP7: 0 | CQ7: 0 | CR7: 0 | CS7: 0 | CT7: 0 | CU7: 0 | CV7: 0 | CW7: 0 | CX7: 0 | CY7: 0 | CZ7: 0 | DA7: Yes | DB7: No | DC7: No | DD7: No | DE7: Yes | DF7: Yes | DG7: Yes | DH7: Yes | DI7: Yes | DJ7: Yes | DK7: Yes | DL7: No | DM7: Yes | DN7: Yes | DO7: No | DP7: No | DQ7: No | DR7: 0 | DS7: 0 | DT7: 0 | DU7: 0 | DV7: 0 | DW7: 570 | DX7: 1968.9 | DY7: 4070 | DZ7: 20920 | EA7: 55170 | EB7: 18200 | EC7: 22000 | ED7: 28731.1 | EE7: 36505 | EF7: 74080 | EG7: 134830 | EH7: 314346.1 | EI7: 16510.72 | EJ7: 16510.72 | EK7: 17437.57 | EL7: 18263.75 | EM7: 25030.81 | EN7: 40880.44 | EO7: 134634.02 | EP7: 0 | EQ7: 134634.02 | ER7: 179712.08 | ES7: 0.055 | ET7: 0.02 | EU7: 0.0382 | EV7: 0.0609 | EW7: 1.25 | EX7: 0.8 | EY7: 0.25 | EZ7: 32933.33 | FA7: 26195.51 | FB7: 11219.5 | FC7: 14976.01 | FD7: 5278.37 | FE7: 0 | FF7: 395200 | FG7: 314346.1 | FH7: 134634.02 | FI7: 179712.08 | FJ7: 63340.42 | FK7: 0 | FL7: 32933.33 | FM7: 26195.51 | FN7: 11219.5 | FO7: 14976.01 | FP7: 6443.01 | FQ7: 0 | FR7: 395200 | FS7: 314346.1 | FT7: 134634.02 | FU7: 179712.08 | FV7: 77316.17 | FW7: 0 | FX7: 2.83 | FY7: 0.1602743442 | FZ7: PASS | GA7: 2.32 | GB7: 0.1956380774 | GC7: PASS | GD7: 1000000 | GE7: 2324378 | GF7: 0 | GG7: 570 | GH7: 1968.9 | GI7: 4070 | GJ7: 20920 | GK7: 55170 | GL7: 18200 | GM7: 22000 | GN7: 28731.1 | GO7: 36505 | GP7: 74080 | GQ7: 134830 | GR7: 314346.1 | GS7: 16510.72 | GT7: 16510.72 | GU7: 17437.57 | GV7: 18263.75 | GW7: 25030.81 | GX7: 40880.44 | GY7: 134634.02 | GZ7: 0 | HA7: 134634.02 | HB7: 179712.08 | HC7: 0.055 | HD7: 0.02 | HE7: 0.0382 | HF7: 0.0609 | HG7: 1.25 | HH7: 0.8 | HI7: 0.25 | HJ7: 32933.33 | HK7: 26195.51 | HL7: 11219.5 | HM7: 14976.01 | HN7: 5278.37 | HO7: 0 | HP7: 395200 | HQ7: 314346.1 | HR7: 134634.02 | HS7: 179712.08 | HT7: 63340.42 | HU7: 0 | HV7: 32933.33 | HW7: 26195.51 | HX7: 11219.5 | HY7: 14976.01 | HZ7: 6443.01 | IA7: 0 | IB7: 395200 | IC7: 314346.1 | ID7: 134634.02 | IE7: 179712.08 | IF7: 77316.17 | IG7: 0 | IH7: 2.83 | II7: 0.1602743442 | IJ7: PASS | IK7: 2.32 | IL7: 0.1956380774 | IM7: PASS | IN7: 1000000 | IO7: 2324378 | IP7: Pass | IQ7: Y | IR7: 2026-07-14T15:16:00 | IT7: Case 5 | IU7: Neil | IV7: Reconciled - tax change | IW7: 0
A8: 2500000 | B8: 0.0679 | C8: 0.0929 | D8: 40 | E8: 5 | F8: 2500000 | G8: 0.0679 | H8: 0.0929 | I8: 40 | J8: 5 | P8: Company | Q8: Individual (Single) | R8: Individual (Couple) | S8: Individual (Couple) | T8: Individual (Couple) | U8: Individual (Single) | X8: Non-loan Party | Y8: Applicant 5 | Z8: Applicant 4 | AH8: 0 | AI8: 0 | AJ8: 80000 | AK8: 30000 | AL8: 40000 | AM8: 1 | AN8: 0 | AO8: 0 | AP8: 0 | AQ8: 0 | AR8: 0 | AS8: 0 | AT8: 0 | AU8: 150000 | AV8: 0 | AW8: 0 | AX8: 0 | AY8: 0 | AZ8: 75000 | BA8: 0 | BB8: 0 | BC8: 0 | BD8: 0 | BE8: 0 | BF8: 535000 | BG8: 0 | BH8: 0 | BI8: 0 | BJ8: 0 | BK8: 0 | BL8: 0 | BM8: 0 | BN8: 0 | BO8: 50000 | BP8: 50000 | BQ8: 0 | BR8: 0 | BS8: 0 | BT8: 0 | BU8: 1000000 | BV8: 1000000 | BW8: 0 | CJ8: 0 | CK8: 0 | CL8: 0 | CM8: 0 | CN8: 0 | CO8: 0 | CP8: 0 | CQ8: 0 | CR8: 0 | CS8: 0 | CT8: 0 | CU8: 0 | CV8: 20000 | CW8: 0 | CX8: 0 | CY8: 0 | CZ8: 0 | DA8: Yes | DB8: No | DC8: No | DD8: No | DE8: Yes | DF8: Yes | DG8: Yes | DH8: Yes | DI8: Yes | DJ8: Yes | DK8: Yes | DL8: No | DM8: Yes | DN8: Yes | DO8: No | DP8: No | DQ8: No | DR8: 0 | DS8: 50000 | DT8: 15000 | DU8: 0 | DV8: 133750 | DW8: 39570 | DX8: 16120 | DY8: 0 | DZ8: 135 | EA8: 0 | EB8: 476250 | EC8: 110430 | ED8: 63880 | EE8: 70000 | EF8: 80000 | EG8: 1 | EH8: 800561 | EI8: 0 | EJ8: 33751.32 | EK8: 36231.28 | EL8: 31831.7 | EM8: 0 | EN8: 16510.72 | EO8: 118325.02 | EP8: 240000 | EQ8: 240000 | ER8: 560561 | ES8: 0.055 | ET8: 0.02 | EU8: 0.0382 | EV8: 0.0609 | EW8: 1.25 | EX8: 0.8 | EY8: 0.25 | EZ8: 82500.08 | FA8: 66713.42 | FB8: 20000 | FC8: 46713.42 | FD8: 15604.88 | FE8: 20660 | FF8: 990001 | FG8: 800561 | FH8: 240000 | FI8: 560561 | FJ8: 187258.53 | FK8: 247920 | FL8: 82500.08 | FM8: 66713.42 | FN8: 20000 | FO8: 46713.42 | FP8: 19208.39 | FQ8: 20660 | FR8: 990001 | FS8: 800561 | FT8: 240000 | FU8: 560561 | FV8: 230500.65 | FW8: 247920 | FX8: 1.28 | FY8: 0.4395738335 | FZ8: INCOMPLETE | GA8: 1.17 | GB8: 0.4832526985 | GC8: INCOMPLETE | GD8: INCOMPLETE | GE8: INCOMPLETE | GF8: 133750 | GG8: 39570 | GH8: 16120 | GI8: 0 | GJ8: 135 | GK8: 0 | GL8: 476250 | GM8: 110430 | GN8: 63880 | GO8: 70000 | GP8: 80000 | GQ8: 1 | GR8: 800561 | GS8: 0 | GT8: 33751.32 | GU8: 36231.28 | GV8: 31831.7 | GW8: 0 | GX8: 16510.72 | GY8: 118325.02 | GZ8: 240000 | HA8: 240000 | HB8: 560561 | HC8: 0.055 | HD8: 0.02 | HE8: 0.0382 | HF8: 0.0609 | HG8: 1.25 | HH8: 0.8 | HI8: 0.25 | HJ8: 82500.08 | HK8: 66713.42 | HL8: 20000 | HM8: 46713.42 | HN8: 15604.88 | HO8: 20660 | HP8: 990001 | HQ8: 800561 | HR8: 240000 | HS8: 560561 | HT8: 187258.53 | HU8: 247920 | HV8: 82500.08 | HW8: 66713.42 | HX8: 20000 | HY8: 46713.42 | HZ8: 19208.39 | IA8: 20660 | IB8: 990001 | IC8: 800561 | ID8: 240000 | IE8: 560561 | IF8: 230500.65 | IG8: 247920 | IH8: 1.28 | II8: 0.4395738335 | IJ8: INCOMPLETE | IK8: 1.17 | IL8: 0.4832526985 | IM8: INCOMPLETE | IN8: INCOMPLETE | IO8: INCOMPLETE | IP8: Pass | IQ8: Y | IR8: 2026-07-14T15:16:03 | IT8: Case 6 | IU8: Neil | IV8: IO term on 40 year loan term causing incomplete results
A9: 2000000 | B9: 0.0529 | C9: 0.0779 | D9: 30 | E9: 3 | F9: 2000000 | G9: 0.0529 | H9: 0.0779 | I9: 30 | J9: 3 | P9: Company | Q9: Individual (Single) | AH9: 0 | AI9: 1 | AJ9: 0 | AK9: 0 | AL9: 0 | AM9: 0 | AN9: 0 | AO9: 30000 | AP9: 0 | AQ9: 0 | AR9: 0 | AS9: 0 | AT9: 0 | AU9: 0 | AV9: 0 | AW9: 0 | AX9: 0 | AY9: 0 | AZ9: 0 | BA9: 0 | BB9: 0 | BC9: 0 | BD9: 0 | BE9: 0 | BF9: 300000 | BG9: 0 | BH9: 0 | BI9: 0 | BJ9: 0 | BK9: 0 | BL9: 0 | BM9: 0 | BN9: 0 | BO9: 0 | BP9: 0 | BQ9: 0 | BR9: 0 | BS9: 0 | BT9: 0 | BU9: 0 | BV9: 0 | BW9: 0 | CJ9: 0 | CK9: 0 | CL9: 0 | CM9: 0 | CN9: 0 | CO9: 0 | CP9: 0 | CQ9: 0 | CR9: 0 | CS9: 0 | CT9: 0 | CU9: 0 | CV9: 0 | CW9: 0 | CX9: 0 | CY9: 0 | CZ9: 0 | DA9: Yes | DB9: No | DC9: No | DD9: No | DE9: Yes | DF9: Yes | DG9: Yes | DH9: Yes | DI9: Yes | DJ9: Yes | DK9: Yes | DL9: No | DM9: Yes | DN9: Yes | DO9: No | DP9: No | DQ9: No | DR9: 0 | DS9: 0 | DT9: 0 | DU9: 0 | DV9: 75000 | DW9: 0 | DX9: 0 | DY9: 0 | DZ9: 0 | EA9: 0 | EB9: 225000 | EC9: 30001 | ED9: 0 | EE9: 0 | EF9: 0 | EG9: 0 | EH9: 255001 | EI9: 0 | EJ9: 17437.57 | EK9: 0 | EL9: 0 | EM9: 0 | EN9: 0 | EO9: 17437.57 | EP9: 0 | EQ9: 17437.57 | ER9: 237563.43 | ES9: 0.055 | ET9: 0.02 | EU9: 0.0382 | EV9: 0.0609 | EW9: 1.25 | EX9: 0.8 | EY9: 0.25 | EZ9: 27500.08 | FA9: 21250.08 | FB9: 1453.13 | FC9: 19796.95 | FD9: 11608.05 | FE9: 0 | FF9: 330001 | FG9: 255001 | FH9: 17437.57 | FI9: 237563.43 | FJ9: 139296.62 | FK9: 0 | FL9: 27500.08 | FM9: 21250.08 | FN9: 1453.13 | FO9: 19796.95 | FP9: 14136.59 | FQ9: 0 | FR9: 330001 | FS9: 255001 | FT9: 17437.57 | FU9: 237563.43 | FV9: 169639.12 | FW9: 0 | FX9: 1.7 | FY9: 0.4221096996 | FZ9: PASS | GA9: 1.4 | GB9: 0.5140563846 | GC9: PASS | GD9: 2000000 | GE9: 2800674.73 | GF9: 75000 | GG9: 0 | GH9: 0 | GI9: 0 | GJ9: 0 | GK9: 0 | GL9: 225000 | GM9: 30001 | GN9: 0 | GO9: 0 | GP9: 0 | GQ9: 0 | GR9: 255001 | GS9: 0 | GT9: 17437.57 | GU9: 0 | GV9: 0 | GW9: 0 | GX9: 0 | GY9: 17437.57 | GZ9: 0 | HA9: 17437.57 | HB9: 237563.43 | HC9: 0.055 | HD9: 0.02 | HE9: 0.0382 | HF9: 0.0609 | HG9: 1.25 | HH9: 0.8 | HI9: 0.25 | HJ9: 27500.08 | HK9: 21250.08 | HL9: 1453.13 | HM9: 19796.95 | HN9: 11608.05 | HO9: 0 | HP9: 330001 | HQ9: 255001 | HR9: 17437.57 | HS9: 237563.43 | HT9: 139296.62 | HU9: 0 | HV9: 27500.08 | HW9: 21250.08 | HX9: 1453.13 | HY9: 19796.95 | HZ9: 14136.59 | IA9: 0 | IB9: 330001 | IC9: 255001 | ID9: 17437.57 | IE9: 237563.43 | IF9: 169639.12 | IG9: 0 | IH9: 1.7 | II9: 0.4221096996 | IJ9: PASS | IK9: 1.4 | IL9: 0.5140563846 | IM9: PASS | IN9: 2000000 | IO9: 2800674.73 | IP9: Pass | IQ9: Y | IR9: 2026-07-14T15:16:06 | IT9: Case 7 | IU9: Neil | IV9: Reconciled - Investment property NG calculation change | IW9: 0
A10: 350000 | B10: 0.06 | C10: 0.085 | D10: 12 | E10: 5 | F10: 350000 | G10: 0.06 | H10: 0.085 | I10: 12 | J10: 5 | P10: Individual (Couple) | Q10: Individual (Couple) | V10: Applicant 2 | W10: Applicant 1 | AB10: 3 | AC10: 2 | AH10: 100000 | AI10: 80000 | AJ10: 0 | AK10: 0 | AL10: 0 | AM10: 0 | AN10: 0 | AO10: 1 | AP10: 0 | AQ10: 0 | AR10: 0 | AS10: 0 | AT10: 0 | AU10: 25000 | AV10: 0 | AW10: 0 | AX10: 0 | AY10: 0 | AZ10: 0 | BA10: 0 | BB10: 0 | BC10: 0 | BD10: 0 | BE10: 0 | BF10: 0 | BG10: 0 | BH10: 0 | BI10: 0 | BJ10: 0 | BK10: 0 | BL10: 0 | BM10: 0 | BN10: 0 | BO10: 0 | BP10: 0 | BQ10: 0 | BR10: 0 | BS10: 0 | BT10: 0 | BU10: 0 | BV10: 0 | BW10: 0 | CJ10: 0 | CK10: 0 | CL10: 0 | CM10: 0 | CN10: 0 | CO10: 0 | CP10: 0 | CQ10: 0 | CR10: 0 | CS10: 0 | CT10: 0 | CU10: 0 | CV10: 0 | CW10: 0 | CX10: 0 | CY10: 0 | CZ10: 0 | DA10: Yes | DB10: No | DC10: No | DD10: No | DE10: Yes | DF10: Yes | DG10: Yes | DH10: Yes | DI10: Yes | DJ10: Yes | DK10: Yes | DL10: No | DM10: Yes | DN10: Yes | DO10: No | DP10: No | DQ10: No | DR10: 0 | DS10: 30000 | DT10: 500 | DU10: 0 | DV10: 22520 | DW10: 24120 | DX10: 0 | DY10: 0 | DZ10: 0 | EA10: 0 | EB10: 77480 | EC10: 80881 | ED10: 0 | EE10: 0 | EF10: 0 | EG10: 0 | EH10: 158361 | EI10: 74965.64 | EJ10: 0 | EK10: 0 | EL10: 0 | EM10: 0 | EN10: 0 | EO10: 74965.64 | EP10: 0 | EQ10: 74965.64 | ER10: 83395.36 | ES10: 0.055 | ET10: 0.02 | EU10: 0.0382 | EV10: 0.0609 | EW10: 1.25 | EX10: 0.8 | EY10: 0.25 | EZ10: 17083.42 | FA10: 13196.75 | FB10: 6247.14 | FC10: 6949.61 | FD10: 5112.99 | FE10: 1771 | FF10: 205001 | FG10: 158361 | FH10: 74965.64 | FI10: 83395.36 | FJ10: 61355.93 | FK10: 21252 | FL10: 17083.42 | FM10: 13196.75 | FN10: 6247.14 | FO10: 6949.61 | FP10: 5455.18 | FQ10: 1771 | FR10: 205001 | FS10: 158361 | FT10: 74965.64 | FU10: 83395.36 | FV10: 65462.1 | FW10: 21252 | FX10: 1 | FY10: 0.4029635408 | FZ10: PASS | GA10: 0.96 | GB10: 0.4229935488 | GC10: FAIL | GD10: 332216.65 | GE10: 332216.65 | GF10: 22520 | GG10: 24120 | GH10: 0 | GI10: 0 | GJ10: 0 | GK10: 0 | GL10: 77480 | GM10: 80881 | GN10: 0 | GO10: 0 | GP10: 0 | GQ10: 0 | GR10: 158361 | GS10: 74965.64 | GT10: 0 | GU10: 0 | GV10: 0 | GW10: 0 | GX10: 0 | GY10: 74965.64 | GZ10: 0 | HA10: 74965.64 | HB10: 83395.36 | HC10: 0.055 | HD10: 0.02 | HE10: 0.0382 | HF10: 0.0609 | HG10: 1.25 | HH10: 0.8 | HI10: 0.25 | HJ10: 17083.42 | HK10: 13196.75 | HL10: 6247.14 | HM10: 6949.61 | HN10: 5112.99 | HO10: 1771 | HP10: 205001 | HQ10: 158361 | HR10: 74965.64 | HS10: 83395.36 | HT10: 61355.93 | HU10: 21252 | HV10: 17083.42 | HW10: 13196.75 | HX10: 6247.14 | HY10: 6949.61 | HZ10: 5455.18 | IA10: 1771 | IB10: 205001 | IC10: 158361 | ID10: 74965.64 | IE10: 83395.36 | IF10: 65462.1 | IG10: 21252 | IH10: 1 | II10: 0.4029635408 | IJ10: PASS | IK10: 0.96 | IL10: 0.4229935488 | IM10: FAIL | IN10: 332216.65 | IO10: 332216.65 | IP10: Pass | IQ10: Y | IR10: 2026-07-14T15:16:08 | IT10: Case 8 | IU10: Neil | IV10: Reconciled - tax change | IW10: 0
A11: 350000 | B11: 0.06 | C11: 0.085 | D11: 12 | E11: 5 | F11: 350000 | G11: 0.06 | H11: 0.085 | I11: 12 | J11: 5 | P11: Individual (Couple) | Q11: Individual (Couple) | V11: Applicant 2 | W11: Applicant 1 | AB11: 3 | AC11: 2 | AH11: 100000 | AI11: 80000 | AJ11: 0 | AK11: 0 | AL11: 0 | AM11: 0 | AN11: 0 | AO11: 0 | AP11: 0 | AQ11: 0 | AR11: 0 | AS11: 0 | AT11: 0 | AU11: 25000 | AV11: 0 | AW11: 0 | AX11: 0 | AY11: 0 | AZ11: 0 | BA11: 0 | BB11: 0 | BC11: 0 | BD11: 0 | BE11: 0 | BF11: 0 | BG11: 0 | BH11: 0 | BI11: 0 | BJ11: 0 | BK11: 0 | BL11: 0 | BM11: 0 | BN11: 0 | BO11: 0 | BP11: 0 | BQ11: 0 | BR11: 0 | BS11: 0 | BT11: 0 | BU11: 0 | BV11: 0 | BW11: 0 | CJ11: 0 | CK11: 0 | CL11: 0 | CM11: 0 | CN11: 0 | CO11: 0 | CP11: 0 | CQ11: 0 | CR11: 0 | CS11: 0 | CT11: 0 | CU11: 0 | CV11: 0 | CW11: 0 | CX11: 0 | CY11: 0 | CZ11: 0 | DA11: Yes | DB11: No | DC11: No | DD11: No | DE11: Yes | DF11: Yes | DG11: Yes | DH11: Yes | DI11: Yes | DJ11: Yes | DK11: Yes | DL11: No | DM11: Yes | DN11: Yes | DO11: No | DP11: No | DQ11: No | DR11: 0 | DS11: 30000 | DT11: 500 | DU11: 0 | DV11: 22520 | DW11: 24120 | DX11: 0 | DY11: 0 | DZ11: 0 | EA11: 0 | EB11: 77480 | EC11: 80880 | ED11: 0 | EE11: 0 | EF11: 0 | EG11: 0 | EH11: 158360 | EI11: 74965.64 | EJ11: 0 | EK11: 0 | EL11: 0 | EM11: 0 | EN11: 0 | EO11: 74965.64 | EP11: 0 | EQ11: 74965.64 | ER11: 83394.36 | ES11: 0.055 | ET11: 0.02 | EU11: 0.0382 | EV11: 0.0609 | EW11: 1.25 | EX11: 0.8 | EY11: 0.25 | EZ11: 17083.33 | FA11: 13196.67 | FB11: 6247.14 | FC11: 6949.53 | FD11: 5112.99 | FE11: 1771 | FF11: 205000 | FG11: 158360 | FH11: 74965.64 | FI11: 83394.36 | FJ11: 61355.93 | FK11: 21252 | FL11: 17083.33 | FM11: 13196.67 | FN11: 6247.14 | FO11: 6949.53 | FP11: 5455.18 | FQ11: 1771 | FR11: 205000 | FS11: 158360 | FT11: 74965.64 | FU11: 83394.36 | FV11: 65462.1 | FW11: 21252 | FX11: 1 | FY11: 0.4029655065 | FZ11: PASS | GA11: 0.96 | GB11: 0.4229956122 | GC11: FAIL | GD11: 332216.65 | GE11: 332216.65 | GF11: 22520 | GG11: 24120 | GH11: 0 | GI11: 0 | GJ11: 0 | GK11: 0 | GL11: 77480 | GM11: 80880 | GN11: 0 | GO11: 0 | GP11: 0 | GQ11: 0 | GR11: 158360 | GS11: 74965.64 | GT11: 0 | GU11: 0 | GV11: 0 | GW11: 0 | GX11: 0 | GY11: 74965.64 | GZ11: 0 | HA11: 74965.64 | HB11: 83394.36 | HC11: 0.055 | HD11: 0.02 | HE11: 0.0382 | HF11: 0.0609 | HG11: 1.25 | HH11: 0.8 | HI11: 0.25 | HJ11: 17083.33 | HK11: 13196.67 | HL11: 6247.14 | HM11: 6949.53 | HN11: 5112.99 | HO11: 1771 | HP11: 205000 | HQ11: 158360 | HR11: 74965.64 | HS11: 83394.36 | HT11: 61355.93 | HU11: 21252 | HV11: 17083.33 | HW11: 13196.67 | HX11: 6247.14 | HY11: 6949.53 | HZ11: 5455.18 | IA11: 1771 | IB11: 205000 | IC11: 158360 | ID11: 74965.64 | IE11: 83394.36 | IF11: 65462.1 | IG11: 21252 | IH11: 1 | II11: 0.4029655065 | IJ11: PASS | IK11: 0.96 | IL11: 0.4229956122 | IM11: FAIL | IN11: 332216.65 | IO11: 332216.65 | IP11: Pass | IQ11: Y | IR11: 2026-07-14T15:16:11 | IT11: Case 9 | IU11: Neil | IV11: Reconciled - tax change | IW11: 0
A12: 500000 | B12: 0.07 | C12: 0.095 | D12: 20 | E12: 3 | F12: 500000 | G12: 0.07 | H12: 0.095 | I12: 20 | J12: 3 | P12: Individual (Couple) | Q12: Individual (Couple) | V12: Applicant 2 | W12: Applicant 1 | AB12: 2 | AH12: 150000 | AI12: 0 | AJ12: 0 | AK12: 0 | AL12: 0 | AM12: 0 | AN12: 0 | AO12: 0 | AP12: 0 | AQ12: 0 | AR12: 0 | AS12: 0 | AT12: 0 | AU12: 0 | AV12: 0 | AW12: 0 | AX12: 0 | AY12: 0 | AZ12: 0 | BA12: 0 | BB12: 0 | BC12: 0 | BD12: 0 | BE12: 0 | BF12: 0 | BG12: 0 | BH12: 0 | BI12: 0 | BJ12: 0 | BK12: 0 | BL12: 20000 | BM12: 0 | BN12: 0 | BO12: 0 | BP12: 0 | BQ12: 0 | BR12: 0 | BS12: 0 | BT12: 0 | BU12: 0 | BV12: 0 | BW12: 0 | CJ12: 4000 | CK12: 0 | CL12: 0 | CM12: 0 | CN12: 0 | CO12: 0 | CP12: 0 | CQ12: 0 | CR12: 0 | CS12: 0 | CT12: 0 | CU12: 0 | CV12: 0 | CW12: 0 | CX12: 0 | CY12: 0 | CZ12: 0 | DA12: Yes | DB12: No | DC12: No | DD12: No | DE12: Yes | DF12: Yes | DG12: Yes | DH12: Yes | DI12: Yes | DJ12: Yes | DK12: Yes | DL12: No | DM12: Yes | DN12: Yes | DO12: No | DP12: No | DQ12: No | DR12: 0 | DS12: 0 | DT12: 0 | DU12: 0 | DV12: 45810 | DW12: 0 | DX12: 0 | DY12: 0 | DZ12: 0 | EA12: 0 | EB12: 120190 | EC12: 0 | ED12: 0 | EE12: 0 | EF12: 0 | EG12: 0 | EH12: 120190 | EI12: 60848.93 | EJ12: 0 | EK12: 0 | EL12: 0 | EM12: 0 | EN12: 0 | EO12: 60848.93 | EP12: 48000 | EQ12: 60848.93 | ER12: 59341.07 | ES12: 0.055 | ET12: 0.02 | EU12: 0.0382 | EV12: 0.0609 | EW12: 1.25 | EX12: 0.8 | EY12: 0.25 | EZ12: 13833.33 | FA12: 10015.83 | FB12: 5070.74 | FC12: 4945.09 | FD12: 4198.3 | FE12: 0 | FF12: 166000 | FG12: 120190 | FH12: 60848.93 | FI12: 59341.07 | FJ12: 50379.64 | FK12: 0 | FL12: 13833.33 | FM12: 10015.83 | FN12: 5070.74 | FO12: 4945.09 | FP12: 4794.02 | FQ12: 0 | FR12: 166000 | FS12: 120190 | FT12: 60848.93 | FU12: 59341.07 | FV12: 57528.23 | FW12: 0 | FX12: 1.17 | FY12: 0.3034918023 | FZ12: PASS | GA12: 1.03 | GB12: 0.3465556274 | GC12: PASS | GD12: 500000 | GE12: 515746.75 | GF12: 45810 | GG12: 0 | GH12: 0 | GI12: 0 | GJ12: 0 | GK12: 0 | GL12: 120190 | GM12: 0 | GN12: 0 | GO12: 0 | GP12: 0 | GQ12: 0 | GR12: 120190 | GS12: 60848.93 | GT12: 0 | GU12: 0 | GV12: 0 | GW12: 0 | GX12: 0 | GY12: 60848.93 | GZ12: 48000 | HA12: 60848.93 | HB12: 59341.07 | HC12: 0.055 | HD12: 0.02 | HE12: 0.0382 | HF12: 0.0609 | HG12: 1.25 | HH12: 0.8 | HI12: 0.25 | HJ12: 13833.33 | HK12: 10015.83 | HL12: 5070.74 | HM12: 4945.09 | HN12: 4198.3 | HO12: 0 | HP12: 166000 | HQ12: 120190 | HR12: 60848.93 | HS12: 59341.07 | HT12: 50379.64 | HU12: 0 | HV12: 13833.33 | HW12: 10015.83 | HX12: 5070.74 | HY12: 4945.09 | HZ12: 4794.02 | IA12: 0 | IB12: 166000 | IC12: 120190 | ID12: 60848.93 | IE12: 59341.07 | IF12: 57528.23 | IG12: 0 | IH12: 1.17 | II12: 0.3034918023 | IJ12: PASS | IK12: 1.03 | IL12: 0.3465556274 | IM12: PASS | IN12: 500000 | IO12: 515746.75 | IP12: Pass | IQ12: Y | IR12: 2026-07-14T15:16:14 | IT12: Case 10 | IU12: Neil | IV12: Reconciled - tax change | IW12: 0
A13: 500000 | B13: 0.07 | C13: 0.095 | D13: 20 | E13: 3 | F13: 500000 | G13: 0.07 | H13: 0.095 | I13: 20 | J13: 3 | P13: Individual (Couple) | Q13: Individual (Couple) | V13: Applicant 2 | W13: Applicant 1 | AB13: 2 | AH13: 150000 | AI13: 0 | AJ13: 0 | AK13: 0 | AL13: 0 | AM13: 0 | AN13: 0 | AO13: 0 | AP13: 0 | AQ13: 0 | AR13: 0 | AS13: 0 | AT13: 0 | AU13: 0 | AV13: 0 | AW13: 0 | AX13: 0 | AY13: 0 | AZ13: 0 | BA13: 0 | BB13: 0 | BC13: 0 | BD13: 0 | BE13: 0 | BF13: 0 | BG13: 0 | BH13: 0 | BI13: 0 | BJ13: 0 | BK13: 0 | BL13: 20000 | BM13: 0 | BN13: 0 | BO13: 0 | BP13: 0 | BQ13: 0 | BR13: 100000 | BS13: 0 | BT13: 0 | BU13: 0 | BV13: 0 | BW13: 0 | CJ13: 4000 | CK13: 0 | CL13: 0 | CM13: 0 | CN13: 0 | CO13: 0 | CP13: 0 | CQ13: 0 | CR13: 0 | CS13: 0 | CT13: 0 | CU13: 0 | CV13: 0 | CW13: 0 | CX13: 0 | CY13: 0 | CZ13: 0 | DA13: Yes | DB13: No | DC13: No | DD13: No | DE13: Yes | DF13: Yes | DG13: Yes | DH13: Yes | DI13: Yes | DJ13: Yes | DK13: Yes | DL13: No | DM13: Yes | DN13: Yes | DO13: No | DP13: No | DQ13: No | DR13: 0 | DS13: 0 | DT13: 0 | DU13: 0 | DV13: 43434.9 | DW13: 0 | DX13: 0 | DY13: 0 | DZ13: 0 | EA13: 0 | EB13: 122565.1 | EC13: 0 | ED13: 0 | EE13: 0 | EF13: 0 | EG13: 0 | EH13: 122565.1 | EI13: 56790.18 | EJ13: 0 | EK13: 0 | EL13: 0 | EM13: 0 | EN13: 0 | EO13: 56790.18 | EP13: 48000 | EQ13: 56790.18 | ER13: 65774.92 | ES13: 0.055 | ET13: 0.02 | EU13: 0.0382 | EV13: 0.0609 | EW13: 1.25 | EX13: 0.8 | EY13: 0.25 | EZ13: 13833.33 | FA13: 10213.76 | FB13: 4732.51 | FC13: 5481.24 | FD13: 4198.3 | FE13: 0 | FF13: 166000 | FG13: 122565.1 | FH13: 56790.18 | FI13: 65774.92 | FJ13: 50379.64 | FK13: 0 | FL13: 13833.33 | FM13: 10213.76 | FN13: 4732.51 | FO13: 5481.24 | FP13: 4794.02 | FQ13: 0 | FR13: 166000 | FS13: 122565.1 | FT13: 56790.18 | FU13: 65774.92 | FV13: 57528.23 | FW13: 0 | FX13: 1.3 | FY13: 0.3034918023 | FZ13: PASS | GA13: 1.14 | GB13: 0.3465556274 | GC13: PASS | GD13: 500000 | GE13: 571649.74 | GF13: 43434.9 | GG13: 0 | GH13: 0 | GI13: 0 | GJ13: 0 | GK13: 0 | GL13: 122565.1 | GM13: 0 | GN13: 0 | GO13: 0 | GP13: 0 | GQ13: 0 | GR13: 122565.1 | GS13: 56790.18 | GT13: 0 | GU13: 0 | GV13: 0 | GW13: 0 | GX13: 0 | GY13: 56790.18 | GZ13: 48000 | HA13: 56790.18 | HB13: 65774.92 | HC13: 0.055 | HD13: 0.02 | HE13: 0.0382 | HF13: 0.0609 | HG13: 1.25 | HH13: 0.8 | HI13: 0.25 | HJ13: 13833.33 | HK13: 10213.76 | HL13: 4732.51 | HM13: 5481.24 | HN13: 4198.3 | HO13: 0 | HP13: 166000 | HQ13: 122565.1 | HR13: 56790.18 | HS13: 65774.92 | HT13: 50379.64 | HU13: 0 | HV13: 13833.33 | HW13: 10213.76 | HX13: 4732.51 | HY13: 5481.24 | HZ13: 4794.02 | IA13: 0 | IB13: 166000 | IC13: 122565.1 | ID13: 56790.18 | IE13: 65774.92 | IF13: 57528.23 | IG13: 0 | IH13: 1.3 | II13: 0.3034918023 | IJ13: PASS | IK13: 1.14 | IL13: 0.3465556274 | IM13: PASS | IN13: 500000 | IO13: 571649.74 | IP13: Pass | IQ13: Y | IR13: 2026-07-14T15:16:16 | IT13: Case 11 | IU13: Neil | IV13: Reconciled - tax change | IW13: 0
A14: 200000 | B14: 0.05 | C14: 0.075 | D14: 30 | E14: 0 | F14: 200000 | G14: 0.05 | H14: 0.075 | I14: 30 | J14: 0 | P14: Individual (Couple) | Q14: Individual (Couple) | V14: Applicant 2 | W14: Applicant 1 | AH14: 0 | AI14: 10000 | AJ14: 0 | AK14: 0 | AL14: 0 | AM14: 0 | AN14: 35000 | AO14: 0 | AP14: 0 | AQ14: 0 | AR14: 0 | AS14: 0 | AT14: 0 | AU14: 0 | AV14: 0 | AW14: 0 | AX14: 0 | AY14: 0 | AZ14: 0 | BA14: 0 | BB14: 0 | BC14: 0 | BD14: 0 | BE14: 0 | BF14: 0 | BG14: 0 | BH14: 0 | BI14: 0 | BJ14: 0 | BK14: 0 | BL14: 0 | BM14: 0 | BN14: 0 | BO14: 0 | BP14: 0 | BQ14: 0 | BR14: 0 | BS14: 0 | BT14: 0 | BU14: 0 | BV14: 0 | BW14: 0 | CJ14: 100 | CK14: 0 | CL14: 0 | CM14: 0 | CN14: 0 | CO14: 0 | CP14: 0 | CQ14: 0 | CR14: 0 | CS14: 0 | CT14: 0 | CU14: 0 | CV14: 0 | CW14: 0 | CX14: 0 | CY14: 0 | CZ14: 0 | DA14: Yes | DB14: No | DC14: No | DD14: No | DE14: Yes | DF14: Yes | DG14: Yes | DH14: Yes | DI14: Yes | DJ14: Yes | DK14: Yes | DL14: No | DM14: Yes | DN14: Yes | DO14: No | DP14: No | DQ14: No | DR14: 0 | DS14: 0 | DT14: 0 | DU14: 0 | DV14: 0 | DW14: 0 | DX14: 0 | DY14: 0 | DZ14: 0 | EA14: 0 | EB14: 35000 | EC14: 10000 | ED14: 0 | EE14: 0 | EF14: 0 | EG14: 0 | EH14: 45000 | EI14: 32656.48 | EJ14: 0 | EK14: 0 | EL14: 0 | EM14: 0 | EN14: 0 | EO14: 32656.48 | EP14: 1200 | EQ14: 32656.48 | ER14: 12343.52 | ES14: 0.055 | ET14: 0.02 | EU14: 0.0382 | EV14: 0.0609 | EW14: 1.25 | EX14: 0.8 | EY14: 0.25 | EZ14: 3750 | FA14: 3750 | FB14: 2721.37 | FC14: 1028.63 | FD14: 1073.64 | FE14: 0 | FF14: 45000 | FG14: 45000 | FH14: 32656.48 | FI14: 12343.52 | FJ14: 12883.72 | FK14: 0 | FL14: 3750 | FM14: 3750 | FN14: 2721.37 | FO14: 1028.63 | FP14: 1330.61 | FQ14: 0 | FR14: 45000 | FS14: 45000 | FT14: 32656.48 | FU14: 12343.52 | FV14: 15967.26 | FW14: 0 | FX14: 0.95 | FY14: 0.2863048656 | FZ14: FAIL | GA14: 0.77 | GB14: 0.3548279974 | GC14: FAIL | GD14: 123552.82 | GE14: 123552.82 | GF14: 0 | GG14: 0 | GH14: 0 | GI14: 0 | GJ14: 0 | GK14: 0 | GL14: 35000 | GM14: 10000 | GN14: 0 | GO14: 0 | GP14: 0 | GQ14: 0 | GR14: 45000 | GS14: 32656.48 | GT14: 0 | GU14: 0 | GV14: 0 | GW14: 0 | GX14: 0 | GY14: 32656.48 | GZ14: 1200 | HA14: 32656.48 | HB14: 12343.52 | HC14: 0.055 | HD14: 0.02 | HE14: 0.0382 | HF14: 0.0609 | HG14: 1.25 | HH14: 0.8 | HI14: 0.25 | HJ14: 3750 | HK14: 3750 | HL14: 2721.37 | HM14: 1028.63 | HN14: 1073.64 | HO14: 0 | HP14: 45000 | HQ14: 45000 | HR14: 32656.48 | HS14: 12343.52 | HT14: 12883.72 | HU14: 0 | HV14: 3750 | HW14: 3750 | HX14: 2721.37 | HY14: 1028.63 | HZ14: 1330.61 | IA14: 0 | IB14: 45000 | IC14: 45000 | ID14: 32656.48 | IE14: 12343.52 | IF14: 15967.26 | IG14: 0 | IH14: 0.95 | II14: 0.2863048656 | IJ14: FAIL | IK14: 0.77 | IL14: 0.3548279974 | IM14: FAIL | IN14: 123552.82 | IO14: 123552.82 | IP14: Pass | IQ14: Y | IR14: 2026-07-14T15:16:19 | IT14: Case 12 | IU14: Neil | IV14: Reconciled - Investment property NG calculation change | IW14: 0
A15: 1000000 | B15: 0.05 | C15: 0.075 | D15: 30 | E15: 0 | F15: 1000000 | G15: 0.05 | H15: 0.075 | I15: 30 | J15: 0 | P15: Individual (Couple) | Q15: Individual (Couple) | V15: Applicant 2 | W15: Applicant 1 | AH15: 0 | AI15: 0 | AJ15: 0 | AK15: 0 | AL15: 0 | AM15: 0 | AN15: 0 | AO15: 0 | AP15: 0 | AQ15: 0 | AR15: 0 | AS15: 0 | AT15: 0 | AU15: 0 | AV15: 0 | AW15: 0 | AX15: 0 | AY15: 0 | AZ15: 0 | BA15: 0 | BB15: 0 | BC15: 0 | BD15: 0 | BE15: 0 | BF15: 0 | BG15: 0 | BH15: 0 | BI15: 0 | BJ15: 0 | BK15: 0 | BL15: 200000 | BM15: 0 | BN15: 0 | BO15: 0 | BP15: 0 | BQ15: 0 | BR15: 1000000 | BS15: 0 | BT15: 0 | BU15: 0 | BV15: 0 | BW15: 0 | CJ15: 100 | CK15: 0 | CL15: 0 | CM15: 0 | CN15: 0 | CO15: 0 | CP15: 0 | CQ15: 0 | CR15: 0 | CS15: 0 | CT15: 0 | CU15: 0 | CV15: 0 | CW15: 0 | CX15: 0 | CY15: 0 | CZ15: 0 | DA15: Yes | DB15: No | DC15: No | DD15: No | DE15: Yes | DF15: Yes | DG15: Yes | DH15: Yes | DI15: Yes | DJ15: Yes | DK15: Yes | DL15: No | DM15: Yes | DN15: Yes | DO15: No | DP15: No | DQ15: No | DR15: 0 | DS15: 0 | DT15: 0 | DU15: 0 | DV15: 22232 | DW15: 0 | DX15: 0 | DY15: 0 | DZ15: 0 | EA15: 0 | EB15: 137768 | EC15: 0 | ED15: 0 | EE15: 0 | EF15: 0 | EG15: 0 | EH15: 137768 | EI15: 39412.02 | EJ15: 0 | EK15: 0 | EL15: 0 | EM15: 0 | EN15: 0 | EO15: 39412.02 | EP15: 1200 | EQ15: 39412.02 | ER15: 98355.98 | ES15: 0.055 | ET15: 0.02 | EU15: 0.0382 | EV15: 0.0609 | EW15: 1.25 | EX15: 0.8 | EY15: 0.25 | EZ15: 13333.33 | FA15: 11480.67 | FB15: 3284.33 | FC15: 8196.33 | FD15: 5368.22 | FE15: 0 | FF15: 160000 | FG15: 137768 | FH15: 39412.02 | FI15: 98355.98 | FJ15: 64418.59 | FK15: 0 | FL15: 13333.33 | FM15: 11480.67 | FN15: 3284.33 | FO15: 8196.33 | FP15: 6653.03 | FQ15: 0 | FR15: 160000 | FS15: 137768 | FT15: 39412.02 | FU15: 98355.98 | FV15: 79836.3 | FW15: 0 | FX15: 1.52 | FY15: 0.4026162173 | FZ15: PASS | GA15: 1.23 | GB15: 0.4989768714 | GC15: PASS | GD15: 1000000 | GE15: 1231920.83 | GF15: 22232 | GG15: 0 | GH15: 0 | GI15: 0 | GJ15: 0 | GK15: 0 | GL15: 137768 | GM15: 0 | GN15: 0 | GO15: 0 | GP15: 0 | GQ15: 0 | GR15: 137768 | GS15: 39412.02 | GT15: 0 | GU15: 0 | GV15: 0 | GW15: 0 | GX15: 0 | GY15: 39412.02 | GZ15: 1200 | HA15: 39412.02 | HB15: 98355.98 | HC15: 0.055 | HD15: 0.02 | HE15: 0.0382 | HF15: 0.0609 | HG15: 1.25 | HH15: 0.8 | HI15: 0.25 | HJ15: 13333.33 | HK15: 11480.67 | HL15: 3284.33 | HM15: 8196.33 | HN15: 5368.22 | HO15: 0 | HP15: 160000 | HQ15: 137768 | HR15: 39412.02 | HS15: 98355.98 | HT15: 64418.59 | HU15: 0 | HV15: 13333.33 | HW15: 11480.67 | HX15: 3284.33 | HY15: 8196.33 | HZ15: 6653.03 | IA15: 0 | IB15: 160000 | IC15: 137768 | ID15: 39412.02 | IE15: 98355.98 | IF15: 79836.3 | IG15: 0 | IH15: 1.52 | II15: 0.4026162173 | IJ15: PASS | IK15: 1.23 | IL15: 0.4989768714 | IM15: PASS | IN15: 1000000 | IO15: 1231920.83 | IP15: Pass | IQ15: Y | IR15: 2026-07-14T15:16:22 | IT15: Case 13 | IU15: Neil | IV15: Reconciled - tax change | IW15: 0
A16: 1500000 | B16: 0.06 | C16: 0.085 | D16: 30 | E16: 0 | F16: 1500000 | G16: 0.06 | H16: 0.085 | I16: 30 | J16: 0 | P16: Individual (Couple) | Q16: Individual (Couple) | R16: Individual (Single) | V16: Applicant 2 | W16: Applicant 1 | AH16: 300000 | AI16: 10000 | AJ16: 0 | AK16: 0 | AL16: 0 | AM16: 0 | AN16: 35000 | AO16: 0 | AP16: 35000 | AQ16: 0 | AR16: 0 | AS16: 0 | AT16: 116000 | AU16: 0 | AV16: 0 | AW16: 0 | AX16: 0 | AY16: 0 | AZ16: 15000 | BA16: 0 | BB16: 0 | BC16: 0 | BD16: 0 | BE16: 0 | BF16: 0 | BG16: 0 | BH16: 0 | BI16: 0 | BJ16: 0 | BK16: 0 | BL16: 0 | BM16: 0 | BN16: 0 | BO16: 0 | BP16: 0 | BQ16: 0 | BR16: 0 | BS16: 0 | BT16: 0 | BU16: 0 | BV16: 0 | BW16: 0 | CJ16: 100 | CK16: 0 | CL16: 0 | CM16: 0 | CN16: 0 | CO16: 0 | CP16: 0 | CQ16: 0 | CR16: 0 | CS16: 0 | CT16: 0 | CU16: 0 | CV16: 0 | CW16: 0 | CX16: 0 | CY16: 0 | CZ16: 0 | DA16: Yes | DB16: No | DC16: No | DD16: No | DE16: Yes | DF16: Yes | DG16: Yes | DH16: Yes | DI16: Yes | DJ16: Yes | DK16: Yes | DL16: No | DM16: Yes | DN16: Yes | DO16: No | DP16: No | DQ16: No | DR16: 0 | DS16: 0 | DT16: 0 | DU16: 0 | DV16: 161390 | DW16: 0 | DX16: 0 | DY16: 0 | DZ16: 0 | EA16: 0 | EB16: 304610 | EC16: 10000 | ED16: 35000 | EE16: 0 | EF16: 0 | EG16: 0 | EH16: 349610 | EI16: 74114.21 | EJ16: 0 | EK16: 17437.57 | EL16: 0 | EM16: 0 | EN16: 0 | EO16: 91551.78 | EP16: 1200 | EQ16: 91551.78 | ER16: 258058.22 | ES16: 0.055 | ET16: 0.02 | EU16: 0.0382 | EV16: 0.0609 | EW16: 1.25 | EX16: 0.8 | EY16: 0.25 | EZ16: 42583.33 | FA16: 29134.17 | FB16: 7629.31 | FC16: 21504.85 | FD16: 8993.26 | FE16: 0 | FF16: 511000 | FG16: 349610 | FH16: 91551.78 | FI16: 258058.22 | FJ16: 107919.09 | FK16: 0 | FL16: 42583.33 | FM16: 29134.17 | FN16: 7629.31 | FO16: 21504.85 | FP16: 11006.47 | FQ16: 0 | FR16: 511000 | FS16: 349610 | FT16: 91551.78 | FU16: 258058.22 | FV16: 132077.62 | FW16: 0 | FX16: 2.39 | FY16: 0.2111919658 | FZ16: PASS | GA16: 1.95 | GB16: 0.2584689301 | GC16: PASS | GD16: 1500000 | GE16: 2930640.26 | GF16: 161390 | GG16: 0 | GH16: 0 | GI16: 0 | GJ16: 0 | GK16: 0 | GL16: 304610 | GM16: 10000 | GN16: 35000 | GO16: 0 | GP16: 0 | GQ16: 0 | GR16: 349610 | GS16: 74114.21 | GT16: 0 | GU16: 17437.57 | GV16: 0 | GW16: 0 | GX16: 0 | GY16: 91551.78 | GZ16: 1200 | HA16: 91551.78 | HB16: 258058.22 | HC16: 0.055 | HD16: 0.02 | HE16: 0.0382 | HF16: 0.0609 | HG16: 1.25 | HH16: 0.8 | HI16: 0.25 | HJ16: 42583.33 | HK16: 29134.17 | HL16: 7629.31 | HM16: 21504.85 | HN16: 8993.26 | HO16: 0 | HP16: 511000 | HQ16: 349610 | HR16: 91551.78 | HS16: 258058.22 | HT16: 107919.09 | HU16: 0 | HV16: 42583.33 | HW16: 29134.17 | HX16: 7629.31 | HY16: 21504.85 | HZ16: 11006.47 | IA16: 0 | IB16: 511000 | IC16: 349610 | ID16: 91551.78 | IE16: 258058.22 | IF16: 132077.62 | IG16: 0 | IH16: 2.39 | II16: 0.2111919658 | IJ16: PASS | IK16: 1.95 | IL16: 0.2584689301 | IM16: PASS | IN16: 1500000 | IO16: 2930640.26 | IP16: Pass | IQ16: Y | IR16: 2026-07-14T15:16:25 | IT16: Case 14 | IU16: Neil | IV16: Reconciled - tax change | IW16: 0
A17: 1000000 | B17: 0.06 | C17: 0.085 | D17: 30 | E17: 0 | F17: 1000000 | G17: 0.06 | H17: 0.085 | I17: 30 | J17: 0 | P17: Individual (Single) | Q17: Individual (Couple) | R17: Individual (Couple) | W17: Applicant 3 | X17: Applicant 2 | AH17: 0 | AI17: 50000 | AJ17: 0 | AK17: 0 | AL17: 0 | AM17: 0 | AN17: 0 | AO17: 0 | AP17: 0 | AQ17: 0 | AR17: 0 | AS17: 0 | AT17: 25000 | AU17: 0 | AV17: 0 | AW17: 0 | AX17: 0 | AY17: 0 | AZ17: 0 | BA17: 0 | BB17: 0 | BC17: 0 | BD17: 0 | BE17: 0 | BF17: 0 | BG17: 0 | BH17: 0 | BI17: 0 | BJ17: 0 | BK17: 0 | BL17: 0 | BM17: 60000 | BN17: 60000 | BO17: 0 | BP17: 0 | BQ17: 0 | BR17: 0 | BS17: 500000 | BT17: 500000 | BU17: 0 | BV17: 0 | BW17: 0 | CJ17: 1000 | CK17: 0 | CL17: 0 | CM17: 0 | CN17: 0 | CO17: 0 | CP17: 0 | CQ17: 0 | CR17: 0 | CS17: 0 | CT17: 0 | CU17: 0 | CV17: 0 | CW17: 0 | CX17: 0 | CY17: 0 | CZ17: 0 | DA17: Yes | DB17: No | DC17: No | DD17: No | DE17: Yes | DF17: Yes | DG17: Yes | DH17: Yes | DI17: Yes | DJ17: Yes | DK17: Yes | DL17: No | DM17: Yes | DN17: Yes | DO17: No | DP17: No | DQ17: No | DR17: 0 | DS17: 0 | DT17: 0 | DU17: 0 | DV17: 1020 | DW17: 12136 | DX17: 0 | DY17: 0 | DZ17: 0 | EA17: 0 | EB17: 24680 | EC17: 85864 | ED17: 48000 | EE17: 0 | EF17: 0 | EG17: 0 | EH17: 158544 | EI17: 16510.72 | EJ17: 39412.02 | EK17: 0 | EL17: 0 | EM17: 0 | EN17: 0 | EO17: 55922.74 | EP17: 12000 | EQ17: 55922.74 | ER17: 102621.26 | ES17: 0.055 | ET17: 0.02 | EU17: 0.0382 | EV17: 0.0609 | EW17: 1.25 | EX17: 0.8 | EY17: 0.25 | EZ17: 14250 | FA17: 13212 | FB17: 4660.23 | FC17: 8551.77 | FD17: 5995.51 | FE17: 0 | FF17: 171000 | FG17: 158544 | FH17: 55922.74 | FI17: 102621.26 | FJ17: 71946.06 | FK17: 0 | FL17: 14250 | FM17: 13212 | FN17: 4660.23 | FO17: 8551.77 | FP17: 7337.65 | FQ17: 0 | FR17: 171000 | FS17: 158544 | FT17: 55922.74 | FU17: 102621.26 | FV17: 88051.75 | FW17: 0 | FX17: 1.42 | FY17: 0.4207372106 | FZ17: PASS | GA17: 1.16 | GB17: 0.514922508 | GC17: PASS | GD17: 1000000 | GE17: 1165360.16 | GF17: 1020 | GG17: 12136 | GH17: 0 | GI17: 0 | GJ17: 0 | GK17: 0 | GL17: 24680 | GM17: 85864 | GN17: 48000 | GO17: 0 | GP17: 0 | GQ17: 0 | GR17: 158544 | GS17: 16510.72 | GT17: 39412.02 | GU17: 0 | GV17: 0 | GW17: 0 | GX17: 0 | GY17: 55922.74 | GZ17: 12000 | HA17: 55922.74 | HB17: 102621.26 | HC17: 0.055 | HD17: 0.02 | HE17: 0.0382 | HF17: 0.0609 | HG17: 1.25 | HH17: 0.8 | HI17: 0.25 | HJ17: 14250 | HK17: 13212 | HL17: 4660.23 | HM17: 8551.77 | HN17: 5995.51 | HO17: 0 | HP17: 171000 | HQ17: 158544 | HR17: 55922.74 | HS17: 102621.26 | HT17: 71946.06 | HU17: 0 | HV17: 14250 | HW17: 13212 | HX17: 4660.23 | HY17: 8551.77 | HZ17: 7337.65 | IA17: 0 | IB17: 171000 | IC17: 158544 | ID17: 55922.74 | IE17: 102621.26 | IF17: 88051.75 | IG17: 0 | IH17: 1.42 | II17: 0.4207372106 | IJ17: PASS | IK17: 1.16 | IL17: 0.514922508 | IM17: PASS | IN17: 1000000 | IO17: 1165360.16 | IP17: Pass | IQ17: Y | IR17: 2026-07-14T15:16:27 | IT17: Case 15 | IU17: Neil | IV17: Reconciled - tax change | IW17: 0
A18: 200000 | B18: 0.05 | C18: 0.075 | D18: 30 | E18: 0 | F18: 200000 | G18: 0.05 | H18: 0.075 | I18: 30 | J18: 0 | P18: Individual (Single) | AB18: 1 | AH18: 107000 | AI18: 0 | AJ18: 0 | AK18: 0 | AL18: 0 | AM18: 0 | AN18: 0 | AO18: 0 | AP18: 0 | AQ18: 0 | AR18: 0 | AS18: 0 | AT18: 0 | AU18: 0 | AV18: 0 | AW18: 0 | AX18: 0 | AY18: 0 | AZ18: 0 | BA18: 0 | BB18: 0 | BC18: 0 | BD18: 0 | BE18: 0 | BF18: 0 | BG18: 0 | BH18: 0 | BI18: 0 | BJ18: 0 | BK18: 0 | BL18: 0 | BM18: 0 | BN18: 0 | BO18: 0 | BP18: 0 | BQ18: 0 | BR18: 0 | BS18: 0 | BT18: 0 | BU18: 0 | BV18: 0 | BW18: 0 | CJ18: 100 | CK18: 0 | CL18: 0 | CM18: 0 | CN18: 0 | CO18: 0 | CP18: 0 | CQ18: 0 | CR18: 0 | CS18: 0 | CT18: 0 | CU18: 0 | CV18: 0 | CW18: 0 | CX18: 0 | CY18: 0 | CZ18: 0 | DA18: Yes | DB18: No | DC18: No | DD18: No | DE18: Yes | DF18: Yes | DG18: Yes | DH18: Yes | DI18: Yes | DJ18: Yes | DK18: Yes | DL18: No | DM18: Yes | DN18: Yes | DO18: No | DP18: No | DQ18: No | DR18: 0 | DS18: 10000 | DT18: 1000 | DU18: 1000 | DV18: 24760 | DW18: 0 | DX18: 0 | DY18: 0 | DZ18: 0 | EA18: 0 | EB18: 82240 | EC18: 0 | ED18: 0 | EE18: 0 | EF18: 0 | EG18: 0 | EH18: 82240 | EI18: 34728.19 | EJ18: 0 | EK18: 0 | EL18: 0 | EM18: 0 | EN18: 0 | EO18: 34728.19 | EP18: 1200 | EQ18: 34728.19 | ER18: 47511.81 | ES18: 0.055 | ET18: 0.02 | EU18: 0.0382 | EV18: 0.0609 | EW18: 1.25 | EX18: 0.8 | EY18: 0.25 | EZ18: 8916.67 | FA18: 6853.33 | FB18: 2894.02 | FC18: 3959.32 | FD18: 1073.64 | FE18: 2632 | FF18: 107000 | FG18: 82240 | FH18: 34728.19 | FI18: 47511.81 | FJ18: 12883.72 | FK18: 31584 | FL18: 8916.67 | FM18: 6853.33 | FN18: 2894.02 | FO18: 3959.32 | FP18: 1330.61 | FQ18: 2632 | FR18: 107000 | FS18: 82240 | FT18: 34728.19 | FU18: 47511.81 | FV18: 15967.26 | FW18: 31584 | FX18: 1.06 | FY18: 0.4155861584 | FZ18: PASS | GA18: 0.99 | GB18: 0.444404298 | GC18: FAIL | GD18: 199458.14 | GE18: 199458.14 | GF18: 24760 | GG18: 0 | GH18: 0 | GI18: 0 | GJ18: 0 | GK18: 0 | GL18: 82240 | GM18: 0 | GN18: 0 | GO18: 0 | GP18: 0 | GQ18: 0 | GR18: 82240 | GS18: 34728.19 | GT18: 0 | GU18: 0 | GV18: 0 | GW18: 0 | GX18: 0 | GY18: 34728.19 | GZ18: 1200 | HA18: 34728.19 | HB18: 47511.81 | HC18: 0.055 | HD18: 0.02 | HE18: 0.0382 | HF18: 0.0609 | HG18: 1.25 | HH18: 0.8 | HI18: 0.25 | HJ18: 8916.67 | HK18: 6853.33 | HL18: 2894.02 | HM18: 3959.32 | HN18: 1073.64 | HO18: 2632 | HP18: 107000 | HQ18: 82240 | HR18: 34728.19 | HS18: 47511.81 | HT18: 12883.72 | HU18: 31584 | HV18: 8916.67 | HW18: 6853.33 | HX18: 2894.02 | HY18: 3959.32 | HZ18: 1330.61 | IA18: 2632 | IB18: 107000 | IC18: 82240 | ID18: 34728.19 | IE18: 47511.81 | IF18: 15967.26 | IG18: 31584 | IH18: 1.06 | II18: 0.4155861584 | IJ18: PASS | IK18: 0.99 | IL18: 0.444404298 | IM18: FAIL | IN18: 199458.14 | IO18: 199458.14 | IP18: Pass | IQ18: Y | IR18: 2026-07-14T15:16:30 | IT18: Case 16 | IU18: Neil | IV18: Reconciled - tax change | IW18: 0
A19: 200000 | B19: 0.05 | C19: 0.075 | D19: 30 | E19: 0 | F19: 200000 | G19: 0.05 | H19: 0.075 | I19: 30 | J19: 0 | P19: Individual (Single) | AB19: 1 | AH19: 107000 | AI19: 0 | AJ19: 0 | AK19: 0 | AL19: 0 | AM19: 0 | AN19: 25000 | AO19: 0 | AP19: 0 | AQ19: 0 | AR19: 0 | AS19: 0 | AT19: 0 | AU19: 0 | AV19: 0 | AW19: 0 | AX19: 0 | AY19: 0 | AZ19: 0 | BA19: 0 | BB19: 0 | BC19: 0 | BD19: 0 | BE19: 0 | BF19: 0 | BG19: 0 | BH19: 0 | BI19: 0 | BJ19: 0 | BK19: 0 | BL19: 0 | BM19: 0 | BN19: 0 | BO19: 0 | BP19: 0 | BQ19: 0 | BR19: 0 | BS19: 0 | BT19: 0 | BU19: 0 | BV19: 0 | BW19: 0 | CJ19: 100 | CK19: 0 | CL19: 0 | CM19: 0 | CN19: 0 | CO19: 0 | CP19: 0 | CQ19: 0 | CR19: 0 | CS19: 0 | CT19: 0 | CU19: 0 | CV19: 0 | CW19: 0 | CX19: 0 | CY19: 0 | CZ19: 0 | DA19: Yes | DB19: No | DC19: No | DD19: No | DE19: Yes | DF19: Yes | DG19: Yes | DH19: Yes | DI19: Yes | DJ19: Yes | DK19: Yes | DL19: No | DM19: Yes | DN19: Yes | DO19: No | DP19: No | DQ19: No | DR19: 0 | DS19: 10000 | DT19: 1000 | DU19: 1000 | DV19: 24760 | DW19: 0 | DX19: 0 | DY19: 0 | DZ19: 0 | EA19: 0 | EB19: 107240 | EC19: 0 | ED19: 0 | EE19: 0 | EF19: 0 | EG19: 0 | EH19: 107240 | EI19: 34728.19 | EJ19: 0 | EK19: 0 | EL19: 0 | EM19: 0 | EN19: 0 | EO19: 34728.19 | EP19: 1200 | EQ19: 34728.19 | ER19: 72511.81 | ES19: 0.055 | ET19: 0.02 | EU19: 0.0382 | EV19: 0.0609 | EW19: 1.25 | EX19: 0.8 | EY19: 0.25 | EZ19: 11000 | FA19: 8936.67 | FB19: 2894.02 | FC19: 6042.65 | FD19: 1073.64 | FE19: 2632 | FF19: 132000 | FG19: 107240 | FH19: 34728.19 | FI19: 72511.81 | FJ19: 12883.72 | FK19: 31584 | FL19: 11000 | FM19: 8936.67 | FN19: 2894.02 | FO19: 6042.65 | FP19: 1330.61 | FQ19: 2632 | FR19: 132000 | FS19: 107240 | FT19: 34728.19 | FU19: 72511.81 | FV19: 15967.26 | FW19: 31584 | FX19: 1.63 | FY19: 0.3368766587 | FZ19: PASS | GA19: 1.52 | GB19: 0.3602368173 | GC19: PASS | GD19: 200000 | GE19: 512548.81 | GF19: 24760 | GG19: 0 | GH19: 0 | GI19: 0 | GJ19: 0 | GK19: 0 | GL19: 107240 | GM19: 0 | GN19: 0 | GO19: 0 | GP19: 0 | GQ19: 0 | GR19: 107240 | GS19: 34728.19 | GT19: 0 | GU19: 0 | GV19: 0 | GW19: 0 | GX19: 0 | GY19: 34728.19 | GZ19: 1200 | HA19: 34728.19 | HB19: 72511.81 | HC19: 0.055 | HD19: 0.02 | HE19: 0.0382 | HF19: 0.0609 | HG19: 1.25 | HH19: 0.8 | HI19: 0.25 | HJ19: 11000 | HK19: 8936.67 | HL19: 2894.02 | HM19: 6042.65 | HN19: 1073.64 | HO19: 2632 | HP19: 132000 | HQ19: 107240 | HR19: 34728.19 | HS19: 72511.81 | HT19: 12883.72 | HU19: 31584 | HV19: 11000 | HW19: 8936.67 | HX19: 2894.02 | HY19: 6042.65 | HZ19: 1330.61 | IA19: 2632 | IB19: 132000 | IC19: 107240 | ID19: 34728.19 | IE19: 72511.81 | IF19: 15967.26 | IG19: 31584 | IH19: 1.63 | II19: 0.3368766587 | IJ19: PASS | IK19: 1.52 | IL19: 0.3602368173 | IM19: PASS | IN19: 200000 | IO19: 512548.81 | IP19: Pass | IQ19: Y | IR19: 2026-07-14T15:16:33 | IT19: Case 17 | IU19: Neil | IV19: Reconciled - tax change | IW19: 0
A20: 2500000 | B20: 0.0679 | C20: 0.0929 | D20: 40 | E20: 5 | F20: 2500000 | G20: 0.0679 | H20: 0.0929 | I20: 40 | J20: 5 | P20: Company | Q20: Individual (Single) | R20: Individual (Couple) | S20: Individual (Couple) | T20: Individual (Couple) | U20: Individual (Single) | X20: Non-loan Party | Y20: Applicant 5 | Z20: Applicant 4 | AH20: 0 | AI20: 0 | AJ20: 80000 | AK20: 0 | AL20: 0 | AM20: 300000 | AN20: 0 | AO20: 0 | AP20: 0 | AQ20: 0 | AR20: 0 | AS20: 0 | AT20: 535000 | AU20: 150000 | AV20: 0 | AW20: 0 | AX20: 0 | AY20: 0 | AZ20: 75000 | BA20: 0 | BB20: 0 | BC20: 0 | BD20: 0 | BE20: 0 | BF20: 0 | BG20: 0 | BH20: 0 | BI20: 0 | BJ20: 0 | BK20: 0 | BL20: 0 | BM20: 0 | BN20: 0 | BO20: 50000 | BP20: 50000 | BQ20: 0 | BR20: 0 | BS20: 0 | BT20: 0 | BU20: 1000000 | BV20: 1000000 | BW20: 0 | CJ20: 0 | CK20: 0 | CL20: 0 | CM20: 0 | CN20: 0 | CO20: 0 | CP20: 0 | CQ20: 0 | CR20: 0 | CS20: 0 | CT20: 0 | CU20: 0 | CV20: 20000 | CW20: 0 | CX20: 0 | CY20: 0 | CZ20: 0 | DA20: Yes | DB20: No | DC20: No | DD20: No | DE20: Yes | DF20: Yes | DG20: Yes | DH20: Yes | DI20: Yes | DJ20: Yes | DK20: Yes | DL20: No | DM20: Yes | DN20: Yes | DO20: No | DP20: No | DQ20: No | DR20: 0 | DS20: 50000 | DT20: 15000 | DU20: 0 | DV20: 133750 | DW20: 39570 | DX20: 16120 | DY20: 0 | DZ20: 0 | EA20: 106870 | EB20: 476250 | EC20: 110430 | ED20: 63880 | EE20: 40000 | EF20: 40000 | EG20: 193130 | EH20: 923690 | EI20: 0 | EJ20: 33751.32 | EK20: 36231.28 | EL20: 31831.7 | EM20: 0 | EN20: 50085 | EO20: 151899.3 | EP20: 240000 | EQ20: 240000 | ER20: 683690 | ES20: 0.055 | ET20: 0.02 | EU20: 0.0382 | EV20: 0.0609 | EW20: 1.25 | EX20: 0.8 | EY20: 0.25 | EZ20: 101666.67 | FA20: 76974.17 | FB20: 20000 | FC20: 56974.17 | FD20: 15604.88 | FE20: 20660 | FF20: 1220000 | FG20: 923690 | FH20: 240000 | FI20: 683690 | FJ20: 187258.53 | FK20: 247920 | FL20: 101666.67 | FM20: 76974.17 | FN20: 20000 | FO20: 56974.17 | FP20: 19208.39 | FQ20: 20660 | FR20: 1220000 | FS20: 923690 | FT20: 240000 | FU20: 683690 | FV20: 230500.65 | FW20: 247920 | FX20: 1.57 | FY20: 0.356703717 | FZ20: INCOMPLETE | GA20: 1.42 | GB20: 0.3921480777 | GC20: INCOMPLETE | GD20: INCOMPLETE | GE20: INCOMPLETE | GF20: 133750 | GG20: 39570 | GH20: 16120 | GI20: 0 | GJ20: 0 | GK20: 106870 | GL20: 476250 | GM20: 110430 | GN20: 63880 | GO20: 40000 | GP20: 40000 | GQ20: 193130 | GR20: 923690 | GS20: 0 | GT20: 33751.32 | GU20: 36231.28 | GV20: 31831.7 | GW20: 0 | GX20: 50085 | GY20: 151899.3 | GZ20: 240000 | HA20: 240000 | HB20: 683690 | HC20: 0.055 | HD20: 0.02 | HE20: 0.0382 | HF20: 0.0609 | HG20: 1.25 | HH20: 0.8 | HI20: 0.25 | HJ20: 101666.67 | HK20: 76974.17 | HL20: 20000 | HM20: 56974.17 | HN20: 15604.88 | HO20: 20660 | HP20: 1220000 | HQ20: 923690 | HR20: 240000 | HS20: 683690 | HT20: 187258.53 | HU20: 247920 | HV20: 101666.67 | HW20: 76974.17 | HX20: 20000 | HY20: 56974.17 | HZ20: 19208.39 | IA20: 20660 | IB20: 1220000 | IC20: 923690 | ID20: 240000 | IE20: 683690 | IF20: 230500.65 | IG20: 247920 | IH20: 1.57 | II20: 0.356703717 | IJ20: INCOMPLETE | IK20: 1.42 | IL20: 0.3921480777 | IM20: INCOMPLETE | IN20: INCOMPLETE | IO20: INCOMPLETE | IP20: Pass | IQ20: Y | IR20: 2026-07-14T15:16:35 | IT20: Case 18 | IU20: Neil | IV20: IO term on 40 year loan term causing incomplete results
A21: 2500000 | B21: 0.0679 | C21: 0.0929 | D21: 40 | E21: 5 | F21: 2500000 | G21: 0.0679 | H21: 0.0929 | I21: 40 | J21: 5 | P21: Company | Q21: Individual (Single) | R21: Individual (Couple) | S21: Individual (Couple) | T21: Individual (Couple) | U21: Individual (Single) | X21: Non-loan Party | Y21: Applicant 5 | Z21: Applicant 4 | AH21: 0 | AI21: 0 | AJ21: 80000 | AK21: 30000 | AL21: 40000 | AM21: 0 | AN21: 0 | AO21: 0 | AP21: 0 | AQ21: 0 | AR21: 0 | AS21: 75000 | AT21: 0 | AU21: 150000 | AV21: 0 | AW21: 0 | AX21: 0 | AY21: 0 | AZ21: 75000 | BA21: 0 | BB21: 0 | BC21: 0 | BD21: 0 | BE21: 0 | BF21: 535000 | BG21: 0 | BH21: 0 | BI21: 0 | BJ21: 0 | BK21: 0 | BL21: 0 | BM21: 0 | BN21: 0 | BO21: 50000 | BP21: 50000 | BQ21: 0 | BR21: 0 | BS21: 0 | BT21: 0 | BU21: 1000000 | BV21: 1000000 | BW21: 0 | CJ21: 0 | CK21: 0 | CL21: 0 | CM21: 0 | CN21: 0 | CO21: 0 | CP21: 0 | CQ21: 0 | CR21: 0 | CS21: 0 | CT21: 0 | CU21: 0 | CV21: 20000 | CW21: 0 | CX21: 0 | CY21: 0 | CZ21: 0 | DA21: Yes | DB21: No | DC21: No | DD21: No | DE21: Yes | DF21: Yes | DG21: Yes | DH21: Yes | DI21: Yes | DJ21: Yes | DK21: Yes | DL21: No | DM21: Yes | DN21: Yes | DO21: No | DP21: No | DQ21: No | DR21: 0 | DS21: 50000 | DT21: 15000 | DU21: 0 | DV21: 133750 | DW21: 39570 | DX21: 16120 | DY21: 0 | DZ21: 135 | EA21: 0 | EB21: 476250 | EC21: 110430 | ED21: 63880 | EE21: 70000 | EF21: 80000 | EG21: 75000 | EH21: 875560 | EI21: 0 | EJ21: 33751.32 | EK21: 36231.28 | EL21: 31831.7 | EM21: 0 | EN21: 21844.65 | EO21: 123658.95 | EP21: 240000 | EQ21: 240000 | ER21: 635560 | ES21: 0.055 | ET21: 0.02 | EU21: 0.0382 | EV21: 0.0609 | EW21: 1.25 | EX21: 0.8 | EY21: 0.25 | EZ21: 88750 | FA21: 72963.33 | FB21: 20000 | FC21: 52963.33 | FD21: 15604.88 | FE21: 20660 | FF21: 1065000 | FG21: 875560 | FH21: 240000 | FI21: 635560 | FJ21: 187258.53 | FK21: 247920 | FL21: 88750 | FM21: 72963.33 | FN21: 20000 | FO21: 52963.33 | FP21: 19208.39 | FQ21: 20660 | FR21: 1065000 | FS21: 875560 | FT21: 240000 | FU21: 635560 | FV21: 230500.65 | FW21: 247920 | FX21: 1.46 | FY21: 0.4086183425 | FZ21: INCOMPLETE | GA21: 1.32 | GB21: 0.4492212721 | GC21: INCOMPLETE | GD21: INCOMPLETE | GE21: INCOMPLETE | GF21: 133750 | GG21: 39570 | GH21: 16120 | GI21: 0 | GJ21: 135 | GK21: 0 | GL21: 476250 | GM21: 110430 | GN21: 63880 | GO21: 70000 | GP21: 80000 | GQ21: 75000 | GR21: 875560 | GS21: 0 | GT21: 33751.32 | GU21: 36231.28 | GV21: 31831.7 | GW21: 0 | GX21: 21844.65 | GY21: 123658.95 | GZ21: 240000 | HA21: 240000 | HB21: 635560 | HC21: 0.055 | HD21: 0.02 | HE21: 0.0382 | HF21: 0.0609 | HG21: 1.25 | HH21: 0.8 | HI21: 0.25 | HJ21: 88750 | HK21: 72963.33 | HL21: 20000 | HM21: 52963.33 | HN21: 15604.88 | HO21: 20660 | HP21: 1065000 | HQ21: 875560 | HR21: 240000 | HS21: 635560 | HT21: 187258.53 | HU21: 247920 | HV21: 88750 | HW21: 72963.33 | HX21: 20000 | HY21: 52963.33 | HZ21: 19208.39 | IA21: 20660 | IB21: 1065000 | IC21: 875560 | ID21: 240000 | IE21: 635560 | IF21: 230500.65 | IG21: 247920 | IH21: 1.46 | II21: 0.4086183425 | IJ21: INCOMPLETE | IK21: 1.32 | IL21: 0.4492212721 | IM21: INCOMPLETE | IN21: INCOMPLETE | IO21: INCOMPLETE | IP21: Pass | IQ21: Y | IR21: 2026-07-14T15:16:38 | IT21: Case 19 | IU21: Neil | IV21: IO term on 40 year loan term causing incomplete results
A22: 2500000 | B22: 0.0679 | C22: 0.0929 | D22: 40 | E22: 5 | F22: 2500000 | G22: 0.0679 | H22: 0.0929 | I22: 40 | J22: 5 | P22: Company | Q22: Individual (Single) | R22: Individual (Couple) | S22: Individual (Couple) | T22: Individual (Couple) | U22: Individual (Single) | X22: Non-loan Party | Y22: Applicant 5 | Z22: Applicant 4 | AH22: 0 | AI22: 0 | AJ22: 80000 | AK22: 30000 | AL22: 40000 | AM22: 0 | AN22: 0 | AO22: 0 | AP22: 0 | AQ22: 0 | AR22: 0 | AS22: 75000 | AT22: 535000 | AU22: 150000 | AV22: 0 | AW22: 0 | AX22: 0 | AY22: 0 | AZ22: 75000 | BA22: 0 | BB22: 0 | BC22: 0 | BD22: 0 | BE22: 0 | BF22: 0 | BG22: 0 | BH22: 0 | BI22: 0 | BJ22: 0 | BK22: 0 | BL22: 0 | BM22: 0 | BN22: 0 | BO22: 50000 | BP22: 50000 | BQ22: 0 | BR22: 0 | BS22: 0 | BT22: 0 | BU22: 1000000 | BV22: 1000000 | BW22: 0 | CJ22: 0 | CK22: 0 | CL22: 0 | CM22: 0 | CN22: 0 | CO22: 0 | CP22: 0 | CQ22: 0 | CR22: 0 | CS22: 0 | CT22: 0 | CU22: 0 | CV22: 20000 | CW22: 0 | CX22: 0 | CY22: 0 | CZ22: 0 | DA22: Yes | DB22: No | DC22: No | DD22: No | DE22: Yes | DF22: Yes | DG22: Yes | DH22: Yes | DI22: Yes | DJ22: Yes | DK22: Yes | DL22: No | DM22: Yes | DN22: Yes | DO22: No | DP22: No | DQ22: No | DR22: 0 | DS22: 50000 | DT22: 15000 | DU22: 0 | DV22: 133750 | DW22: 39570 | DX22: 16120 | DY22: 0 | DZ22: 135 | EA22: 0 | EB22: 476250 | EC22: 110430 | ED22: 63880 | EE22: 70000 | EF22: 80000 | EG22: 75000 | EH22: 875560 | EI22: 0 | EJ22: 33751.32 | EK22: 36231.28 | EL22: 31831.7 | EM22: 0 | EN22: 21844.65 | EO22: 123658.95 | EP22: 240000 | EQ22: 240000 | ER22: 635560 | ES22: 0.055 | ET22: 0.02 | EU22: 0.0382 | EV22: 0.0609 | EW22: 1.25 | EX22: 0.8 | EY22: 0.25 | EZ22: 88750 | FA22: 72963.33 | FB22: 20000 | FC22: 52963.33 | FD22: 15604.88 | FE22: 20660 | FF22: 1065000 | FG22: 875560 | FH22: 240000 | FI22: 635560 | FJ22: 187258.53 | FK22: 247920 | FL22: 88750 | FM22: 72963.33 | FN22: 20000 | FO22: 52963.33 | FP22: 19208.39 | FQ22: 20660 | FR22: 1065000 | FS22: 875560 | FT22: 240000 | FU22: 635560 | FV22: 230500.65 | FW22: 247920 | FX22: 1.46 | FY22: 0.4086183425 | FZ22: INCOMPLETE | GA22: 1.32 | GB22: 0.4492212721 | GC22: INCOMPLETE | GD22: INCOMPLETE | GE22: INCOMPLETE | GF22: 133750 | GG22: 39570 | GH22: 16120 | GI22: 0 | GJ22: 135 | GK22: 0 | GL22: 476250 | GM22: 110430 | GN22: 63880 | GO22: 70000 | GP22: 80000 | GQ22: 75000 | GR22: 875560 | GS22: 0 | GT22: 33751.32 | GU22: 36231.28 | GV22: 31831.7 | GW22: 0 | GX22: 21844.65 | GY22: 123658.95 | GZ22: 240000 | HA22: 240000 | HB22: 635560 | HC22: 0.055 | HD22: 0.02 | HE22: 0.0382 | HF22: 0.0609 | HG22: 1.25 | HH22: 0.8 | HI22: 0.25 | HJ22: 88750 | HK22: 72963.33 | HL22: 20000 | HM22: 52963.33 | HN22: 15604.88 | HO22: 20660 | HP22: 1065000 | HQ22: 875560 | HR22: 240000 | HS22: 635560 | HT22: 187258.53 | HU22: 247920 | HV22: 88750 | HW22: 72963.33 | HX22: 20000 | HY22: 52963.33 | HZ22: 19208.39 | IA22: 20660 | IB22: 1065000 | IC22: 875560 | ID22: 240000 | IE22: 635560 | IF22: 230500.65 | IG22: 247920 | IH22: 1.46 | II22: 0.4086183425 | IJ22: INCOMPLETE | IK22: 1.32 | IL22: 0.4492212721 | IM22: INCOMPLETE | IN22: INCOMPLETE | IO22: INCOMPLETE | IP22: Pass | IQ22: Y | IR22: 2026-07-14T15:16:41 | IT22: Case 20 | IU22: Neil | IV22: IO term on 40 year loan term causing incomplete results
A23: 2500000 | B23: 0.0679 | C23: 0.0929 | D23: 40 | E23: 5 | F23: 2500000 | G23: 0.0679 | H23: 0.0929 | I23: 40 | J23: 5 | P23: Company | Q23: Individual (Single) | R23: Individual (Couple) | S23: Individual (Couple) | T23: Individual (Couple) | U23: Individual (Single) | X23: Non-loan Party | Y23: Applicant 5 | Z23: Applicant 4 | AH23: 0 | AI23: 0 | AJ23: 80000 | AK23: 30000 | AL23: 40000 | AM23: 0 | AN23: 0 | AO23: 0 | AP23: 0 | AQ23: 0 | AR23: 0 | AS23: 409501 | AT23: 535000 | AU23: 150000 | AV23: 0 | AW23: 0 | AX23: 0 | AY23: 0 | AZ23: 75000 | BA23: 0 | BB23: 0 | BC23: 0 | BD23: 0 | BE23: 0 | BF23: 0 | BG23: 0 | BH23: 0 | BI23: 0 | BJ23: 0 | BK23: 0 | BL23: 0 | BM23: 0 | BN23: 0 | BO23: 50000 | BP23: 50000 | BQ23: 0 | BR23: 0 | BS23: 0 | BT23: 0 | BU23: 1000000 | BV23: 1000000 | BW23: 0 | CJ23: 0 | CK23: 0 | CL23: 0 | CM23: 0 | CN23: 0 | CO23: 0 | CP23: 0 | CQ23: 0 | CR23: 0 | CS23: 0 | CT23: 0 | CU23: 0 | CV23: 20000 | CW23: 0 | CX23: 0 | CY23: 0 | CZ23: 0 | DA23: Yes | DB23: No | DC23: No | DD23: No | DE23: Yes | DF23: Yes | DG23: Yes | DH23: Yes | DI23: Yes | DJ23: Yes | DK23: Yes | DL23: No | DM23: Yes | DN23: Yes | DO23: No | DP23: No | DQ23: No | DR23: 0 | DS23: 50000 | DT23: 15000 | DU23: 0 | DV23: 133750 | DW23: 39570 | DX23: 16120 | DY23: 0 | DZ23: 135 | EA23: 0 | EB23: 476250 | EC23: 110430 | ED23: 63880 | EE23: 70000 | EF23: 80000 | EG23: 409501 | EH23: 1210061 | EI23: 0 | EJ23: 33751.32 | EK23: 36231.28 | EL23: 31831.7 | EM23: 0 | EN23: 59792.17 | EO23: 161606.47 | EP23: 240000 | EQ23: 240000 | ER23: 970061 | ES23: 0.055 | ET23: 0.02 | EU23: 0.0382 | EV23: 0.0609 | EW23: 1.25 | EX23: 0.8 | EY23: 0.25 | EZ23: 116625.08 | FA23: 100838.42 | FB23: 20000 | FC23: 80838.42 | FD23: 15604.88 | FE23: 20660 | FF23: 1399501 | FG23: 1210061 | FH23: 240000 | FI23: 970061 | FJ23: 187258.53 | FK23: 247920 | FL23: 116625.08 | FM23: 100838.42 | FN23: 20000 | FO23: 80838.42 | FP23: 19208.39 | FQ23: 20660 | FR23: 1399501 | FS23: 1210061 | FT23: 240000 | FU23: 970061 | FV23: 230500.65 | FW23: 247920 | FX23: 2.22 | FY23: 0.3109526429 | FZ23: INCOMPLETE | GA23: 2.02 | GB23: 0.3418508845 | GC23: INCOMPLETE | GD23: INCOMPLETE | GE23: INCOMPLETE | GF23: 133750 | GG23: 39570 | GH23: 16120 | GI23: 0 | GJ23: 135 | GK23: 0 | GL23: 476250 | GM23: 110430 | GN23: 63880 | GO23: 70000 | GP23: 80000 | GQ23: 409501 | GR23: 1210061 | GS23: 0 | GT23: 33751.32 | GU23: 36231.28 | GV23: 31831.7 | GW23: 0 | GX23: 59792.17 | GY23: 161606.47 | GZ23: 240000 | HA23: 240000 | HB23: 970061 | HC23: 0.055 | HD23: 0.02 | HE23: 0.0382 | HF23: 0.0609 | HG23: 1.25 | HH23: 0.8 | HI23: 0.25 | HJ23: 116625.08 | HK23: 100838.42 | HL23: 20000 | HM23: 80838.42 | HN23: 15604.88 | HO23: 20660 | HP23: 1399501 | HQ23: 1210061 | HR23: 240000 | HS23: 970061 | HT23: 187258.53 | HU23: 247920 | HV23: 116625.08 | HW23: 100838.42 | HX23: 20000 | HY23: 80838.42 | HZ23: 19208.39 | IA23: 20660 | IB23: 1399501 | IC23: 1210061 | ID23: 240000 | IE23: 970061 | IF23: 230500.65 | IG23: 247920 | IH23: 2.22 | II23: 0.3109526429 | IJ23: INCOMPLETE | IK23: 2.02 | IL23: 0.3418508845 | IM23: INCOMPLETE | IN23: INCOMPLETE | IO23: INCOMPLETE | IP23: Pass | IQ23: Y | IR23: 2026-07-14T15:16:43 | IT23: Case 21 | IU23: Neil | IV23: IO term on 40 year loan term causing incomplete results
A24: 2500000 | B24: 0.0679 | C24: 0.0929 | D24: 40 | E24: 5 | F24: 2500000 | G24: 0.0679 | H24: 0.0929 | I24: 40 | J24: 5 | P24: Company | Q24: Individual (Single) | R24: Individual (Couple) | S24: Individual (Couple) | T24: Individual (Couple) | U24: Individual (Single) | X24: Non-loan Party | Y24: Applicant 5 | Z24: Applicant 4 | AH24: 0 | AI24: 0 | AJ24: 80000 | AK24: 30000 | AL24: 40000 | AM24: 1 | AN24: 0 | AO24: 0 | AP24: 0 | AQ24: 0 | AR24: 0 | AS24: 0 | AT24: 535000 | AU24: 150000 | AV24: 0 | AW24: 0 | AX24: 0 | AY24: 0 | AZ24: 75000 | BA24: 0 | BB24: 0 | BC24: 0 | BD24: 0 | BE24: 0 | BF24: 0 | BG24: 0 | BH24: 0 | BI24: 0 | BJ24: 0 | BK24: 0 | BL24: 0 | BM24: 0 | BN24: 0 | BO24: 50000 | BP24: 50000 | BQ24: 0 | BR24: 0 | BS24: 0 | BT24: 0 | BU24: 1000000 | BV24: 1000000 | BW24: 0 | CJ24: 0 | CK24: 0 | CL24: 0 | CM24: 0 | CN24: 0 | CO24: 0 | CP24: 0 | CQ24: 0 | CR24: 0 | CS24: 0 | CT24: 0 | CU24: 0 | CV24: 20000 | CW24: 0 | CX24: 0 | CY24: 0 | CZ24: 0 | DA24: Yes | DB24: No | DC24: No | DD24: No | DE24: Yes | DF24: Yes | DG24: Yes | DH24: Yes | DI24: Yes | DJ24: Yes | DK24: Yes | DL24: No | DM24: Yes | DN24: Yes | DO24: No | DP24: No | DQ24: No | DR24: 0 | DS24: 50000 | DT24: 15000 | DU24: 0 | DV24: 133750 | DW24: 39570 | DX24: 16120 | DY24: 0 | DZ24: 135 | EA24: 0 | EB24: 476250 | EC24: 110430 | ED24: 63880 | EE24: 70000 | EF24: 80000 | EG24: 1 | EH24: 800561 | EI24: 0 | EJ24: 33751.32 | EK24: 36231.28 | EL24: 31831.7 | EM24: 0 | EN24: 16510.72 | EO24: 118325.02 | EP24: 240000 | EQ24: 240000 | ER24: 560561 | ES24: 0.055 | ET24: 0.02 | EU24: 0.0382 | EV24: 0.0609 | EW24: 1.25 | EX24: 0.8 | EY24: 0.25 | EZ24: 82500.08 | FA24: 66713.42 | FB24: 20000 | FC24: 46713.42 | FD24: 15604.88 | FE24: 20660 | FF24: 990001 | FG24: 800561 | FH24: 240000 | FI24: 560561 | FJ24: 187258.53 | FK24: 247920 | FL24: 82500.08 | FM24: 66713.42 | FN24: 20000 | FO24: 46713.42 | FP24: 19208.39 | FQ24: 20660 | FR24: 990001 | FS24: 800561 | FT24: 240000 | FU24: 560561 | FV24: 230500.65 | FW24: 247920 | FX24: 1.28 | FY24: 0.4395738335 | FZ24: INCOMPLETE | GA24: 1.17 | GB24: 0.4832526985 | GC24: INCOMPLETE | GD24: INCOMPLETE | GE24: INCOMPLETE | GF24: 133750 | GG24: 39570 | GH24: 16120 | GI24: 0 | GJ24: 135 | GK24: 0 | GL24: 476250 | GM24: 110430 | GN24: 63880 | GO24: 70000 | GP24: 80000 | GQ24: 1 | GR24: 800561 | GS24: 0 | GT24: 33751.32 | GU24: 36231.28 | GV24: 31831.7 | GW24: 0 | GX24: 16510.72 | GY24: 118325.02 | GZ24: 240000 | HA24: 240000 | HB24: 560561 | HC24: 0.055 | HD24: 0.02 | HE24: 0.0382 | HF24: 0.0609 | HG24: 1.25 | HH24: 0.8 | HI24: 0.25 | HJ24: 82500.08 | HK24: 66713.42 | HL24: 20000 | HM24: 46713.42 | HN24: 15604.88 | HO24: 20660 | HP24: 990001 | HQ24: 800561 | HR24: 240000 | HS24: 560561 | HT24: 187258.53 | HU24: 247920 | HV24: 82500.08 | HW24: 66713.42 | HX24: 20000 | HY24: 46713.42 | HZ24: 19208.39 | IA24: 20660 | IB24: 990001 | IC24: 800561 | ID24: 240000 | IE24: 560561 | IF24: 230500.65 | IG24: 247920 | IH24: 1.28 | II24: 0.4395738335 | IJ24: INCOMPLETE | IK24: 1.17 | IL24: 0.4832526985 | IM24: INCOMPLETE | IN24: INCOMPLETE | IO24: INCOMPLETE | IP24: Pass | IQ24: Y | IR24: 2026-07-14T15:16:46 | IT24: Case 22 | IU24: Neil | IV24: IO term on 40 year loan term causing incomplete results
A25: 2500000 | B25: 0.0679 | C25: 0.0929 | D25: 40 | E25: 5 | F25: 2500000 | G25: 0.0679 | H25: 0.0929 | I25: 40 | J25: 5 | P25: Company | Q25: Individual (Single) | R25: Individual (Couple) | S25: Individual (Couple) | T25: Individual (Couple) | U25: Individual (Single) | X25: Non-loan Party | Y25: Applicant 5 | Z25: Applicant 4 | AH25: 0 | AI25: 0 | AJ25: 80000 | AK25: 30000 | AL25: 40000 | AM25: 1 | AN25: 0 | AO25: 0 | AP25: 0 | AQ25: 0 | AR25: 0 | AS25: 500000 | AT25: 0 | AU25: 1 | AV25: 0 | AW25: 0 | AX25: 0 | AY25: 0 | AZ25: 75000 | BA25: 0 | BB25: 0 | BC25: 0 | BD25: 0 | BE25: 0 | BF25: 35000 | BG25: 0 | BH25: 0 | BI25: 0 | BJ25: 0 | BK25: 0 | BL25: 0 | BM25: 0 | BN25: 0 | BO25: 50000 | BP25: 50000 | BQ25: 0 | BR25: 0 | BS25: 0 | BT25: 0 | BU25: 1000000 | BV25: 1000000 | BW25: 0 | CJ25: 0 | CK25: 0 | CL25: 0 | CM25: 0 | CN25: 0 | CO25: 0 | CP25: 0 | CQ25: 0 | CR25: 0 | CS25: 0 | CT25: 0 | CU25: 0 | CV25: 20000 | CW25: 0 | CX25: 0 | CY25: 0 | CZ25: 0 | DA25: Yes | DB25: No | DC25: No | DD25: No | DE25: Yes | DF25: Yes | DG25: Yes | DH25: Yes | DI25: Yes | DJ25: Yes | DK25: Yes | DL25: No | DM25: Yes | DN25: Yes | DO25: No | DP25: No | DQ25: No | DR25: 0 | DS25: 50000 | DT25: 15000 | DU25: 0 | DV25: 8750 | DW25: 0 | DX25: 16120 | DY25: 0 | DZ25: 135 | EA25: 0 | EB25: 101250 | EC25: 1 | ED25: 63880 | EE25: 70000 | EF25: 80000 | EG25: 500001 | EH25: 815132 | EI25: 0 | EJ25: 16510.72 | EK25: 36231.28 | EL25: 31831.7 | EM25: 0 | EN25: 59792.17 | EO25: 144365.86 | EP25: 240000 | EQ25: 240000 | ER25: 575132 | ES25: 0.055 | ET25: 0.02 | EU25: 0.0382 | EV25: 0.0609 | EW25: 1.25 | EX25: 0.8 | EY25: 0.25 | EZ25: 70000.17 | FA25: 67927.67 | FB25: 20000 | FC25: 47927.67 | FD25: 15604.88 | FE25: 20660 | FF25: 840002 | FG25: 815132 | FH25: 240000 | FI25: 575132 | FJ25: 187258.53 | FK25: 247920 | FL25: 70000.17 | FM25: 67927.67 | FN25: 20000 | FO25: 47927.67 | FP25: 19208.39 | FQ25: 20660 | FR25: 840002 | FS25: 815132 | FT25: 240000 | FU25: 575132 | FV25: 230500.65 | FW25: 247920 | FX25: 1.32 | FY25: 0.5180684507 | FZ25: INCOMPLETE | GA25: 1.2 | GB25: 0.5695470425 | GC25: INCOMPLETE | GD25: INCOMPLETE | GE25: INCOMPLETE | GF25: 8750 | GG25: 0 | GH25: 16120 | GI25: 0 | GJ25: 135 | GK25: 0 | GL25: 101250 | GM25: 1 | GN25: 63880 | GO25: 70000 | GP25: 80000 | GQ25: 500001 | GR25: 815132 | GS25: 0 | GT25: 16510.72 | GU25: 36231.28 | GV25: 31831.7 | GW25: 0 | GX25: 59792.17 | GY25: 144365.86 | GZ25: 240000 | HA25: 240000 | HB25: 575132 | HC25: 0.055 | HD25: 0.02 | HE25: 0.0382 | HF25: 0.0609 | HG25: 1.25 | HH25: 0.8 | HI25: 0.25 | HJ25: 70000.17 | HK25: 67927.67 | HL25: 20000 | HM25: 47927.67 | HN25: 15604.88 | HO25: 20660 | HP25: 840002 | HQ25: 815132 | HR25: 240000 | HS25: 575132 | HT25: 187258.53 | HU25: 247920 | HV25: 70000.17 | HW25: 67927.67 | HX25: 20000 | HY25: 47927.67 | HZ25: 19208.39 | IA25: 20660 | IB25: 840002 | IC25: 815132 | ID25: 240000 | IE25: 575132 | IF25: 230500.65 | IG25: 247920 | IH25: 1.32 | II25: 0.5180684507 | IJ25: INCOMPLETE | IK25: 1.2 | IL25: 0.5695470425 | IM25: INCOMPLETE | IN25: INCOMPLETE | IO25: INCOMPLETE | IP25: Pass | IQ25: Y | IR25: 2026-07-14T15:16:49 | IT25: Case 23 | IU25: Neil | IV25: IO term on 40 year loan term causing incomplete results
A26: 2000000 | B26: 0.0529 | C26: 0.0779 | D26: 30 | E26: 3 | F26: 2000000 | G26: 0.0529 | H26: 0.0779 | I26: 30 | J26: 3 | P26: Company | Q26: Individual (Single) | AH26: 0 | AI26: 0 | AJ26: 0 | AK26: 0 | AL26: 0 | AM26: 0 | AN26: 0 | AO26: 30000 | AP26: 0 | AQ26: 0 | AR26: 0 | AS26: 0 | AT26: 0 | AU26: 0 | AV26: 0 | AW26: 0 | AX26: 0 | AY26: 0 | AZ26: 0 | BA26: 0 | BB26: 0 | BC26: 0 | BD26: 0 | BE26: 0 | BF26: 300000 | BG26: 0 | BH26: 0 | BI26: 0 | BJ26: 0 | BK26: 0 | BL26: 0 | BM26: 0 | BN26: 0 | BO26: 0 | BP26: 0 | BQ26: 0 | BR26: 0 | BS26: 0 | BT26: 0 | BU26: 0 | BV26: 0 | BW26: 0 | CJ26: 0 | CK26: 0 | CL26: 0 | CM26: 0 | CN26: 0 | CO26: 0 | CP26: 0 | CQ26: 0 | CR26: 0 | CS26: 0 | CT26: 0 | CU26: 0 | CV26: 0 | CW26: 0 | CX26: 0 | CY26: 0 | CZ26: 0 | DA26: Yes | DB26: No | DC26: No | DD26: No | DE26: Yes | DF26: Yes | DG26: Yes | DH26: Yes | DI26: Yes | DJ26: Yes | DK26: Yes | DL26: No | DM26: Yes | DN26: Yes | DO26: No | DP26: No | DQ26: No | DR26: 0 | DS26: 0 | DT26: 0 | DU26: 0 | DV26: 75000 | DW26: 0 | DX26: 0 | DY26: 0 | DZ26: 0 | EA26: 0 | EB26: 225000 | EC26: 30000 | ED26: 0 | EE26: 0 | EF26: 0 | EG26: 0 | EH26: 255000 | EI26: 0 | EJ26: 17437.57 | EK26: 0 | EL26: 0 | EM26: 0 | EN26: 0 | EO26: 17437.57 | EP26: 0 | EQ26: 17437.57 | ER26: 237562.43 | ES26: 0.055 | ET26: 0.02 | EU26: 0.0382 | EV26: 0.0609 | EW26: 1.25 | EX26: 0.8 | EY26: 0.25 | EZ26: 27500 | FA26: 21250 | FB26: 1453.13 | FC26: 19796.87 | FD26: 11608.05 | FE26: 0 | FF26: 330000 | FG26: 255000 | FH26: 17437.57 | FI26: 237562.43 | FJ26: 139296.62 | FK26: 0 | FL26: 27500 | FM26: 21250 | FN26: 1453.13 | FO26: 19796.87 | FP26: 14136.59 | FQ26: 0 | FR26: 330000 | FS26: 255000 | FT26: 17437.57 | FU26: 237562.43 | FV26: 169639.12 | FW26: 0 | FX26: 1.7 | FY26: 0.4221109787 | FZ26: PASS | GA26: 1.4 | GB26: 0.5140579424 | GC26: PASS | GD26: 2000000 | GE26: 2800674.73 | GF26: 75000 | GG26: 0 | GH26: 0 | GI26: 0 | GJ26: 0 | GK26: 0 | GL26: 225000 | GM26: 30000 | GN26: 0 | GO26: 0 | GP26: 0 | GQ26: 0 | GR26: 255000 | GS26: 0 | GT26: 17437.57 | GU26: 0 | GV26: 0 | GW26: 0 | GX26: 0 | GY26: 17437.57 | GZ26: 0 | HA26: 17437.57 | HB26: 237562.43 | HC26: 0.055 | HD26: 0.02 | HE26: 0.0382 | HF26: 0.0609 | HG26: 1.25 | HH26: 0.8 | HI26: 0.25 | HJ26: 27500 | HK26: 21250 | HL26: 1453.13 | HM26: 19796.87 | HN26: 11608.05 | HO26: 0 | HP26: 330000 | HQ26: 255000 | HR26: 17437.57 | HS26: 237562.43 | HT26: 139296.62 | HU26: 0 | HV26: 27500 | HW26: 21250 | HX26: 1453.13 | HY26: 19796.87 | HZ26: 14136.59 | IA26: 0 | IB26: 330000 | IC26: 255000 | ID26: 17437.57 | IE26: 237562.43 | IF26: 169639.12 | IG26: 0 | IH26: 1.7 | II26: 0.4221109787 | IJ26: PASS | IK26: 1.4 | IL26: 0.5140579424 | IM26: PASS | IN26: 2000000 | IO26: 2800674.73 | IP26: Pass | IQ26: Y | IR26: 2026-07-14T15:16:52 | IT26: Case 24 | IU26: Neil | IV26: Reconciled - Investment property NG calculation change | IW26: 0
